Workbook

Sheet Data
B9: Conditions | D9: Gage Flow (cfs) | L9: Dayflow | AA9: Sailinity
B10: Term 91 Status | C10: Delta Condition | D10: Bend Bridge | E10: Cow Creek | F10: Cottonwood Creek | G10: Battle Creek | H10: Hamilton City | I10: Wilkins Slough | J10: Verona | K10: Freeport | L10: Freeport | M10: Yolo Bypass and Sacramento Weir Flow | N10: Flow through Cross Channel and Georgiana Slough | O10: San Joaquin River at Vernalis | P10: Delta Inflow | Q10: Net Channel Depletion | R10: Delta Outflow | S10: Contra Costa Water District | T10: Clifton Court | U10: Jones PP | V10: North Bay Aqueduct | W10: Export / Inflow Ratio | X10: Total Exports | Y10: Sacramento River Flow Estimate Past Rio Vista | Z10: Estimated Distance from Golden Gate to 2 ppt Salinity | AA10: Collinsville EC | AB10: Mallard Slough EC | AC10: Port Chicago EC
A11: Date | B11: (On 1 / Off 0) | C11: (Balanced 1 / Excess 0) | D11: USGS 11377100 | E11: USGS 11374000 | F11: USGS 11376000 | G11: USGS 11376550 | H11: CDEC HMC | I11: USGS 11390500 | J11: USGS 11425500 | K11: USGS 11447650 | L11: SAC | M11: YOLO | N11: XGEO | O11: SJR | P11: TOT | Q11: CD | R11: DAYFLOW | S11: CCC | T11: SWP | U11: CVP | V11: NBA | W11: EXPIN | X11: EXPORT | Y11: RIO | Z11: X2 | AA11: CDEC CLL | AB11: CDEC MAL | AC11: CDEC PCT
A12: 2000-01-01 | B12: 0 | C12: 1 | D12: 6540 | E12: 140 | F12: 135 | G12: 331 | H12: -- | I12: 7020 | J12: 12100 | K12: 14600 | L12: 14600 | M12: 45 | N12: 6368 | O12: 1610 | P12: 16615 | Q12: 1700 | R12: 4077 | S12: 0 | T12: 6676 | U12: 4131 | V12: 31 | W12: 0.65 | X12: 10838 | Y12: 7801 | Z12: 79.17 | AA12: 7.004 | AB12: 6.86 | AC12: 16.15
A13: 2000-01-02 | B13: 0 | C13: 1 | D13: 6410 | E13: 144 | F13: 134 | G13: 341 | H13: -- | I13: 7030 | J13: 12000 | K13: 14500 | L13: 14500 | M13: 55 | N13: 6339 | O13: 1620 | P13: 16537 | Q13: 1650 | R13: 4108 | S13: 2 | T13: 6673 | U13: 4056 | V13: 48 | W13: 0.65 | X13: 10779 | Y13: 7754 | Z13: 79.6 | AA13: 6.279 | AB13: 7.15 | AC13: 15.564
A14: 2000-01-03 | B14: 0 | C14: 1 | D14: 6410 | E14: 140 | F14: 132 | G14: 335 | H14: -- | I14: 6940 | J14: 12100 | K14: 14600 | L14: 14600 | M14: 51 | N14: 6368 | O14: 1630 | P14: 16641 | Q14: 1600 | R14: 4500 | S14: 74 | T14: 6307 | U14: 4121 | V14: 39 | W14: 0.63 | X14: 10541 | Y14: 7835 | Z14: 79.95 | AA14: 6.792 | AB14: 6.55 | AC14: 15.402
A15: 2000-01-04 | B15: 0 | C15: 1 | D15: 6410 | E15: 141 | F15: 130 | G15: 333 | H15: -- | I15: 6850 | J15: 11900 | K15: 14300 | L15: 14300 | M15: 50 | N15: 6280 | O15: 1610 | P15: 16316 | Q15: 1550 | R15: 3796 | S15: 160 | T15: 6670 | U15: 4091 | V15: 49 | W15: 0.66 | X15: 10970 | Y15: 7636 | Z15: 80.39 | AA15: 2.448 | AB15: 6.8 | AC15: 15.44
A16: 2000-01-05 | B16: 0 | C16: 1 | D16: 6330 | E16: 143 | F16: 130 | G16: 333 | H16: -- | I16: 6820 | J16: 11900 | K16: 14200 | L16: 14200 | M16: 50 | N16: 6251 | O16: 1600 | P16: 16204 | Q16: 1500 | R16: 3715 | S16: 230 | T16: 6603 | U16: 4121 | V16: 36 | W16: 0.66 | X16: 10990 | Y16: 7579 | Z16: 80.82 | AA16: 2.877 | AB16: 7.43 | AC16: 15.93
A17: 2000-01-06 | B17: 0 | C17: 1 | D17: 6150 | E17: 137 | F17: 126 | G17: 331 | H17: -- | I17: 6700 | J17: 11800 | K17: 14200 | L17: 14200 | M17: 40 | N17: 6251 | O17: 1610 | P17: 16208 | Q17: 1450 | R17: 4045 | S17: 252 | T17: 6310 | U17: 4099 | V17: 52 | W17: 0.64 | X17: 10713 | Y17: 7583 | Z17: 81.17 | AA17: 3.718 | AB17: 7.64 | AC17: 15.978
A18: 2000-01-07 | B18: 0 | C18: 1 | D18: 6030 | E18: 135 | F18: 115 | G18: 335 | H18: -- | I18: 6580 | J18: 11700 | K18: 14100 | L18: 14100 | M18: 25 | N18: 6221 | O18: 1590 | P18: 16070 | Q18: 1450 | R18: 3555 | S18: 246 | T18: 6657 | U18: 4094 | V18: 68 | W18: 0.67 | X18: 11065 | Y18: 7498 | Z18: 81.59 | AA18: 4.164 | AB18: 8.26 | AC18: 17.025
A19: 2000-01-08 | B19: 0 | C19: 1 | D19: 6010 | E19: 135 | F19: 114 | G19: 331 | H19: -- | I19: 6430 | J19: 11500 | K19: 13900 | L19: 13900 | M19: 25 | N19: 6163 | O19: 1570 | P19: 15846 | Q19: 1450 | R19: 3824 | S19: 249 | T19: 6154 | U19: 4099 | V19: 70 | W19: 0.65 | X19: 10572 | Y19: 7356 | Z19: 81.93 | AA19: 4.352 | AB19: 8.47 | AC19: 17.231
A20: 2000-01-09 | B20: 0 | C20: 1 | D20: 5950 | E20: 134 | F20: 112 | G20: 330 | H20: -- | I20: 6290 | J20: 11400 | K20: 13800 | L20: 13800 | M20: 53 | N20: 6133 | O20: 1590 | P20: 15798 | Q20: 1350 | R20: 3523 | S20: 249 | T20: 6500 | U20: 4100 | V20: 76 | W20: 0.67 | X20: 10925 | Y20: 7342 | Z20: 82.31 | AA20: 4.425 | AB20: 8.44 | AC20: 17.178
A21: 2000-01-10 | B21: 0 | C21: 1 | D21: 5930 | E21: 139 | F21: 115 | G21: 340 | H21: -- | I21: 6290 | J21: 11300 | K21: 13600 | L21: 13600 | M21: 65 | N21: 6075 | O21: 1610 | P21: 15629 | Q21: 1300 | R21: 3496 | S21: 249 | T21: 6388 | U21: 4115 | V21: 81 | W21: 0.67 | X21: 10833 | Y21: 7226 | Z21: 82.68 | AA21: 4.505 | AB21: 8.16 | AC21: 17.634
A22: 2000-01-11 | B22: 0 | C22: 1 | D22: 6820 | E22: 593 | F22: 144 | G22: 419 | H22: -- | I22: 6350 | J22: 11400 | K22: 13600 | L22: 13600 | M22: 58 | N22: 6075 | O22: 1610 | P22: 15630 | Q22: -1222 | R22: 5900 | S22: 269 | T22: 6481 | U22: 4113 | V22: 88 | W22: 0.68 | X22: 10951 | Y22: 7925 | Z22: 82.68 | AA22: 4.745 | AB22: 8.89 | AC22: 18.488
A23: 2000-01-12 | B23: 0 | C23: 1 | D23: 7090 | E23: 513 | F23: 486 | G23: 457 | H23: -- | I23: 6600 | J23: 11800 | K23: 14800 | L23: 14800 | M23: 43 | N23: 6426 | O23: 1720 | P23: 16958 | Q23: -1272 | R23: 8037 | S23: 291 | T23: 5726 | U23: 4106 | V23: 70 | W23: 0.58 | X23: 10193 | Y23: 8773 | Z23: 82.49 | AA23: 4.436 | AB23: 8.45 | AC23: 16.606
A24: 2000-01-13 | B24: 0 | C24: 1 | D24: 6390 | E24: 491 | F24: 387 | G24: 412 | H24: -- | I24: 8000 | J24: 12400 | K24: 14800 | L24: 14800 | M24: 30 | N24: 6426 | O24: 1740 | P24: 17005 | Q24: -1272 | R24: 8285 | S24: 240 | T24: 5585 | U24: 4093 | V24: 74 | W24: 0.57 | X24: 9992 | Y24: 8760 | Z24: 82.28 | AA24: 3.902 | AB24: 7.64 | AC24: 16.015
A25: 2000-01-14 | B25: 0 | C25: 1 | D25: 6720 | E25: 801 | F25: 401 | G25: 473 | H25: -- | I25: 8140 | J25: 13500 | K25: 16100 | L25: 16100 | M25: 30 | N25: 6807 | O25: 1720 | P25: 18268 | Q25: -1322 | R25: 10070 | S25: 219 | T25: 5153 | U25: 4074 | V25: 73 | W25: 0.51 | X25: 9519 | Y25: 9693 | Z25: 81.97 | AA25: 3.901 | AB25: 7.52 | AC25: 16.372
A26: 2000-01-15 | B26: 0 | C26: 1 | D26: 17600 | E26: 8140 | F26: 1090 | G26: 623 | H26: -- | I26: 8000 | J26: 13600 | K26: 16300 | L26: 16300 | M26: 35 | N26: 6866 | O26: 1800 | P26: 18555 | Q26: -1780 | R26: 10226 | S26: 281 | T26: 5686 | U26: 4067 | V26: 75 | W26: 0.53 | X26: 10109 | Y26: 9967 | Z26: 81.65 | AA26: 4.342 | AB26: 8.24 | AC26: 17.085
A27: 2000-01-16 | B27: 0 | C27: 1 | D27: 13000 | E27: 3270 | F27: 1720 | G27: 889 | H27: -- | I27: 10300 | J27: 14300 | K27: 16300 | L27: 16300 | M27: 47 | N27: 4558 | O27: 1830 | P27: 18638 | Q27: 4 | R27: 8433 | S27: 279 | T27: 5763 | U27: 4084 | V27: 76 | W27: 0.53 | X27: 10202 | Y27: 11788 | Z27: 81.49 | AA27: 5.537 | AB27: 10.76 | AC27: 19.717
A28: 2000-01-17 | B28: 0 | C28: 1 | D28: 9610 | E28: 1320 | F28: 1500 | G28: 579 | H28: -- | I28: 15000 | J28: 18700 | K28: 19700 | L28: 19700 | M28: 50 | N28: 3449 | O28: 1880 | P28: 22276 | Q28: -684 | R28: 14777 | S28: 250 | T28: 6011 | U28: 1846 | V28: 76 | W28: 0.35 | X28: 8183 | Y28: 16492 | Z28: 80.96 | AA28: 5.12 | AB28: 9.26 | AC28: 18.174
A29: 2000-01-18 | B29: 0 | C29: 1 | D29: 8380 | E29: 1160 | F29: 1180 | G29: 605 | H29: -- | I29: 14500 | J29: 21300 | K29: 23900 | L29: 23900 | M29: 50 | N29: 4008 | O29: 1980 | P29: 26835 | Q29: -4172 | R29: 23910 | S29: 102 | T29: 5992 | U29: 921 | V29: 82 | W29: 0.26 | X29: 7097 | Y29: 21111 | Z29: 80.16 | AA29: 4.737 | AB29: 8.84 | AC29: 18.045
A30: 2000-01-19 | B30: 0 | C30: 1 | D30: 13000 | E30: 3860 | F30: 1880 | G30: 1470 | H30: -- | I30: 12400 | J30: 21800 | K30: 25000 | L30: 25000 | M30: 50 | N30: 4154 | O30: 2120 | P30: 28332 | Q30: -4402 | R30: 25160 | S30: 101 | T30: 6495 | U30: 908 | V30: 70 | W30: 0.26 | X30: 7574 | Y30: 22128 | Z30: 79.37 | AA30: 4.139 | AB30: 9.37 | AC30: 17.413
A31: 2000-01-20 | B31: 0 | C31: 0 | D31: 19400 | E31: 4980 | F31: 2890 | G31: 963 | H31: -- | I31: 13400 | J31: 20400 | K31: 23600 | L31: 23600 | M31: 42 | N31: 3968 | O31: 2080 | P31: 26735 | Q31: -4402 | R31: 23690 | S31: 100 | T31: 6494 | U31: 789 | V31: 64 | W31: 0.27 | X31: 7447 | Y31: 20907 | Z31: 78.66 | AA31: 3.665 | AB31: 9.96 | AC31: 15.386
A32: 2000-01-21 | B32: 0 | C32: 0 | D32: 9900 | E32: 1540 | F32: 1660 | G32: 641 | H32: -- | I32: 19100 | J32: 22600 | K32: 24400 | L32: 24400 | M32: 25 | N32: 4074 | O32: 2100 | P32: 27531 | Q32: -3764 | R32: 23893 | S32: 97 | T32: 6494 | U32: 732 | V32: 79 | W32: 0.26 | X32: 7402 | Y32: 21405 | Z32: 77.98 | AA32: 3.28 | AB32: 6.45 | AC32: 15.264
A33: 2000-01-22 | B33: 0 | C33: 0 | D33: 9970 | E33: 1200 | F33: 1250 | G33: 584 | H33: -- | I33: 17500 | J33: 24800 | K33: 27800 | L33: 27800 | M33: 25 | N33: 4526 | O33: 2150 | P33: 30761 | Q33: -3076 | R33: 26438 | S33: 100 | T33: 6494 | U33: 730 | V33: 75 | W33: 0.23 | X33: 7399 | Y33: 24160 | Z33: 77.28 | AA33: 2.068 | AB33: 5.09 | AC33: 13.38
A34: 2000-01-23 | B34: 0 | C34: 0 | D34: 11200 | E34: 2750 | F34: 1130 | G34: 663 | H34: -- | I34: 14500 | J34: 22100 | K34: 26200 | L34: 26200 | M34: 25 | N34: 4314 | O34: 2260 | P34: 29375 | Q34: -7023 | R34: 29204 | S34: 93 | T34: 6298 | U34: 728 | V34: 75 | W34: 0.24 | X34: 7194 | Y34: 23878 | Z34: 76.55 | AA34: 1.276 | AB34: 4.43 | AC34: 12.422
A35: 2000-01-24 | B35: 0 | C35: 0 | D35: 23600 | E35: 6510 | F35: 2190 | G35: 1400 | H35: -- | I35: 14700 | J35: 22300 | K35: 29900 | L35: 29900 | M35: 23 | N35: 4806 | O35: 2600 | P35: 38053 | Q35: -16192 | R35: 46138 | S35: 83 | T35: 7227 | U35: 728 | V35: 70 | W35: 0.21 | X35: 8108 | Y35: 29651 | Z35: 75.56 | AA35: 1.13 | AB35: 3.48 | AC35: 10.434
A36: 2000-01-25 | B36: 0 | C36: 0 | D36: 22200 | E36: 3780 | F36: 2610 | G36: 931 | H36: -- | I36: 20800 | J36: 34600 | K36: 43600 | L36: 43600 | M36: 1410 | N36: 6628 | O36: 3150 | P36: 57170 | Q36: -15963 | R36: 63239 | S36: 90 | T36: 7472 | U36: 2264 | V36: 68 | W36: 0.17 | X36: 9894 | Y36: 42852 | Z36: 74.43 | AA36: 0.563 | AB36: 2.01 | AC36: 7.489
A37: 2000-01-26 | B37: 0 | C37: 0 | D37: 21800 | E37: 2000 | F37: 2100 | G37: 685 | H37: -- | I37: 23600 | J37: 39900 | K37: 50600 | L37: 50600 | M37: 2303 | N37: 7559 | O37: 3620 | P37: 62182 | Q37: -15963 | R37: 67481 | S37: 87 | T37: 6488 | U37: 4012 | V37: 77 | W37: 0.17 | X37: 10664 | Y37: 49814 | Z37: 73.31 | AA37: 0.3 | AB37: 0.99 | AC37: 3.919
A38: 2000-01-27 | B38: 0 | C38: 0 | D38: 18100 | E38: 1230 | F38: 1460 | G38: 568 | H38: -- | I38: 23300 | J38: 37700 | K38: 48900 | L38: 48900 | M38: 2333 | N38: 7333 | O38: 3700 | P38: 59304 | Q38: -16013 | R38: 64830 | S38: 87 | T38: 6321 | U38: 4022 | V38: 57 | W38: 0.17 | X38: 10487 | Y38: 48384 | Z38: 72.28 | AA38: 0.238 | AB38: 0.67 | AC38: 1.866
A39: 2000-01-28 | B39: 0 | C39: 0 | D39: 17600 | E39: 919 | F39: 1100 | G39: 521 | H39: -- | I39: 22100 | J39: 35400 | K39: 46500 | L39: 46500 | M39: 2112 | N39: 7014 | O39: 3230 | P39: 55153 | Q39: -8678 | R39: 53145 | S39: 107 | T39: 6503 | U39: 4026 | V39: 49 | W39: 0.19 | X39: 10685 | Y39: 44028 | Z39: 71.44 | AA39: 0.18 | AB39: 0.6 | AC39: 1.486
A40: 2000-01-29 | B40: 0 | C40: 0 | D40: 22900 | E40: 746 | F40: 897 | G40: 489 | H40: -- | I40: 20300 | J40: 33800 | K40: 44500 | L40: 44500 | M40: 1845 | N40: 6748 | O40: 3190 | P40: 52046 | Q40: 721 | R40: 39530 | S40: 145 | T40: 7592 | U40: 4011 | V40: 47 | W40: 0.22 | X40: 11795 | Y40: 39396 | Z40: 70.84 | AA40: 0.157 | AB40: 0.53 | AC40: 2.365
A41: 2000-01-30 | B41: 0 | C41: 0 | D41: 27900 | E41: 2660 | F41: 1690 | G41: 950 | H41: -- | I41: 20400 | J41: 32600 | K41: 42400 | L41: 42400 | M41: 1645 | N41: 6468 | O41: 2920 | P41: 49219 | Q41: -425 | R41: 37923 | S41: 141 | T41: 7493 | U41: 4040 | V41: 47 | W41: 0.23 | X41: 11721 | Y41: 37696 | Z41: 70.29 | AA41: 0.164 | AB41: 0.68 | AC41: 4.901
A42: 2000-01-31 | B42: 0 | C42: 0 | D42: 27300 | E42: 2490 | F42: 1970 | G42: 907 | H42: -- | I42: 23300 | J42: 35000 | K42: 43800 | L42: 43800 | M42: 1575 | N42: 6654 | O42: 2780 | P42: 49972 | Q42: -475 | R42: 38834 | S42: 140 | T42: 7392 | U42: 4030 | V42: 51 | W42: 0.23 | X42: 11613 | Y42: 38854 | Z42: 69.76 | AA42: 0.16 | AB42: 0.49 | AC42: 3.299
A43: 2000-02-01 | B43: 0 | C43: 0 | D43: 26300 | E43: 2190 | F43: 2390 | G43: 784 | H43: -- | I43: 25300 | J43: 37200 | K43: 44700 | L43: 44700 | M43: 1675 | N43: 6774 | O43: 2760 | P43: 50992 | Q43: -475 | R43: 39690 | S43: 146 | T43: 7500 | U43: 4075 | V43: 56 | W43: 0.23 | X43: 11777 | Y43: 39734 | Z43: 69.25 | AA43: 0.172 | AB43: 0.4 | AC43: 2.581
A44: 2000-02-02 | B44: 0 | C44: 0 | D44: 21600 | E44: 1340 | F44: 1630 | G44: 620 | H44: -- | I44: 24600 | J44: 37400 | K44: 44400 | L44: 44400 | M44: 1945 | N44: 6734 | O44: 2700 | P44: 50775 | Q44: -475 | R44: 39437 | S44: 183 | T44: 7492 | U44: 4087 | V44: 51 | W44: 0.23 | X44: 11813 | Y44: 39744 | Z44: 68.76 | AA44: 0.192 | AB44: 0.28 | AC44: 2.194
A45: 2000-02-03 | B45: 0 | C45: 0 | D45: 17800 | E45: 1160 | F45: 1400 | G45: 679 | H45: -- | I45: 23600 | J45: 37400 | K45: 43800 | L45: 43800 | M45: 1965 | N45: 6654 | O45: 2510 | P45: 50044 | Q45: -1851 | R45: 39992 | S45: 246 | T45: 7494 | U45: 4107 | V45: 56 | W45: 0.23 | X45: 11903 | Y45: 39629 | Z45: 68.3 | AA45: 0.198 | AB45: 0.4 | AC45: 3.258
A46: 2000-02-04 | B46: 0 | C46: 0 | D46: 19600 | E46: 1710 | F46: 2020 | G46: 869 | H46: -- | I46: 22400 | J46: 36900 | K46: 43400 | L46: 43400 | M46: 1785 | N46: 6601 | O46: 2410 | P46: 50042 | Q46: -475 | R46: 38800 | S46: 279 | T46: 7282 | U46: 4100 | V46: 57 | W46: 0.23 | X46: 11718 | Y46: 38717 | Z46: 67.88 | AA46: 0.181 | AB46: 0.31 | AC46: 2.444
A47: 2000-02-05 | B47: 0 | C47: 0 | D47: 20700 | E47: 1760 | F47: 2910 | G47: 711 | H47: -- | I47: 22700 | J47: 36000 | K47: 41900 | L47: 41900 | M47: 1588 | N47: 6402 | O47: 2330 | P47: 48117 | Q47: -475 | R47: 36752 | S47: 280 | T47: 7400 | U47: 4104 | V47: 56 | W47: 0.24 | X47: 11840 | Y47: 37219 | Z47: 67.52 | AA47: 0.183 | AB47: 0.3 | AC47: 2.357
A48: 2000-02-06 | B48: 0 | C48: 0 | D48: 20500 | E48: 1430 | F48: 3990 | G48: 677 | H48: -- | I48: 22700 | J48: 34400 | K48: 40200 | L48: 40200 | M48: 1360 | N48: 6176 | O48: 2310 | P48: 45897 | Q48: -705 | R48: 34774 | S48: 277 | T48: 7394 | U48: 4101 | V48: 56 | W48: 0.25 | X48: 11828 | Y48: 35582 | Z48: 67.21 | AA48: 0.179 | AB48: 0.24 | AC48: 1.177
A49: 2000-02-07 | B49: 0 | C49: 0 | D49: 16400 | E49: 996 | F49: 2480 | G49: 580 | H49: -- | I49: 23600 | J49: 33600 | K49: 38700 | L49: 38700 | M49: 1170 | N49: 5976 | O49: 2270 | P49: 43926 | Q49: -705 | R49: 33063 | S49: 248 | T49: 7175 | U49: 4089 | V49: 56 | W49: 0.26 | X49: 11568 | Y49: 34091 | Z49: 66.95 | AA49: 0.186 | AB49: 0.23 | AC49: 0.924
A50: 2000-02-08 | B50: 0 | C50: 0 | D50: 14900 | E50: 806 | F50: 1810 | G50: 538 | H50: -- | I50: 22000 | J50: 32800 | K50: 38000 | L50: 38000 | M50: 1053 | N50: 5883 | O50: 2200 | P50: 42947 | Q50: 671 | R50: 31267 | S50: 202 | T50: 6671 | U50: 4080 | V50: 56 | W50: 0.25 | X50: 11009 | Y50: 32982 | Z50: 66.75 | AA50: 0.188 | AB50: 0.22 | AC50: 0.74
A51: 2000-02-09 | B51: 0 | C51: 0 | D51: 17300 | E51: 695 | F51: 1470 | G51: 521 | H51: -- | I51: 19700 | J51: 30800 | K51: 36300 | L51: 36300 | M51: 30 | N51: 5657 | O51: 2150 | P51: 40054 | Q51: -475 | R51: 29832 | S51: 218 | T51: 6317 | U51: 4110 | V51: 53 | W51: 0.26 | X51: 10698 | Y51: 30806 | Z51: 66.58 | AA51: 0.19 | AB51: 0.22 | AC51: 0.695
A52: 2000-02-10 | B52: 0 | C52: 0 | D52: 22800 | E52: 1290 | F52: 2800 | G52: 644 | H52: -- | I52: 18600 | J52: 28700 | K52: 34500 | L52: 34500 | M52: 30 | N52: 5418 | O52: 2140 | P52: 38423 | Q52: -3964 | R52: 30937 | S52: 261 | T52: 7011 | U52: 4121 | V52: 56 | W52: 0.29 | X52: 11449 | Y52: 30222 | Z52: 66.4 | AA52: 0.185 | AB52: 0.22 | AC52: 1.346
A53: 2000-02-11 | B53: 0 | C53: 0 | D53: 26100 | E53: 2100 | F53: 4040 | G53: 780 | H53: -- | I53: 21300 | J53: 32200 | K53: 37100 | L53: 37100 | M53: 37 | N53: 5763 | O53: 2140 | P53: 41878 | Q53: -9236 | R53: 39658 | S53: 299 | T53: 6977 | U53: 4127 | V53: 53 | W53: 0.27 | X53: 11456 | Y53: 33960 | Z53: 66.07 | AA53: 0.181 | AB53: 0.22 | AC53: 1.838
A54: 2000-02-12 | B54: 0 | C54: 0 | D54: 45400 | E54: 5870 | F54: 5660 | G54: 1000 | H54: -- | I54: 25400 | J54: 40000 | K54: 45600 | L54: 45600 | M54: 1460 | N54: 6894 | O54: 2340 | P54: 56995 | Q54: -9695 | R54: 55574 | S54: 275 | T54: 6642 | U54: 4142 | V54: 56 | W54: 0.19 | X54: 11115 | Y54: 42881 | Z54: 65.54 | AA54: 0.181 | AB54: 0.22 | AC54: 2.123
A55: 2000-02-13 | B55: 0 | C55: 0 | D55: 58300 | E55: 12700 | F55: 10800 | G55: 1590 | H55: -- | I55: 27200 | J55: 48300 | K55: 57000 | L55: 57000 | M55: 2410 | N55: 8410 | O55: 3490 | P55: 70643 | Q55: -16113 | R55: 75156 | S55: 264 | T55: 7228 | U55: 4064 | V55: 44 | W55: 0.16 | X55: 11600 | Y55: 55512 | Z55: 64.85 | AA55: 0.189 | AB55: 0.22 | AC55: 1.884
A56: 2000-02-14 | B56: 0 | C56: 0 | D56: 60400 | E56: 9560 | F56: 13600 | G56: 1940 | H56: -- | I56: 27900 | J56: 59900 | K56: 75700 | L56: 75700 | M56: 4753 | N56: 10897 | O56: 5230 | P56: 98687 | Q56: -15540 | R56: 102185 | S56: 260 | T56: 7698 | U56: 4047 | V56: 37 | W56: 0.12 | X56: 12042 | Y56: 73907 | Z56: 63.99 | AA56: 0.196 | AB56: 0.2 | AC56: 1.171
A57: 2000-02-15 | B57: 0 | C57: 0 | D57: 58500 | E57: 3900 | F57: 8650 | G57: 1380 | H57: -- | I57: 29000 | J57: 65800 | K57: 87700 | L57: 87700 | M57: 57579 | N57: 12493 | O57: 8120 | P57: 163897 | Q57: -12101 | R57: 163895 | S57: 125 | T57: 7913 | U57: 4040 | V57: 25 | W57: 0.07 | X57: 12103 | Y57: 136174 | Z57: 62.88 | AA57: 0.185 | AB57: 0.2 | AC57: 0.268
A58: 2000-02-16 | B58: 0 | C58: 0 | D58: 53800 | E58: 2500 | F58: 5130 | G58: 937 | H58: -- | I58: 29200 | J58: 65100 | K58: 87500 | L58: 87500 | M58: 56974 | N58: 12467 | O58: 8710 | P58: 164811 | Q58: -10726 | R58: 162606 | S58: 73 | T58: 8807 | U58: 4028 | V58: 23 | W58: 0.08 | X58: 12931 | Y58: 135011 | Z58: 61.83 | AA58: 0.142 | AB58: 0.19 | AC58: 0.256
A59: 2000-02-17 | B59: 0 | C59: 0 | D59: 51300 | E59: 1870 | F59: 3900 | G59: 812 | H59: -- | I59: 28700 | J59: 65100 | K59: 87000 | L59: 87000 | M59: 55659 | N59: 12400 | O59: 9490 | P59: 162667 | Q59: -10268 | R59: 159669 | S59: 71 | T59: 9060 | U59: 4112 | V59: 23 | W59: 0.08 | X59: 13266 | Y59: 133134 | Z59: 60.85 | AA59: 0.149 | AB59: 0.16 | AC59: 0.23
A60: 2000-02-18 | B60: 0 | C60: 0 | D60: 49900 | E60: 1460 | F60: 3180 | G60: 711 | H60: -- | I60: 28300 | J60: 64100 | K60: 82900 | L60: 82900 | M60: 49292 | N60: 11855 | O60: 11700 | P60: 153104 | Q60: -3849 | R60: 143481 | S60: 71 | T60: 9229 | U60: 4146 | V60: 26 | W60: 0.09 | X60: 13472 | Y60: 121415 | Z60: 60 | AA60: 0.165 | AB60: 0.16 | AC60: 0.205
A61: 2000-02-19 | B61: 0 | C61: 0 | D61: 48900 | E61: 1180 | F61: 2670 | G61: 645 | H61: -- | I61: 28000 | J61: 62700 | K61: 78700 | L61: 78700 | M61: 39108 | N61: 11296 | O61: 12300 | P61: 138844 | Q61: -3276 | R61: 129166 | S61: 78 | T61: 8706 | U61: 4146 | V61: 25 | W61: 0.09 | X61: 12955 | Y61: 107429 | Z61: 59.26 | AA61: 0.16 | AB61: 0.13 | AC61: 0.197
A62: 2000-02-20 | B62: 0 | C62: 0 | D62: 46200 | E62: 1130 | F62: 2380 | G62: 629 | H62: -- | I62: 27700 | J62: 61700 | K62: 75600 | L62: 75600 | M62: 30442 | N62: 10884 | O62: 12400 | P62: 126859 | Q62: -6027 | R62: 120471 | S62: 81 | T62: 8166 | U62: 4145 | V62: 23 | W62: 0.1 | X62: 12415 | Y62: 96846 | Z62: 58.6 | AA62: 0.16 | AB62: 0.13 | AC62: 0.184
A63: 2000-02-21 | B63: 0 | C63: 0 | D63: 48900 | E63: 1810 | F63: 5590 | G63: 814 | H63: -- | I63: 27500 | J63: 61400 | K63: 74000 | L63: 74000 | M63: 27015 | N63: 10671 | O63: 12400 | P63: 121910 | Q63: -1851 | R63: 110045 | S63: 75 | T63: 9487 | U63: 4131 | V63: 23 | W63: 0.11 | X63: 13716 | Y63: 90862 | Z63: 58.04 | AA63: 0.16 | AB63: 0.12 | AC63: 0.174
A64: 2000-02-22 | B64: 0 | C64: 0 | D64: 45700 | E64: 2230 | F64: 5580 | G64: 884 | H64: -- | I64: 27600 | J64: 60700 | K64: 72300 | L64: 72300 | M64: 23172 | N64: 10445 | O64: 12200 | P64: 114566 | Q64: -9645 | R64: 110836 | S64: 32 | T64: 9183 | U64: 4133 | V64: 27 | W64: 0.12 | X64: 13375 | Y64: 87728 | Z64: 57.51 | AA64: 0.16 | AB64: 0.13 | AC64: 0.181
A65: 2000-02-23 | B65: 0 | C65: 0 | D65: 61800 | E65: 4240 | F65: 9480 | G65: 1790 | H65: -- | I65: 27800 | J65: 62800 | K65: 74500 | L65: 74500 | M65: 29431 | N65: 10738 | O65: 12600 | P65: 127080 | Q65: -11249 | R65: 126156 | S65: 4 | T65: 8059 | U65: 4085 | V65: 25 | W65: 0.1 | X65: 12173 | Y65: 96343 | Z65: 56.92 | AA65: 0.151 | AB65: 0.13 | AC65: 0.186
A66: 2000-02-24 | B66: 0 | C66: 0 | D66: 50600 | E66: 1990 | F66: 5000 | G66: 879 | H66: -- | I66: 28700 | J66: 64100 | K66: 75700 | L66: 75700 | M66: 42740 | N66: 10897 | O66: 13500 | P66: 140430 | Q66: -11249 | R66: 141578 | S66: 0 | T66: 5998 | U66: 4081 | V66: 22 | W66: 0.07 | X66: 10101 | Y66: 110693 | Z66: 56.29 | AA66: 0.17 | AB66: 0.14 | AC66: 0.182
A67: 2000-02-25 | B67: 0 | C67: 0 | D67: 52700 | E67: 1780 | F67: 5010 | G67: 771 | H67: -- | I67: 28700 | J67: 63700 | K67: 75500 | L67: 75500 | M67: 42134 | N67: 10871 | O67: 13800 | P67: 139102 | Q67: -8498 | R67: 137623 | S67: 0 | T67: 5811 | U67: 4141 | V67: 25 | W67: 0.07 | X67: 9977 | Y67: 109143 | Z67: 55.71 | AA67: 0.158 | AB67: 0.15 | AC67: 0.187
A68: 2000-02-26 | B68: 0 | C68: 0 | D68: 59800 | E68: 5570 | F68: 7030 | G68: 1020 | H68: -- | I68: 28200 | J68: 63400 | K68: 75300 | L68: 75300 | M68: 40825 | N68: 10844 | O68: 13300 | P68: 135614 | Q68: -9415 | R68: 135197 | S68: 3 | T68: 5669 | U68: 4136 | V68: 24 | W68: 0.07 | X68: 9832 | Y68: 107917 | Z68: 55.18 | AA68: 0.171 | AB68: 0.14 | AC68: 0.186
A69: 2000-02-27 | B69: 0 | C69: 0 | D69: 59200 | E69: 5070 | F69: 9730 | G69: 2020 | H69: -- | I69: 28200 | J69: 64400 | K69: 77200 | L69: 77200 | M69: 43482 | N69: 11097 | O69: 13200 | P69: 145327 | Q69: -3455 | R69: 138622 | S69: 1 | T69: 5987 | U69: 4151 | V69: 21 | W69: 0.07 | X69: 10160 | Y69: 110553 | Z69: 54.66 | AA69: 0.174 | AB69: 0.15 | AC69: 0.184
A70: 2000-02-28 | B70: 0 | C70: 0 | D70: 59800 | E70: 3310 | F70: 7050 | G70: 1420 | H70: -- | I70: 28800 | J70: 66600 | K70: 81700 | L70: 81700 | M70: 63375 | N70: 11695 | O70: 13600 | P70: 168766 | Q70: -1851 | R70: 160452 | S70: 1 | T70: 5995 | U70: 4142 | V70: 26 | W70: 0.06 | X70: 10164 | Y70: 133898 | Z70: 54.07 | AA70: 0.175 | AB70: 0.14 | AC70: 0.188
A71: 2000-02-29 | B71: 0 | C71: 0 | D71: 59900 | E71: 3750 | F71: 6750 | G71: 1180 | H71: -- | I71: 29000 | J71: 65900 | K71: 81900 | L71: 81900 | M71: 61271 | N71: 11722 | O71: 14900 | P71: 168305 | Q71: -3635 | R71: 161762 | S71: 3 | T71: 5998 | U71: 4151 | V71: 25 | W71: 0.06 | X71: 10177 | Y71: 132467 | Z71: 53.51 | AA71: 0.161 | AB71: 0.13 | AC71: 0.181
A72: 2000-03-01 | B72: 0 | C72: 0 | D72: 64000 | E72: 2630 | F72: 5620 | G72: 963 | H72: -- | I72: 28800 | J72: 65700 | K72: 81100 | L72: 81100 | M72: 61554 | N72: 11615 | O72: 14600 | P72: 166241 | Q72: -3635 | R72: 159701 | S72: 1 | T72: 5996 | U72: 4153 | V72: 25 | W72: 0.06 | X72: 10175 | Y72: 132056 | Z72: 52.99 | AA72: 0.16 | AB72: 0.13 | AC72: 0.177
A73: 2000-03-02 | B73: 0 | C73: 0 | D73: 63200 | E73: 2250 | F73: 5050 | G73: 874 | H73: -- | I73: 28800 | J73: 65000 | K73: 79000 | L73: 79000 | M73: 55710 | N73: 11336 | O73: 14800 | P73: 157957 | Q73: -3126 | R73: 150397 | S73: 1 | T73: 6551 | U73: 4112 | V73: 23 | W73: 0.07 | X73: 10687 | Y73: 124249 | Z73: 52.54 | AA73: 0.166 | AB73: 0.14 | AC73: 0.176
A74: 2000-03-03 | B74: 0 | C74: 0 | D74: 61700 | E74: 1830 | F74: 4280 | G74: 803 | H74: -- | I74: 28700 | J74: 64300 | K74: 76900 | L74: 76900 | M74: 49969 | N74: 11057 | O74: 14700 | P74: 148081 | Q74: -1292 | R74: 137309 | S74: 2 | T74: 7963 | U74: 4071 | V74: 28 | W74: 0.08 | X74: 12064 | Y74: 116174 | Z74: 52.17 | AA74: 0.154 | AB74: 0.14 | AC74: 0.181
A75: 2000-03-04 | B75: 0 | C75: 0 | D75: 61400 | E75: 1880 | F75: 3850 | G75: 822 | H75: -- | I75: 28500 | J75: 63800 | K75: 74900 | L75: 74900 | M75: 44934 | N75: 10791 | O75: 14600 | P75: 140437 | Q75: -1292 | R75: 128909 | S75: 1 | T75: 8719 | U75: 4080 | V75: 21 | W75: 0.09 | X75: 12821 | Y75: 109405 | Z75: 51.86 | AA75: 0.152 | AB75: 0.13 | AC75: 0.177
A76: 2000-03-05 | B76: 0 | C76: 0 | D76: 72600 | E76: 6370 | F76: 9800 | G76: 1950 | H76: -- | I76: 28500 | J76: 64000 | K76: 74800 | L76: 74800 | M76: 42439 | N76: 10777 | O76: 15300 | P76: 138656 | Q76: -784 | R76: 126464 | S76: 1 | T76: 8902 | U76: 4047 | V76: 26 | W76: 0.09 | X76: 12976 | Y76: 106681 | Z76: 51.58 | AA76: 0.153 | AB76: 0.13 | AC76: 0.107
A77: 2000-03-06 | B77: 0 | C77: 0 | D77: 58000 | E77: 3010 | F77: 5940 | G77: 1330 | H77: -- | I77: 28900 | J77: 64500 | K77: 74500 | L77: 74500 | M77: 46539 | N77: 10738 | O77: 16100 | P77: 143500 | Q77: -784 | R77: 132329 | S77: 3 | T77: 7854 | U77: 4070 | V77: 27 | W77: 0.08 | X77: 11954 | Y77: 110521 | Z77: 51.29 | AA77: 0.164 | AB77: 0.14 | AC77: 0.179
A78: 2000-03-07 | B78: 0 | C78: 0 | D78: 52000 | E78: 2240 | F78: 4580 | G78: 1030 | H78: -- | I78: 29200 | J78: 64100 | K78: 73300 | L78: 73300 | M78: 45498 | N78: 10578 | O78: 16700 | P78: 142336 | Q78: -2388 | R78: 132524 | S78: 1 | T78: 8120 | U78: 4063 | V78: 16 | W78: 0.09 | X78: 12200 | Y78: 108889 | Z78: 51.01 | AA78: 0.163 | AB78: 0.14 | AC78: 0.186
A79: 2000-03-08 | B79: 0 | C79: 0 | D79: 53000 | E79: 2680 | F79: 5380 | G79: 1070 | H79: -- | I79: 28700 | J79: 64400 | K79: 73600 | L79: 73600 | M79: 49509 | N79: 10618 | O79: 16500 | P79: 145420 | Q79: -3485 | R79: 136273 | S79: 33 | T79: 8540 | U79: 4047 | V79: 11 | W79: 0.09 | X79: 12631 | Y79: 113467 | Z79: 50.73 | AA79: 0.164 | AB79: 0.14 | AC79: 0.187
A80: 2000-03-09 | B80: 0 | C80: 0 | D80: 58200 | E80: 5680 | F80: 5540 | G80: 1180 | H80: -- | I80: 28400 | J80: 64500 | K80: 74200 | L80: 74200 | M80: 51219 | N80: 10698 | O80: 16400 | P80: 147627 | Q80: -3714 | R80: 143204 | S80: 62 | T80: 4029 | U80: 4038 | V80: 8 | W80: 0.05 | X80: 8137 | Y80: 115761 | Z80: 50.43 | AA80: 0.164 | AB80: 0.14 | AC80: 0.191
A81: 2000-03-10 | B81: 0 | C81: 0 | D81: 54800 | E81: 3760 | F81: 4920 | G81: 905 | H81: -- | I81: 28500 | J81: 64300 | K81: 73800 | L81: 73800 | M81: 48202 | N81: 10644 | O81: 16500 | P81: 143941 | Q81: -2338 | R81: 138556 | S81: 59 | T81: 3937 | U81: 3715 | V81: 13 | W81: 0.05 | X81: 7724 | Y81: 112012 | Z81: 50.17 | AA81: 0.169 | AB81: 0.15 | AC81: 0.186
A82: 2000-03-11 | B82: 0 | C82: 0 | D82: 48300 | E82: 3220 | F82: 4400 | G82: 867 | H82: -- | I82: 28500 | J82: 63800 | K82: 73100 | L82: 73100 | M82: 43685 | N82: 10551 | O82: 16200 | P82: 137979 | Q82: -2288 | R82: 133743 | S82: 61 | T82: 2861 | U82: 3588 | V82: 15 | W82: 0.05 | X82: 6525 | Y82: 106874 | Z82: 49.95 | AA82: 0.164 | AB82: 0.15 | AC82: 0.182
A83: 2000-03-12 | B83: 0 | C83: 0 | D83: 41500 | E83: 2190 | F83: 3840 | G83: 830 | H83: -- | I83: 28100 | J83: 63200 | K83: 72400 | L83: 72400 | M83: 38471 | N83: 10458 | O83: 15800 | P83: 131149 | Q83: -225 | R83: 122694 | S83: 72 | T83: 5009 | U83: 3587 | V83: 12 | W83: 0.07 | X83: 8680 | Y83: 100476 | Z83: 49.8 | AA83: 0.164 | AB83: 0.15 | AC83: 0.179
A84: 2000-03-13 | B84: 0 | C84: 0 | D84: 35200 | E84: 1680 | F84: 3440 | G84: 765 | H84: -- | I84: 27500 | J84: 62400 | K84: 71600 | L84: 71600 | M84: 32247 | N84: 10352 | O84: 15500 | P84: 123183 | Q84: 971 | R84: 113256 | S84: 60 | T84: 5300 | U84: 3587 | V84: 10 | W84: 0.07 | X84: 8957 | Y84: 93223 | Z84: 49.7 | AA84: 0.156 | AB84: 0.16 | AC84: 0.176
A85: 2000-03-14 | B85: 0 | C85: 0 | D85: 30200 | E85: 1410 | F85: 3160 | G85: 736 | H85: -- | I85: 26900 | J85: 61400 | K85: 70300 | L85: 70300 | M85: 26009 | N85: 10179 | O85: 14900 | P85: 114799 | Q85: 1250 | R85: 106683 | S85: 60 | T85: 3202 | U85: 3588 | V85: 16 | W85: 0.06 | X85: 6866 | Y85: 85780 | Z85: 49.65 | AA85: 0.149 | AB85: 0.16 | AC85: 0.178
A86: 2000-03-15 | B86: 0 | C86: 0 | D86: 25800 | E86: 1210 | F86: 2910 | G86: 710 | H86: -- | I86: 26400 | J86: 59900 | K86: 68400 | L86: 68400 | M86: 19565 | N86: 9926 | O86: 14100 | P86: 105589 | Q86: 1250 | R86: 97970 | S86: 77 | T86: 2678 | U86: 3602 | V86: 12 | W86: 0.06 | X86: 6369 | Y86: 77689 | Z86: 49.66 | AA86: 0.14 | AB86: 0.16 | AC86: 0.183
A87: 2000-03-16 | B87: 0 | C87: 0 | D87: 22000 | E87: 1050 | F87: 2660 | G87: 701 | H87: -- | I87: 25800 | J87: 58200 | K87: 66300 | L87: 66300 | M87: 11708 | N87: 9647 | O87: 13400 | P87: 94713 | Q87: 1300 | R87: 86535 | S87: 175 | T87: 3091 | U87: 3600 | V87: 12 | W87: 0.07 | X87: 6878 | Y87: 67997 | Z87: 49.75 | AA87: 0.145 | AB87: 0.45 | AC87: 0.185
A88: 2000-03-17 | B88: 0 | C88: 0 | D88: 18700 | E88: 994 | F88: 2560 | G88: 695 | H88: -- | I88: 24700 | J88: 56400 | K88: 64700 | L88: 64700 | M88: 5556 | N88: 9434 | O88: 13000 | P88: 86339 | Q88: 1350 | R88: 77885 | S88: 287 | T88: 3206 | U88: 3593 | V88: 18 | W88: 0.08 | X88: 7104 | Y88: 60444 | Z88: 49.9 | AA88: 0.152 | AB88: 0.44 | AC88: 0.191
A89: 2000-03-18 | B89: 0 | C89: 0 | D89: 16000 | E89: 895 | F89: 2330 | G89: 665 | H89: -- | I89: 23600 | J89: 53500 | K89: 61900 | L89: 61900 | M89: 3388 | N89: 9062 | O89: 12500 | P89: 80809 | Q89: 1350 | R89: 70141 | S89: 300 | T89: 5423 | U89: 3578 | V89: 17 | W89: 0.11 | X89: 9318 | Y89: 55848 | Z89: 50.11 | AA89: 0.166 | AB89: 0.18 | AC89: 0.197
A90: 2000-03-19 | B90: 0 | C90: 0 | D90: 15100 | E90: 837 | F90: 2230 | G90: 703 | H90: -- | I90: 22400 | J90: 49600 | K90: 58000 | L90: 58000 | M90: 2510 | N90: 8543 | O90: 11100 | P90: 74604 | Q90: 1400 | R90: 62639 | S90: 293 | T90: 6680 | U90: 3573 | V90: 19 | W90: 0.14 | X90: 10565 | Y90: 51575 | Z90: 50.38 | AA90: 0.172 | AB90: 0.18 | AC90: 0.2
A91: 2000-03-20 | B91: 0 | C91: 0 | D91: 15100 | E91: 790 | F91: 2160 | G91: 654 | H91: -- | I91: 20600 | J91: 45500 | K91: 53800 | L91: 53800 | M91: 2340 | N91: 7984 | O91: 11200 | P91: 70349 | Q91: 1400 | R91: 58498 | S91: 208 | T91: 6640 | U91: 3579 | V91: 24 | W91: 0.15 | X91: 10451 | Y91: 47764 | Z91: 50.68 | AA91: 0.183 | AB91: 0.18 | AC91: 0.192
A92: 2000-03-21 | B92: 0 | C92: 0 | D92: 14700 | E92: 772 | F92: 1920 | G92: 632 | H92: -- | I92: 19800 | J92: 41700 | K92: 49100 | L92: 49100 | M92: 1809 | N92: 7359 | O92: 10700 | P92: 64521 | Q92: 1450 | R92: 54390 | S92: 283 | T92: 4808 | U92: 3567 | V92: 23 | W92: 0.13 | X92: 8681 | Y92: 43144 | Z92: 51.01 | AA92: 0.196 | AB92: 0.18 | AC92: 0.196
A93: 2000-03-22 | B93: 0 | C93: 0 | D93: 13500 | E93: 749 | F93: 1770 | G93: 629 | H93: -- | I93: 19000 | J93: 38900 | K93: 45400 | L93: 45400 | M93: 1650 | N93: 6867 | O93: 9150 | P93: 58894 | Q93: 1500 | R93: 47592 | S93: 301 | T93: 5878 | U93: 3572 | V93: 51 | W93: 0.16 | X93: 9802 | Y93: 39763 | Z93: 51.41 | AA93: 0.19 | AB93: 0.18 | AC93: 0.211
A94: 2000-03-23 | B94: 0 | C94: 0 | D94: 12100 | E94: 714 | F94: 1680 | G94: 637 | H94: -- | I94: 18100 | J94: 36500 | K94: 42600 | L94: 42600 | M94: 1544 | N94: 6495 | O94: 8330 | P94: 54951 | Q94: 1500 | R94: 44818 | S94: 301 | T94: 4708 | U94: 3573 | V94: 51 | W94: 0.15 | X94: 8633 | Y94: 37229 | Z94: 51.82 | AA94: 0.191 | AB94: 0.18 | AC94: 0.229
A95: 2000-03-24 | B95: 0 | C95: 0 | D95: 11000 | E95: 694 | F95: 1620 | G95: 632 | H95: -- | I95: 17000 | J95: 34400 | K95: 39700 | L95: 39700 | M95: 1406 | N95: 6109 | O95: 7870 | P95: 51378 | Q95: 1550 | R95: 42895 | S95: 305 | T95: 4271 | U95: 2305 | V95: 52 | W95: 0.13 | X95: 6933 | Y95: 34563 | Z95: 52.25 | AA95: 0.192 | AB95: 0.19 | AC95: 0.263
A96: 2000-03-25 | B96: 0 | C96: 0 | D96: 10500 | E96: 671 | F96: 1560 | G96: 622 | H96: -- | I96: 16000 | J96: 32500 | K96: 37600 | L96: 37600 | M96: 1247 | N96: 5830 | O96: 7530 | P96: 48755 | Q96: 1550 | R96: 40705 | S96: 300 | T96: 4382 | U96: 1782 | V96: 36 | W96: 0.13 | X96: 6500 | Y96: 32583 | Z96: 52.68 | AA96: 0.197 | AB96: 0.19 | AC96: 0.227
A97: 2000-03-26 | B97: 0 | C97: 0 | D97: 10100 | E97: 640 | F97: 1480 | G97: 604 | H97: -- | I97: 15100 | J97: 30300 | K97: 35000 | L97: 35000 | M97: 120 | N97: 5484 | O97: 7280 | P97: 44754 | Q97: 1600 | R97: 36506 | S97: 312 | T97: 4529 | U97: 1777 | V97: 30 | W97: 0.14 | X97: 6648 | Y97: 29188 | Z97: 53.16 | AA97: 0.196 | AB97: 0.19 | AC97: 0.224
A98: 2000-03-27 | B98: 0 | C98: 0 | D98: 10000 | E98: 626 | F98: 1420 | G98: 610 | H98: -- | I98: 14500 | J98: 28600 | K98: 32900 | L98: 32900 | M98: 134 | N98: 5205 | O98: 6840 | P98: 42220 | Q98: 1600 | R98: 32737 | S98: 298 | T98: 5793 | U98: 1774 | V98: 18 | W98: 0.18 | X98: 7883 | Y98: 27381 | Z98: 53.68 | AA98: 0.185 | AB98: 0.18 | AC98: 0.291
A99: 2000-03-28 | B99: 0 | C99: 0 | D99: 9920 | E99: 612 | F99: 1380 | G99: 604 | H99: -- | I99: 14000 | J99: 27200 | K99: 31400 | L99: 31400 | M99: 158 | N99: 5005 | O99: 6370 | P99: 39997 | Q99: 1650 | R99: 30538 | S99: 285 | T99: 5198 | U99: 2307 | V99: 19 | W99: 0.19 | X99: 7809 | Y99: 26091 | Z99: 54.22 | AA99: 0.184 | AB99: 0.18 | AC99: 0.466
A100: 2000-03-29 | B100: 0 | C100: 0 | D100: 9600 | E100: 589 | F100: 1320 | G100: 605 | H100: -- | I100: 13700 | J100: 25900 | K100: 29700 | L100: 29700 | M100: 184 | N100: 4779 | O100: 5950 | P100: 37854 | Q100: 1650 | R100: 27818 | S100: 298 | T100: 5546 | U100: 2525 | V100: 17 | W100: 0.21 | X100: 8386 | Y100: 24643 | Z100: 54.79 | AA100: 0.183 | AB100: 0.19 | AC100: 1.09
A101: 2000-03-30 | B101: 0 | C101: 0 | D101: 9330 | E101: 555 | F101: 1160 | G101: 574 | H101: -- | I101: 13300 | J101: 24700 | K101: 28300 | L101: 28300 | M101: 201 | N101: 4593 | O101: 5690 | P101: 36102 | Q101: 1650 | R101: 25060 | S101: 308 | T101: 6675 | U101: 2390 | V101: 19 | W101: 0.25 | X101: 9392 | Y101: 23446 | Z101: 55.39 | AA101: 0.187 | AB101: 0.2 | AC101: 3.081
A102: 2000-03-31 | B102: 0 | C102: 0 | D102: 9020 | E102: 506 | F102: 1090 | G102: 549 | H102: -- | I102: 12700 | J102: 23400 | K102: 27100 | L102: 27100 | M102: 226 | N102: 4433 | O102: 5420 | P102: 34535 | Q102: 1700 | R102: 23908 | S102: 258 | T102: 5717 | U102: 2946 | V102: 6 | W102: 0.25 | X102: 8927 | Y102: 22417 | Z102: 55.99 | AA102: 0.19 | AB102: 0.22 | AC102: 2.757
A103: 2000-04-01 | B103: 0 | C103: 0 | D103: 8770 | E103: 476 | F103: 1030 | G103: 543 | H103: -- | I103: 12300 | J103: 22300 | K103: 25800 | L103: 25800 | M103: 226 | N103: 4260 | O103: 5190 | P103: 32954 | Q103: 1750 | R103: 21701 | S103: 317 | T103: 5713 | U103: 3467 | V103: 6 | W103: 0.28 | X103: 9503 | Y103: 21276 | Z103: 56.63 | AA103: 0.16 | AB103: 0.4 | AC103: 5.351
A104: 2000-04-02 | B104: 0 | C104: 0 | D104: 8600 | E104: 500 | F104: 1010 | G104: 559 | H104: -- | I104: 11700 | J104: 21700 | K104: 24800 | L104: 24800 | M104: 227 | N104: 4127 | O104: 4690 | P104: 31395 | Q104: 1750 | R104: 19908 | S104: 304 | T104: 6065 | U104: 3360 | V104: 8 | W104: 0.3 | X104: 9737 | Y104: 20410 | Z104: 57.28 | AA104: =AVERAGE(AA103,AA107) -> 0.173 | AB104: 0.83 | AC104: 8.003
A105: 2000-04-03 | B105: 0 | C105: 0 | D105: 8520 | E105: 527 | F105: 1020 | G105: 582 | H105: -- | I105: 11300 | J105: 21000 | K105: 24300 | L105: 24300 | M105: 263 | N105: 4061 | O105: 4290 | P105: 30485 | Q105: 1750 | R105: 19323 | S105: 326 | T105: 5600 | U105: 3483 | V105: 3 | W105: 0.3 | X105: 9412 | Y105: 20012 | Z105: 57.92 | AA105: =AA104 -> 0.173 | AB105: 1.03 | AC105: 7.898
A106: 2000-04-04 | B106: 0 | C106: 0 | D106: 8330 | E106: 540 | F106: 1050 | G106: 613 | H106: -- | I106: 11000 | J106: 20300 | K106: 23400 | L106: 23400 | M106: 299 | N106: 3941 | O106: 4020 | P106: 29168 | Q106: 1800 | R106: 17505 | S106: 315 | T106: 6126 | U106: 3418 | V106: 4 | W106: 0.33 | X106: 9863 | Y106: 19254 | Z106: 58.58 | AA106: =AA105 -> 0.173 | AB106: 1.23 | AC106: 7.845
A107: 2000-04-05 | B107: 0 | C107: 0 | D107: 8360 | E107: 535 | F107: 1060 | G107: 626 | H107: -- | I107: 10800 | J107: 19800 | K107: 23100 | L107: 23100 | M107: 305 | N107: 3901 | O107: 3770 | P107: 28562 | Q107: 1800 | R107: 19520 | S107: 327 | T107: 3433 | U107: 3478 | V107: 4 | W107: 0.24 | X107: 7242 | Y107: 19000 | Z107: 59.14 | AA107: 0.186 | AB107: 1.13 | AC107: 6.547
A108: 2000-04-06 | B108: 0 | C108: 0 | D108: 8280 | E108: 522 | F108: 1020 | G108: 612 | H108: -- | I108: 10700 | J108: 19400 | K108: 22800 | L108: 22800 | M108: 326 | N108: 3861 | O108: 3550 | P108: 28003 | Q108: 1800 | R108: 18182 | S108: 334 | T108: 4204 | U108: 3479 | V108: 4 | W108: 0.27 | X108: 8021 | Y108: 18761 | Z108: 59.71 | AA108: 0.204 | AB108: 1.02 | AC108: 5.865
A109: 2000-04-07 | B109: 0 | C109: 0 | D109: 8150 | E109: 502 | F109: 976 | G109: 602 | H109: -- | I109: 10500 | J109: 19000 | K109: 22500 | L109: 22500 | M109: 321 | N109: 3822 | O109: 3400 | P109: 27463 | Q109: 1800 | R109: 17207 | S109: 347 | T109: 4099 | U109: 4006 | V109: 4 | W109: 0.3 | X109: 8456 | Y109: 18495 | Z109: 60.29 | AA109: 0.185 | AB109: 0.88 | AC109: 5.27
A110: 2000-04-08 | B110: 0 | C110: 0 | D110: 8650 | E110: 523 | F110: 947 | G110: 605 | H110: -- | I110: 10200 | J110: 18800 | K110: 21800 | L110: 21800 | M110: 341 | N110: 3728 | O110: 3390 | P110: 26783 | Q110: 1850 | R110: 15473 | S110: 362 | T110: 4877 | U110: 4218 | V110: 3 | W110: 0.34 | X110: 9460 | Y110: 17895 | Z110: 60.9 | AA110: 0.216 | AB110: 0.98 | AC110: 5.674
A111: 2000-04-09 | B111: 0 | C111: 0 | D111: 9820 | E111: 574 | F111: 956 | G111: 594 | H111: -- | I111: 9990 | J111: 19200 | K111: 22400 | L111: 22400 | M111: 358 | N111: 3808 | O111: 3310 | P111: 27332 | Q111: 1850 | R111: 15836 | S111: 366 | T111: 5047 | U111: 4229 | V111: 4 | W111: 0.34 | X111: 9646 | Y111: 18432 | Z111: 61.47 | AA111: 0.205 | AB111: 0.9 | AC111: 5.027
A112: 2000-04-10 | B112: 0 | C112: 0 | D112: 10300 | E112: 527 | F112: 930 | G112: 584 | H112: -- | I112: 10500 | J112: 19900 | K112: 23000 | L112: 23000 | M112: 364 | N112: 3888 | O112: 3090 | P112: 27685 | Q112: 1850 | R112: 16528 | S112: 369 | T112: 4712 | U112: 4222 | V112: 4 | W112: 0.32 | X112: 9307 | Y112: 18958 | Z112: 61.98 | AA112: 0.241 | AB112: 0.86 | AC112: 4.718
A113: 2000-04-11 | B113: 0 | C113: 0 | D113: 10300 | E113: 494 | F113: 916 | G113: 576 | H113: -- | I113: 11100 | J113: 21400 | K113: 24200 | L113: 24200 | M113: 371 | N113: 4048 | O113: 2990 | P113: 28715 | Q113: 1850 | R113: 17466 | S113: 381 | T113: 4781 | U113: 4233 | V113: 4 | W113: 0.31 | X113: 9399 | Y113: 20005 | Z113: 62.42 | AA113: 0.236 | AB113: 0.64 | AC113: 4.126
A114: 2000-04-12 | B114: 0 | C114: 0 | D114: 10300 | E114: 484 | F114: 911 | G114: 587 | H114: -- | I114: 11200 | J114: 22900 | K114: 25600 | L114: 25600 | M114: 385 | N114: 4234 | O114: 3030 | P114: 30168 | Q114: 1621 | R114: 18724 | S114: 377 | T114: 5224 | U114: 4217 | V114: 5 | W114: 0.31 | X114: 9823 | Y114: 21297 | Z114: 62.79 | AA114: 0.197 | AB114: 0.57 | AC114: 4.254
A115: 2000-04-13 | B115: 0 | C115: 0 | D115: 10800 | E115: 649 | F115: 1070 | G115: 787 | H115: -- | I115: 11200 | J115: 23400 | K115: 27200 | L115: 27200 | M115: 409 | N115: 4447 | O115: 3120 | P115: 32003 | Q115: 1212 | R115: 21151 | S115: 374 | T115: 5031 | U115: 4230 | V115: 5 | W115: 0.29 | X115: 9640 | Y115: 22823 | Z115: 63.07 | AA115: 0.2 | AB115: 0.69 | AC115: 5.166
A116: 2000-04-14 | B116: 0 | C116: 0 | D116: 11300 | E116: 768 | F116: 1150 | G116: 770 | H116: -- | I116: 11300 | J116: 23500 | K116: 27700 | L116: 27700 | M116: 402 | N116: 4513 | O116: 4360 | P116: 34051 | Q116: 1212 | R116: 26592 | S116: 380 | T116: 2995 | U116: 2863 | V116: 8 | W116: 0.17 | X116: 6246 | Y116: 23249 | Z116: 63.18 | AA116: 0.195 | AB116: 0.6 | AC116: 5.086
A117: 2000-04-15 | B117: 0 | C117: 0 | D117: 10800 | E117: 617 | F117: 1050 | G117: 666 | H117: -- | I117: 11900 | J117: 23900 | K117: 28200 | L117: 28200 | M117: 402 | N117: 4580 | O117: 5660 | P117: 35580 | Q117: 1212 | R117: 31688 | S117: 359 | T117: 1299 | U117: 1016 | V117: 5 | W117: 0.07 | X117: 2679 | Y117: 23683 | Z117: 63.17 | AA117: 0.183 | AB117: 0.69 | AC117: 4.869
A118: 2000-04-16 | B118: 0 | C118: 0 | D118: 10800 | E118: 649 | F118: 1090 | G118: 657 | H118: -- | I118: 11700 | J118: 24300 | K118: 28800 | L118: 28800 | M118: 390 | N118: 4659 | O118: 5900 | P118: 36296 | Q118: 983 | R118: 32741 | S118: 249 | T118: 1300 | U118: 1017 | V118: 6 | W118: 0.06 | X118: 2572 | Y118: 24255 | Z118: 63.14 | AA118: 0.171 | AB118: 0.62 | AC118: 4.424
A119: 2000-04-17 | B119: 0 | C119: 0 | D119: 15500 | E119: 1740 | F119: 4400 | G119: 771 | H119: -- | I119: 11600 | J119: 24600 | K119: 29900 | L119: 29900 | M119: 319 | N119: 4806 | O119: 6310 | P119: 37954 | Q119: -4977 | R119: 40419 | S119: 220 | T119: 1300 | U119: 977 | V119: 15 | W119: 0.06 | X119: 2512 | Y119: 26807 | Z119: 62.98 | AA119: 0.163 | AB119: 0.55 | AC119: 4.108
A120: 2000-04-18 | B120: 0 | C120: 0 | D120: 17700 | E120: 1890 | F120: 5310 | G120: 761 | H120: -- | I120: 13900 | J120: 25700 | K120: 30700 | L120: 30700 | M120: 246 | N120: 4912 | O120: 7070 | P120: 39790 | Q120: -4518 | R120: 41932 | S120: 128 | T120: 740 | U120: 1488 | V120: 20 | W120: 0.06 | X120: 2376 | Y120: 27299 | Z120: 62.8 | AA120: 0.156 | AB120: 0.44 | AC120: 2.592
A121: 2000-04-19 | B121: 0 | C121: 0 | D121: 14300 | E121: 1260 | F121: 3060 | G121: 675 | H121: -- | I121: 18900 | J121: 28300 | K121: 32000 | L121: 32000 | M121: 1246 | N121: 5085 | O121: 6920 | P121: 41538 | Q121: -4518 | R121: 43614 | S121: 120 | T121: 1191 | U121: 1112 | V121: 20 | W121: 0.06 | X121: 2443 | Y121: 29426 | Z121: 62.61 | AA121: 0.159 | AB121: 0.32 | AC121: 1.571
A122: 2000-04-20 | B122: 0 | C122: 0 | D122: 12600 | E122: 865 | F122: 2260 | G122: 611 | H122: -- | I122: 18400 | J122: 29600 | K122: 34200 | L122: 34200 | M122: 1720 | N122: 5378 | O122: 6200 | P122: 43293 | Q122: -4518 | R122: 45306 | S122: 121 | T122: 1492 | U122: 873 | V122: 19 | W122: 0.05 | X122: 2505 | Y122: 31808 | Z122: 62.4 | AA122: 0.159 | AB122: 0.14 | AC122: 1.261
A123: 2000-04-21 | B123: 0 | C123: 0 | D123: 11800 | E123: 719 | F123: 1880 | G123: 591 | H123: -- | I123: 16300 | J123: 28400 | K123: 33300 | L123: 33300 | M123: 1938 | N123: 5258 | O123: 6230 | P123: 42539 | Q123: -4289 | R123: 44335 | S123: 112 | T123: 1490 | U123: 876 | V123: 15 | W123: 0.06 | X123: 2493 | Y123: 31181 | Z123: 62.22 | AA123: 0.16 | AB123: 0.2 | AC123: 1.098
A124: 2000-04-22 | B124: 0 | C124: 0 | D124: 11900 | E124: 647 | F124: 1640 | G124: 585 | H124: -- | I124: 14700 | J124: 26700 | K124: 31600 | L124: 31600 | M124: 1818 | N124: 5032 | O124: 6290 | P124: 40724 | Q124: 1900 | R124: 36304 | S124: 107 | T124: 1492 | U124: 905 | V124: 16 | W124: 0.06 | X124: 2520 | Y124: 27854 | Z124: 62.18 | AA124: 0.158 | AB124: 0.17 | AC124: 0.663
A125: 2000-04-23 | B125: 0 | C125: 0 | D125: 11700 | E125: 597 | F125: 1480 | G125: 598 | H125: -- | I125: 13800 | J125: 25300 | K125: 30200 | L125: 30200 | M125: 1522 | N125: 4846 | O125: 6310 | P125: 39010 | Q125: 1900 | R125: 34581 | S125: 100 | T125: 1488 | U125: 926 | V125: 15 | W125: 0.06 | X125: 2529 | Y125: 26344 | Z125: 62.17 | AA125: 0.155 | AB125: 0.15 | AC125: 0.304
A126: 2000-04-24 | B126: 0 | C126: 0 | D126: 11400 | E126: 547 | F126: 1340 | G126: 590 | H126: -- | I126: 13300 | J126: 24300 | K126: 28900 | L126: 28900 | M126: 254 | N126: 4673 | O126: 6320 | P126: 36412 | Q126: 1950 | R126: 31566 | S126: 114 | T126: 1874 | U126: 886 | V126: 22 | W126: 0.08 | X126: 2896 | Y126: 23935 | Z126: 62.22 | AA126: 0.155 | AB126: 0.14 | AC126: 0.267
A127: 2000-04-25 | B127: 0 | C127: 0 | D127: 11100 | E127: 512 | F127: 1240 | G127: 555 | H127: -- | I127: 12600 | J127: 23300 | K127: 27700 | L127: 27700 | M127: 285 | N127: 4513 | O127: 6120 | P127: 35005 | Q127: 1950 | R127: 30667 | S127: 129 | T127: 1979 | U127: 253 | V127: 27 | W127: 0.06 | X127: 2388 | Y127: 22926 | Z127: 62.29 | AA127: 0.162 | AB127: 0.14 | AC127: 0.443
A128: 2000-04-26 | B128: 0 | C128: 0 | D128: 10900 | E128: 502 | F128: 1160 | G128: 537 | H128: -- | I128: 11900 | J128: 22000 | K128: 26700 | L128: 26700 | M128: 306 | N128: 4380 | O128: 5940 | P128: 33865 | Q128: 1950 | R128: 29505 | S128: 142 | T128: 2240 | U128: 0 | V128: 28 | W128: 0.07 | X128: 2410 | Y128: 22080 | Z128: 62.37 | AA128: 0.167 | AB128: 0.16 | AC128: 1.276
A129: 2000-04-27 | B129: 0 | C129: 0 | D129: 10900 | E129: 498 | F129: 1090 | G129: 550 | H129: -- | I129: 11000 | J129: 20600 | K129: 25000 | L129: 25000 | M129: 355 | N129: 4154 | O129: 5810 | P129: 32116 | Q129: 1950 | R129: 27776 | S129: 151 | T129: 1851 | U129: 362 | V129: 26 | W129: 0.07 | X129: 2390 | Y129: 20655 | Z129: 62.49 | AA129: 0.167 | AB129: 0.16 | AC129: 2.979
A130: 2000-04-28 | B130: 0 | C130: 0 | D130: 11200 | E130: 502 | F130: 1050 | G130: 571 | H130: -- | I130: 10300 | J130: 19300 | K130: 24200 | L130: 24200 | M130: 378 | N130: 4048 | O130: 5600 | P130: 31118 | Q130: 2000 | R130: 26829 | S130: 152 | T130: 1242 | U130: 871 | V130: 24 | W130: 0.07 | X130: 2289 | Y130: 19970 | Z130: 62.63 | AA130: 0.165 | AB130: 0.3 | AC130: 2.776
A131: 2000-04-29 | B131: 0 | C131: 0 | D131: 12100 | E131: 465 | F131: 994 | G131: 550 | H131: -- | I131: 9880 | J131: 19100 | K131: 24300 | L131: 24300 | M131: 395 | N131: 4061 | O131: 5730 | P131: 31311 | Q131: 2000 | R131: 27033 | S131: 151 | T131: 1241 | U131: 869 | V131: 17 | W131: 0.07 | X131: 2278 | Y131: 20074 | Z131: 62.76 | AA131: 0.154 | AB131: 0.22 | AC131: 2.786
A132: 2000-04-30 | B132: 0 | C132: 0 | D132: 12400 | E132: 438 | F132: 942 | G132: 534 | H132: -- | I132: 9870 | J132: 19600 | K132: 24900 | L132: 24900 | M132: 396 | N132: 4141 | O132: 5770 | P132: 31960 | Q132: 2000 | R132: 27590 | S132: 157 | T132: 1328 | U132: 868 | V132: 17 | W132: 0.07 | X132: 2370 | Y132: 20595 | Z132: 62.86 | AA132: 0.158 | AB132: 0.21 | AC132: 3.575
A133: 2000-05-01 | B133: 0 | C133: 1 | D133: 12300 | E133: 429 | F133: 903 | G133: 550 | H133: -- | I133: 10100 | J133: 20000 | K133: 25100 | L133: 25100 | M133: 414 | N133: 4167 | O133: 5740 | P133: 32188 | Q133: 2000 | R133: 27838 | S133: 146 | T133: 1312 | U133: 869 | V133: 23 | W133: 0.07 | X133: 2350 | Y133: 20787 | Z133: 62.96 | AA133: 0.16 | AB133: 0.28 | AC133: 4.262
A134: 2000-05-02 | B134: 0 | C134: 1 | D134: 13800 | E134: 433 | F134: 888 | G134: 562 | H134: -- | I134: 9900 | J134: 20200 | K134: 25500 | L134: 25500 | M134: 428 | N134: 4221 | O134: 5630 | P134: 32576 | Q134: 2000 | R134: 28353 | S134: 142 | T134: 1187 | U134: 867 | V134: 27 | W134: 0.06 | X134: 2223 | Y134: 21147 | Z134: 63.03 | AA134: 0.162 | AB134: 0.34 | AC134: 2.52
A135: 2000-05-03 | B135: 0 | C135: 1 | D135: 14300 | E135: 425 | F135: 862 | G135: 576 | H135: -- | I135: 10100 | J135: 20300 | K135: 25500 | L135: 25500 | M135: 465 | N135: 4221 | O135: 5480 | P135: 32462 | Q135: 2050 | R135: 28061 | S135: 114 | T135: 1328 | U135: 872 | V135: 37 | W135: 0.07 | X135: 2351 | Y135: 21170 | Z135: 63.11 | AA135: 0.16 | AB135: 0.43 | AC135: 0
A136: 2000-05-04 | B136: 0 | C136: 1 | D136: 14200 | E136: 422 | F136: 829 | G136: 572 | H136: -- | I136: 10800 | J136: 20900 | K136: 25900 | L136: 25900 | M136: 499 | N136: 4274 | O136: 5410 | P136: 32835 | Q136: 2100 | R136: 28886 | S136: 142 | T136: 798 | U136: 870 | V136: 39 | W136: 0.05 | X136: 1849 | Y136: 21537 | Z136: 63.17 | AA136: 0.156 | AB136: 0.41 | AC136: 0
A137: 2000-05-05 | B137: 0 | C137: 1 | D137: 14800 | E137: 405 | F137: 813 | G137: 573 | H137: -- | I137: 10800 | J137: 21200 | K137: 26400 | L137: 26400 | M137: 544 | N137: 4340 | O137: 5620 | P137: 33586 | Q137: 2100 | R137: 29123 | S137: 152 | T137: 1306 | U137: 866 | V137: 39 | W137: 0.06 | X137: 2363 | Y137: 22016 | Z137: 63.21 | AA137: 0.152 | AB137: 0.42 | AC137: 0
A138: 2000-05-06 | B138: 0 | C138: 1 | D138: 14700 | E138: 379 | F138: 783 | G138: 563 | H138: -- | I138: 10700 | J138: 20900 | K138: 26400 | L138: 26400 | M138: 556 | N138: 4340 | O138: 5580 | P138: 33571 | Q138: 266 | R138: 30914 | S138: 161 | T138: 1330 | U138: 865 | V138: 35 | W138: 0.07 | X138: 2391 | Y138: 22541 | Z138: 63.22 | AA138: 0.152 | AB138: 0.37 | AC138: 0
A139: 2000-05-07 | B139: 0 | C139: 1 | D139: 13900 | E139: 405 | F139: 852 | G139: 553 | H139: -- | I139: 11100 | J139: 21200 | K139: 26900 | L139: 26900 | M139: 498 | N139: 4407 | O139: 5700 | P139: 34224 | Q139: -1288 | R139: 33127 | S139: 159 | T139: 1327 | U139: 863 | V139: 36 | W139: 0.06 | X139: 2385 | Y139: 23352 | Z139: 63.18 | AA139: 0.138 | AB139: 0.28 | AC139: 0
A140: 2000-05-08 | B140: 0 | C140: 1 | D140: 13200 | E140: 453 | F140: 868 | G140: 572 | H140: -- | I140: 11200 | J140: 22000 | K140: 27500 | L140: 27500 | M140: 412 | N140: 4487 | O140: 6050 | P140: 35606 | Q140: -1518 | R140: 34851 | S140: 58 | T140: 1327 | U140: 863 | V140: 25 | W140: 0.06 | X140: 2273 | Y140: 23850 | Z140: 63.11 | AA140: 0.138 | AB140: 0.3 | AC140: 0
A141: 2000-05-09 | B141: 0 | C141: 0 | D141: 11500 | E141: 404 | F141: 846 | G141: 563 | H141: -- | I141: 11200 | J141: 21900 | K141: 27000 | L141: 27000 | M141: 377 | N141: 4420 | O141: 6000 | P141: 35064 | Q141: -1468 | R141: 34318 | S141: 3 | T141: 1317 | U141: 867 | V141: 26 | W141: 0.06 | X141: 2213 | Y141: 23368 | Z141: 63.06 | AA141: 0.141 | AB141: 0.24 | AC141: 0
A142: 2000-05-10 | B142: 0 | C142: 0 | D142: 10800 | E142: 380 | F142: 798 | G142: 554 | H142: -- | I142: 10900 | J142: 21200 | K142: 26200 | L142: 26200 | M142: 370 | N142: 4314 | O142: 5870 | P142: 33809 | Q142: -1468 | R142: 33065 | S142: 2 | T142: 1326 | U142: 858 | V142: 26 | W142: 0.06 | X142: 2212 | Y142: 22667 | Z142: 63.03 | AA142: 0.143 | AB142: 0.2 | AC142: 0
A143: 2000-05-11 | B143: 0 | C143: 0 | D143: 10300 | E143: 349 | F143: 763 | G143: 523 | H143: -- | I143: 9790 | J143: 19200 | K143: 24400 | L143: 24400 | M143: 347 | N143: 4074 | O143: 5860 | P143: 31874 | Q143: 416 | R143: 29126 | S143: 3 | T143: 1444 | U143: 860 | V143: 25 | W143: 0.07 | X143: 2332 | Y143: 20556 | Z143: 63.08 | AA143: 0.145 | AB143: 0.19 | AC143: 0
A144: 2000-05-12 | B144: 0 | C144: 0 | D144: 9790 | E144: 320 | F144: 712 | G144: 492 | H144: -- | I144: 8970 | J144: 16600 | K144: 21500 | L144: 21500 | M144: 384 | N144: 3689 | O144: 5770 | P144: 28828 | Q144: 2071 | R144: 24422 | S144: 3 | T144: 1443 | U144: 858 | V144: 32 | W144: 0.08 | X144: 2336 | Y144: 17616 | Z144: 63.25 | AA144: 0.146 | AB144: 0.19 | AC144: 0
A145: 2000-05-13 | B145: 0 | C145: 0 | D145: 9690 | E145: 338 | F145: 701 | G145: 482 | H145: -- | I145: 8180 | J145: 14100 | K145: 18200 | L145: 18200 | M145: 419 | N145: 3250 | O145: 5640 | P145: 25424 | Q145: 2300 | R145: 20777 | S145: 3 | T145: 1448 | U145: 859 | V145: 37 | W145: 0.09 | X145: 2347 | Y145: 14725 | Z145: 63.51 | AA145: 0.149 | AB145: 0.19 | AC145: 0
A146: 2000-05-14 | B146: 0 | C146: 0 | D146: 9820 | E146: 334 | F146: 710 | G146: 479 | H146: -- | I146: 7700 | J146: 12800 | K146: 16000 | L146: 16000 | M146: 412 | N146: 2957 | O146: 5580 | P146: 23176 | Q146: 2350 | R146: 18448 | S146: 3 | T146: 1488 | U146: 860 | V146: 27 | W146: 0.1 | X146: 2378 | Y146: 12797 | Z146: 63.83 | AA146: 0.153 | AB146: 0.24 | AC146: 0
A147: 2000-05-15 | B147: 0 | C147: 0 | D147: 11300 | E147: 371 | F147: 1050 | G147: 521 | H147: -- | I147: 7880 | J147: 12900 | K147: 15200 | L147: 15200 | M147: 361 | N147: 2851 | O147: 5190 | P147: 22008 | Q147: 1892 | R147: 17730 | S147: 1 | T147: 1498 | U147: 861 | V147: 26 | W147: 0.11 | X147: 2386 | Y147: 12181 | Z147: 64.17 | AA147: 0.157 | AB147: 0.42 | AC147: 0
A148: 2000-05-16 | B148: 0 | C148: 0 | D148: 11100 | E148: 439 | F148: 1220 | G148: 560 | H148: -- | I148: 8180 | J148: 14200 | K148: 16400 | L148: 16400 | M148: 317 | N148: 3010 | O148: 4830 | P148: 23220 | Q148: 1942 | R148: 18892 | S148: 3 | T148: 1495 | U148: 865 | V148: 24 | W148: 0.1 | X148: 2387 | Y148: 13163 | Z148: 64.44 | AA148: 0.162 | AB148: 0.59 | AC148: 0
A149: 2000-05-17 | B149: 0 | C149: 0 | D149: 9890 | E149: 369 | F149: 1010 | G149: 514 | H149: -- | I149: 9700 | J149: 16100 | K149: 18200 | L149: 18200 | M149: 289 | N149: 3250 | O149: 4560 | P149: 24650 | Q149: 1992 | R149: 20278 | S149: 3 | T149: 1491 | U149: 862 | V149: 25 | W149: 0.1 | X149: 2381 | Y149: 14682 | Z149: 64.65 | AA149: 0.166 | AB149: 0.52 | AC149: 0
A150: 2000-05-18 | B150: 0 | C150: 0 | D150: 9610 | E150: 317 | F150: 886 | G150: 476 | H150: -- | I150: 9900 | J150: 17500 | K150: 19700 | L150: 19700 | M150: 292 | N150: 3449 | O150: 4260 | P150: 25646 | Q150: 1992 | R150: 20778 | S150: 6 | T150: 1992 | U150: 855 | V150: 24 | W150: 0.11 | X150: 2877 | Y150: 15985 | Z150: 64.83 | AA150: 0.17 | AB150: 0.47 | AC150: 1.058
A151: 2000-05-19 | B151: 0 | C151: 0 | D151: 11100 | E151: 297 | F151: 790 | G151: 476 | H151: -- | I151: 9030 | J151: 16700 | K151: 19700 | L151: 19700 | M151: 305 | N151: 3449 | O151: 4030 | P151: 25403 | Q151: 2042 | R151: 20723 | S151: 3 | T151: 1744 | U151: 862 | V151: 29 | W151: 0.1 | X151: 2638 | Y151: 15984 | Z151: 65.01 | AA151: 0.172 | AB151: 0.44 | AC151: 3.425
A152: 2000-05-20 | B152: 0 | C152: 0 | D152: 13800 | E152: 293 | F152: 733 | G152: 487 | H152: -- | I152: 8840 | J152: 15400 | K152: 18200 | L152: 18200 | M152: 347 | N152: 3250 | O152: 4000 | P152: 23855 | Q152: 2550 | R152: 18404 | S152: 3 | T152: 1999 | U152: 861 | V152: 38 | W152: 0.12 | X152: 2901 | Y152: 14583 | Z152: 65.25 | AA152: 0.173 | AB152: 0.4 | AC152: 3.483
A153: 2000-05-21 | B153: 0 | C153: 0 | D153: 13800 | E153: 274 | F153: 720 | G153: 507 | H153: -- | I153: 9740 | J153: 14400 | K153: 17000 | L153: 17000 | M153: 390 | N153: 3090 | O153: 4200 | P153: 22862 | Q153: 2550 | R153: 16908 | S153: 4 | T153: 2500 | U153: 862 | V153: 38 | W153: 0.15 | X153: 3404 | Y153: 13586 | Z153: 65.54 | AA153: 0.18 | AB153: 0.38 | AC153: 4.116
A154: 2000-05-22 | B154: 0 | C154: 0 | D154: 14000 | E154: 264 | F154: 719 | G154: 538 | H154: -- | I154: 10700 | J154: 15100 | K154: 17000 | L154: 17000 | M154: 449 | N154: 3090 | O154: 4170 | P154: 22872 | Q154: 2600 | R154: 16358 | S154: 3 | T154: 2994 | U154: 861 | V154: 56 | W154: 0.17 | X154: 3914 | Y154: 13631 | Z154: 65.82 | AA154: 0.186 | AB154: 0.43 | AC154: 4.642
A155: 2000-05-23 | B155: 0 | C155: 0 | D155: 14000 | E155: 246 | F155: 707 | G155: 549 | H155: -- | I155: 10800 | J155: 15300 | K155: 17200 | L155: 17200 | M155: 529 | N155: 3117 | O155: 4030 | P155: 22934 | Q155: 2650 | R155: 15984 | S155: 122 | T155: 3246 | U155: 861 | V155: 71 | W155: 0.18 | X155: 4300 | Y155: 13870 | Z155: 66.11 | AA155: 0.19 | AB155: 0.48 | AC155: 5.581
A156: 2000-05-24 | B156: 0 | C156: 0 | D156: 14900 | E156: 240 | F156: 710 | G156: 577 | H156: -- | I156: 10600 | J156: 15200 | K156: 17000 | L156: 17000 | M156: 556 | N156: 3090 | O156: 4090 | P156: 22793 | Q156: 2700 | R156: 15163 | S156: 193 | T156: 3803 | U156: 865 | V156: 69 | W156: 0.2 | X156: 4930 | Y156: 13710 | Z156: 66.42 | AA156: 0.248 | AB156: 1.27 | AC156: 6.903
A157: 2000-05-25 | B157: 0 | C157: 0 | D157: 13800 | E157: 239 | F157: 675 | G157: 583 | H157: -- | I157: 10300 | J157: 14900 | K157: 17300 | L157: 17300 | M157: 609 | N157: 3130 | O157: 4010 | P157: 23053 | Q157: 2750 | R157: 18334 | S157: 195 | T157: -77 | U157: 1790 | V157: 61 | W157: 0.07 | X157: 1969 | Y157: 14009 | Z157: 66.59 | AA157: 0.262 | AB157: 0.78 | AC157: 5.988
A158: 2000-05-26 | B158: 0 | C158: 0 | D158: 12700 | E158: 247 | F158: 632 | G158: 559 | H158: -- | I158: 10600 | J158: 14700 | K158: 17100 | L158: 17100 | M158: 641 | N158: 5529 | O158: 4000 | P158: 22892 | Q158: 2750 | R158: 17108 | S158: 206 | T158: 0 | U158: 2781 | V158: 47 | W158: 0.12 | X158: 3034 | Y158: 11442 | Z158: 66.79 | AA158: 0.282 | AB158: 0.65 | AC158: 4.41
A159: 2000-05-27 | B159: 0 | C159: 0 | D159: 13200 | E159: 234 | F159: 606 | G159: 540 | H159: -- | I159: 9690 | J159: 14400 | K159: 17000 | L159: 17000 | M159: 613 | N159: 7071 | O159: 3840 | P159: 22533 | Q159: 2800 | R159: 16691 | S159: 207 | T159: 0 | U159: 2780 | V159: 55 | W159: 0.12 | X159: 3042 | Y159: 9758 | Z159: 67 | AA159: 0.257 | AB159: 0.55 | AC159: 4.55
A160: 2000-05-28 | B160: 0 | C160: 0 | D160: 13200 | E160: 214 | F160: 591 | G160: 553 | H160: -- | I160: 9460 | J160: 14000 | K160: 16300 | L160: 16300 | M160: 605 | N160: 6866 | O160: 3740 | P160: 21675 | Q160: 2850 | R160: 15776 | S160: 206 | T160: 0 | U160: 2788 | V160: 55 | W160: 0.13 | X160: 3049 | Y160: 9241 | Z160: 67.23 | AA160: 0.22 | AB160: 0.52 | AC160: 5.079
A161: 2000-05-29 | B161: 0 | C161: 0 | D161: 13000 | E161: 209 | F161: 561 | G161: 524 | H161: -- | I161: 9550 | J161: 13800 | K161: 16000 | L161: 16000 | M161: 627 | N161: 6778 | O161: 3560 | P161: 21194 | Q161: 2900 | R161: 10266 | S161: 208 | T161: 5001 | U161: 2766 | V161: 53 | W161: 0.37 | X161: 8028 | Y161: 9037 | Z161: 67.73 | AA161: 0.214 | AB161: 0.69 | AC161: 6.341
A162: 2000-05-30 | B162: 0 | C162: 0 | D162: 12500 | E162: 191 | F162: 513 | G162: 506 | H162: -- | I162: 9550 | J162: 14000 | K162: 16100 | L162: 16100 | M162: 636 | N162: 6807 | O162: 3430 | P162: 21143 | Q162: 2950 | R162: 11929 | S162: 206 | T162: 3234 | U162: 2764 | V162: 60 | W162: 0.28 | X162: 6264 | Y162: 9103 | Z162: 68.1 | AA162: 0.239 | AB162: 0.95 | AC162: 7.046
A163: 2000-05-31 | B163: 0 | C163: 0 | D163: 13000 | E163: 181 | F163: 487 | G163: 481 | H163: -- | I163: 9300 | J163: 13800 | K163: 16000 | L163: 16000 | M163: 637 | N163: 6778 | O163: 3350 | P163: 20991 | Q163: 3000 | R163: 11160 | S163: 205 | T163: 3800 | U163: 2765 | V163: 61 | W163: 0.31 | X163: 6831 | Y163: 9019 | Z163: 68.5 | AA163: 0.243 | AB163: 1.17 | AC163: 7.377
A164: 2000-06-01 | B164: 0 | C164: 0 | D164: 12300 | E164: 171 | F164: 473 | G164: 459 | H164: -- | I164: 9200 | J164: 13500 | K164: 15600 | L164: 15600 | M164: 626 | N164: 6661 | O164: 3300 | P164: 20536 | Q164: 3050 | R164: 9581 | S164: 333 | T164: 6000 | U164: 1517 | V164: 55 | W164: 0.37 | X164: 7905 | Y164: 8711 | Z164: 68.97 | AA164: 0.371 | AB164: 1.8 | AC164: 8.313
A165: 2000-06-02 | B165: 0 | C165: 0 | D165: 12300 | E165: 159 | F165: 447 | G165: 442 | H165: -- | I165: 8960 | J165: 13600 | K165: 15500 | L165: 15500 | M165: 622 | N165: 6632 | O165: 3250 | P165: 20286 | Q165: 3100 | R165: 9729 | S165: 401 | T165: 5999 | U165: 1000 | V165: 57 | W165: 0.35 | X165: 7457 | Y165: 8622 | Z165: 69.41 | AA165: 0.772 | AB165: 1.72 | AC165: 8.768
A166: 2000-06-03 | B166: 0 | C166: 0 | D166: 12200 | E166: 145 | F166: 419 | G166: 434 | H166: -- | I166: 8410 | J166: 13200 | K166: 15400 | L166: 15400 | M166: 648 | N166: 6602 | O166: 3310 | P166: 20264 | Q166: 3150 | R166: 9719 | S166: 351 | T166: 6000 | U166: 999 | V166: 45 | W166: 0.35 | X166: 7395 | Y166: 8564 | Z166: 69.82 | AA166: 0.942 | AB166: 1.56 | AC166: 10.126
A167: 2000-06-04 | B167: 0 | C167: 0 | D167: 12100 | E167: 146 | F167: 405 | G167: 431 | H167: -- | I167: 8070 | J167: 13100 | K167: 14800 | L167: 14800 | M167: 639 | N167: 6426 | O167: 3410 | P167: 19818 | Q167: 3200 | R167: 9192 | S167: 395 | T167: 5991 | U167: 1000 | V167: 40 | W167: 0.35 | X167: 7426 | Y167: 8117 | Z167: 70.25 | AA167: 1.125 | AB167: 1.56 | AC167: 10.465
A168: 2000-06-05 | B168: 0 | C168: 1 | D168: 11500 | E168: 141 | F168: 399 | G168: 435 | H168: -- | I168: 7960 | J168: 13300 | K168: 15200 | L168: 15200 | M168: 646 | N168: 4302 | O168: 3400 | P168: 20227 | Q168: 3250 | R168: 9069 | S168: 389 | T168: 5992 | U168: 1488 | V168: 39 | W168: 0.37 | X168: 7908 | Y168: 10634 | Z168: 70.66 | AA168: 1.213 | AB168: 1.65 | AC168: 10.685
A169: 2000-06-06 | B169: 0 | C169: 1 | D169: 11300 | E169: 139 | F169: 401 | G169: 437 | H169: -- | I169: 7730 | J169: 13400 | K169: 15600 | L169: 15600 | M169: 648 | N169: 2904 | O169: 3290 | P169: 20456 | Q169: 3300 | R169: 9577 | S169: 395 | T169: 5490 | U169: 1654 | V169: 40 | W169: 0.35 | X169: 7579 | Y169: 12420 | Z169: 71.01 | AA169: 0.967 | AB169: 1.96 | AC169: 9.658
A170: 2000-06-07 | B170: 0 | C170: 1 | D170: 11300 | E170: 134 | F170: 394 | G170: 428 | H170: -- | I170: 7280 | J170: 13100 | K170: 15100 | L170: 15100 | M170: 657 | N170: 2837 | O170: 3150 | P170: 19808 | Q170: 3350 | R170: 8926 | S170: 394 | T170: 5444 | U170: 1652 | V170: 42 | W170: 0.36 | X170: 7532 | Y170: 11982 | Z170: 71.39 | AA170: 0.954 | AB170: 2.72 | AC170: 9.336
A171: 2000-06-08 | B171: 0 | C171: 1 | D171: 11500 | E171: 199 | F171: 454 | G171: 461 | H171: -- | I171: 7400 | J171: 12900 | K171: 15300 | L171: 15300 | M171: 664 | N171: 2864 | O171: 3210 | P171: 20079 | Q171: 3171 | R171: 9542 | S171: 368 | T171: 5302 | U171: 1646 | V171: 51 | W171: 0.35 | X171: 7367 | Y171: 12212 | Z171: 71.71 | AA171: 0.778 | AB171: 2.45 | AC171: 8.886
A172: 2000-06-09 | B172: 0 | C172: 1 | D172: 11600 | E172: 214 | F172: 437 | G172: 489 | H172: -- | I172: 7700 | J172: 13400 | K172: 15300 | L172: 15300 | M172: 636 | N172: 5131 | O172: 3360 | P172: 20280 | Q172: 3221 | R172: 9539 | S172: 386 | T172: 4788 | U172: 2280 | V172: 66 | W172: 0.35 | X172: 7520 | Y172: 9904 | Z172: 72 | AA172: 0.678 | AB172: 2.29 | AC172: 7.99
A173: 2000-06-10 | B173: 0 | C173: 1 | D173: 11600 | E173: 202 | F173: 401 | G173: 448 | H173: -- | I173: 7900 | J173: 14400 | K173: 16400 | L173: 16400 | M173: 600 | N173: 6895 | O173: 3360 | P173: 21299 | Q173: 3271 | R173: 10775 | S173: 397 | T173: 4268 | U173: 2528 | V173: 60 | W173: 0.32 | X173: 7253 | Y173: 9189 | Z173: 72.21 | AA173: 0.653 | AB173: 2.13 | AC173: 7.958
A174: 2000-06-11 | B174: 0 | C174: 1 | D174: 11300 | E174: 177 | F174: 383 | G174: 422 | H174: -- | I174: 8000 | J174: 15000 | K174: 16900 | L174: 16900 | M174: 575 | N174: 7042 | O174: 3520 | P174: 21939 | Q174: 3321 | R174: 11234 | S174: 401 | T174: 4399 | U174: 2525 | V174: 60 | W174: 0.32 | X174: 7385 | Y174: 9503 | Z174: 72.37 | AA174: 0.605 | AB174: 2.05 | AC174: 7.122
A175: 2000-06-12 | B175: 0 | C175: 1 | D175: 12700 | E175: 162 | F175: 365 | G175: 416 | H175: -- | I175: 8000 | J175: 15100 | K175: 17000 | L175: 17000 | M175: 593 | N175: 4655 | O175: 3610 | P175: 22189 | Q175: 3371 | R175: 11244 | S175: 396 | T175: 4586 | U175: 2527 | V175: 65 | W175: 0.32 | X175: 7574 | Y175: 11994 | Z175: 72.53 | AA175: 0.64 | AB175: 2.2 | AC175: 8.911
A176: 2000-06-13 | B176: 0 | C176: 1 | D176: 14400 | E176: 146 | F176: 343 | G176: 419 | H176: -- | I176: 8030 | J176: 14800 | K176: 16900 | L176: 16900 | M176: 623 | N176: 3077 | O176: 3470 | P176: 21955 | Q176: 3650 | R176: 10196 | S176: 346 | T176: 5167 | U176: 2532 | V176: 64 | W176: 0.35 | X176: 8109 | Y176: 13424 | Z176: 72.74 | AA176: 0.672 | AB176: 1.99 | AC176: 8.993
A177: 2000-06-14 | B177: 0 | C177: 1 | D177: 14800 | E177: 127 | F177: 325 | G177: 429 | H177: -- | I177: 8980 | J177: 14500 | K177: 16200 | L177: 16200 | M177: 361 | N177: 2984 | O177: 3290 | P177: 20799 | Q177: 3700 | R177: 9469 | S177: 275 | T177: 4676 | U177: 2529 | V177: 150 | W177: 0.35 | X177: 7630 | Y177: 12541 | Z177: 72.99 | AA177: 0.838 | AB177: 2.34 | AC177: 10.842
A178: 2000-06-15 | B178: 0 | C178: 1 | D178: 14800 | E178: 114 | F178: 301 | G178: 442 | H178: -- | I178: 9490 | J178: 14600 | K178: 15900 | L178: 15900 | M178: 703 | N178: 2944 | O178: 3090 | P178: 20590 | Q178: 3750 | R178: 8919 | S178: 230 | T178: 4993 | U178: 2536 | V178: 162 | W178: 0.37 | X178: 7921 | Y178: 12609 | Z178: 73.26 | AA178: 1.389 | AB178: 3.86 | AC178: 12.206
A179: 2000-06-16 | B179: 0 | C179: 1 | D179: 14700 | E179: 102 | F179: 280 | G179: 433 | H179: -- | I179: 9360 | J179: 15000 | K179: 16400 | L179: 16400 | M179: 750 | N179: 5357 | O179: 2800 | P179: 20806 | Q179: 3800 | R179: 8789 | S179: 312 | T179: 3994 | U179: 3782 | V179: 129 | W179: 0.37 | X179: 8217 | Y179: 10729 | Z179: 73.52 | AA179: 2.19 | AB179: 4.66 | AC179: 13.281
A180: 2000-06-17 | B180: 0 | C180: 1 | D180: 14700 | E180: 102 | F180: 267 | G180: 426 | H180: -- | I180: 9050 | J180: 14400 | K180: 16000 | L180: 16000 | M180: 747 | N180: 6778 | O180: 2590 | P180: 20148 | Q180: 3850 | R180: 8109 | S180: 390 | T180: 3499 | U180: 4197 | V180: 103 | W180: 0.38 | X180: 8189 | Y180: 8891 | Z180: 73.83 | AA180: 2.744 | AB180: 5.53 | AC180: 14.197
A181: 2000-06-18 | B181: 0 | C181: 1 | D181: 14300 | E181: 105 | F181: 259 | G181: 417 | H181: -- | I181: 8560 | J181: 13800 | K181: 15700 | L181: 15700 | M181: 726 | N181: 6690 | O181: 2560 | P181: 19798 | Q181: 3900 | R181: 8245 | S181: 395 | T181: 2996 | U181: 4167 | V181: 95 | W181: 0.36 | X181: 7653 | Y181: 8644 | Z181: 74.1 | AA181: 2.522 | AB181: 4.85 | AC181: 13.203
A182: 2000-06-19 | B182: 0 | C182: 1 | D182: 14000 | E182: 105 | F182: 258 | G182: 407 | H182: -- | I182: 8300 | J182: 13100 | K182: 15400 | L182: 15400 | M182: 731 | N182: 6602 | O182: 2540 | P182: 19471 | Q182: 3950 | R182: 7894 | S182: 365 | T182: 3000 | U182: 4173 | V182: 89 | W182: 0.37 | X182: 7627 | Y182: 8423 | Z182: 74.39 | AA182: 2.002 | AB182: 4.36 | AC182: 11.103
A183: 2000-06-20 | B183: 0 | C183: 1 | D183: 14400 | E183: 94 | F183: 249 | G183: 397 | H183: -- | I183: 8050 | J183: 12500 | K183: 14500 | L183: 14500 | M183: 754 | N183: 6339 | O183: 2410 | P183: 18448 | Q183: 4000 | R183: 6864 | S183: 328 | T183: 2968 | U183: 4197 | V183: 91 | W183: 0.39 | X183: 7584 | Y183: 7795 | Z183: 74.76 | AA183: 1.937 | AB183: 4.74 | AC183: 12.006
A184: 2000-06-21 | B184: 0 | C184: 1 | D184: 14700 | E184: 89 | F184: 231 | G184: 395 | H184: -- | I184: 7830 | J184: 11900 | K184: 13800 | L184: 13800 | M184: 784 | N184: 6133 | O184: 2260 | P184: 17621 | Q184: 4050 | R184: 6445 | S184: 332 | T184: 2492 | U184: 4204 | V184: 98 | W184: 0.38 | X184: 7126 | Y184: 7317 | Z184: 75.14 | AA184: 1.973 | AB184: 4.13 | AC184: 12.363
A185: 2000-06-22 | B185: 0 | C185: 1 | D185: 14300 | E185: 94 | F185: 216 | G185: 387 | H185: -- | I185: 8070 | J185: 12100 | K185: 13500 | L185: 13500 | M185: 780 | N185: 6046 | O185: 2110 | P185: 17150 | Q185: 4100 | R185: 5830 | S185: 337 | T185: 2491 | U185: 4284 | V185: 108 | W185: 0.4 | X185: 7220 | Y185: 7086 | Z185: 75.57 | AA185: 2.094 | AB185: 4.36 | AC185: 12.249
A186: 2000-06-23 | B186: 0 | C186: 1 | D186: 14300 | E186: 90 | F186: 200 | G186: 386 | H186: -- | I186: 7970 | J186: 12900 | K186: 14600 | L186: 14600 | M186: 753 | N186: 6368 | O186: 2010 | P186: 18205 | Q186: 4100 | R186: 6377 | S186: 345 | T186: 2999 | U186: 4269 | V186: 115 | W186: 0.4 | X186: 7728 | Y186: 7837 | Z186: 75.91 | AA186: 2.082 | AB186: 3.88 | AC186: 11.942
A187: 2000-06-24 | B187: 0 | C187: 1 | D187: 14600 | E187: 92 | F187: 193 | G187: 387 | H187: -- | I187: 7690 | J187: 13800 | K187: 16100 | L187: 16100 | M187: 695 | N187: 6807 | O187: 2030 | P187: 19689 | Q187: 4150 | R187: 7692 | S187: 342 | T187: 3191 | U187: 4209 | V187: 105 | W187: 0.38 | X187: 7847 | Y187: 8826 | Z187: 76.12 | AA187: 1.845 | AB187: 4.33 | AC187: 12.13
A188: 2000-06-25 | B188: 0 | C188: 1 | D188: 14600 | E188: 91 | F188: 193 | G188: 380 | H188: -- | I188: 7710 | J188: 14800 | K188: 17300 | L188: 17300 | M188: 669 | N188: 7159 | O188: 2110 | P188: 20938 | Q188: 4200 | R188: 10017 | S188: 337 | T188: 2046 | U188: 4235 | V188: 103 | W188: 0.3 | X188: 6721 | Y188: 9634 | Z188: 76.14 | AA188: 1.452 | AB188: 3.65 | AC188: 11.115
A189: 2000-06-26 | B189: 0 | C189: 1 | D189: 14600 | E189: 97 | F189: 190 | G189: 377 | H189: -- | I189: 7930 | J189: 15300 | K189: 17800 | L189: 17800 | M189: 665 | N189: 7305 | O189: 2080 | P189: 21312 | Q189: 4200 | R189: 7726 | S189: 339 | T189: 4720 | U189: 4234 | V189: 93 | W189: 0.42 | X189: 9386 | Y189: 9984 | Z189: 76.34 | AA189: 1.299 | AB189: 3.56 | AC189: 10.273
A190: 2000-06-27 | B190: 0 | C190: 1 | D190: 14700 | E190: 86 | F190: 181 | G190: 372 | H190: -- | I190: 8130 | J190: 15900 | K190: 18000 | L190: 18000 | M190: 680 | N190: 7364 | O190: 2060 | P190: 21518 | Q190: 4250 | R190: 8665 | S190: 290 | T190: 3997 | U190: 4220 | V190: 96 | W190: 0.38 | X190: 8603 | Y190: 10126 | Z190: 76.44 | AA190: 1.775 | AB190: 3.68 | AC190: 12.293
A191: 2000-06-28 | B191: 1 | C191: 1 | D191: 14800 | E191: 78 | F191: 165 | G191: 367 | H191: -- | I191: 8200 | J191: 16700 | K191: 18600 | L191: 18600 | M191: 664 | N191: 7540 | O191: 1930 | P191: 21926 | Q191: 4250 | R191: 9050 | S191: 280 | T191: 3994 | U191: 4251 | V191: 101 | W191: 0.38 | X191: 8626 | Y191: 10534 | Z191: 76.51 | AA191: 2.048 | AB191: 4.17 | AC191: =AVERAGE(AC190,AC193) -> 13.866
A192: 2000-06-29 | B192: 1 | C192: 1 | D192: 14900 | E192: 75 | F192: 155 | G192: 364 | H192: -- | I192: 8410 | J192: 17100 | K192: 18600 | L192: 18600 | M192: 664 | N192: 7540 | O192: 1840 | P192: 21838 | Q192: 4300 | R192: 8335 | S192: 337 | T192: 4491 | U192: 4277 | V192: 98 | W192: 0.4 | X192: 9203 | Y192: 10520 | Z192: 76.64 | AA192: 2.443 | AB192: 4.78 | AC192: =AC191 -> 13.866
A193: 2000-06-30 | B193: 1 | C193: 1 | D193: 14900 | E193: 70 | F193: 143 | G193: 359 | H193: -- | I193: 8580 | J193: 17700 | K193: 19200 | L193: 19200 | M193: 681 | N193: 7716 | O193: 1820 | P193: 22428 | Q193: 4300 | R193: 7967 | S193: 324 | T193: 5498 | U193: 4225 | V193: 114 | W193: 0.43 | X193: 10161 | Y193: 10961 | Z193: 76.78 | AA193: 2.604 | AB193: 5.3 | AC193: 15.439
A194: 2000-07-01 | B194: 1 | C194: 1 | D194: 14900 | E194: 76 | F194: 138 | G194: 354 | H194: -- | I194: 8760 | J194: 18100 | K194: 19900 | L194: 19900 | M194: 666 | N194: 7921 | O194: 1850 | P194: 23165 | Q194: 4300 | R194: 7507 | S194: 327 | T194: 6681 | U194: 4250 | V194: 100 | W194: 0.47 | X194: 11358 | Y194: 11441 | Z194: 76.95 | AA194: 2.529 | AB194: 5.7 | AC194: 15.879
A195: 2000-07-02 | B195: 1 | C195: 1 | D195: 14800 | E195: 77 | F195: 136 | G195: 351 | H195: -- | I195: 8700 | J195: 18100 | K195: 20000 | L195: 20000 | M195: 660 | N195: 7950 | O195: 1840 | P195: 23216 | Q195: 4300 | R195: 7755 | S195: 297 | T195: 6550 | U195: 4219 | V195: 95 | W195: 0.46 | X195: 11161 | Y195: 11506 | Z195: 77.1 | AA195: 2.617 | AB195: 5.66 | AC195: 16.206
A196: 2000-07-03 | B196: 1 | C196: 1 | D196: 15100 | E196: 77 | F196: 139 | G196: 345 | H196: -- | I196: 8700 | J196: 17900 | K196: 20000 | L196: 20000 | M196: 666 | N196: 7950 | O196: 1950 | P196: 23273 | Q196: 4350 | R196: 8592 | S196: 307 | T196: 5697 | U196: 4238 | V196: 89 | W196: 0.43 | X196: 10331 | Y196: 11498 | Z196: 77.17 | AA196: 2.534 | AB196: 5.81 | AC196: 16.113
A197: 2000-07-04 | B197: 1 | C197: 1 | D197: 15400 | E197: 77 | F197: 225 | G197: 346 | H197: -- | I197: 8930 | J197: 17900 | K197: 20000 | L197: 20000 | M197: 643 | N197: 7950 | O197: 1880 | P197: 23206 | Q197: 4350 | R197: 7751 | S197: 326 | T197: 6342 | U197: 4349 | V197: 88 | W197: 0.46 | X197: 11105 | Y197: 11475 | Z197: 77.3 | AA197: 2.468 | AB197: 5.27 | AC197: 15.086
A198: 2000-07-05 | B198: 1 | C198: 1 | D198: 15900 | E198: 97 | F198: 287 | G198: 358 | H198: -- | I198: 9080 | J198: 18500 | K198: 20300 | L198: 20300 | M198: 636 | N198: 8038 | O198: 1900 | P198: 23557 | Q198: 4400 | R198: 8456 | S198: 314 | T198: 6028 | U198: 4268 | V198: 91 | W198: 0.44 | X198: 10701 | Y198: 11666 | Z198: 77.37 | AA198: 2.314 | AB198: 5.61 | AC198: 14.604
A199: 2000-07-06 | B199: 1 | C199: 1 | D199: 15500 | E199: 96 | F199: 194 | G199: 343 | H199: -- | I199: 9660 | J199: 18800 | K199: 20900 | L199: 20900 | M199: 640 | N199: 8214 | O199: 1860 | P199: 24060 | Q199: 4400 | R199: 10846 | S199: 328 | T199: 4105 | U199: 4295 | V199: 86 | W199: 0.35 | X199: 8814 | Y199: 12094 | Z199: 77.27 | AA199: 1.847 | AB199: 4.83 | AC199: 13.75
A200: 2000-07-07 | B200: 1 | C200: 1 | D200: 15400 | E200: 88 | F200: 193 | G200: 338 | H200: -- | I200: 9770 | J200: 18900 | K200: 20900 | L200: 20900 | M200: 653 | N200: 8214 | O200: 1890 | P200: 24143 | Q200: 4400 | R200: 8415 | S200: 239 | T200: 6672 | U200: 4328 | V200: 89 | W200: 0.46 | X200: 11328 | Y200: 12107 | Z200: 77.35 | AA200: 1.738 | AB200: 4.24 | AC200: 12.76
A201: 2000-07-08 | B201: 1 | C201: 1 | D201: 15400 | E201: 85 | F201: 184 | G201: 334 | H201: -- | I201: 9730 | J201: 18700 | K201: 21100 | L201: 21100 | M201: 672 | N201: 8272 | O201: 1900 | P201: 24396 | Q201: 4400 | R201: 8890 | S201: 219 | T201: 6464 | U201: 4330 | V201: 93 | W201: 0.44 | X201: 11106 | Y201: 12268 | Z201: 77.38 | AA201: 1.506 | AB201: 4.07 | AC201: 11.807
A202: 2000-07-09 | B202: 1 | C202: 1 | D202: 15400 | E202: 79 | F202: 178 | G202: 328 | H202: -- | I202: 9800 | J202: 18700 | K202: 20800 | L202: 20800 | M202: 654 | N202: 8184 | O202: 1950 | P202: 24167 | Q202: 4400 | R202: 8443 | S202: 219 | T202: 6672 | U202: 4345 | V202: 88 | W202: 0.46 | X202: 11324 | Y202: 12038 | Z202: 77.45 | AA202: 1.505 | AB202: 3.79 | AC202: 11.681
A203: 2000-07-10 | B203: 1 | C203: 1 | D203: 15500 | E203: 71 | F203: 165 | G203: 323 | H203: -- | I203: 9860 | J203: 18900 | K203: 20800 | L203: 20800 | M203: 630 | N203: 8184 | O203: 1920 | P203: 24048 | Q203: 4400 | R203: 8278 | S203: 272 | T203: 6674 | U203: 4335 | V203: 89 | W203: 0.46 | X203: 11370 | Y203: 12014 | Z203: 77.52 | AA203: 1.964 | AB203: 4.47 | AC203: 12.824
A204: 2000-07-11 | B204: 1 | C204: 1 | D204: 15600 | E204: 66 | F204: 161 | G204: 320 | H204: -- | I204: 9940 | J204: 18700 | K204: 20600 | L204: 20600 | M204: 659 | N204: 8126 | O204: 1830 | P204: 23819 | Q204: 4400 | R204: 7994 | S204: 346 | T204: 6666 | U204: 4325 | V204: 88 | W204: 0.46 | X204: 11425 | Y204: 11901 | Z204: 77.61 | AA204: 2.249 | AB204: 4.9 | AC204: 13.375
A205: 2000-07-12 | B205: 1 | C205: 1 | D205: 15600 | E205: 61 | F205: 146 | G205: 322 | H205: -- | I205: 9940 | J205: 18300 | K205: 19600 | L205: 19600 | M205: 684 | N205: 7833 | O205: 1840 | P205: 22784 | Q205: 4400 | R205: 6433 | S205: 351 | T205: 7179 | U205: 4324 | V205: 97 | W205: 0.5 | X205: 11951 | Y205: 11219 | Z205: 77.84 | AA205: 2.627 | AB205: 5.76 | AC205: 14.799
A206: 2000-07-13 | B206: 1 | C206: 1 | D206: 15400 | E206: 62 | F206: 133 | G206: 318 | H206: -- | I206: 9810 | J206: 18300 | K206: 19800 | L206: 19800 | M206: 699 | N206: 7891 | O206: 1860 | P206: 22969 | Q206: 4400 | R206: 6593 | S206: 356 | T206: 7181 | U206: 4344 | V206: 95 | W206: 0.5 | X206: 11976 | Y206: 11376 | Z206: 78.04 | AA206: 2.453 | AB206: 5.45 | AC206: 13.547
A207: 2000-07-14 | B207: 1 | C207: 1 | D207: 15400 | E207: 64 | F207: 126 | G207: 313 | H207: -- | I207: 9680 | J207: 18100 | K207: 20400 | L207: 20400 | M207: 673 | N207: 8067 | O207: 1910 | P207: 23618 | Q207: 4400 | R207: 7342 | S207: 326 | T207: 7134 | U207: 4318 | V207: 98 | W207: 0.48 | X207: 11876 | Y207: 11774 | Z207: 78.16 | AA207: 2.073 | AB207: 5.03 | AC207: 12.686
A208: 2000-07-15 | B208: 1 | C208: 1 | D208: 15300 | E208: 64 | F208: 122 | G208: 309 | H208: -- | I208: 9870 | J208: 18000 | K208: 20200 | L208: 20200 | M208: 624 | N208: 8009 | O208: 1940 | P208: 23395 | Q208: 4400 | R208: 7158 | S208: 259 | T208: 7171 | U208: 4302 | V208: 105 | W208: 0.49 | X208: 11837 | Y208: 11583 | Z208: 78.29 | AA208: 2.294 | AB208: 4.86 | AC208: 12.721
... 2042 more rows

Sheet WRs
B1: Month # | C1: 1 | D1: 2 | E1: 3 | F1: 4 | G1: 5 | H1: 6 | I1: 7 | J1: 8 | K1: 9 | L1: 10 | M1: 11 | N1: 12
B3: State Filings
C4: Max Diversion Rate (cfs)
B5: W/R | C5: Jan | D5: Feb | E5: Mar | F5: Apr | G5: May | H5: Jun | I5: Jul | J5: Aug | K5: Sep | L5: Oct | M5: Nov | N5: Dec | O5: Notes
B6: A025513SF | C6: 10000 | D6: 10000 | E6: 10000 | F6: 10000 | G6: 10000 | H6: 10000 | I6: 10000 | J6: 10000 | K6: 10000 | L6: 10000 | M6: 10000 | N6: 10000 | O6: Included in Red Bluff Reach Analysis
B7: A025514SF | C7: 10000 | D7: 10000 | E7: 10000 | F7: 10000 | G7: 10000 | H7: 10000 | I7: 10000 | J7: 10000 | K7: 10000 | L7: 10000 | M7: 10000 | N7: 10000 | O7: Included in Red Bluff Reach Analysis
B8: A025517SF | C8: 4200 | D8: 4200 | E8: 4200 | F8: 4200 | G8: 4200 | H8: 4200 | I8: 4200 | J8: 4200 | K8: 4200 | L8: 4200 | M8: 4200 | N8: 4200 | O8: Included in Hamilton City Reach Analysis
B9: Total | C9: =SUM(C6:C8) -> 24200 | D9: =SUM(D6:D8) -> 24200 | E9: 24200 | F9: 24200 | G9: 24200 | H9: 24200 | I9: 24200 | J9: 24200 | K9: 24200 | L9: 24200 | M9: 24200 | N9: 24200
B11: Downstream W/Rs Red Bluff to GCID
C12: Max Diversion Rate (cfs)
B13: W/R | C13: Jan | D13: Feb | E13: Mar | F13: Apr | G13: May | H13: Jun | I13: Jul | J13: Aug | K13: Sep | L13: Oct | M13: Nov | N13: Dec | O13: Notes
B14: S015803 | C14: 0 | D14: 0 | E14: 0 | F14: 0.06 | G14: 0.06 | H14: 0.06 | I14: 0.06 | J14: 0.06 | K14: 0.06 | L14: 0 | M14: 0 | N14: 0 | O14: Upstream Red Bluff
B15: A014314 | C15: 0 | D15: 0 | E15: 0.44 | F15: 0.44 | G15: 0.44 | H15: 0.44 | I15: 0.44 | J15: 0.44 | K15: 0.44 | L15: 0.44 | M15: 0.44 | N15: 0.44 | O15: Upstream Red Bluff
B16: A015374 | C16: 300 | D16: 300 | E16: 300 | F16: 300 | G16: 300 | H16: 300 | I16: 300 | J16: 300 | K16: 300 | L16: 300 | M16: 300 | N16: 300 | O16: USBR
B17: A005626 | C17: 8000 | D17: 8000 | E17: 8000 | F17: 8000 | G17: 8000 | H17: 8000 | I17: 0 | J17: 0 | K17: 8000 | L17: 8000 | M17: 8000 | N17: 8000 | O17: USBR
B18: A017374 | C18: 1500 | D18: 1500 | E18: 1500 | F18: 1500 | G18: 1500 | H18: 1500 | I18: 1500 | J18: 1500 | K18: 1500 | L18: 1500 | M18: 1500 | N18: 1500 | O18: USBR
B19: A009363 | C19: 1000 | D19: 1000 | E19: 1000 | F19: 1000 | G19: 1000 | H19: 1000 | I19: 1000 | J19: 1000 | K19: 1000 | L19: 1000 | M19: 1000 | N19: 1000 | O19: USBR
B20: A009364 | C20: 9000 | D20: 9000 | E20: 9000 | F20: 9000 | G20: 9000 | H20: 9000 | I20: 9000 | J20: 9000 | K20: 9000 | L20: 9000 | M20: 9000 | N20: 9000 | O20: USBR
B21: A016767 | C21: 967 | D21: 967 | E21: 967 | F21: 967 | G21: 967 | H21: 967 | I21: 967 | J21: 967 | K21: 967 | L21: 967 | M21: 967 | N21: 967 | O21: USBR
B22: A017376 | C22: 3600 | D22: 3600 | E22: 3600 | F22: 3600 | G22: 0 | H22: 0 | I22: 0 | J22: 0 | K22: 0 | L22: 0 | M22: 3600 | N22: 3600 | O22: USBR
B23: A015375 | C23: 1700 | D23: 1700 | E23: 1700 | F23: 1700 | G23: 1700 | H23: 1700 | I23: 1700 | J23: 1700 | K23: 1700 | L23: 1700 | M23: 1700 | N23: 1700 | O23: USBR
B24: A005628 | C24: 2500 | D24: 2500 | E24: 2500 | F24: 2500 | G24: 2500 | H24: 2500 | I24: 2500 | J24: 2500 | K24: 2500 | L24: 2500 | M24: 2500 | N24: 2500 | O24: USBR
B25: USBR | C25: =2500-C26 -> 2495.543672 | D25: =2500-D26 -> 2495.543672 | E25: 2495.543672 | F25: 2495.543672 | G25: 2495.543672 | H25: 2500 | I25: 2500 | J25: 2500 | K25: 2500 | L25: 2500 | M25: 2500 | N25: 2500 | O25: USBR Surrogate
B26: A017134 | C26: 4.456327986 | D26: 4.456327986 | E26: 4.456327986 | F26: 4.456327986 | G26: 4.456327986 | H26: 0 | I26: 0 | J26: 0 | K26: 0 | L26: 0 | M26: 0 | N26: 0
B27: S020851 | C27: 0 | D27: 0 | E27: 0 | F27: 0 | G27: 1.1 | H27: 1.1 | I27: 1.1 | J27: 1.1 | K27: 1.1 | L27: 1.1 | M27: 0 | N27: 0
B28: A020087 | C28: 0 | D28: 0 | E28: 0 | F28: 0 | G28: 0.25 | H28: 0.25 | I28: 0 | J28: 0 | K28: 0.25 | L28: 0.25 | M28: 0 | N28: 0
B29: S020452 | C29: 0.03252689934 | D29: 0.03601192427 | E29: 0.03252689934 | F29: 0.03361112932 | G29: 0.07318552351 | H29: 0.07562504096 | I29: 0.07318552351 | J29: 0.07318552351 | K29: 0 | L29: 0 | M29: 0 | N29: 0
B30: A013658 | C30: 0 | D30: 0 | E30: 0 | F30: 1.31 | G30: 1.31 | H30: 1.31 | I30: 1.31 | J30: 1.31 | K30: 1.31 | L30: 1.31 | M30: 0 | N30: 0
B31: A013487 | C31: 0 | D31: 0 | E31: 0 | F31: 2 | G31: 2 | H31: 2 | I31: 2 | J31: 2 | K31: 2 | L31: 0 | M31: 0 | N31: 0
B32: A012899 | C32: 0 | D32: 0 | E32: 0 | F32: 0 | G32: 0.75 | H32: 0.75 | I32: 0.75 | J32: 0.75 | K32: 0.75 | L32: 0.75 | M32: 0.75 | N32: 0
B33: A014447 | C33: 0 | D33: 0 | E33: 0 | F33: 1.35 | G33: 1.35 | H33: 1.35 | I33: 1.35 | J33: 1.35 | K33: 1.35 | L33: 1.35 | M33: 1.35 | N33: 0
B34: S018613 | C34: 0 | D34: 0 | E34: 0 | F34: 8.912655971 | G34: 8.912655971 | H34: 8.912655971 | I34: 8.912655971 | J34: 8.912655971 | K34: 8.912655971 | L34: 8.912655971 | M34: 0 | N34: 0
B35: S007367 | C35: 541 | D35: 85 | E35: 203 | F35: 2785 | G35: 2861 | H35: 2975 | I35: 3031 | J35: 2650 | K35: 1624 | L35: 1900 | M35: 943 | N35: 685 | O35: GCID
B36: A000018 | C36: 0 | D36: 0 | E36: 110 | F36: 110 | G36: 110 | H36: 110 | I36: 110 | J36: 110 | K36: 110 | L36: 110 | M36: 110 | N36: 0 | O36: GCID
B37: A000462 | C37: 0 | D37: 0 | E37: 0 | F37: 250 | G37: 250 | H37: 250 | I37: 250 | J37: 250 | K37: 250 | L37: 250 | M37: 0 | N37: 0
B38: A000244 | C38: 0 | D38: 0 | E38: 0 | F38: 120 | G38: 120 | H38: 120 | I38: 120 | J38: 120 | K38: 120 | L38: 120 | M38: 0 | N38: 0
B39: A000892 | C39: 0 | D39: 0 | E39: 0 | F39: 110 | G39: 110 | H39: 110 | I39: 110 | J39: 110 | K39: 110 | L39: 110 | M39: 0 | N39: 0
B40: A000640 | C40: 0 | D40: 0 | E40: 0 | F40: 100 | G40: 100 | H40: 100 | I40: 100 | J40: 100 | K40: 100 | L40: 100 | M40: 0 | N40: 0
B41: A000770 | C41: 0 | D41: 0 | E41: 0 | F41: 120 | G41: 120 | H41: 120 | I41: 120 | J41: 120 | K41: 120 | L41: 120 | M41: 0 | N41: 0
B42: A003994 | C42: 0 | D42: 0 | E42: 0 | F42: 0 | G42: 0.25 | H42: 0.25 | I42: 0.25 | J42: 0.25 | K42: 0.25 | L42: 0.25 | M42: 0 | N42: 0
B43: A030813 | C43: 483.25 | D43: 483.25 | E43: 483.25 | F43: 0 | G43: 0 | H43: 0 | I43: 0 | J43: 0 | K43: 0 | L43: 483.25 | M43: 483.25 | N43: 483.25
B44: A001554 | C44: 0 | D44: 0 | E44: 0 | F44: 83.27 | G44: 83.27 | H44: 83.27 | I44: 83.27 | J44: 83.27 | K44: 83.27 | L44: 83.27 | M44: 0 | N44: 0 | O44: GCID
B45: A001624 | C45: 0 | D45: 0 | E45: 0 | F45: 32.01 | G45: 32.01 | H45: 32.01 | I45: 32.01 | J45: 32.01 | K45: 32.01 | L45: 32.01 | M45: 32.01 | N45: 0 | O45: GCID
B46: Total (all) | C46: =SUM(C14:C45) -> 32091.28253 | D46: =SUM(D14:D45) -> 31635.28601 | E46: 31863.72253 | F46: 34791.38627 | G46: 31269.77584 | H46: 31383.77828 | I46: 23439.52584 | J46: 23058.52584 | K46: 30032.70266 | L46: 30789.89266 | M46: 32637.8 | N46: 32235.69 | O46: With all USBR
B47: Total | C47: =SUM(C14:C15,C25:C45) -> 3524.282527 | D47: =SUM(D14:D15,D25:D45) -> 3068.286012 | E47: 3296.722527 | F47: 6224.386267 | G47: 6302.775841 | H47: 6416.778281 | I47: 6472.525841 | J47: 6091.525841 | K47: 5065.702656 | L47: 5822.892656 | M47: 4070.8 | N47: 3668.69 | O47: With USBR Surrogate
B49: Downstream W/Rs: Hamilton City to Wilkins
C50: Max Diversion Rate (cfs)
B51: W/R | C51: Jan | D51: Feb | E51: Mar | F51: Apr | G51: May | H51: Jun | I51: Jul | J51: Aug | K51: Sep | L51: Oct | M51: Nov | N51: Dec | O51: Notes
B52: USBR | C52: =MAX(3000-SUM(C35:C36,C44:C45,C54),0) -> 1259 | D52: 1715 | E52: 1487 | F52: 0 | G52: 0 | H52: 0 | I52: 0 | J52: 124.72 | K52: 1150.72 | L52: 874.72 | M52: 714.99 | N52: 1115 | O52: USBR Surrogate for GCID POD
B53: S020960 | C53: 0 | D53: 0 | E53: 0 | F53: 305 | G53: 305 | H53: 305 | I53: 305 | J53: 305 | K53: 305 | L53: 305 | M53: 0 | N53: 0
B54: A030838 | C54: 1200 | D54: 1200 | E54: 1200 | F54: 0 | G54: 0 | H54: 0 | I54: 0 | J54: 0 | K54: 0 | L54: 0 | M54: 1200 | N54: 1200 | O54: GCID
B55: A010363 | C55: 0 | D55: 9.4 | E55: 9.4 | F55: 9.4 | G55: 9.4 | H55: 9.4 | I55: 9.4 | J55: 9.4 | K55: 9.4 | L55: 9.4 | M55: 9.4 | N55: 9.4
B56: S009897 | C56: 115 | D56: 115 | E56: 115 | F56: 115 | G56: 115 | H56: 115 | I56: 115 | J56: 115 | K56: 115 | L56: 115 | M56: 115 | N56: 115
B57: A008213 | C57: 0 | D57: 0 | E57: 0 | F57: 3 | G57: 3 | H57: 3 | I57: 3 | J57: 3 | K57: 3 | L57: 3 | M57: 3 | N57: 0
B58: S025067 | C58: 72 | D58: 72 | E58: 72 | F58: 72 | G58: 0 | H58: 72 | I58: 0 | J58: 0 | K58: 0 | L58: 72 | M58: 72 | N58: 72
B59: S009896 | C59: 0 | D59: 0 | E59: 46 | F59: 46 | G59: 46 | H59: 46 | I59: 46 | J59: 46 | K59: 46 | L59: 46 | M59: 0 | N59: 0
B60: S009898 | C60: 0 | D60: 0 | E60: 0 | F60: 76 | G60: 76 | H60: 76 | I60: 76 | J60: 76 | K60: 76 | L60: 76 | M60: 0 | N60: 0
B61: A028238 | C61: 37 | D61: 0 | E61: 0 | F61: 0 | G61: 0 | H61: 0 | I61: 0 | J61: 0 | K61: 0 | L61: 37 | M61: 37 | N61: 37
B62: A030812 | C62: 290 | D62: 290 | E62: 290 | F62: 0 | G62: 0 | H62: 0 | I62: 0 | J62: 0 | K62: 0 | L62: 0 | M62: 290 | N62: 290
B63: A000027 | C63: 0 | D63: 0 | E63: 0 | F63: 166 | G63: 166 | H63: 166 | I63: 166 | J63: 166 | K63: 166 | L63: 166 | M63: 0 | N63: 0
B64: S020167 | C64: 360 | D64: 360 | E64: 0 | F64: 0 | G64: 360 | H64: 360 | I64: 360 | J64: 360 | K64: 360 | L64: 360 | M64: 360 | N64: 360
B65: A001653 | C65: 0 | D65: 0 | E65: 0 | F65: 4.94 | G65: 4.94 | H65: 4.94 | I65: 4.94 | J65: 4.94 | K65: 4.94 | L65: 4.94 | M65: 4.94 | N65: 0
B66: A008631 | C66: 0 | D66: 0 | E66: 63 | F66: 63 | G66: 63 | H66: 63 | I66: 63 | J66: 63 | K66: 63 | L66: 63 | M66: 63 | N66: 0
B67: A030445 | C67: 80 | D67: 80 | E67: 80 | F67: 0 | G67: 0 | H67: 0 | I67: 0 | J67: 0 | K67: 0 | L67: 80 | M67: 80 | N67: 80
B68: A001179 | C68: 0 | D68: 0 | E68: 0 | F68: 13.65 | G68: 13.65 | H68: 13.65 | I68: 13.65 | J68: 13.65 | K68: 13.65 | L68: 0 | M68: 0 | N68: 0
B69: S005222 | C69: 11 | D69: 35 | E69: 56 | F69: 276 | G69: 56 | H69: 98 | I69: 41 | J69: 76 | K69: 20 | L69: 11 | M69: 15 | N69: 11
B70: A001617 | C70: 0 | D70: 0 | E70: 0 | F70: 0 | G70: 5.37 | H70: 5.37 | I70: 5.37 | J70: 5.37 | K70: 5.37 | L70: 5.37 | M70: 0 | N70: 0
B71: A014619 | C71: 0 | D71: 0 | E71: 0 | F71: 0.5 | G71: 0.5 | H71: 0.5 | I71: 0.5 | J71: 0.5 | K71: 0.5 | L71: 0.5 | M71: 0 | N71: 0
B72: S020214 | C72: 0 | D72: 0 | E72: 0 | F72: 22.28163993 | G72: 22.28163993 | H72: 22.28163993 | I72: 22.28163993 | J72: 22.28163993 | K72: 22.28163993 | L72: 22.28163993 | M72: 22.28163993 | N72: 22.28163993
B73: A000186 | C73: 0 | D73: 0 | E73: 0 | F73: 7.5 | G73: 7.5 | H73: 7.5 | I73: 7.5 | J73: 7.5 | K73: 7.5 | L73: 7.5 | M73: 7.5 | N73: 0
B74: A014682 | C74: 0 | D74: 0 | E74: 0 | F74: 5.5 | G74: 5.5 | H74: 5.5 | I74: 5.5 | J74: 5.5 | K74: 5.5 | L74: 5.5 | M74: 5.5 | N74: 0
B75: S025269 | C75: 0 | D75: 0 | E75: 0 | F75: 7.5 | G75: 7.5 | H75: 7.5 | I75: 7.5 | J75: 7.5 | K75: 7.5 | L75: 7.5 | M75: 0 | N75: 0
B76: A015452 | C76: 0 | D76: 0 | E76: 0 | F76: 0 | G76: 6.1 | H76: 6.1 | I76: 6.1 | J76: 6.1 | K76: 6.1 | L76: 6.1 | M76: 0 | N76: 0
B77: S020212 | C77: 0 | D77: 0 | E77: 0 | F77: 0 | G77: 0 | H77: 0 | I77: 0 | J77: 0 | K77: 0 | L77: 0 | M77: 0 | N77: 0
B78: A000230B | C78: 0 | D78: 0 | E78: 0 | F78: 3.24 | G78: 3.24 | H78: 3.24 | I78: 3.24 | J78: 3.24 | K78: 3.24 | L78: 3.24 | M78: 3.24 | N78: 0
B79: S013880 | C79: 20.05347594 | D79: 20.05347594 | E79: 0 | F79: 13.36898396 | G79: 26.73796791 | H79: 26.73796791 | I79: 26.73796791 | J79: 26.73796791 | K79: 26.73796791 | L79: 26.73796791 | M79: 20.05347594 | N79: 20.05347594
B80: A000230A | C80: 0 | D80: 0 | E80: 0 | F80: 1 | G80: 1 | H80: 1 | I80: 1 | J80: 1 | K80: 1 | L80: 1 | M80: 1 | N80: 0
B81: A014205 | C81: 0 | D81: 0 | E81: 0 | F81: 3.5 | G81: 3.5 | H81: 3.5 | I81: 3.5 | J81: 3.5 | K81: 3.5 | L81: 3.5 | M81: 0 | N81: 0
B82: S024483 | C82: 3.5 | D82: 9.135472371 | E82: 9.135472371 | F82: 8.912655971 | G82: 8.912655971 | H82: 8.467023173 | I82: 8.021390374 | J82: 8.244206774 | K82: 3.5 | L82: 3.5 | M82: 3.5 | N82: 3.5
B83: S013566 | C83: 0 | D83: 0 | E83: 0 | F83: 14 | G83: 14 | H83: 14 | I83: 14 | J83: 14 | K83: 14 | L83: 14 | M83: 0 | N83: 0
B84: S024484 | C84: 3.5 | D84: 3.5 | E84: 3.5 | F84: 4 | G84: 4 | H84: 4 | I84: 4 | J84: 4 | K84: 4 | L84: 3.5 | M84: 3.5 | N84: 3.5
B85: A012120 | C85: 0 | D85: 0 | E85: 0 | F85: 1.15 | G85: 1.15 | H85: 1.15 | I85: 1.15 | J85: 1.15 | K85: 1.15 | L85: 1.15 | M85: 0 | N85: 0
B86: S005221 | C86: 11.58645276 | D86: 11.58645276 | E86: 13.59180036 | F86: 15.59714795 | G86: 15.59714795 | H86: 15.59714795 | I86: 15.59714795 | J86: 15.59714795 | K86: 15.59714795 | L86: 13.59180036 | M86: 11.58645276 | N86: 11.58645276
B87: S021223 | C87: 19.83065954 | D87: 0 | E87: 19.83065954 | F87: 19.83065954 | G87: 19.83065954 | H87: 19.83065954 | I87: 19.83065954 | J87: 19.83065954 | K87: 19.83065954 | L87: 19.83065954 | M87: 19.83065954 | N87: 19.83065954
B88: S018089 | C88: 19.60784314 | D88: 0 | E88: 0 | F88: 19.60784314 | G88: 19.60784314 | H88: 19.60784314 | I88: 19.60784314 | J88: 19.60784314 | K88: 19.60784314 | L88: 19.60784314 | M88: 19.60784314 | N88: 19.60784314
B89: A011274 | C89: 0 | D89: 0 | E89: 0 | F89: 15 | G89: 15 | H89: 15 | I89: 15 | J89: 15 | K89: 15 | L89: 15 | M89: 0 | N89: 0
B90: S018647 | C90: 23.99955437 | D90: 23.99955437 | E90: 23.99955437 | F90: 23.99955437 | G90: 23.99955437 | H90: 23.99955437 | I90: 23.99955437 | J90: 23.99955437 | K90: 23.99955437 | L90: 23.99955437 | M90: 23.99955437 | N90: 23.99955437
B91: S027705 | C91: 0 | D91: 0 | E91: 0 | F91: 0 | G91: 0 | H91: 0 | I91: 2.228163993 | J91: 0 | K91: 0 | L91: 0 | M91: 0 | N91: 0
B92: S020164 | C92: 45.94 | D92: 0 | E92: 0 | F92: 0 | G92: 45.94 | H92: 45.94 | I92: 45.94 | J92: 45.94 | K92: 0 | L92: 45.94 | M92: 45.94 | N92: 45.94
B93: S023044 | C93: 0 | D93: 0 | E93: 0 | F93: 0 | G93: 0 | H93: 5.570409982 | I93: 5.570409982 | J93: 5.570409982 | K93: 0 | L93: 0 | M93: 0 | N93: 0
B94: S019890 | C94: 0 | D94: 0 | E94: 0 | F94: 0 | G94: 0.8912655971 | H94: 0.8912655971 | I94: 0.8912655971 | J94: 0.8912655971 | K94: 0.8912655971 | L94: 0 | M94: 0 | N94: 0
B95: S020170 | C95: 17.82 | D95: 0 | E95: 0 | F95: 0 | G95: 17.82 | H95: 17.82 | I95: 17.82 | J95: 17.82 | K95: 17.82 | L95: 0 | M95: 17.82 | N95: 17.82
B96: S013749 | C96: 0 | D96: 0 | E96: 0 | F96: 0 | G96: 0.8912655971 | H96: 0.8912655971 | I96: 0.8912655971 | J96: 0.8912655971 | K96: 0 | L96: 0 | M96: 0 | N96: 0
B97: A001976 | C97: 0 | D97: 0 | E97: 0.88 | F97: 0.88 | G97: 0.88 | H97: 0 | I97: 0 | J97: 0 | K97: 0 | L97: 0 | M97: 0 | N97: 0
B98: A011384 | C98: 0 | D98: 0 | E98: 3 | F98: 3 | G98: 3 | H98: 3 | I98: 3 | J98: 3 | K98: 3 | L98: 3 | M98: 0 | N98: 0
B99: S027290 | C99: 12.25490196 | D99: 0 | E99: 12.25490196 | F99: 12.25490196 | G99: 12.25490196 | H99: 12.25490196 | I99: 12.25490196 | J99: 12.25490196 | K99: 12.25490196 | L99: 12.25490196 | M99: 12.25490196 | N99: 0
B100: A013511 | C100: 0 | D100: 0 | E100: 0 | F100: 0.9 | G100: 0.9 | H100: 0.9 | I100: 0.9 | J100: 0.9 | K100: 0.9 | L100: 0.9 | M100: 0 | N100: 0
B101: A009032 | C101: 0 | D101: 0 | E101: 0 | F101: 1.5 | G101: 1.5 | H101: 1.5 | I101: 1.5 | J101: 1.5 | K101: 1.5 | L101: 1.5 | M101: 0 | N101: 0
B102: A013512 | C102: 0 | D102: 0 | E102: 0 | F102: 1.61 | G102: 1.61 | H102: 1.61 | I102: 1.61 | J102: 1.61 | K102: 1.61 | L102: 1.61 | M102: 0 | N102: 0
B103: S023423 | C103: 0 | D103: 0 | E103: 0 | F103: 8.912655971 | G103: 8.912655971 | H103: 8.912655971 | I103: 8.912655971 | J103: 8.912655971 | K103: 8.912655971 | L103: 0 | M103: 0 | N103: 0
B104: A011450 | C104: 0 | D104: 0 | E104: 0 | F104: 8 | G104: 8 | H104: 8 | I104: 8 | J104: 8 | K104: 8 | L104: 8 | M104: 0 | N104: 0
B105: A006726 | C105: 0 | D105: 0 | E105: 0 | F105: 5 | G105: 5 | H105: 5 | I105: 5 | J105: 5 | K105: 5 | L105: 5 | M105: 0 | N105: 0
B106: S021227 | C106: 0 | D106: 0 | E106: 0 | F106: 0 | G106: 8.912655971 | H106: 8.912655971 | I106: 8.912655971 | J106: 8.912655971 | K106: 0 | L106: 0 | M106: 0 | N106: 0
B107: A001074B | C107: 0 | D107: 0 | E107: 138 | F107: 138 | G107: 138 | H107: 138 | I107: 138 | J107: 138 | K107: 138 | L107: 138 | M107: 138 | N107: 0
B108: A001659 | C108: 0 | D108: 0 | E108: 0 | F108: 108.27 | G108: 108.27 | H108: 108.27 | I108: 108.27 | J108: 108.27 | K108: 108.27 | L108: 108.27 | M108: 0 | N108: 0
B109: S021616 | C109: 0 | D109: 0 | E109: 0 | F109: 24.51 | G109: 24.51 | H109: 24.51 | I109: 24.51 | J109: 24.51 | K109: 24.51 | L109: 24.51 | M109: 0 | N109: 0
B110: A000657 | C110: 0 | D110: 0 | E110: 0 | F110: 0 | G110: 0 | H110: 0.74 | I110: 0.74 | J110: 0.74 | K110: 0.74 | L110: 0 | M110: 0 | N110: 0
B111: A005100 | C111: 0 | D111: 0 | E111: 0 | F111: 0 | G111: 0.46 | H111: 0.46 | I111: 0.46 | J111: 0.46 | K111: 0.46 | L111: 0.46 | M111: 0 | N111: 0
B112: S027954 | C112: 6.684491979 | D112: 0 | E112: 6.684491979 | F112: 6.684491979 | G112: 6.684491979 | H112: 6.684491979 | I112: 6.684491979 | J112: 6.684491979 | K112: 6.684491979 | L112: 6.684491979 | M112: 0 | N112: 0
B113: S021548 | C113: 0 | D113: 0 | E113: 0 | F113: 5.892255892 | G113: 15.78690127 | H113: 17.76094276 | I113: 16.27565982 | J113: 11.71391333 | K113: 1.96969697 | L113: 1.482567612 | M113: 0 | N113: 0
B114: S021617 | C114: 0 | D114: 0 | E114: 0 | F114: 1.060606061 | G114: 0.8308895406 | H114: 1.077441077 | I114: 1.352231997 | J114: 0.8960573477 | K114: 0.3535353535 | L114: 0.2443792766 | M114: 0 | N114: 0
B115: A018372 | C115: 0 | D115: 0 | E115: 0 | F115: 7.6 | G115: 7.6 | H115: 7.6 | I115: 0 | J115: 0 | K115: 7.6 | L115: 7.6 | M115: 0 | N115: 0
B116: S028288 | C116: 0 | D116: 0 | E116: 0 | F116: 5.570409982 | G116: 5.570409982 | H116: 5.570409982 | I116: 5.570409982 | J116: 5.570409982 | K116: 5.570409982 | L116: 5.570409982 | M116: 0 | N116: 0
B117: A015811 | C117: 0 | D117: 0 | E117: 0 | F117: 0 | G117: 2.6 | H117: 2.6 | I117: 2.6 | J117: 2.6 | K117: 2.6 | L117: 2.6 | M117: 0 | N117: 0
B118: A011618 | C118: 0 | D118: 0 | E118: 0 | F118: 5.5 | G118: 5.5 | H118: 5.5 | I118: 5.5 | J118: 5.5 | K118: 5.5 | L118: 5.5 | M118: 0 | N118: 0
B119: A013454 | C119: 0 | D119: 0 | E119: 0 | F119: 13.5 | G119: 13.5 | H119: 13.5 | I119: 13.5 | J119: 13.5 | K119: 13.5 | L119: 13.5 | M119: 0 | N119: 0
B120: A008931 | C120: 0 | D120: 0 | E120: 0 | F120: 3 | G120: 3 | H120: 3 | I120: 3 | J120: 3 | K120: 3 | L120: 3 | M120: 0 | N120: 0
B121: S013264 | C121: 4.8 | D121: 4.8 | E121: 4.8 | F121: 4.8 | G121: 4.8 | H121: 4.8 | I121: 4.8 | J121: 4.8 | K121: 4.8 | L121: 4.8 | M121: 0 | N121: 0
B122: A006696 | C122: 0 | D122: 0 | E122: 0 | F122: 4.8 | G122: 4.8 | H122: 4.8 | I122: 4.8 | J122: 4.8 | K122: 4.8 | L122: 4.8 | M122: 0 | N122: 0
B123: A009987 | C123: 0 | D123: 0 | E123: 0 | F123: 7.1 | G123: 7.1 | H123: 7.1 | I123: 7.1 | J123: 7.1 | K123: 7.1 | L123: 7.1 | M123: 0 | N123: 0
B124: A005916 | C124: 0 | D124: 0 | E124: 0 | F124: 6.92 | G124: 6.92 | H124: 6.92 | I124: 6.92 | J124: 6.92 | K124: 6.92 | L124: 6.92 | M124: 0 | N124: 0
B125: A010408 | C125: 0 | D125: 0 | E125: 0 | F125: 1.4 | G125: 1.4 | H125: 1.4 | I125: 1.4 | J125: 1.4 | K125: 1.4 | L125: 1.4 | M125: 0 | N125: 0
B126: S025522 | C126: 0 | D126: 0 | E126: 0 | F126: 7.798573975 | G126: 7.798573975 | H126: 7.798573975 | I126: 7.798573975 | J126: 7.798573975 | K126: 7.798573975 | L126: 7.798573975 | M126: 0 | N126: 0
B127: A000771 | C127: 0 | D127: 0 | E127: 20 | F127: 20 | G127: 20 | H127: 20 | I127: 20 | J127: 20 | K127: 20 | L127: 20 | M127: 0 | N127: 0
B128: S025527 | C128: 0 | D128: 0 | E128: 0 | F128: 8.912655971 | G128: 8.912655971 | H128: 8.912655971 | I128: 8.912655971 | J128: 8.912655971 | K128: 8.912655971 | L128: 8.912655971 | M128: 0 | N128: 0
B129: A004613 | C129: 0 | D129: 0 | E129: 0 | F129: 0.5 | G129: 0.5 | H129: 0.5 | I129: 0.5 | J129: 0.5 | K129: 0.5 | L129: 0.5 | M129: 0 | N129: 0
B130: A004699 | C130: 0 | D130: 0 | E130: 0 | F130: 2 | G130: 2 | H130: 2 | I130: 2 | J130: 2 | K130: 2 | L130: 0 | M130: 0 | N130: 0
B131: A001074A | C131: 0 | D131: 0 | E131: 4 | F131: 4 | G131: 4 | H131: 4 | I131: 4 | J131: 4 | K131: 4 | L131: 4 | M131: 4 | N131: 0
B132: A006486 | C132: 0 | D132: 0 | E132: 0 | F132: 55.5 | G132: 55.5 | H132: 55.5 | I132: 55.5 | J132: 55.5 | K132: 55.5 | L132: 55.5 | M132: 0 | N132: 0
B133: A016985 | C133: 0 | D133: 0 | E133: 0 | F133: 0 | G133: 15 | H133: 15 | I133: 0 | J133: 0 | K133: 0 | L133: 0 | M133: 0 | N133: 0
B134: A000742 | C134: 0 | D134: 0 | E134: 29.25 | F134: 29.25 | G134: 29.25 | H134: 29.25 | I134: 29.25 | J134: 29.25 | K134: 29.25 | L134: 29.25 | M134: 0 | N134: 0
B135: A004355A | C135: 0 | D135: 0 | E135: 1.94 | F135: 1.94 | G135: 1.94 | H135: 1.94 | I135: 1.94 | J135: 1.94 | K135: 1.94 | L135: 1.94 | M135: 0 | N135: 0
B136: A004355B | C136: 0 | D136: 0 | E136: 0.67 | F136: 0.67 | G136: 0.67 | H136: 0.67 | I136: 0.67 | J136: 0.67 | K136: 0.67 | L136: 0.67 | M136: 0 | N136: 0
B137: A007308 | C137: 0 | D137: 0 | E137: 0 | F137: 6.15 | G137: 6.15 | H137: 6.15 | I137: 6.15 | J137: 6.15 | K137: 6.15 | L137: 6.15 | M137: 6.15 | N137: 0
B138: S025239 | C138: 0 | D138: 0 | E138: 4.935 | F138: 4.935 | G138: 4.935 | H138: 4.935 | I138: 4.935 | J138: 4.935 | K138: 4.935 | L138: 0 | M138: 0 | N138: 0
B139: S025238 | C139: 0 | D139: 0 | E139: 0 | F139: 2.4675 | G139: 4.935 | H139: 4.9 | I139: 4.9 | J139: 4.9 | K139: 4.9 | L139: 0 | M139: 0 | N139: 0
B140: A006672 | C140: 0 | D140: 0 | E140: 0 | F140: 9.87 | G140: 9.87 | H140: 9.87 | I140: 9.87 | J140: 9.87 | K140: 9.87 | L140: 9.87 | M140: 0 | N140: 0
B141: A001758 | C141: 0 | D141: 0 | E141: 0 | F141: 1.5 | G141: 1.5 | H141: 1.5 | I141: 1.5 | J141: 1.5 | K141: 1.5 | L141: 1.5 | M141: 0 | N141: 0
B142: A009760 | C142: 250 | D142: 250 | E142: 250 | F142: 250 | G142: 250 | H142: 250 | I142: 250 | J142: 250 | K142: 250 | L142: 250 | M142: 250 | N142: 250
B143: A011953 | C143: 0 | D143: 0 | E143: 0 | F143: 7.5 | G143: 7.5 | H143: 7.5 | I143: 7.5 | J143: 7.5 | K143: 7.5 | L143: 7.5 | M143: 0 | N143: 0
B144: A000879 | C144: 0 | D144: 0 | E144: 25.25 | F144: 25.25 | G144: 25.25 | H144: 25.25 | I144: 25.25 | J144: 25.25 | K144: 25.25 | L144: 25.25 | M144: 0 | N144: 0
B145: A001763 | C145: 0 | D145: 0 | E145: 0 | F145: 3 | G145: 3 | H145: 3 | I145: 3 | J145: 3 | K145: 3 | L145: 0 | M145: 0 | N145: 0
B146: A001772 | C146: 0 | D146: 0 | E146: 0 | F146: 0 | G146: 0.31 | H146: 0.31 | I146: 0.31 | J146: 0.31 | K146: 0.31 | L146: 0.31 | M146: 0 | N146: 0
B147: A007886 | C147: 0 | D147: 0 | E147: 7.32 | F147: 7.32 | G147: 7.32 | H147: 7.32 | I147: 7.32 | J147: 7.32 | K147: 7.32 | L147: 7.32 | M147: 0 | N147: 0
B148: A001160 | C148: 0 | D148: 0 | E148: 40.5 | F148: 40.5 | G148: 40.5 | H148: 40.5 | I148: 40.5 | J148: 40.5 | K148: 40.5 | L148: 40.5 | M148: 0 | N148: 0
B149: A001769 | C149: 0 | D149: 0 | E149: 0 | F149: 7.67 | G149: 7.67 | H149: 7.67 | I149: 7.67 | J149: 7.67 | K149: 7.67 | L149: 7.67 | M149: 0 | N149: 0
B150: A003195 | C150: 0 | D150: 0 | E150: 0 | F150: 1.38 | G150: 1.38 | H150: 1.38 | I150: 1.38 | J150: 1.38 | K150: 1.38 | L150: 1.38 | M150: 0 | N150: 0
B151: A014584 | C151: 0 | D151: 0 | E151: 0 | F151: 0 | G151: 5 | H151: 5 | I151: 5 | J151: 5 | K151: 5 | L151: 5 | M151: 0 | N151: 0
B152: A016677 | C152: 0 | D152: 0 | E152: 0 | F152: 7.5 | G152: 7.5 | H152: 7.5 | I152: 0 | J152: 0 | K152: 7.5 | L152: 7.5 | M152: 0 | N152: 0
B153: A000878 | C153: 0 | D153: 0 | E153: 116.72 | F153: 116.72 | G153: 116.72 | H153: 116.72 | I153: 116.72 | J153: 116.72 | K153: 116.72 | L153: 116.72 | M153: 0 | N153: 0
B154: A000880A | C154: 0 | D154: 0 | E154: 404.82 | F154: 404.82 | G154: 404.82 | H154: 404.82 | I154: 404.82 | J154: 404.82 | K154: 404.82 | L154: 404.82 | M154: 0 | N154: 0
B155: A012470A | C155: 0 | D155: 0 | E155: 0 | F155: 35.9 | G155: 35.9 | H155: 35.9 | I155: 35.9 | J155: 35.9 | K155: 35.9 | L155: 35.9 | M155: 35.9 | N155: 0
B156: A000581 | C156: 0 | D156: 0 | E156: 45 | F156: 45 | G156: 45 | H156: 45 | I156: 45 | J156: 45 | K156: 45 | L156: 45 | M156: 0 | N156: 0
B157: A010658 | C157: 0 | D157: 0 | E157: 7.52 | F157: 7.52 | G157: 7.52 | H157: 7.52 | I157: 7.52 | J157: 7.52 | K157: 7.52 | L157: 7.52 | M157: 0 | N157: 0
B158: S000623 | C158: 5.86 | D158: 5.86 | E158: 5.86 | F158: 5.86 | G158: 5.86 | H158: 5.86 | I158: 5.86 | J158: 5.86 | K158: 5.86 | L158: 5.86 | M158: 5.86 | N158: 5.86
B159: A000880C | C159: 0 | D159: 0 | E159: 3.87 | F159: 3.87 | G159: 3.87 | H159: 3.87 | I159: 3.87 | J159: 3.87 | K159: 3.87 | L159: 3.87 | M159: 0 | N159: 0
B160: A013590 | C160: 0 | D160: 0 | E160: 0 | F160: 2.87 | G160: 2.87 | H160: 2.87 | I160: 2.87 | J160: 2.87 | K160: 2.87 | L160: 2.87 | M160: 0 | N160: 0
B161: A010951 | C161: 0 | D161: 0 | E161: 0 | F161: 7.82 | G161: 7.82 | H161: 7.82 | I161: 7.82 | J161: 7.82 | K161: 7.82 | L161: 7.82 | M161: 0 | N161: 0
B162: S017146 | C162: 0 | D162: 0 | E162: 16.71122995 | F162: 16.71122995 | G162: 16.71122995 | H162: 16.71122995 | I162: 16.71122995 | J162: 16.71122995 | K162: 0 | L162: 0 | M162: 0 | N162: 0
B163: S021733 | C163: 0 | D163: 0 | E163: 0.7319973933 | F163: 0.3363636364 | G163: 1.547898338 | H163: 1.351515152 | I163: 2.316715543 | J163: 1.112740306 | K163: 0.2060606061 | L163: 0 | M163: 0 | N163: 0
B164: A031436 | C164: 240 | D164: 240 | E164: 0 | F164: 0 | G164: 0 | H164: 0 | I164: 0 | J164: 0 | K164: 0 | L164: 0 | M164: 240 | N164: 240
B165: A000576 | C165: 0 | D165: 180 | E165: 180 | F165: 180 | G165: 180 | H165: 180 | I165: 180 | J165: 180 | K165: 180 | L165: 180 | M165: 0 | N165: 0
B166: A000763 | C166: 0 | D166: 500 | E166: 500 | F166: 500 | G166: 500 | H166: 500 | I166: 500 | J166: 500 | K166: 500 | L166: 500 | M166: 0 | N166: 0
B167: A001589 | C167: 0 | D167: 0 | E167: 0 | F167: 0 | G167: 255.25 | H167: 255.25 | I167: 255.25 | J167: 255.25 | K167: 255.25 | L167: 255.25 | M167: 0 | N167: 0
B168: S020716 | C168: 800 | D168: 800 | E168: 800 | F168: 800 | G168: 800 | H168: 800 | I168: 800 | J168: 800 | K168: 800 | L168: 800 | M168: 800 | N168: 800
B169: A009737 | C169: 0 | D169: 0 | E169: 0 | F169: 100 | G169: 100 | H169: 100 | I169: 100 | J169: 100 | K169: 100 | L169: 100 | M169: 0 | N169: 0
B170: A013003 | C170: 0 | D170: 0 | E170: 0 | F170: 5 | G170: 5 | H170: 5 | I170: 5 | J170: 5 | K170: 5 | L170: 5 | M170: 0 | N170: 0
B171: S020961 | C171: 0 | D171: 0 | E171: 0 | F171: 73.4560121 | G171: 219.5532498 | H171: 214.939921 | I171: 133.894956 | J171: 98.19722387 | K171: 41.25703722 | L171: 48.0577669 | M171: 0 | N171: 0
B172: S020165 | C172: 0 | D172: 6.139940221 | E172: 0 | F172: 3.277035543 | G172: 16.97878465 | H172: 48.85303756 | I172: 41.95906552 | J172: 41.35732698 | K172: 8.45307117 | L172: 9.30255251 | M172: 3.394672717 | N172: 0.1951584443
B173: S019616 | C173: 0 | D173: 0 | E173: 6.6 | F173: 6.6 | G173: 6.6 | H173: 6.6 | I173: 6.6 | J173: 6.6 | K173: 6.6 | L173: 6.6 | M173: 0 | N173: 0
B174: S019619 | C174: 6.6 | D174: 6.6 | E174: 6.6 | F174: 6.6 | G174: 6.6 | H174: 6.6 | I174: 6.6 | J174: 6.6 | K174: 6.6 | L174: 6.6 | M174: 6.6 | N174: 6.6
B175: S019622 | C175: 13.2 | D175: 13.2 | E175: 0 | F175: 15.4 | G175: 15.4 | H175: 15.4 | I175: 15.4 | J175: 15.4 | K175: 15.4 | L175: 15.4 | M175: 15.4 | N175: 15.4
B176: S020712 | C176: 0 | D176: 0 | E176: 1.772689202 | F176: 0 | G176: 6.196280605 | H176: 9.948743803 | I176: 11.05897851 | J176: 5.171698773 | K176: 1.462062012 | L176: 0.211421648 | M176: 0.739433661 | N176: 0.1138424258
B177: S025996 | C177: 0 | D177: 0 | E177: 0 | F177: 0 | G177: 0 | H177: 0 | I177: 0 | J177: 0 | K177: 0 | L177: 0 | M177: 0 | N177: 0
B178: S027432 | C178: 0 | D178: 0 | E178: 0 | F178: 6.16 | G178: 6.16 | H178: 6.16 | I178: 6.16 | J178: 6.16 | K178: 6.16 | L178: 0.1 | M178: 0 | N178: 0
B179: S017979 | C179: 0 | D179: 0 | E179: 0 | F179: 0 | G179: 0 | H179: 0 | I179: 0 | J179: 0 | K179: 0 | L179: 0 | M179: 0 | N179: 0
B180: S024493 | C180: 9.9 | D180: 9.9 | E180: 9.9 | F180: 9.9 | G180: 20 | H180: 20 | I180: 20 | J180: 20 | K180: 20 | L180: 20 | M180: 20 | N180: 9.9
B181: Total | C181: =SUM(C52:C180) -> 4939.13738 | D181: =SUM(D52:D180) -> 5961.174896 | E181: 6144.047797 | F181: 4582.578178 | G181: 5217.93158 | H181: 5369.918954 | I181: 5125.527491 | J181: 5234.833497 | K181: 6032.416232 | L181: 5922.539187 | M181: 4707.988634 | N181: =SUM(N52:N180) -> 4805.588627
B183: Downstream W/Rs: Wilkins to Verona
C184: Max Diversion Rate (cfs)
B185: W/R | C185: Jan | D185: Feb | E185: Mar | F185: Apr | G185: May | H185: Jun | I185: Jul | J185: Aug | K185: Sep | L185: Oct | M185: Nov | N185: Dec | O185: Notes
B186: S020641 | C186: 0 | D186: 0 | E186: 10 | F186: 10 | G186: 10 | H186: 10 | I186: 10 | J186: 10 | K186: 10 | L186: 0 | M186: 0 | N186: 0
B187: S021727 | C187: 1.782531194 | D187: 1.782531194 | E187: 1.782531194 | F187: 1.782531194 | G187: 1.782531194 | H187: 1.782531194 | I187: 1.782531194 | J187: 1.782531194 | K187: 1.782531194 | L187: 1.782531194 | M187: 1.782531194 | N187: 1.782531194
B188: S020645 | C188: 0 | D188: 0 | E188: 0 | F188: 10 | G188: 10 | H188: 10 | I188: 10 | J188: 10 | K188: 10 | L188: 10 | M188: 0 | N188: 0
B189: A016199 | C189: 0 | D189: 0 | E189: 0 | F189: 0 | G189: 3.4 | H189: 3.4 | I189: 0 | J189: 0 | K189: 3.4 | L189: 3.4 | M189: 0 | N189: 0
B190: S020649 | C190: 0 | D190: 0 | E190: 15 | F190: 15 | G190: 15 | H190: 15 | I190: 15 | J190: 15 | K190: 15 | L190: 15 | M190: 0 | N190: 0
B191: S016099 | C191: 0 | D191: 0 | E191: 0 | F191: 5 | G191: 5 | H191: 5 | I191: 5 | J191: 5 | K191: 5 | L191: 0 | M191: 0 | N191: 0
B192: S020653 | C192: 0 | D192: 0 | E192: 0 | F192: 0 | G192: 30 | H192: 30 | I192: 30 | J192: 30 | K192: 30 | L192: 0 | M192: 0 | N192: 0
B193: S022594 | C193: 0 | D193: 0 | E193: 6.016042781 | F193: 6.016042781 | G193: 6.016042781 | H193: 6.016042781 | I193: 6.016042781 | J193: 6.016042781 | K193: 6.016042781 | L193: 0 | M193: 0 | N193: 0
B194: S020445 | C194: 0 | D194: 0 | E194: 0 | F194: 0 | G194: 6.23885918 | H194: 6.23885918 | I194: 6.23885918 | J194: 6.23885918 | K194: 6.23885918 | L194: 0 | M194: 0 | N194: 0
B195: A006670 | C195: 0 | D195: 0 | E195: 3.46 | F195: 3.46 | G195: 3.46 | H195: 3.46 | I195: 3.46 | J195: 3.46 | K195: 3.46 | L195: 3.46 | M195: 0 | N195: 0
B196: A012470B | C196: 0 | D196: 0 | E196: 0 | F196: 53.5 | G196: 53.5 | H196: 53.5 | I196: 53.5 | J196: 53.5 | K196: 53.5 | L196: 53.5 | M196: 53.5 | N196: 0
B197: S028381 | C197: 0 | D197: 0 | E197: 0 | F197: 0 | G197: 0.03470185728 | H197: 0.2745791246 | I197: 0.2774519387 | J197: 0.4196806777 | K197: 0.2111111111 | L197: 0.2326490714 | M197: 0.1429292929 | N197: 0
B198: A030410 | C198: 60 | D198: 60 | E198: 60 | F198: 0 | G198: 0 | H198: 0 | I198: 0 | J198: 0 | K198: 60 | L198: 60 | M198: 60 | N198: 60
B199: A001765A | C199: 0 | D199: 0 | E199: 0 | F199: 4 | G199: 4 | H199: 4 | I199: 4 | J199: 4 | K199: 4 | L199: 4 | M199: 0 | N199: 0
B200: S020657 | C200: 300 | D200: 300 | E200: 300 | F200: 300 | G200: 300 | H200: 300 | I200: 300 | J200: 300 | K200: 300 | L200: 300 | M200: 300 | N200: 300
B201: A017210 | C201: 0 | D201: 0 | E201: 0 | F201: 0 | G201: 1.2 | H201: 1.2 | I201: 0 | J201: 0 | K201: 0 | L201: 0 | M201: 0 | N201: 0
B202: A006527 | C202: 0 | D202: 0 | E202: 0 | F202: 3 | G202: 3 | H202: 3 | I202: 3 | J202: 3 | K202: 3 | L202: 3 | M202: 0 | N202: 0
B203: S019234 | C203: 4 | D203: 0 | E203: 0 | F203: 12 | G203: 12 | H203: 12 | I203: 12 | J203: 12 | K203: 4 | L203: 4 | M203: 0 | N203: 0
B204: S019243 | C204: 12 | D204: 0 | E204: 12 | F204: 12 | G204: 12 | H204: 12 | I204: 12 | J204: 12 | K204: 12 | L204: 0 | M204: 0 | N204: 0
... 158 more rows

Sheet Control
B2: W/R Season | E2: Bend Bridge Pulse Protection | H2: Delta Excess Buffer Days | R2: Eight River Runoff (maf) | AI2: D-1641 Table 4 Chipps Days | AP2: D-1641 Table 4 Port Chicago Days
B3: Start | C3: End | E3: On/Off | F3: On | H3: Days | I3: 7 | N3: WY | O3: May 1 SVI | P3: May 1 WY | Q3: WY # | R3: Dec | S3: Jan | T3: Feb | U3: Mar | V3: Apr | W3: May | X3: May SRI | Y3: Feb E/I | Z3: May/Jun NDOI | AI3: PMI (TAF) | AJ3: Feb | AK3: Mar | AL3: Apr | AM3: May | AN3: Jun | AP3: PMI (TAF) | AQ3: Feb | AR3: Mar | AS3: Apr | AT3: May | AU3: Jun
B4: 9.01 | C4: 6.14 | E4: Start (WY) | F4: 1.01 | N4: 2000 | O4: 9.2 | P4: W | Q4: 1 | R4: 0.65 | S4: 2.55 | T4: 5.49 | U4: 4.08 | V4: 3.55 | W4: 3.62 | X4: 18.9 | Y4: =IF(S4<=1,0.45,IF(S4>1.5,0.35,intrp($AB$11:$AC$14,S4))) -> 0.35 | Z4: =IF(X4<8.1,4000,7100) -> 7100 | AI4: 0 | AJ4: 0 | AK4: 0 | AL4: 0 | AM4: 0 | AN4: 0 | AP4: 0 | AQ4: 0 | AR4: 0 | AS4: 0 | AT4: 0 | AU4: 0
B5: Constraint | C5: On/Off | E5: End (WY) | F5: 12.3 | N5: 2001 | O5: 5.9 | P5: D | Q5: 4 | R5: 0.67 | S5: 0.87 | T5: 1.5 | U5: 2.39 | V5: 2.03 | W5: 2.49 | X5: 9.81 | Y5: =IF(S5<=1,0.45,IF(S5>1.5,0.35,intrp($AB$11:$AC$14,S5))) -> 0.45 | Z5: =IF(X5<8.1,4000,7100) -> 7100 | AI5: 500 | AJ5: 0 | AK5: 0 | AL5: 0 | AM5: 0 | AN5: 0 | AP5: 250 | AQ5: 1 | AR5: 0 | AS5: 0 | AT5: 0 | AU5: 0
B6: Delta Condition | C6: On | E6: Bend Trigger | F6: 8000 | N6: 2002 | O6: 6.5 | P6: D | Q6: 4 | R6: 2.5 | S6: 2.7 | T6: 1.74 | U6: 2.31 | V6: 2.82 | W6: 2.6 | X6: 14.6 | Y6: =IF(S6<=1,0.45,IF(S6>1.5,0.35,intrp($AB$11:$AC$14,S6))) -> 0.35 | Z6: 7100 | AI6: 750 | AJ6: 0 | AK6: 0 | AL6: 0 | AM6: 0 | AN6: 0 | AP6: 333 | AQ6: 2 | AR6: 0 | AS6: 0 | AT6: 0 | AU6: 0
B7: Term 91 | C7: On | E7: Trib Trigger | F7: 2500 | N7: 2003 | O7: 8 | P7: AN | Q7: 2 | R7: 3.24 | S7: 3.4 | T7: 1.66 | U7: 2.52 | V7: 3.27 | W7: 4.82 | X7: 19.31 | Y7: =IF(S7<=1,0.45,IF(S7>1.5,0.35,intrp($AB$11:$AC$14,S7))) -> 0.35 | Z7: 7100 | AI7: 758.9285714 | AJ7: 1 | AK7: 0 | AL7: 1 | AM7: 0 | AN7: 0 | AP7: 416 | AQ7: 3 | AR7: 0 | AS7: 0 | AT7: 0 | AU7: 0
B8: Include State Filings | C8: Off | E8: Pulse Length (days) | F8: 7 | N8: 2004 | O8: 7.7 | P8: BN | Q8: 3 | R8: 2.14 | S8: 1.9 | T8: 3.98 | U8: 3.47 | V8: 2.64 | W8: 2.29 | X8: 16.04 | Y8: =IF(S8<=1,0.45,IF(S8>1.5,0.35,intrp($AB$11:$AC$14,S8))) -> 0.35 | Z8: 7100 | AI8: 767.8571429 | AJ8: 2 | AK8: 1 | AL8: 1 | AM8: 0 | AN8: 0 | AP8: 500 | AQ8: 4 | AR8: 1 | AS8: 0 | AT8: 0 | AU8: 0
B9: Include Face Value Demands | C9: On | E9: Pulse Offramp | F9: 29000 | N9: 2005 | O9: 7.4 | P9: BN | Q9: 3 | R9: 1.56 | S9: 2.49 | T9: 2.01 | U9: 3.75 | V9: 3.18 | W9: 7.23 | X9: 18.55 | Y9: =IF(S9<=1,0.45,IF(S9>1.5,0.35,intrp($AB$11:$AC$14,S9))) -> 0.35 | Z9: 7100 | AI9: 776.7857143 | AJ9: 3 | AK9: 1 | AL9: 1 | AM9: 0 | AN9: 0 | AP9: 562 | AQ9: 5 | AR9: 1 | AS9: 0 | AT9: 0 | AU9: 0
E10: Offramp Div. Threshold | F10: 25000 | N10: 2006 | O10: 13 | P10: W | Q10: 1 | R10: 5.83 | S10: 5.16 | T10: 3.42 | U10: 5.38 | V10: 8.56 | W10: 6.84 | X10: 32.09 | Y10: =IF(S10<=1,0.45,IF(S10>1.5,0.35,intrp($AB$11:$AC$14,S10))) -> 0.35 | Z10: 7100 | AB10: Jan 8RI | AC10: Feb E/I | AI10: 785.7142857 | AJ10: 4 | AK10: 1 | AL10: 1 | AM10: 0 | AN10: 0 | AP10: 625 | AQ10: 6 | AR10: 1 | AS10: 0 | AT10: 0 | AU10: 0
N11: 2007 | O11: 6.2 | P11: D | Q11: 4 | R11: 1.32 | S11: 0.87 | T11: 2.14 | U11: 2.07 | V11: 1.74 | W11: 1.67 | X11: 10.28 | Y11: =IF(S11<=1,0.45,IF(S11>1.5,0.35,intrp($AB$11:$AC$14,S11))) -> 0.45 | Z11: 7100 | AB11: 0 | AC11: 0.45 | AI11: 794.6428571 | AJ11: 5 | AK11: 2 | AL11: 1 | AM11: 0 | AN11: 0 | AP11: 687 | AQ11: 7 | AR11: 1 | AS11: 0 | AT11: 0 | AU11: 0
B12: Point of Diversion/Bypass Location Parameters | N12: 2008 | O12: 5.4 | P12: C | Q12: 5 | R12: 0.7 | S12: 1.7 | T12: 1.81 | U12: 1.79 | V12: 1.89 | W12: 2.68 | X12: 10.28 | Y12: =IF(S12<=1,0.45,IF(S12>1.5,0.35,intrp($AB$11:$AC$14,S12))) -> 0.35 | Z12: 7100 | AB12: 1 | AC12: 0.45 | AI12: 803.5714286 | AJ12: 6 | AK12: 2 | AL12: 1 | AM12: 0 | AN12: 0 | AP12: 750 | AQ12: 8 | AR12: 2 | AS12: 0 | AT12: 0 | AU12: 0
D13: Minimum Bypass Flow (cfs) | G13: Diversion Capacity (cfs) | N13: 2009 | O13: 5.5 | P13: D | Q13: 4 | R13: 0.57 | S13: 0.96 | T13: 2.32 | U13: 3.64 | V13: 2.4 | W13: 4.21 | X13: 13.02 | Y13: =IF(S13<=1,0.45,IF(S13>1.5,0.35,intrp($AB$11:$AC$14,S13))) -> 0.45 | Z13: 7100 | AB13: 1.5 | AC13: 0.35 | AI13: 812.5 | AJ13: 7 | AK13: 2 | AL13: 1 | AM13: 0 | AN13: 0 | AP13: 812 | AQ13: 9 | AR13: 2 | AS13: 0 | AT13: 0 | AU13: 0
B14: Month | C14: Month # | D14: Red Bluff | E14: Hamilton | F14: Wilkins | G14: Red Bluff | H14: Hamilton | N14: 2010 | O14: 6.9 | P14: BN | Q14: 3 | R14: 0.71 | S14: 2.48 | T14: 2.31 | U14: 2.31 | V14: 3.25 | W14: 3.7 | X14: 16.01 | Y14: =IF(S14<=1,0.45,IF(S14>1.5,0.35,intrp($AB$11:$AC$14,S14))) -> 0.35 | Z14: 7100 | AB14: 99 | AC14: 0.35 | AI14: 821.4285714 | AJ14: 8 | AK14: 3 | AL14: 1 | AM14: 0 | AN14: 0 | AP14: 875 | AQ14: 10 | AR14: 3 | AS14: 0 | AT14: 0 | AU14: 0
B15: Jan | C15: 1 | D15: 3250 | E15: 4000 | F15: 10700 | G15: 2200 | H15: 2000 | N15: 2011 | O15: 10 | P15: W | Q15: 1 | R15: 4.31 | S15: 2.1 | T15: 1.96 | U15: 6.2 | V15: 5.23 | W15: 4.94 | X15: 22.8 | Y15: =IF(S15<=1,0.45,IF(S15>1.5,0.35,intrp($AB$11:$AC$14,S15))) -> 0.35 | Z15: 7100 | AI15: 830.3571429 | AJ15: 9 | AK15: 3 | AL15: 1 | AM15: 0 | AN15: 0 | AP15: 937 | AQ15: 11 | AR15: 3 | AS15: 0 | AT15: 0 | AU15: 0
B16: Feb | C16: 2 | D16: 3250 | E16: 4000 | F16: 10700 | G16: 2200 | H16: 2000 | N16: 2012 | O16: 6.9 | P16: BN | Q16: 3 | R16: 0.49 | S16: 0.96 | T16: 0.74 | U16: 3.03 | V16: 3.7 | W16: 2.27 | X16: 10.96 | Y16: =IF(S16<=1,0.45,IF(S16>1.5,0.35,intrp($AB$11:$AC$14,S16))) -> 0.45 | Z16: 7100 | AB16: XGEO Regression | AI16: 839.2857143 | AJ16: 10 | AK16: 3 | AL16: 1 | AM16: 0 | AN16: 0 | AP16: 1000 | AQ16: 12 | AR16: 4 | AS16: 0 | AT16: 0 | AU16: 0
B17: Mar | C17: 3 | D17: 3250 | E17: 4000 | F17: 10700 | G17: 2200 | H17: 2000 | N17: 2013 | O17: 5.8 | P17: D | Q17: 4 | R17: 4.09 | S17: 1.34 | T17: 1.08 | U17: 1.71 | V17: 2.02 | W17: 1.43 | X17: 10.8 | Y17: =IF(S17<=1,0.45,IF(S17>1.5,0.35,intrp($AB$11:$AC$14,S17))) -> 0.382 | Z17: 7100 | AB17: Gates | AC17: m | AD17: y | AI17: 848.2142857 | AJ17: 11 | AK17: 4 | AL17: 1 | AM17: 0 | AN17: 0 | AP17: 1083 | AQ17: 13 | AR17: 4 | AS17: 0 | AT17: 0 | AU17: 0
B18: Apr | C18: 4 | D18: 3250 | E18: 4000 | F18: 10700 | G18: 2200 | H18: 2000 | N18: 2014 | O18: 4 | P18: C | Q18: 5 | R18: 0.38 | S18: 0.36 | T18: 1.22 | U18: 2.05 | V18: 1.71 | W18: 1.18 | X18: 6.78 | Y18: =IF(S18<=1,0.45,IF(S18>1.5,0.35,intrp($AB$11:$AC$14,S18))) -> 0.45 | Z18: 4000 | AB18: 0 | AC18: 0.133 | AD18: 829 | AI18: 857.1428571 | AJ18: 12 | AK18: 4 | AL18: 1 | AM18: 0 | AN18: 0 | AP18: 1125 | AQ18: 13 | AR18: 5 | AS18: 0 | AT18: 0 | AU18: 0
B19: May | C19: 5 | D19: 3250 | E19: 4000 | F19: 10700 | G19: 2200 | H19: 2000 | N19: 2015 | O19: 4 | P19: C | Q19: 5 | R19: 2.89 | S19: 0.79 | T19: 2.23 | U19: 0.84 | V19: 0.76 | W19: 0.82 | X19: 8.61 | Y19: =IF(S19<=1,0.45,IF(S19>1.5,0.35,intrp($AB$11:$AC$14,S19))) -> 0.45 | Z19: 7100 | AB19: 1 | AC19: 0.216 | AD19: 2660 | AI19: 866.0714286 | AJ19: 13 | AK19: 4 | AL19: 1 | AM19: 0 | AN19: 0 | AP19: 1166 | AQ19: 14 | AR19: 5 | AS19: 0 | AT19: 0 | AU19: 0
B20: Jun | C20: 6 | D20: 3250 | E20: 4000 | F20: 10700 | G20: 2200 | H20: 2000 | N20: 2016 | O20: 7.1 | P20: BN | Q20: 3 | R20: 1.26 | S20: 3.67 | T20: 2.1 | U20: 6.5 | V20: 2.92 | W20: 2.53 | X20: 17.64 | Y20: =IF(S20<=1,0.45,IF(S20>1.5,0.35,intrp($AB$11:$AC$14,S20))) -> 0.35 | Z20: 7100 | AB20: 2 | AC20: 0.293 | AD20: 2090 | AI20: 875 | AJ20: 14 | AK20: 5 | AL20: 1 | AM20: 0 | AN20: 0 | AP20: 1250 | AQ20: 15 | AR20: 6 | AS20: 1 | AT20: 0 | AU20: 0
B21: Jul | C21: 7 | D21: 3250 | E21: 4000 | F21: 5000 | G21: 2200 | H21: 2000 | N21: 2017 | O21: 14.9 | P21: W | Q21: 1 | R21: 3.71 | S21: 8.53 | T21: 12.65 | U21: 5.52 | V21: 6.61 | W21: 5.84 | X21: 38.8 | Y21: =IF(S21<=1,0.45,IF(S21>1.5,0.35,intrp($AB$11:$AC$14,S21))) -> 0.35 | Z21: 7100 | AI21: 883.9285714 | AJ21: 15 | AK21: 5 | AL21: 1 | AM21: 0 | AN21: 0 | AP21: 1333 | AQ21: 16 | AR21: 7 | AS21: 1 | AT21: 0 | AU21: 0
B22: Aug | C22: 8 | D22: 3250 | E22: 4000 | F22: 5000 | G22: 2200 | H22: 2000 | N22: 2018 | O22: 7.2 | P22: BN | Q22: 3 | R22: 0.73 | S22: 1.47 | T22: 0.81 | U22: 3.85 | V22: 4.23 | W22: 2.13 | X22: 10.85 | Y22: =IF(S22<=1,0.45,IF(S22>1.5,0.35,intrp($AB$11:$AC$14,S22))) -> 0.356 | Z22: 7100 | AI22: 892.8571429 | AJ22: 16 | AK22: 6 | AL22: 1 | AM22: 0 | AN22: 0 | AP22: 1416 | AQ22: 17 | AR22: 8 | AS22: 1 | AT22: 0 | AU22: 0
B23: Sep | C23: 9 | D23: 3250 | E23: 4000 | F23: 5000 | G23: 2200 | H23: 2000 | N23: 2019 | O23: 10.2 | P23: W | Q23: 1 | R23: 0.86 | S23: 2.83 | T23: 5.2 | U23: 5.89 | V23: 6.16 | W23: 4.97 | X23: 22.56 | Y23: =IF(S23<=1,0.45,IF(S23>1.5,0.35,intrp($AB$11:$AC$14,S23))) -> 0.35 | Z23: 7100 | AI23: 901.7857143 | AJ23: 17 | AK23: 6 | AL23: 1 | AM23: 0 | AN23: 0 | AP23: 1500 | AQ23: 18 | AR23: 9 | AS23: 1 | AT23: 0 | AU23: 0
B24: Oct | C24: 10 | D24: 3250 | E24: 4000 | F24: 10700 | G24: 2200 | H24: 2000 | N24: 2020 | O24: 6 | P24: D | Q24: 4 | R24: 1.44 | S24: 1.22 | T24: 0.9 | U24: 1.16 | V24: 2.5 | W24: 2.36 | X24: 8.45 | Y24: =IF(S24<=1,0.45,IF(S24>1.5,0.35,intrp($AB$11:$AC$14,S24))) -> 0.406 | Z24: 7100 | AI24: 910.7142857 | AJ24: 18 | AK24: 7 | AL24: 1 | AM24: 0 | AN24: 0 | AP24: 1583 | AQ24: 18 | AR24: 10 | AS24: 1 | AT24: 0 | AU24: 0
B25: Nov | C25: 11 | D25: 3250 | E25: 4000 | F25: 10700 | G25: 2200 | H25: 2000 | N25: 2021 | O25: 3.7 | P25: C | Q25: 5 | R25: 0.48 | S25: 0.705 | T25: 0.958 | U25: 1.07 | V25: 1.411 | W25: 1.222 | X25: 6.03 | Y25: =IF(S25<=1,0.45,IF(S25>1.5,0.35,intrp($AB$11:$AC$14,S25))) -> 0.45 | Z25: 4000 | AI25: 919.6428571 | AJ25: 19 | AK25: 7 | AL25: 1 | AM25: 0 | AN25: 0 | AP25: 1625 | AQ25: 19 | AR25: 10 | AS25: 1 | AT25: 0 | AU25: 0
B26: Dec | C26: 12 | D26: 3250 | E26: 4000 | F26: 10700 | G26: 2200 | H26: 2000 | AI26: 928.5714286 | AJ26: 20 | AK26: 8 | AL26: 1 | AM26: 0 | AN26: 0 | AP26: 1666 | AQ26: 19 | AR26: 11 | AS26: 1 | AT26: 0 | AU26: 0
AI27: 937.5 | AJ27: 21 | AK27: 8 | AL27: 1 | AM27: 0 | AN27: 0 | AP27: 1750 | AQ27: 20 | AR27: 12 | AS27: 2 | AT27: 0 | AU27: 0
N28: Minimum Delta Outflow | U28: Fall X2 (km) | AB28: Rio Vista (cfs) | AI28: 946.4285714 | AJ28: 22 | AK28: 9 | AL28: 1 | AM28: 0 | AN28: 0 | AP28: 1833 | AQ28: 20 | AR28: 13 | AS28: 2 | AT28: 0 | AU28: 0
A29: Lists, etc. | N29: Month | O29: W | P29: AN | Q29: BN | R29: D | S29: C | U29: Month | V29: W | W29: AN | X29: BN | Y29: D | Z29: C | AB29: Month | AC29: W | AD29: AN | AE29: BN | AF29: D | AG29: C | AI29: 955.3571429 | AJ29: 23 | AK29: 9 | AL29: 1 | AM29: 0 | AN29: 0 | AP29: 1875 | AQ29: 20 | AR29: 13 | AS29: 3 | AT29: 0 | AU29: 0
A30: On | N30: 1 | O30: 4500 | P30: 4500 | Q30: 4500 | R30: 4500 | S30: 4500 | U30: 1 | V30: 99999 | W30: 99999 | X30: 99999 | Y30: 99999 | Z30: 99999 | AB30: 1 | AC30: 0 | AD30: 0 | AE30: 0 | AF30: 0 | AG30: 0 | AI30: 964.2857143 | AJ30: 24 | AK30: 10 | AL30: 1 | AM30: 0 | AN30: 0 | AP30: 1916 | AQ30: 20 | AR30: 14 | AS30: 3 | AT30: 0 | AU30: 0
A31: Off | N31: 2 | O31: 0 | P31: 0 | Q31: 0 | R31: 0 | S31: 0 | U31: 2 | V31: 99999 | W31: 99999 | X31: 99999 | Y31: 99999 | Z31: 99999 | AB31: 2 | AC31: 0 | AD31: 0 | AE31: 0 | AF31: 0 | AG31: 0 | AI31: 973.2142857 | AJ31: 25 | AK31: 10 | AL31: 1 | AM31: 0 | AN31: 0 | AP31: 2000 | AQ31: 21 | AR31: 15 | AS31: 4 | AT31: 0 | AU31: 0
N32: 3 | O32: 0 | P32: 0 | Q32: 0 | R32: 0 | S32: 0 | U32: 3 | V32: 99999 | W32: 99999 | X32: 99999 | Y32: 99999 | Z32: 99999 | AB32: 3 | AC32: 0 | AD32: 0 | AE32: 0 | AF32: 0 | AG32: 0 | AI32: 982.1428571 | AJ32: 26 | AK32: 11 | AL32: 1 | AM32: 0 | AN32: 0 | AP32: 2125 | AQ32: 21 | AR32: 16 | AS32: 4 | AT32: 0 | AU32: 0
A33: cfs_2_AF | B33: 1.98347 | N33: 4 | O33: 0 | P33: 0 | Q33: 0 | R33: 0 | S33: 0 | U33: 4 | V33: 99999 | W33: 99999 | X33: 99999 | Y33: 99999 | Z33: 99999 | AB33: 4 | AC33: 0 | AD33: 0 | AE33: 0 | AF33: 0 | AG33: 0 | AI33: 991.0714286 | AJ33: 27 | AK33: 11 | AL33: 1 | AM33: 0 | AN33: 0 | AP33: 2250 | AQ33: 22 | AR33: 17 | AS33: 5 | AT33: 1 | AU33: 0
A34: AF_2_cfs | B34: =1/B33 -> 0.5041669398 | N34: 5 | O34: 0 | P34: 0 | Q34: 0 | R34: 0 | S34: 0 | U34: 5 | V34: 99999 | W34: 99999 | X34: 99999 | Y34: 99999 | Z34: 99999 | AB34: 5 | AC34: 0 | AD34: 0 | AE34: 0 | AF34: 0 | AG34: 0 | AI34: 1000 | AJ34: 28 | AK34: 12 | AL34: 2 | AM34: 0 | AN34: 0 | AP34: 2333 | AQ34: 22 | AR34: 17 | AS34: 6 | AT34: 1 | AU34: 0
N35: 6 | O35: 0 | P35: 0 | Q35: 0 | R35: 0 | S35: 0 | U35: 6 | V35: 99999 | W35: 99999 | X35: 99999 | Y35: 99999 | Z35: 99999 | AB35: 6 | AC35: 0 | AD35: 0 | AE35: 0 | AF35: 0 | AG35: 0 | AI35: 1013 | AJ35: 28 | AK35: 13 | AL35: 2 | AM35: 0 | AN35: 0 | AP35: 2375 | AQ35: 22 | AR35: 18 | AS35: 6 | AT35: 1 | AU35: 0
N36: 7 | O36: 8000 | P36: 8000 | Q36: 6500 | R36: 5000 | S36: 4000 | U36: 7 | V36: 99999 | W36: 99999 | X36: 99999 | Y36: 99999 | Z36: 99999 | AB36: 7 | AC36: 0 | AD36: 0 | AE36: 0 | AF36: 0 | AG36: 0 | AI36: 1026 | AJ36: 28 | AK36: 14 | AL36: 2 | AM36: 0 | AN36: 0 | AP36: 2416 | AQ36: 22 | AR36: 18 | AS36: 7 | AT36: 1 | AU36: 0
N37: 8 | O37: 4000 | P37: 4000 | Q37: 4000 | R37: 3500 | S37: 3000 | U37: 8 | V37: 99999 | W37: 99999 | X37: 99999 | Y37: 99999 | Z37: 99999 | AB37: 8 | AC37: 0 | AD37: 0 | AE37: 0 | AF37: 0 | AG37: 0 | AI37: 1039 | AJ37: 28 | AK37: 15 | AL37: 2 | AM37: 0 | AN37: 0 | AP37: =AP33+250 -> 2500 | AQ37: 23 | AR37: 19 | AS37: 8 | AT37: 1 | AU37: 0
N38: 9 | O38: 3000 | P38: 3000 | Q38: 3000 | R38: 3000 | S38: 3000 | U38: 9 | V38: 80 | W38: 80 | X38: 99999 | Y38: 99999 | Z38: 99999 | AB38: 9 | AC38: 3000 | AD38: 3000 | AE38: 3000 | AF38: 3000 | AG38: 3000 | AI38: 1052 | AJ38: 28 | AK38: 16 | AL38: 2 | AM38: 0 | AN38: 0 | AP38: 2625 | AQ38: 23 | AR38: 20 | AS38: 9 | AT38: 1 | AU38: 0
N39: 10 | O39: 4000 | P39: 4000 | Q39: 4000 | R39: 4000 | S39: 3000 | U39: 10 | V39: 80 | W39: 80 | X39: 99999 | Y39: 99999 | Z39: 99999 | AB39: 10 | AC39: 4000 | AD39: 4000 | AE39: 4000 | AF39: 4000 | AG39: 3000 | AI39: 1065 | AJ39: 28 | AK39: 17 | AL39: 3 | AM39: 0 | AN39: 0 | AP39: =AP37+250 -> 2750 | AQ39: 24 | AR39: 21 | AS39: 10 | AT39: 2 | AU39: 0
N40: 11 | O40: 4500 | P40: 4500 | Q40: 4500 | R40: 4500 | S40: 3500 | U40: 11 | V40: 99999 | W40: 99999 | X40: 99999 | Y40: 99999 | Z40: 99999 | AB40: 11 | AC40: 4500 | AD40: 4500 | AE40: 4500 | AF40: 4500 | AG40: 3500 | AI40: 1078 | AJ40: 28 | AK40: 18 | AL40: 3 | AM40: 0 | AN40: 0 | AP40: 2875 | AQ40: 24 | AR40: 22 | AS40: 11 | AT40: 3 | AU40: 0
N41: 12 | O41: 4500 | P41: 4500 | Q41: 4500 | R41: 4500 | S41: 3500 | U41: 12 | V41: 99999 | W41: 99999 | X41: 99999 | Y41: 99999 | Z41: 99999 | AB41: 12 | AC41: 4500 | AD41: 4500 | AE41: 4500 | AF41: 4500 | AG41: 3500 | AI41: 1091 | AJ41: 28 | AK41: 19 | AL41: 3 | AM41: 0 | AN41: 0 | AP41: =AP39+250 -> 3000 | AQ41: 25 | AR41: 23 | AS41: 12 | AT41: 4 | AU41: 0
AI42: 1104 | AJ42: 28 | AK42: 20 | AL42: 3 | AM42: 0 | AN42: 0 | AP42: 3125 | AQ42: 25 | AR42: 23 | AS42: 13 | AT42: 5 | AU42: 0
AI43: 1117 | AJ43: 28 | AK43: 21 | AL43: 4 | AM43: 0 | AN43: 0 | AP43: =AP41+250 -> 3250 | AQ43: 25 | AR43: 24 | AS43: 14 | AT43: 6 | AU43: 0
U44: Note: Assume November target the same as historical estimated | AI44: 1130 | AJ44: 28 | AK44: 22 | AL44: 4 | AM44: 0 | AN44: 0 | AP44: 3333 | AQ44: 25 | AR44: 24 | AS44: 14 | AT44: 7 | AU44: 0
U45: 74/81 in old BiOp | AI45: 1143 | AJ45: 28 | AK45: 23 | AL45: 4 | AM45: 0 | AN45: 0 | AP45: 3375 | AQ45: 25 | AR45: 24 | AS45: 15 | AT45: 7 | AU45: 0
AI46: 1156 | AJ46: 28 | AK46: 24 | AL46: 4 | AM46: 0 | AN46: 0 | AP46: 3416 | AQ46: 25 | AR46: 24 | AS46: 15 | AT46: 8 | AU46: 0
AI47: 1169 | AJ47: 28 | AK47: 25 | AL47: 5 | AM47: 0 | AN47: 0 | AP47: =AP43+250 -> 3500 | AQ47: 25 | AR47: 25 | AS47: 16 | AT47: 9 | AU47: 0
AI48: 1182 | AJ48: 28 | AK48: 26 | AL48: 5 | AM48: 0 | AN48: 0 | AP48: 3583 | AQ48: 25 | AR48: 25 | AS48: 16 | AT48: 10 | AU48: 0
AI49: 1195 | AJ49: 28 | AK49: 27 | AL49: 5 | AM49: 0 | AN49: 0 | AP49: 3625 | AQ49: 25 | AR49: 25 | AS49: 17 | AT49: 10 | AU49: 0
AI50: 1208 | AJ50: 28 | AK50: 28 | AL50: 5 | AM50: 0 | AN50: 0 | AP50: 3666 | AQ50: 25 | AR50: 25 | AS50: 17 | AT50: 11 | AU50: 0
AI51: 1221 | AJ51: 28 | AK51: 29 | AL51: 6 | AM51: 0 | AN51: 0 | AP51: =AP47+250 -> 3750 | AQ51: 26 | AR51: 26 | AS51: 18 | AT51: 12 | AU51: 0
AI52: 1234 | AJ52: 28 | AK52: 30 | AL52: 6 | AM52: 0 | AN52: 0 | AP52: 3833 | AQ52: 26 | AR52: 26 | AS52: 18 | AT52: 13 | AU52: 0
AI53: 1250 | AJ53: 28 | AK53: 31 | AL53: 6 | AM53: 0 | AN53: 0 | AP53: 3875 | AQ53: 26 | AR53: 26 | AS53: 19 | AT53: 13 | AU53: 0
AI54: 1285.714286 | AJ54: 28 | AK54: 31 | AL54: 7 | AM54: 0 | AN54: 0 | AP54: 3916 | AQ54: 26 | AR54: 26 | AS54: 19 | AT54: 14 | AU54: 0
AI55: 1321.428571 | AJ55: 28 | AK55: 31 | AL55: 8 | AM55: 0 | AN55: 0 | AP55: =AP51+250 -> 4000 | AQ55: 26 | AR55: 27 | AS55: 20 | AT55: 15 | AU55: 0
AI56: 1357.142857 | AJ56: 28 | AK56: 31 | AL56: 9 | AM56: 0 | AN56: 0 | AP56: 4083 | AQ56: 26 | AR56: 27 | AS56: 20 | AT56: 16 | AU56: 0
AI57: 1392.857143 | AJ57: 28 | AK57: 31 | AL57: 10 | AM57: 0 | AN57: 0 | AP57: 4166 | AQ57: 26 | AR57: 27 | AS57: 20 | AT57: 17 | AU57: 0
AI58: 1428.571429 | AJ58: 28 | AK58: 31 | AL58: 11 | AM58: 0 | AN58: 0 | AP58: =AP55+250 -> 4250 | AQ58: 26 | AR58: 27 | AS58: 21 | AT58: 18 | AU58: 1
AI59: 1464.285714 | AJ59: 28 | AK59: 31 | AL59: 12 | AM59: 0 | AN59: 0 | AP59: 4333 | AQ59: 26 | AR59: 27 | AS59: 21 | AT59: 19 | AU59: 1
AI60: 1500 | AJ60: 28 | AK60: 31 | AL60: 13 | AM60: 0 | AN60: 0 | AP60: 4375 | AQ60: 26 | AR60: 27 | AS60: 22 | AT60: 19 | AU60: 1
AI61: 1535.714286 | AJ61: 28 | AK61: 31 | AL61: 14 | AM61: 0 | AN61: 0 | AP61: 4416 | AQ61: 26 | AR61: 27 | AS61: 22 | AT61: 20 | AU61: 1
AI62: 1535.714286 | AJ62: 28 | AK62: 31 | AL62: 14 | AM62: 0 | AN62: 0 | AP62: =AP58+250 -> 4500 | AQ62: 26 | AR62: 28 | AS62: 23 | AT62: 21 | AU62: 2
AI63: 1571.428571 | AJ63: 28 | AK63: 31 | AL63: 15 | AM63: 0 | AN63: 0 | AP63: 4625 | AQ63: 26 | AR63: 28 | AS63: 23 | AT63: 22 | AU63: 2
AI64: 1607.142857 | AJ64: 28 | AK64: 31 | AL64: 16 | AM64: 0 | AN64: 0 | AP64: =AP62+250 -> 4750 | AQ64: 27 | AR64: 28 | AS64: 24 | AT64: 23 | AU64: 3
AI65: 1642.857143 | AJ65: 28 | AK65: 31 | AL65: 17 | AM65: 0 | AN65: 0 | AP65: 4875 | AQ65: 27 | AR65: 28 | AS65: 24 | AT65: 24 | AU65: 3
AI66: 1678.571429 | AJ66: 28 | AK66: 31 | AL66: 18 | AM66: 0 | AN66: 0 | AP66: =AP64+250 -> 5000 | AQ66: 27 | AR66: 28 | AS66: 25 | AT66: 25 | AU66: 4
AI67: 1714.285714 | AJ67: 28 | AK67: 31 | AL67: 19 | AM67: 0 | AN67: 0 | AP67: 5125 | AQ67: 27 | AR67: 28 | AS67: 25 | AT67: 25 | AU67: 5
AI68: 1750 | AJ68: 28 | AK68: 31 | AL68: 20 | AM68: 0 | AN68: 0 | AP68: =AP66+250 -> 5250 | AQ68: 27 | AR68: 29 | AS68: 25 | AT68: 26 | AU68: 6
AI69: 1800 | AJ69: 28 | AK69: 31 | AL69: 21 | AM69: 0 | AN69: 0 | AP69: 5333 | AQ69: 27 | AR69: 29 | AS69: 25 | AT69: 26 | AU69: 7
AI70: 1850 | AJ70: 28 | AK70: 31 | AL70: 22 | AM70: 0 | AN70: 0 | AP70: 5375 | AQ70: 27 | AR70: 29 | AS70: 25 | AT70: 27 | AU70: 7
AI71: 1900 | AJ71: 28 | AK71: 31 | AL71: 23 | AM71: 0 | AN71: 0 | AP71: 5416 | AQ71: 27 | AR71: 29 | AS71: 25 | AT71: 27 | AU71: 8
AI72: 1950 | AJ72: 28 | AK72: 31 | AL72: 24 | AM72: 0 | AN72: 0 | AP72: =AP68+250 -> 5500 | AQ72: 27 | AR72: 29 | AS72: 26 | AT72: 28 | AU72: 9
AI73: 2000 | AJ73: 28 | AK73: 31 | AL73: 25 | AM73: 1 | AN73: 0 | AP73: 5562 | AQ73: 27 | AR73: 29 | AS73: 26 | AT73: 28 | AU73: 10
AI74: 2125 | AJ74: 28 | AK74: 31 | AL74: 26 | AM74: 2 | AN74: 0 | AP74: 5625 | AQ74: 27 | AR74: 29 | AS74: 26 | AT74: 28 | AU74: 11
AI75: 2250 | AJ75: 28 | AK75: 31 | AL75: 27 | AM75: 3 | AN75: 0 | AP75: 5687 | AQ75: 27 | AR75: 29 | AS75: 26 | AT75: 28 | AU75: 12
AI76: 2281.25 | AJ76: 28 | AK76: 31 | AL76: 27 | AM76: 4 | AN76: 0 | AP76: =AP72+250 -> 5750 | AQ76: 27 | AR76: 29 | AS76: 27 | AT76: 28 | AU76: 13
AI77: 2312.5 | AJ77: 28 | AK77: 31 | AL77: 27 | AM77: 5 | AN77: 0 | AP77: 5833 | AQ77: 27 | AR77: 29 | AS77: 27 | AT77: 28 | AU77: 14
AI78: 2343.75 | AJ78: 28 | AK78: 31 | AL78: 27 | AM78: 6 | AN78: 0 | AP78: 5916 | AQ78: 27 | AR78: 29 | AS78: 27 | AT78: 28 | AU78: 15
AI79: 2375 | AJ79: 28 | AK79: 31 | AL79: 28 | AM79: 7 | AN79: 0 | AP79: =AP76+250 -> 6000 | AQ79: 27 | AR79: 29 | AS79: 27 | AT79: 29 | AU79: 16
AI80: 2406.25 | AJ80: 28 | AK80: 31 | AL80: 28 | AM80: 8 | AN80: 0 | AP80: 6083 | AQ80: 27 | AR80: 29 | AS80: 27 | AT80: 29 | AU80: 17
AI81: 2437.5 | AJ81: 28 | AK81: 31 | AL81: 28 | AM81: 9 | AN81: 0 | AP81: 6166 | AQ81: 27 | AR81: 29 | AS81: 27 | AT81: 29 | AU81: 18
AI82: 2468.75 | AJ82: 28 | AK82: 31 | AL82: 28 | AM82: 10 | AN82: 0 | AP82: =AP79+250 -> 6250 | AQ82: 27 | AR82: 30 | AS82: 27 | AT82: 29 | AU82: 19
AI83: 2500 | AJ83: 28 | AK83: 31 | AL83: 29 | AM83: 11 | AN83: 1 | AP83: 6333 | AQ83: 27 | AR83: 30 | AS83: 27 | AT83: 29 | AU83: 20
AI84: 2527.777778 | AJ84: 28 | AK84: 31 | AL84: 29 | AM84: 12 | AN84: 1 | AP84: 6416 | AQ84: 27 | AR84: 30 | AS84: 27 | AT84: 29 | AU84: 21
AI85: 2555.555556 | AJ85: 28 | AK85: 31 | AL85: 29 | AM85: 13 | AN85: 1 | AP85: =AP82+250 -> 6500 | AQ85: 27 | AR85: 30 | AS85: 28 | AT85: 30 | AU85: 22
AI86: 2583.333333 | AJ86: 28 | AK86: 31 | AL86: 29 | AM86: 14 | AN86: 1 | AP86: 6625 | AQ86: 27 | AR86: 30 | AS86: 28 | AT86: 30 | AU86: 23
AI87: 2611.111111 | AJ87: 28 | AK87: 31 | AL87: 29 | AM87: 15 | AN87: 1 | AP87: =AP85+250 -> 6750 | AQ87: 27 | AR87: 30 | AS87: 28 | AT87: 30 | AU87: 24
AI88: 2638.888889 | AJ88: 28 | AK88: 31 | AL88: 29 | AM88: 16 | AN88: 1 | AP88: 6875 | AQ88: 27 | AR88: 30 | AS88: 28 | AT88: 30 | AU88: 25
AI89: 2666.666667 | AJ89: 28 | AK89: 31 | AL89: 29 | AM89: 17 | AN89: 1 | AP89: =AP87+250 -> 7000 | AQ89: 27 | AR89: 30 | AS89: 28 | AT89: 30 | AU89: 26
AI90: 2694.444444 | AJ90: 28 | AK90: 31 | AL90: 29 | AM90: 18 | AN90: 1 | AP90: =AP89+250 -> 7250 | AQ90: 27 | AR90: 30 | AS90: 28 | AT90: 30 | AU90: 27
AI91: 2722.222222 | AJ91: 28 | AK91: 31 | AL91: 29 | AM91: 19 | AN91: 1 | AP91: 7500 | AQ91: 27 | AR91: 30 | AS91: 29 | AT91: 30 | AU91: 28
AI92: 2750 | AJ92: 28 | AK92: 31 | AL92: 29 | AM92: 20 | AN92: 2 | AP92: 7750 | AQ92: 27 | AR92: 30 | AS92: 29 | AT92: 31 | AU92: 28
AI93: 2785.714286 | AJ93: 28 | AK93: 31 | AL93: 29 | AM93: 21 | AN93: 2 | AP93: 8000 | AQ93: 27 | AR93: 30 | AS93: 29 | AT93: 31 | AU93: 29
AI94: 2821.428571 | AJ94: 28 | AK94: 31 | AL94: 29 | AM94: 22 | AN94: 2 | AP94: 8250 | AQ94: 28 | AR94: 30 | AS94: 29 | AT94: 31 | AU94: 29
AI95: 2857.142857 | AJ95: 28 | AK95: 31 | AL95: 29 | AM95: 23 | AN95: 2 | AP95: 8500 | AQ95: 28 | AR95: 30 | AS95: 29 | AT95: 31 | AU95: 29
AI96: 2892.857143 | AJ96: 28 | AK96: 31 | AL96: 29 | AM96: 24 | AN96: 3 | AP96: 8750 | AQ96: 28 | AR96: 30 | AS96: 29 | AT96: 31 | AU96: 30
AI97: 2928.571429 | AJ97: 28 | AK97: 31 | AL97: 29 | AM97: 25 | AN97: 3 | AP97: 9000 | AQ97: 28 | AR97: 30 | AS97: 29 | AT97: 31 | AU97: 30
AI98: 2964.285714 | AJ98: 28 | AK98: 31 | AL98: 29 | AM98: 26 | AN98: 3 | AP98: 9250 | AQ98: 28 | AR98: 30 | AS98: 29 | AT98: 31 | AU98: 30
AI99: 3000 | AJ99: 28 | AK99: 31 | AL99: 30 | AM99: 27 | AN99: 4 | AP99: 9500 | AQ99: 28 | AR99: 31 | AS99: 29 | AT99: 31 | AU99: 30
AI100: 3062.5 | AJ100: 28 | AK100: 31 | AL100: 30 | AM100: 27 | AN100: 5 | AP100: 9750 | AQ100: 28 | AR100: 31 | AS100: 29 | AT100: 31 | AU100: 30
AI101: 3125 | AJ101: 28 | AK101: 31 | AL101: 30 | AM101: 28 | AN101: 6 | AP101: 10000 | AQ101: 28 | AR101: 31 | AS101: 30 | AT101: 31 | AU101: 30
AI102: 3187.5 | AJ102: 28 | AK102: 31 | AL102: 30 | AM102: 28 | AN102: 7 | AP102: 999999 | AQ102: 28 | AR102: 31 | AS102: 30 | AT102: 31 | AU102: 30
AI103: 3250 | AJ103: 28 | AK103: 31 | AL103: 30 | AM103: 29 | AN103: 8
AI104: 3300 | AJ104: 28 | AK104: 31 | AL104: 30 | AM104: 29 | AN104: 9
AI105: 3350 | AJ105: 28 | AK105: 31 | AL105: 30 | AM105: 29 | AN105: 10
AI106: 3400 | AJ106: 28 | AK106: 31 | AL106: 30 | AM106: 29 | AN106: 11
AI107: 3450 | AJ107: 28 | AK107: 31 | AL107: 30 | AM107: 29 | AN107: 12
AI108: 3500 | AJ108: 28 | AK108: 31 | AL108: 30 | AM108: 30 | AN108: 13
AI109: 3550 | AJ109: 28 | AK109: 31 | AL109: 30 | AM109: 30 | AN109: 14
AI110: 3600 | AJ110: 28 | AK110: 31 | AL110: 30 | AM110: 31 | AN110: 15
AI111: 3650 | AJ111: 28 | AK111: 31 | AL111: 30 | AM111: 31 | AN111: 16
AI112: 3700 | AJ112: 28 | AK112: 31 | AL112: 30 | AM112: 31 | AN112: 17
AI113: 3750 | AJ113: 28 | AK113: 31 | AL113: 30 | AM113: 31 | AN113: 18
AI114: 3800 | AJ114: 28 | AK114: 31 | AL114: 30 | AM114: 31 | AN114: 19
AI115: 3850 | AJ115: 28 | AK115: 31 | AL115: 30 | AM115: 31 | AN115: 20
AI116: 3900 | AJ116: 28 | AK116: 31 | AL116: 30 | AM116: 31 | AN116: 21
AI117: 3950 | AJ117: 28 | AK117: 31 | AL117: 30 | AM117: 31 | AN117: 22
AI118: 4000 | AJ118: 28 | AK118: 31 | AL118: 30 | AM118: 31 | AN118: 23
AI119: 4125 | AJ119: 28 | AK119: 31 | AL119: 30 | AM119: 31 | AN119: 24
AI120: 4250 | AJ120: 28 | AK120: 31 | AL120: 30 | AM120: 31 | AN120: 25
AI121: 4375 | AJ121: 28 | AK121: 31 | AL121: 30 | AM121: 31 | AN121: 26
AI122: 4500 | AJ122: 28 | AK122: 31 | AL122: 30 | AM122: 31 | AN122: 27
AI123: 4750 | AJ123: 28 | AK123: 31 | AL123: 30 | AM123: 31 | AN123: 28
AI124: 5000 | AJ124: 28 | AK124: 31 | AL124: 30 | AM124: 31 | AN124: 29
AI125: 5250 | AJ125: 28 | AK125: 31 | AL125: 30 | AM125: 31 | AN125: 29
AI126: 5500 | AJ126: 28 | AK126: 31 | AL126: 30 | AM126: 31 | AN126: 30

Sheet WAA
T1: =IF(Control!F3="On",1,0) -> 1 | W1: =IF(Control!C8="On",1,0) -> 0 | X1: =IF(Control!C9="On",1,0) -> 1 | CJ1: =SUBSTITUTE(ADDRESS(1,COLUMN(CI1),4),"1","") -> CI
J2: Column # | K2: 1 | L2: 2 | M2: 3 | N2: 4 | O2: 5 | P2: 6 | Q2: 7 | R2: 8 | S2: 9 | T2: 10 | U2: 11 | V2: 12 | W2: 13 | X2: 14 | Y2: 15 | Z2: 16 | AA2: 17 | AB2: 18 | AC2: 19 | AD2: 20 | AE2: 21 | AF2: 22 | AG2: 23 | AH2: 24 | AI2: 25 | AJ2: 26 | AK2: 27 | AL2: 28 | AM2: 29 | AN2: 30 | AO2: 31 | AP2: 32 | AQ2: 33 | AR2: 34 | AS2: 35 | AT2: 36 | AU2: 37 | AV2: 38 | AW2: 39 | AX2: 40 | AY2: 41 | AZ2: 42 | BA2: 43 | BB2: 44 | BC2: 45 | BD2: 46 | BE2: 47 | BF2: 48 | BG2: 49 | BH2: 50 | BI2: 51 | BJ2: 52 | BK2: 53 | BL2: 54 | BM2: 55 | BN2: 56 | BO2: 57 | BP2: 58 | BQ2: 59 | BR2: 60 | BS2: 61 | BT2: 62 | BU2: 63 | BV2: 64 | BW2: 65 | BX2: 66 | BY2: 67 | BZ2: 68 | CA2: 69 | CB2: 70 | CC2: 71 | CD2: 72 | CE2: 73 | CF2: 74 | CG2: 75 | CH2: 76 | CI2: 77 | CJ2: 78 | CK2: 79 | CL2: 80 | CM2: 81 | CN2: 82 | CO2: 83 | CP2: 84 | CQ2: 85 | CR2: 86 | CS2: 87 | CV2: Col # | CW2: 1 | CX2: 2 | CY2: 3 | CZ2: 4 | DA2: 5 | DB2: 6 | DC2: 7 | DD2: 8 | DE2: 9 | DF2: 10 | DG2: 11 | DH2: 12 | DI2: 13 | DJ2: 14 | DK2: 15 | DL2: 16 | DM2: 17 | DN2: 18 | DO2: 19 | DP2: 20 | DQ2: 21 | DR2: 22 | DS2: 23 | DT2: 24 | DU2: 25 | DV2: 26 | DW2: 27 | DX2: 28 | DY2: 29 | DZ2: 30 | EA2: 31 | EB2: 32 | EC2: 33 | ED2: 34 | EE2: 35
J3: Max | K3: =MAX(K12:K7955) -> 92600 | L3: =MAX(L12:L7955) -> 82433.33333 | M3: 53290 | N3: 36146.66667 | O3: =MAX(O12:O7955) -> 1 | P3: 1 | Q3: 7 | R3: =MAX(R12:R7955) -> 1 | S3: 17000 | T3: 99999 | U3: 92600 | V3: 3250 | W3: 6472.525841 | X3: 89350 | Y3: =MAX(Y12:Y7955) -> 123314 | Z3: 4000 | AA3: 11786.69724 | AB3: 99999 | AC3: 31600 | AD3: 10700 | AE3: 13002.39518 | AF3: 20900 | AG3: =MAX(AG12:AG7955) -> 85000 | AH3: 14893.90855 | AI3: 74559.2778 | AJ3: =MAX(AJ12:AJ7955) -> 8000 | AK3: 374553 | AL3: 366147 | AM3: 334986.8571 | AN3: =MAX(AN12:AN7955) -> 361474.3333 | AO3: 309072.1429 | AP3: 0.65 | AQ3: 14424 | AR3: 14413 | AS3: 339467.4286 | AT3: 319453.1429 | AU3: =MAX(AU12:AU7955) -> 10872 | AV3: 135 | AW3: 579.3 | AX3: 31 | AY3: 11446 | AZ3: 91.84 | BA3: =MAX(BA12:BA7955) -> 7100 | BB3: 14.859 | BC3: 12.81771429 | BD3: 1 | BE3: 27.21 | BF3: 17.44928571 | BG3: =MAX(BG12:BG7955) -> 31 | BH3: 31 | BI3: 1 | BJ3: 31.807 | BK3: 29.94157143 | BL3: 31 | BM3: 31 | BN3: 1 | BO3: 359047 | BP3: 99999 | BQ3: 90.21 | BR3: 11400 | BS3: 99999 | BT3: 4500 | BU3: =MAX(BU12:BU7955) -> 334575 | BV3: 283797 | BW3: 329090 | BX3: 14588 | BY3: 8749 | BZ3: 14398 | CA3: 17370 | CB3: 2 | CC3: 279025.1429 | CD3: 99999 | CE3: =MAX(CE12:CE7955) -> 1 | CF3: =MAX(CF12:CF7955) -> 1 | CG3: 20900 | CH3: =MAX(CH12:CH7955) -> 20900 | CI3: =MAX(CI12:CI7955) -> 1 | CJ3: 1 | CK3: =MAX(CK12:CK7955) -> 89250.2778 | CL3: =MAX(CL12:CL7955) -> 20900 | CM3: =MAX(CM12:CM7955) -> 20900 | CN3: 18700 | CO3: =MAX(CO12:CO7955) -> 2200 | CP3: 2200 | CQ3: 2000 | CR3: =MAX(CR12:CR7955) -> 2000 | CS3: 4200
J4: Min | K4: =MIN(K12:K7955) -> 3730 | L4: =MIN(L12:L7955) -> 3743.333333 | M4: 189.82 | N4: 191.7466667 | O4: =MIN(O12:O7955) -> 0 | P4: 0 | Q4: 0 | R4: =MIN(R12:R7955) -> 0 | S4: 0 | T4: 0 | U4: 3730 | V4: 3250 | W4: 3068.286012 | X4: 0 | Y4: =MIN(Y12:Y7955) -> 926 | Z4: 4000 | AA4: 8463.419907 | AB4: 0 | AC4: 2890 | AD4: 5000 | AE4: 8959.061158 | AF4: 0 | AG4: =MIN(AG12:AG7955) -> 4270 | AH4: 10403.24948 | AI4: 0 | AJ4: =MIN(AJ12:AJ7955) -> 0 | AK4: -29087 | AL4: -15946 | AM4: -2347.571429 | AN4: =MIN(AN12:AN7955) -> -7437.25 | AO4: 0 | AP4: 0.35 | AQ4: 294 | AR4: 389 | AS4: 6870.428571 | AT4: 0 | AU4: =MIN(AU12:AU7955) -> 0 | AV4: 0 | AW4: 68 | AX4: 31 | AY4: 192 | AZ4: 40.1 | BA4: =MIN(BA12:BA7955) -> 0 | BB4: 0 | BC4: 0 | BD4: 0 | BE4: 0 | BF4: 0.09428571429 | BG4: =MIN(BG12:BG7955) -> 0 | BH4: 0 | BI4: 0 | BJ4: 0 | BK4: 0 | BL4: 0 | BM4: 0 | BN4: 0 | BO4: 0 | BP4: 80 | BQ4: 0 | BR4: 0 | BS4: 0 | BT4: 0 | BU4: =MIN(BU12:BU7955) -> 1191 | BV4: 1507.142857 | BW4: 1761 | BX4: -1802 | BY4: 0 | BZ4: 0.2 | CA4: 0 | CB4: 0 | CC4: 0 | CD4: 956.1707036 | CE4: =MIN(CE12:CE7955) -> 0 | CF4: =MIN(CF12:CF7955) -> 0 | CG4: 0 | CH4: =MIN(CH12:CH7955) -> 0 | CI4: =MIN(CI12:CI7955) -> 0 | CJ4: 0 | CK4: =MIN(CK12:CK7955) -> 0 | CL4: =MIN(CL12:CL7955) -> 0 | CM4: =MIN(CM12:CM7955) -> 0 | CN4: 0 | CO4: =MIN(CO12:CO7955) -> 2200 | CP4: 0 | CQ4: 2000 | CR4: =MIN(CR12:CR7955) -> 0 | CS4: 0
J5: Average | K5: =AVERAGE(K12:K7955) -> 11149.67271 | L5: =AVERAGE(L12:L7955) -> 11149.756 | M5: 1772.272604 | N5: 1772.228385 | O5: =AVERAGE(O12:O7955) -> 0.006545820745 | P5: 0.3421947839 | Q5: 0.1834215168 | R5: =AVERAGE(R12:R7955) -> 0.562106324 | S5: 16.47977825 | T5: 95433.43656 | U5: 11149.67271 | V5: 3250 | W5: 5017.337913 | X5: 4540.950623 | Y5: =AVERAGE(Y12:Y7955) -> 10818.02618 | Z5: 4000 | AA5: 10353.57476 | AB5: 2915.975002 | AC5: 9257.484894 | AD5: 9247.734139 | AE5: 11311.48945 | AF5: 1547.29898 | AG5: =AVERAGE(AG12:AG7955) -> 17484.66767 | AH5: 12889.14638 | AI5: 5716.314246 | AJ5: =AVERAGE(AJ12:AJ7955) -> 2565.458207 | AK5: 19755.32767 | AL5: 19755.33784 | AM5: 19755.65665 | AO5: =AVERAGE(AO12:AO7955) -> 45213.41096 | AP5: 0.527969285 | AQ5: 6372.002644 | AR5: 6373.137714 | AS5: 27654.12144 | AT5: 15365.73739 | AU5: =AVERAGE(AU12:AU7955) -> 2719.582572 | AV5: 72.71374622 | AW5: 332.7594663 | AX5: 31 | AY5: 3156.055785 | AZ5: 76.03811178 | BB5: 3.606364867 | BC5: 3.602387413 | BD5: 0.9540533736 | BE5: 6.307038268 | BF5: 6.300806519 | BG5: =AVERAGE(BG12:BG7955) -> 8.352593152 | BH5: 5.5775428 | BI5: 0.3980362538 | BJ5: 10.55130992 | BK5: 10.54810077 | BL5: 2.454179255 | BM5: 9.349446123 | BN5: 0.416163142 | BO5: 68301.01347 | BQ5: 75.74046027 | BR5: 226.3595573 | BT5: 1267.938066 | BU5: =AVERAGE(BU12:BU7955) -> 17381.64174 | BV5: 17383.15443 | BW5: 17537.36415 | BX5: 5321.797535 | BY5: 1904.996723 | BZ5: 2288.908032 | CA5: 2861.523857 | CB5: 0.8354733132 | CC5: 14649.88417 | CD5: 70066.5234 | CE5: =AVERAGE(CE12:CE7955) -> 0.7839879154 | CF5: =AVERAGE(CF12:CF7955) -> 0.2706445116 | CG5: 1284.66253 | CH5: =AVERAGE(CH12:CH7955) -> 1300.946523 | CI5: =AVERAGE(CI12:CI7955) -> 0.5618076536 | CJ5: 0.4035750252 | CK5: =AVERAGE(CK12:CK7955) -> 5030.913841 | CL5: =AVERAGE(CL12:CL7955) -> 1046.03649 | CM5: =AVERAGE(CM12:CM7955) -> 1050.191365 | CN5: =AVERAGE(CN12:CN7955) -> 820.6698904 | CO5: =AVERAGE(CO12:CO7955) -> 2200 | CP5: 229.521475 | CQ5: 2000 | CR5: =AVERAGE(CR12:CR7955) -> 170.6987822 | CS5: 400.2202572
J6: Annual Avg. | K6: =K5*365 -> 4069630.539 | L6: =L5*365 -> 4069660.94 | M6: 646879.5006 | N6: 646863.3604 | S6: =S5*365 -> 6015.119063 | U6: 4069630.539 | V6: 1186250 | W6: 1831328.338 | X6: 1657446.977 | Y6: =Y5*365 -> 3948579.557 | Z6: =Z5*365 -> 1460000 | AA6: =AA5*365 -> 3779054.786 | AB6: =AB5*365 -> 1064330.876 | AC6: =AC5*365 -> 3378981.986 | AD6: =AD5*365 -> 3375422.961 | AE6: =AE5*365 -> 4128693.647 | AF6: =AF5*365 -> 564764.1278 | AG6: =AG5*365 -> 6381903.701 | AH6: 4704538.43 | AI6: 2086454.7 | AJ6: =AJ5*365 -> 936392.2457 | AK6: 7210694.599 | AL6: 7210698.313 | AM6: 7210814.678 | AO6: =AO5*365 -> 16502895 | AP6: 192.708789 | AQ6: 2325780.965 | AR6: 2326195.266 | AS6: 10093754.32 | AT6: 5608494.148 | AU6: =AU5*365 -> 992647.6389 | AV6: 26540.51737 | AW6: 121457.2052 | AX6: 11315 | AY6: 1151960.361 | AZ6: 27753.9108 | BD6: 348.2294814 | BI6: =BI5*365 -> 145.2832326 | BR6: 82621.23842 | BT6: 462797.3943 | BU6: =BU5*365 -> 6344299.236 | BV6: 6344851.368 | BW6: 6401137.916 | BX6: 1942456.1 | BY6: 695323.8039 | BZ6: 835451.4316 | CA6: 1044456.208 | CB6: 304.9477593 | CC6: 5347207.721 | CD6: 25574281.04 | CF6: =CF5*365 -> 98.78524673 | CG6: 468901.8233 | CH6: =CH5*365 -> 474845.4808 | CI6: =CI5*365 -> 205.0597936 | CJ6: 147.3048842 | CK6: =CK5*365 -> 1836283.552 | CL6: =CL5*365 -> 381803.3188 | CM6: =CM5*365 -> 383319.8484 | CN6: 299544.51 | CO6: =CO5*365 -> 803000 | CP6: 83775.33838 | CQ6: 730000 | CR6: =CR5*365 -> 62305.05549 | CS6: 146080.3939
J7: Count > 0 | K7: =COUNTIF(K12:K7955,">0") -> 7944 | L7: =COUNTIF(L12:L7955,">0") -> 7944 | M7: 7944 | N7: 7944 | O7: =COUNTIF(O12:O7955,">0") -> 52 | P7: 2716 | Q7: 364 | R7: =COUNTIF(R12:R7955,">0") -> 4462 | S7: 13 | T7: 7593 | U7: 7944 | V7: 7944 | W7: 7944 | X7: 5741 | Y7: =COUNTIF(Y12:Y7955,">0") -> 7944 | Z7: 7944 | AA7: 7944 | AB7: 1393 | AC7: 7944 | AD7: 7944 | AE7: 7944 | AF7: 1408 | AG7: =COUNTIF(AG12:AG7955,">0") -> 7944 | AH7: 7944 | AI7: 2951 | AJ7: =COUNTIF(AJ12:AJ7955,">0") -> 4638 | AK7: 7941 | AL7: 7940 | AM7: 7939 | AN7: 7938 | AO7: =COUNTIF(AO12:AO7955,">0") -> 7257 | AP7: 7944 | AQ7: 7944 | AR7: 7944 | AS7: 7944 | AT7: 7716 | AU7: =COUNTIF(AU12:AU7955,">0") -> 7438 | AV7: 7914 | AW7: 7944 | AX7: 7944 | AY7: 7944 | AZ7: 7944 | BA7: =COUNTIF(BA12:BA7955,">0") -> 3306 | BB7: 7907 | BC7: 7937 | BD7: 7579 | BE7: 7928 | BF7: 7944 | BG7: =COUNTIF(BG12:BG7955,">0") -> 2764 | BH7: 3088 | BI7: 3162 | BJ7: 7819 | BK7: 7898 | BL7: 938 | BM7: =COUNTIF(BM12:BM7955,">0") -> 3253 | BN7: 3306 | BO7: 7436 | BP7: 7944 | BQ7: 7915 | BR7: 366 | BS7: 7791 | BT7: 2592 | BU7: =COUNTIF(BU12:BU7955,">0") -> 7944 | BV7: 7944 | BW7: 7944 | BX7: 7902 | BY7: 7859 | BZ7: 7944 | CA7: 7880 | CB7: 3630 | CC7: 7731 | CD7: 7944 | CE7: =COUNTIF(CE12:CE7955,">0") -> 6228 | CF7: =COUNTIF(CF12:CF7955,">0") -> 2150 | CG7: 1216 | CH7: =COUNTIF(CH12:CH7955,">0") -> 1216 | CI7: =COUNTIF(CI12:CI7955,">0") -> 4463 | CJ7: 3206 | CK7: =COUNTIF(CK12:CK7955,">0") -> 1183 | CL7: =COUNTIF(CL12:CL7955,">0") -> 934 | CM7: =COUNTIF(CM12:CM7955,">0") -> 934 | CN7: 738 | CO7: =COUNTIF(CO12:CO7955,">0") -> 7944 | CP7: 934 | CQ7: 7944 | CR7: =COUNTIF(CR12:CR7955,">0") -> 738 | CS7: 934
J9: Reach | K9: Bend Bridge | U9: Red Bluff | Y9: Hamilton City | AC9: Wilkins Slough | AG9: Verona | AJ9: Delta | CE9: Availability Calculations | CO9: Diversion Calculations | CW9: Monthly Summary
J10: Parameter | K10: Flow | L10: 3-day Avg Flow | M10: Tributary Flow | N10: 3-day Average Tributary Flow | O10: Pulse Trigger | P10: Pulse Offramp | Q10: Pulse Length | R10: Pulse Offramp Reset | S10: High-Flow Diversions | T10: Diversions Limitation | U10: Flow (Bend Bridge) | V10: Bypass Rqmt | W10: Face Value Demands | X10: Potential Water Available | Y10: Flow | Z10: Bypass Rqmt | AA10: Face Value Demands | AB10: Potential Water Available | AC10: Flow | AD10: Bypass Rqmt | AE10: Dwnstrm W/R Demands | AF10: Potential Water Available | AG10: Flow | AH10: Dwnstrm W/R Demands | AI10: Potential Water Available | AJ10: Outflow Reqmt | AK10: NDOI | AL10: 3-day Avg NDOI | AM10: 7-day Avg NDOI | AN10: Running Monthly Average NDOI | AO10: Available abv Outflow | AP10: E/I Ratio Reqmt | AQ10: CVP + SWP | AR10: 3-day Avg CVP + SWP | AS10: 14-day Avg Delta Inflow | AT10: Available abv E/I | AU10: Unmet DWR/CVP Export Face Value | AV10: Unmet NBA Export Face Value | AW10: Unmet CCWD Export Face Value | AX10: City of Antioch Demand | AY10: Total Delta Export Face Value Unmet Demand | AZ10: X2 | BA10: Spring X2 Outflow | BB10: Collinsville EC | BC10: Collinsville 14-day EC | BD10: February Check | BE10: Chipps Island EC | BF10: Chipps Island 14-day EC | BG10: Chipps Rqmnt | BH10: Chipps Count | BI10: Chipps Met | BJ10: Port Chicago EC | BK10: Port Chicago 14-day EC | BL10: Port Chicago Requirement | BM10: Port Chicago Count | BN10: Port Chicago Met | BO10: Available abv Spring X2 | BP10: Fall X2 Rqmnt | BQ10: Running Monthly Average X2 | BR10: Estimated Delta Outflow Req | BS10: Potential Available Abv Fall X2 | BT10: Rio Vista Rqmnt | BU10: Rio Vista Flow | BV10: Rio Vista 7-day | BW10: Rio Vista Monthly Average | BX10: Dayflow XGEO | BY10: Diff XGEO No Gates | BZ10: Diff XGEO One Gate | CA10: Diff XGEO Two Gates | CB10: Number of Gates Open | CC10: Max Rio Vista Change | CD10: Available abv Rio Vista | CE10: Season | CF10: Term 91 Condition (1 On; 0 Off) | CG10: Sac Available @ Red Bluff | CH10: Sac Available @ Hamilton | CI10: Delta Conditions (1 Balanced; 0 Excess) | CJ10: Excess Days Buffer | CK10: Water Available @ Delta | CL10: Potential Water Available @ Red Bluff | CM10: Potential Water Available @ Hamilton | CN10: Potential @ Hamilton after RB Diversion | CO10: TCC Available Capacity @ Red Bluff | CP10: TCC Diversion @ Red Bluff | CQ10: GCID Available Capacity @ Hamilton City | CR10: GCID Diversion @ Hamilton City | CS10: Total Diversion | CW10: Bend Bridge Flow | CX10: Tributary Flow | CY10: Bend Bridge Pulse Trigger | CZ10: Bend Bridge Diversions Allowed | DA10: Red Bluff Flow | DB10: Red Bluff Bypass Rqmt | DC10: Red Bluff Dwnstrm W/R | DD10: Red Bluff Potential Water Available | DE10: Red Bluff Days Water Available | DF10: Hamilton City Flow | DG10: Hamilton City Bypass Rqmt | DH10: Hamilton City Dwnstrm W/R | DI10: Hamilton City Potential Water Available | DJ10: Hamilton City Days Water Available | DK10: Wilkins Slough Flow | DL10: Wilkins Slough Bypass Rqmt | DM10: Wilkins Slough Dwnstrm W/R Demands | DN10: Wilkins Slough Potential Water Available | DO10: Wilkins Slough Days Water Available | DP10: Verona Flow | DQ10: Verona Dwnstrm W/R Demands | DR10: Verona Potential Water Available | DS10: Verona Days Water Available | DT10: Term 91 Condition (1 On; 0 Off) | DU10: Sac Potential Water Available @ Red Bluff | DV10: Sac Potential Water Available @ Hamilton City | DW10: Delta Conditions (Excess) | DX10: Excess Days Buffer | DY10: Potential Water Available @ Delta | DZ10: Potential Water Available @ Red Bluff | EA10: Potential Water Available @ Hamilton City | EB10: Potential @ Hamilton after RB Diversion | EC10: Red Bluff Diversion | ED10: Hamilton City Diversion | EE10: Total Diversion
A11: CY | B11: CY.Month | C11: WY | D11: WY.Month | E11: Month | F11: Day | G11: Month.Day | H11: WY Mth.Day | I11: Sac WY Type | J11: Date / Units | K11: cfs | L11: cfs | M11: cfs | N11: cfs | O11: Binary | P11: Binary | Q11: Count | R11: Binary | S11: cfs | T11: cfs | U11: cfs | V11: cfs | W11: cfs | X11: cfs | Y11: cfs | Z11: cfs | AA11: cfs | AB11: cfs | AC11: cfs | AD11: cfs | AE11: cfs | AF11: cfs | AG11: cfs | AH11: cfs | AI11: cfs | AJ11: cfs | AK11: cfs | AL11: cfs | AM11: cfs | AN11: cfs | AO11: cfs | AP11: % | AQ11: cfs | AR11: cfs | AS11: cfs | AT11: cfs | AU11: cfs | AV11: cfs | AW11: cfs | AX11: cfs | AY11: cfs | AZ11: km | BA11: cfs | BB11: mmhos/cm | BC11: mmhos/cm | BD11: Binary | BE11: mmhos/cm | BF11: mmhos/cm | BG11: Integer | BH11: Integer | BI11: Binary | BJ11: mmhos/cm | BK11: mmhos/cm | BL11: Integer | BM11: Integer | BN11: Binary | BO11: cfs | BP11: km | BQ11: km | BR11: cfs | BS11: cfs | BT11: cfs | BU11: cfs | BV11: cfs | BW11: cfs | BX11: cfs | BY11: cfs | BZ11: cfs | CA11: cfs | CB11: Integer | CC11: cfs | CD11: cfs | CE11: Binary | CF11: Binary | CG11: cfs | CH11: cfs | CI11: Binary | CJ11: Binary | CK11: cfs | CL11: cfs | CM11: cfs | CN11: cfs | CO11: cfs | CP11: cfs | CQ11: cfs | CR11: cfs | CS11: cfs | CU11: Days | CV11: CY.Month | CW11: AF | CX11: AF | CY11: Count | CZ11: Count | DA11: AF | DB11: AF | DC11: AF | DD11: AF | DE11: Count | DF11: AF | DG11: AF | DH11: AF | DI11: AF | DJ11: Count | DK11: AF | DL11: AF | DM11: AF | DN11: AF | DO11: Count | DP11: AF | DQ11: AF | DR11: AF | DS11: Count | DT11: Count | DU11: AF | DV11: AF | DW11: Count | DX11: Count | DY11: AF | DZ11: AF | EA11: AF | EB11: AF | EC11: AF | ED11: AF | EE11: AF
A12: 2000 | B12: 2000.01 | C12: 2000 | D12: 2000.04 | E12: 1 | F12: 1 | G12: 1.01 | H12: 4.01 | I12: W | J12: 2000-01-01 | K12: =Data!D12 -> 6540 | L12: =AVERAGE(K12:K14) -> 6453.333333 | M12: =Data!E12+Data!F12+Data!G12 -> 606 | N12: =AVERAGE(M12:M14) -> 610.6666667 | O12: =IF(AND(L12>Control!$F$6,N12>Control!$F$7,R11=1),1,0) -> 0 | T12: =CHOOSE($T$1+1,99999,IF(AND(H12>=Control!$F$4,H12<=Control!$F$5),IF(Q12<>0,S12,99999),0)) -> 99999 | U12: =K12 -> 6540 | V12: =INDEX(Control!$D$15:$D$26,MATCH(E12,Control!$C$15:$C$26,0)) -> 3250 | W12: =(INDEX(WRs!$C$47:$N$47,1,MATCH(E12,WRs!$C$1:$N$1,0))+$W$1*(INDEX(WRs!$C$6:$N$6,1,MATCH(E12,WRs!$C$1:$N$1,0))+INDEX(WRs!$C$7:$N$7,1,MATCH(E12,WRs!$C$1:$N$1,0))))*$X$1 -> 3524.282527 | X12: =MIN(MAX(U12-MAX(V12,W12),0),T12)*CE12 -> 3015.717473 | Y12: =IF(ISNUMBER(Data!H12),Data!H12,U12) -> 6540 | Z12: =INDEX(Control!$E$15:$E$26,MATCH(E12,Control!$C$15:$C$26,0)) -> 4000 | AA12: =(INDEX(WRs!$C$181:$N$181,1,MATCH(E12,WRs!$C$1:$N$1,0))+$W$1*INDEX(WRs!$C$8:$N$8,1,MATCH(E12,WRs!$C$1:$N$1,0))+W12)*$X$1 -> 8463.419907 | AB12: =MIN(MAX(Y12-MAX(Z12,AA12),0),T12)*CE12 -> 0 | AC12: =Data!I12 -> 7020 | AD12: =INDEX(Control!$F$15:$F$26,MATCH(E12,Control!$C$15:$C$26,0)) -> 10700 | AE12: =(INDEX(WRs!$C$274:$N$274,1,MATCH(E12,WRs!$C$1:$N$1,0))+AA12)*$X$1 -> 8985.202438 | AF12: =MIN(MAX(AC12-MAX(AD12,AE12),0),T12)*CE12 -> 0 | AG12: =Data!J12 -> 12100 | AH12: =(INDEX(WRs!$C$353:$N$353,1,MATCH(E12,WRs!$C$1:$N$1,0))+AE12)*$X$1 -> 10440.7222 | AI12: =MIN(MAX(AG12-AH12,0),T12)*CE12 -> 1659.277799 | AJ12: =IF(AND(E12=1,VLOOKUP(C12,Control!$N$4:$R$25,5,FALSE)>0.8),6000,INDEX(Control!$O$30:$S$41,E12,MATCH(I12,Control!$O$29:$S$29,0))) -> 4500 | AK12: =Data!R12 -> 4077 | AL12: =AK12 -> 4077 | AM12: =AK12 -> 4077 | AN12: =AK12 -> 4077 | AO12: =IF(AJ12=0,99999,MIN(MAX(AN12-AJ12,0),MAX(AM12-IF(AJ12>5000,AJ12*0.8,AJ12-1000),0))) -> 0 | AP12: =IF(E12=2,VLOOKUP(C12,Control!$N$4:$Y$25,12,FALSE),IF(AND(E12>2,E12<7),0.35,0.65)) -> 0.65 | AQ12: =Data!T12+Data!U12 -> 10807 | AR12: =AQ12 -> 10807 | AS12: =Data!P12 -> 16615 | AT12: =MAX(AS12-AR12/AP12,0) -> 0 | AU12: =MIN(MAX(INDEX(WRs!$C$364:$N$364,1,WAA!E12)-WAA!AQ12,0),MAX(AS12*AP12-AR12,0)) -> 0 | AV12: =MAX(INDEX(WRs!$C$358:$N$358,1,E12)-Data!V12,0) -> 104 | AW12: =MAX(INDEX(WRs!$C$361:$N$361,1,E12)+INDEX(WRs!$C$362:$N$362,1,E12)-Data!S12,0) -> 410 | AX12: =INDEX(WRs!$C$363:$N$363,1,E12) -> 31 | AY12: =SUM(AU12:AX12)*$X$1 -> 545 | AZ12: =Data!Z12 -> 79.17 | BA12: =IF(AND(E12>1,E12<5),7100,IF(AND(E12>4,E12<7),VLOOKUP(A12,Control!$N$4:$Z$25,13,FALSE),0)) -> 0 | BB12: =Data!AA12 -> 7.004 | BC12: =BB12 -> 7.004 | BD12: 1 | BE12: =Data!AB12 -> 6.86 | BF12: =BE12 -> 6.86 | BG12: =IF(AND(E12>1,E12<7),INDEX(Control!$AJ$4:$AN$126,MATCH(VLOOKUP(A12,Control!$N$4:$W$25,E12+4,FALSE)*1000,Control!$AI$4:$AI$126,1),E12-1),0) -> 0 | BH12: =MIN(IF(AND(E12>1,E12<7,OR(BE12<=2.64,BF12<=2.64,AL12>11400)),1,0)+IF(AND(E12>1,E12<7),IF(F12=1,MAX(BH11-BG11,0),BH11),0),DAY(EOMONTH(J12,0))) -> 0 | BI12: =IF(AND(E12>1,E12<7,OR(BH12>=BG12,BH12+DAY(EOMONTH(J12,0))-F12>=BG12)),1,0) -> 0 | BJ12: =Data!AC12 -> 16.15 | BK12: =BJ12 -> 16.15 | BL12: =IF(F12=1,IF(AND(E12>1,E12<7,BK11<=2.64),INDEX(Control!$AQ$4:$AU$102,MATCH(VLOOKUP(A12,Control!$N$4:$W$25,E12+4,FALSE)*1000,Control!$AP$4:$AP$126,1),E12-1),0),BL11) -> 0 | BM12: =MIN(IF(AND(E12>1,E12<7,OR(BJ12<=2.64,BK12<=2.64,AL12>11400)),1,0)+IF(AND(E12>1,E12<7),IF(F12=1,MAX(BM11-BL11,0),BM11),0),DAY(EOMONTH(J12,0))) -> 0 | BN12: =IF(AND(E12>1,E12<7,OR(BM12>=BL12,BM12+DAY(EOMONTH(J12,0))-F12>=BL12)),1,0) -> 0 | BO12: =IF(AND(BA12>0,OR(BA12<AL12,BB12<=2.64,BC12<=2.64)),MAX(AL12-BA12,0),0)*IF(E12=2,BD12,1)*BI12*BN12+IF(AND(E12>1,E12<7),0,99999) -> 99999 | BP12: =INDEX(Control!$V$30:$Z$41,E12,MATCH(I12,Control!$V$29:$Z$29,0)) -> 99999 | BQ12: 0 | BR12: =MIN(POWER(10,-(BP12-10.16-0.945*AZ12)/1.487),11400) -> 0 | BS12: =IF(BP12=99999,99999,MAX(AK12-BR12,0))*IF(BP12<BQ12,0,1) -> 99999 | BT12: =INDEX(Control!$AC$30:$AG$41,E12,MATCH(I12,Control!$AC$29:$AG$29,0)) -> 0 | BU12: =Data!Y12 -> 7801 | BV12: =BU12 -> 7801 | BW12: =BU12 -> 7801 | BX12: =Data!N12 -> 6368 | BY12: =ABS(BX12-(Data!L12*Control!$AC$18+Control!$AD$18)) -> 3597.2 | BZ12: =ABS(BX12-(Data!L12*Control!$AC$19+Control!$AD$19)) -> 554.4 | CA12: =ABS(BX12-(Data!L12*Control!$AC$20+Control!$AD$20)) -> 0.2 | CB12: =MATCH(MIN(BY12:CA12),BY12:CA12,0)-1 -> 2 | CC12: =MIN(MAX(BW12-BT12,0),MAX(BV12-MAX(BT12-1000,0),0)) -> 7801 | CD12: =IF(BT12=0,99999,(CC12+INDEX(Control!$AD$18:$AD$20,CB12+1))/(1-INDEX(Control!$AC$18:$AC$20,CB12+1))) -> 99999 | CE12: =IF(OR(G12>=Control!$B$4,G12<=Control!$C$4),1,0) -> 1 | CF12: =Data!B12 -> 0 | CG12: =MIN(X12,AB12,AF12,AI12)*(1-CF12) -> 0 | CH12: =MIN(AB12,AF12,AI12)*(1-CF12) -> 0 | CI12: =Data!C12 -> 1 | CJ12: 0 | CK12: =MAX(MIN(AO12,AT12,BO12,BS12,CD12)-SUM(AH12,AY12),0)*CE12*CJ12 -> 0 | CL12: =MIN(CG12,CK12) -> 0 | CM12: =MIN(CH12,CK12) -> 0 | CN12: =MAX(CM12-CP12,0) -> 0 | CO12: =INDEX(Control!$G$15:$G$26,MATCH(E12,Control!$C$15:$C$26,0)) -> 2200 | CP12: =MIN(CO12,CL12) -> 0 | CQ12: =INDEX(Control!$H$15:$H$26,MATCH(E12,Control!$C$15:$C$26,0)) -> 2000 | CR12: =MIN(CQ12,CM12-CP12) -> 0 | CS12: =CP12+CR12 -> 0 | CU12: 31 | CV12: 2000.01 | CW12: =AVERAGEIF($B$12:$B$7955,$CV12,K$12:K$7955)*cfs_2_AF*CU12 -> 758974.7955 | CX12: =AVERAGEIF($B$12:$B$7955,$CV12,M$12:M$7955)*cfs_2_AF*CU12 -> 202091.7914 | CY12: =SUMIF($B$12:$B$7955,$CV12,O$12:O$7955) -> 1 | CZ12: =COUNTIFS(T$12:T$7955,">0",$B$12:$B$7955,$CV12) -> 24 | DA12: =CW12 -> 758974.7955 | DB12: =AVERAGEIF($B$12:$B$7955,$CV12,V$12:V$7955)*cfs_2_AF*CU12 -> 199834.6025 | DC12: =AVERAGEIF($B$12:$B$7955,$CV12,W$12:W$7955)*cfs_2_AF*CU12 -> 216699.5686 | DD12: =AVERAGEIF($B$12:$B$7955,$CV12,X$12:X$7955)*cfs_2_AF*CU12 -> 443042.1786 | DE12: =COUNTIFS(X$12:X$7955,">0",$B$12:$B$7955,$CV12) -> 24 | DF12: =AVERAGEIF($B$12:$B$7955,$CV12,Y$12:Y$7955)*cfs_2_AF*CU12 -> 758974.7955 | DG12: =AVERAGEIF($B$12:$B$7955,$CV12,Z$12:Z$7955)*cfs_2_AF*CU12 -> 245950.28 | DH12: =AVERAGEIF($B$12:$B$7955,$CV12,AA$12:AA$7955)*cfs_2_AF*CU12 -> 520395.1239 | DI12: =AVERAGEIF($B$12:$B$7955,$CV12,AB$12:AB$7955)*cfs_2_AF*CU12 -> 258463.9151 | DJ12: =COUNTIFS(AB$12:AB$7955,">0",$B$12:$B$7955,$CV12) -> 12 | DK12: =AVERAGEIF($B$12:$B$7955,$CV12,AC$12:AC$7955)*cfs_2_AF*CU12 -> 772045.8628 | DL12: =AVERAGEIF($B$12:$B$7955,$CV12,AD$12:AD$7955)*cfs_2_AF*CU12 -> 657916.999 | DM12: =AVERAGEIF($B$12:$B$7955,$CV12,AE$12:AE$7955)*cfs_2_AF*CU12 -> 552478.2639 | DN12: =AVERAGEIF($B$12:$B$7955,$CV12,AF$12:AF$7955)*cfs_2_AF*CU12 -> 207470.962 | DO12: =COUNTIFS(AF$12:AF$7955,">0",$B$12:$B$7955,$CV12) -> 12 | DP12: =AVERAGEIF($B$12:$B$7955,$CV12,AG$12:AG$7955)*cfs_2_AF*CU12 -> 1225189.419 | DQ12: =AVERAGEIF($B$12:$B$7955,$CV12,AH$12:AH$7955)*cfs_2_AF*CU12 -> 641974.6372 | DR12: =AVERAGEIF($B$12:$B$7955,$CV12,AI$12:AI$7955)*cfs_2_AF*CU12 -> 498887.6647 | DS12: =COUNTIFS(AI$12:AI$7955,">0",$B$12:$B$7955,$CV12) -> 24 | DT12: =SUMIF($B$12:$B$7955,$CV12,CF$12:CF$7955) -> 0 | DU12: =AVERAGEIF($B$12:$B$7955,$CV12,CG$12:CG$7955)*cfs_2_AF*CU12 -> 170683.3465 | DV12: =AVERAGEIF($B$12:$B$7955,$CV12,CH$12:CH$7955)*cfs_2_AF*CU12 -> 170683.3465 | DW12: =SUMIF($B$12:$B$7955,$CV12,CI$12:CI$7955) -> 19 | DX12: =SUMIF($B$12:$B$7955,$CV12,CJ$12:CJ$7955) -> 6 | DY12: =AVERAGEIF($B$12:$B$7955,$CV12,CK$12:CK$7955)*cfs_2_AF*CU12 -> 45978.08606 | DZ12: =AVERAGEIF($B$12:$B$7955,$CV12,CL$12:CL$7955)*cfs_2_AF*$CU12 -> 45978.08606 | EA12: =AVERAGEIF($B$12:$B$7955,$CV12,CM$12:CM$7955)*cfs_2_AF*$CU12 -> 45978.08606 | EB12: =AVERAGEIF($B$12:$B$7955,$CV12,CN$12:CN$7955)*cfs_2_AF*$CU12 -> 23190.37775 | EC12: =AVERAGEIF($B$12:$B$7955,$CV12,CP$12:CP$7955)*cfs_2_AF*$CU12 -> 22787.7083 | ED12: =AVERAGEIF($B$12:$B$7955,$CV12,CR$12:CR$7955)*cfs_2_AF*$CU12 -> 14646.98935 | EE12: =AVERAGEIF($B$12:$B$7955,$CV12,CS$12:CS$7955)*cfs_2_AF*$CU12 -> 37434.69766
A13: 2000 | B13: 2000.01 | C13: 2000 | D13: 2000.04 | E13: 1 | F13: 2 | G13: 1.02 | H13: 4.02 | I13: W | J13: 2000-01-02 | K13: =Data!D13 -> 6410 | L13: =AVERAGE(K13:K15) -> 6410 | M13: =Data!E13+Data!F13+Data!G13 -> 619 | N13: =AVERAGE(M13:M15) -> 610 | O13: =IF(AND(L13>Control!$F$6,N13>Control!$F$7,R12=1),1,0) -> 0 | T13: =CHOOSE($T$1+1,99999,IF(AND(H13>=Control!$F$4,H13<=Control!$F$5),IF(Q13<>0,S13,99999),0)) -> 99999 | U13: 6410 | V13: =INDEX(Control!$D$15:$D$26,MATCH(E13,Control!$C$15:$C$26,0)) -> 3250 | W13: =(INDEX(WRs!$C$47:$N$47,1,MATCH(E13,WRs!$C$1:$N$1,0))+$W$1*(INDEX(WRs!$C$6:$N$6,1,MATCH(E13,WRs!$C$1:$N$1,0))+INDEX(WRs!$C$7:$N$7,1,MATCH(E13,WRs!$C$1:$N$1,0))))*$X$1 -> 3524.282527 | X13: 2885.717473 | Y13: =IF(ISNUMBER(Data!H13),Data!H13,U13) -> 6410 | Z13: =INDEX(Control!$E$15:$E$26,MATCH(E13,Control!$C$15:$C$26,0)) -> 4000 | AA13: =(INDEX(WRs!$C$181:$N$181,1,MATCH(E13,WRs!$C$1:$N$1,0))+$W$1*INDEX(WRs!$C$8:$N$8,1,MATCH(E13,WRs!$C$1:$N$1,0))+W13)*$X$1 -> 8463.419907 | AB13: 0 | AC13: =Data!I13 -> 7030 | AD13: =INDEX(Control!$F$15:$F$26,MATCH(E13,Control!$C$15:$C$26,0)) -> 10700 | AE13: =(INDEX(WRs!$C$274:$N$274,1,MATCH(E13,WRs!$C$1:$N$1,0))+AA13)*$X$1 -> 8985.202438 | AF13: 0 | AG13: =Data!J13 -> 12000 | AH13: =(INDEX(WRs!$C$353:$N$353,1,MATCH(E13,WRs!$C$1:$N$1,0))+AE13)*$X$1 -> 10440.7222 | AI13: 1559.277799 | AJ13: =IF(AND(E13=1,VLOOKUP(C13,Control!$N$4:$R$25,5,FALSE)>0.8),6000,INDEX(Control!$O$30:$S$41,E13,MATCH(I13,Control!$O$29:$S$29,0))) -> 4500 | AK13: =Data!R13 -> 4108 | AL13: =AVERAGE(AK12:AK13) -> 4092.5 | AM13: =AVERAGE(AK12:AK13) -> 4092.5 | AN13: =AVERAGE(AK$12:AK13) -> 4092.5 | AO13: 0 | AP13: =IF(E13=2,VLOOKUP(C13,Control!$N$4:$Y$25,12,FALSE),IF(AND(E13>2,E13<7),0.35,0.65)) -> 0.65 | AQ13: =Data!T13+Data!U13 -> 10729 | AR13: =AVERAGE(AQ12:AQ13) -> 10768 | AS13: =AVERAGE(Data!P12:P13) -> 16576 | AT13: =MAX(AS13-AR13/AP13,0) -> 9.846153846 | AU13: =MIN(MAX(INDEX(WRs!$C$364:$N$364,1,WAA!E13)-WAA!AQ13,0),MAX(AS13*AP13-AR13,0)) -> 6.4 | AV13: =MAX(INDEX(WRs!$C$358:$N$358,1,E13)-Data!V13,0) -> 87 | AW13: =MAX(INDEX(WRs!$C$361:$N$361,1,E13)+INDEX(WRs!$C$362:$N$362,1,E13)-Data!S13,0) -> 408 | AX13: =INDEX(WRs!$C$363:$N$363,1,E13) -> 31 | AY13: =SUM(AU13:AX13)*$X$1 -> 532.4 | AZ13: =Data!Z13 -> 79.6 | BA13: =IF(AND(E13>1,E13<5),7100,IF(AND(E13>4,E13<7),VLOOKUP(A13,Control!$N$4:$Z$25,13,FALSE),0)) -> 0 | BB13: =Data!AA13 -> 6.279 | BC13: =AVERAGE(BB12:BB13) -> 6.6415 | BD13: =IF(G13=2.01,IF(AND(VLOOKUP(A13,Control!$N$4:$S$25,6,FALSE)>0.9,MIN(BB13:BB26,BC13:BC26)>2.64),0,1),BD12) -> 1 | BE13: =Data!AB13 -> 7.15 | BF13: =AVERAGE(BE12:BE13) -> 7.005 | BG13: =IF(AND(E13>1,E13<7),INDEX(Control!$AJ$4:$AN$126,MATCH(VLOOKUP(A13,Control!$N$4:$W$25,E13+4,FALSE)*1000,Control!$AI$4:$AI$126,1),E13-1),0) -> 0 | BH13: 0 | BI13: 0 | BJ13: =Data!AC13 -> 15.564 | BK13: =AVERAGE(BJ12:BJ13) -> 15.857 | BL13: =IF(F13=1,IF(AND(E13>1,E13<7,BK12<=2.64),INDEX(Control!$AQ$4:$AU$102,MATCH(VLOOKUP(A13,Control!$N$4:$W$25,E13+4,FALSE)*1000,Control!$AP$4:$AP$126,1),E13-1),0),BL12) -> 0 | BM13: 0 | BN13: 0 | BO13: 99999 | BP13: =INDEX(Control!$V$30:$Z$41,E13,MATCH(I13,Control!$V$29:$Z$29,0)) -> 99999 | BQ13: 0 | BR13: 0 | BS13: 99999 | BT13: =INDEX(Control!$AC$30:$AG$41,E13,MATCH(I13,Control!$AC$29:$AG$29,0)) -> 0 | BU13: =Data!Y13 -> 7754 | BV13: =AVERAGE(BU12:BU13) -> 7777.5 | BW13: =AVERAGE(BU$12:BU13) -> 7777.5 | BX13: =Data!N13 -> 6339 | BY13: =ABS(BX13-(Data!L13*Control!$AC$18+Control!$AD$18)) -> 3581.5 | BZ13: =ABS(BX13-(Data!L13*Control!$AC$19+Control!$AD$19)) -> 547 | CA13: =ABS(BX13-(Data!L13*Control!$AC$20+Control!$AD$20)) -> 0.5 | CB13: =MATCH(MIN(BY13:CA13),BY13:CA13,0)-1 -> 2 | CC13: =MIN(MAX(BW13-BT13,0),MAX(BV13-MAX(BT13-1000,0),0)) -> 7777.5 | CD13: =IF(BT13=0,99999,(CC13+INDEX(Control!$AD$18:$AD$20,CB13+1))/(1-INDEX(Control!$AC$18:$AC$20,CB13+1))) -> 99999 | CE13: =IF(OR(G13>=Control!$B$4,G13<=Control!$C$4),1,0) -> 1 | CF13: =Data!B13 -> 0 | CG13: 0 | CH13: 0 | CI13: =Data!C13 -> 1 | CJ13: 0 | CK13: 0 | CL13: =MIN(CG13,CK13) -> 0 | CM13: =MIN(CH13,CK13) -> 0 | CN13: 0 | CO13: =INDEX(Control!$G$15:$G$26,MATCH(E13,Control!$C$15:$C$26,0)) -> 2200 | CP13: =MIN(CO13,CL13) -> 0 | CQ13: =INDEX(Control!$H$15:$H$26,MATCH(E13,Control!$C$15:$C$26,0)) -> 2000 | CR13: =MIN(CQ13,CM13-CP13) -> 0 | CS13: =CP13+CR13 -> 0 | CU13: 29 | CV13: 2000.02 | CW13: 2370444.997 | CX13: 510449.9714 | CY13: 0 | CZ13: 29 | DA13: =CW13 -> 2370444.997 | DB13: 186942.0475 | DC13: 176489.7444 | DD13: 2183502.95 | DE13: 29 | DF13: 2370444.997 | DG13: 230082.52 | DH13: 519380.28 | DI13: 1851064.717 | DJ13: 29 | DK13: 1492362.828 | DL13: 615470.741 | DM13: 548008.6359 | DN13: 876892.087 | DO13: 29 | DP13: 2941684.357 | DQ13: 608011.1698 | DR13: 2333673.187 | DS13: 29 | DT13: 0 | DU13: 838937.0254 | DV13: 838937.0254 | DW13: 0 | DX13: 29 | DY13: 1893884.665 | DZ13: 669126.7862 | EA13: 669126.7862 | EB13: 547244.4177 | EC13: 121882.3686 | ED13: 105486.1188 | EE13: 227368.4874
A14: 2000 | B14: 2000.01 | C14: 2000 | D14: 2000.04 | E14: 1 | F14: 3 | G14: 1.03 | H14: 4.03 | I14: W | J14: 2000-01-03 | K14: =Data!D14 -> 6410 | L14: 6383.333333 | M14: =Data!E14+Data!F14+Data!G14 -> 607 | N14: 605.6666667 | O14: =IF(AND(L14>Control!$F$6,N14>Control!$F$7,R13=1),1,0) -> 0 | T14: =CHOOSE($T$1+1,99999,IF(AND(H14>=Control!$F$4,H14<=Control!$F$5),IF(Q14<>0,S14,99999),0)) -> 99999 | U14: 6410 | V14: =INDEX(Control!$D$15:$D$26,MATCH(E14,Control!$C$15:$C$26,0)) -> 3250 | W14: =(INDEX(WRs!$C$47:$N$47,1,MATCH(E14,WRs!$C$1:$N$1,0))+$W$1*(INDEX(WRs!$C$6:$N$6,1,MATCH(E14,WRs!$C$1:$N$1,0))+INDEX(WRs!$C$7:$N$7,1,MATCH(E14,WRs!$C$1:$N$1,0))))*$X$1 -> 3524.282527 | X14: 2885.717473 | Y14: =IF(ISNUMBER(Data!H14),Data!H14,U14) -> 6410 | Z14: =INDEX(Control!$E$15:$E$26,MATCH(E14,Control!$C$15:$C$26,0)) -> 4000 | AA14: =(INDEX(WRs!$C$181:$N$181,1,MATCH(E14,WRs!$C$1:$N$1,0))+$W$1*INDEX(WRs!$C$8:$N$8,1,MATCH(E14,WRs!$C$1:$N$1,0))+W14)*$X$1 -> 8463.419907 | AB14: 0 | AC14: =Data!I14 -> 6940 | AD14: =INDEX(Control!$F$15:$F$26,MATCH(E14,Control!$C$15:$C$26,0)) -> 10700 | AE14: =(INDEX(WRs!$C$274:$N$274,1,MATCH(E14,WRs!$C$1:$N$1,0))+AA14)*$X$1 -> 8985.202438 | AF14: 0 | AG14: =Data!J14 -> 12100 | AH14: =(INDEX(WRs!$C$353:$N$353,1,MATCH(E14,WRs!$C$1:$N$1,0))+AE14)*$X$1 -> 10440.7222 | AI14: 1659.277799 | AJ14: =IF(AND(E14=1,VLOOKUP(C14,Control!$N$4:$R$25,5,FALSE)>0.8),6000,INDEX(Control!$O$30:$S$41,E14,MATCH(I14,Control!$O$29:$S$29,0))) -> 4500 | AK14: =Data!R14 -> 4500 | AL14: =AVERAGE(AK12:AK14) -> 4228.333333 | AM14: =AVERAGE(AK12:AK14) -> 4228.333333 | AN14: =AVERAGE(AK$12:AK14) -> 4228.333333 | AO14: 0 | AP14: =IF(E14=2,VLOOKUP(C14,Control!$N$4:$Y$25,12,FALSE),IF(AND(E14>2,E14<7),0.35,0.65)) -> 0.65 | AQ14: =Data!T14+Data!U14 -> 10428 | AR14: =AVERAGE(AQ12:AQ14) -> 10654.66667 | AS14: =AVERAGE(Data!P12:P14) -> 16597.66667 | AT14: 205.8717949 | AU14: =MIN(MAX(INDEX(WRs!$C$364:$N$364,1,WAA!E14)-WAA!AQ14,0),MAX(AS14*AP14-AR14,0)) -> 133.8166667 | AV14: =MAX(INDEX(WRs!$C$358:$N$358,1,E14)-Data!V14,0) -> 96 | AW14: =MAX(INDEX(WRs!$C$361:$N$361,1,E14)+INDEX(WRs!$C$362:$N$362,1,E14)-Data!S14,0) -> 336 | AX14: =INDEX(WRs!$C$363:$N$363,1,E14) -> 31 | AY14: 596.8166667 | AZ14: =Data!Z14 -> 79.95 | BA14: =IF(AND(E14>1,E14<5),7100,IF(AND(E14>4,E14<7),VLOOKUP(A14,Control!$N$4:$Z$25,13,FALSE),0)) -> 0 | BB14: =Data!AA14 -> 6.792 | BC14: =AVERAGE(BB12:BB14) -> 6.691666667 | BD14: =IF(G14=2.01,IF(AND(VLOOKUP(A14,Control!$N$4:$S$25,6,FALSE)>0.9,MIN(BB14:BB27,BC14:BC27)>2.64),0,1),BD13) -> 1 | BE14: =Data!AB14 -> 6.55 | BF14: =AVERAGE(BE12:BE14) -> 6.853333333 | BG14: =IF(AND(E14>1,E14<7),INDEX(Control!$AJ$4:$AN$126,MATCH(VLOOKUP(A14,Control!$N$4:$W$25,E14+4,FALSE)*1000,Control!$AI$4:$AI$126,1),E14-1),0) -> 0 | BH14: 0 | BI14: 0 | BJ14: =Data!AC14 -> 15.402 | BK14: =AVERAGE(BJ12:BJ14) -> 15.70533333 | BL14: =IF(F14=1,IF(AND(E14>1,E14<7,BK13<=2.64),INDEX(Control!$AQ$4:$AU$102,MATCH(VLOOKUP(A14,Control!$N$4:$W$25,E14+4,FALSE)*1000,Control!$AP$4:$AP$126,1),E14-1),0),BL13) -> 0 | BM14: 0 | BN14: 0 | BO14: 99999 | BP14: =INDEX(Control!$V$30:$Z$41,E14,MATCH(I14,Control!$V$29:$Z$29,0)) -> 99999 | BQ14: 0 | BR14: 0 | BS14: 99999 | BT14: =INDEX(Control!$AC$30:$AG$41,E14,MATCH(I14,Control!$AC$29:$AG$29,0)) -> 0 | BU14: =Data!Y14 -> 7835 | BV14: =AVERAGE(BU12:BU14) -> 7796.666667 | BW14: =AVERAGE(BU$12:BU14) -> 7796.666667 | BX14: =Data!N14 -> 6368 | BY14: =ABS(BX14-(Data!L14*Control!$AC$18+Control!$AD$18)) -> 3597.2 | BZ14: =ABS(BX14-(Data!L14*Control!$AC$19+Control!$AD$19)) -> 554.4 | CA14: =ABS(BX14-(Data!L14*Control!$AC$20+Control!$AD$20)) -> 0.2 | CB14: 2 | CC14: 7796.666667 | CD14: =IF(BT14=0,99999,(CC14+INDEX(Control!$AD$18:$AD$20,CB14+1))/(1-INDEX(Control!$AC$18:$AC$20,CB14+1))) -> 99999 | CE14: =IF(OR(G14>=Control!$B$4,G14<=Control!$C$4),1,0) -> 1 | CF14: =Data!B14 -> 0 | CG14: 0 | CH14: 0 | CI14: =Data!C14 -> 1 | CJ14: 0 | CK14: 0 | CL14: 0 | CM14: 0 | CN14: 0 | CO14: =INDEX(Control!$G$15:$G$26,MATCH(E14,Control!$C$15:$C$26,0)) -> 2200 | CP14: 0 | CQ14: =INDEX(Control!$H$15:$H$26,MATCH(E14,Control!$C$15:$C$26,0)) -> 2000 | CR14: 0 | CS14: 0 | CU14: 31 | CV14: 2000.03 | CW14: 1956831.998 | CX14: 356498.9805 | CY14: 0 | CZ14: 31 | DA14: 1956831.998 | DB14: 199834.6025 | DC14: 202707.4571 | DD14: 1754124.541 | DE14: 31 | DF14: 1956831.998 | DG14: 245950.28 | DH14: 580490.0262 | DI14: 1377396.267 | DJ14: 29 | DK14: 1417586.009 | DL14: 657916.999 | DM14: 636274.7303 | DN14: 759669.01 | DO14: 31 | DP14: 3099370.222 | DQ14: 704272.2688 | DR14: 2395097.953 | DS14: 31 | DT14: 0 | DU14: 634808.0174 | DV14: 634808.0174 | DW14: 0 | DX14: 31 | DY14: 3526165.77 | DZ14: 634808.0174 | EA14: 634808.0174 | EB14: 525567.6573 | EC14: 109240.3601 | ED14: 87904.33457 | EE14: 197144.6947
A15: 2000 | B15: 2000.01 | C15: 2000 | D15: 2000.04 | E15: 1 | F15: 4 | G15: 1.04 | H15: 4.04 | I15: W | J15: 2000-01-04 | K15: =Data!D15 -> 6410 | L15: 6296.666667 | M15: =Data!E15+Data!F15+Data!G15 -> 604 | N15: 601.3333333 | O15: =IF(AND(L15>Control!$F$6,N15>Control!$F$7,R14=1),1,0) -> 0 | T15: =CHOOSE($T$1+1,99999,IF(AND(H15>=Control!$F$4,H15<=Control!$F$5),IF(Q15<>0,S15,99999),0)) -> 99999 | U15: 6410 | V15: =INDEX(Control!$D$15:$D$26,MATCH(E15,Control!$C$15:$C$26,0)) -> 3250 | W15: =(INDEX(WRs!$C$47:$N$47,1,MATCH(E15,WRs!$C$1:$N$1,0))+$W$1*(INDEX(WRs!$C$6:$N$6,1,MATCH(E15,WRs!$C$1:$N$1,0))+INDEX(WRs!$C$7:$N$7,1,MATCH(E15,WRs!$C$1:$N$1,0))))*$X$1 -> 3524.282527 | X15: 2885.717473 | Y15: =IF(ISNUMBER(Data!H15),Data!H15,U15) -> 6410 | Z15: =INDEX(Control!$E$15:$E$26,MATCH(E15,Control!$C$15:$C$26,0)) -> 4000 | AA15: =(INDEX(WRs!$C$181:$N$181,1,MATCH(E15,WRs!$C$1:$N$1,0))+$W$1*INDEX(WRs!$C$8:$N$8,1,MATCH(E15,WRs!$C$1:$N$1,0))+W15)*$X$1 -> 8463.419907 | AB15: 0 | AC15: =Data!I15 -> 6850 | AD15: =INDEX(Control!$F$15:$F$26,MATCH(E15,Control!$C$15:$C$26,0)) -> 10700 | AE15: =(INDEX(WRs!$C$274:$N$274,1,MATCH(E15,WRs!$C$1:$N$1,0))+AA15)*$X$1 -> 8985.202438 | AF15: 0 | AG15: =Data!J15 -> 11900 | AH15: =(INDEX(WRs!$C$353:$N$353,1,MATCH(E15,WRs!$C$1:$N$1,0))+AE15)*$X$1 -> 10440.7222 | AI15: 1459.277799 | AJ15: =IF(AND(E15=1,VLOOKUP(C15,Control!$N$4:$R$25,5,FALSE)>0.8),6000,INDEX(Control!$O$30:$S$41,E15,MATCH(I15,Control!$O$29:$S$29,0))) -> 4500 | AK15: =Data!R15 -> 3796 | AL15: =AVERAGE(AK13:AK15) -> 4134.666667 | AM15: =AVERAGE(AK12:AK15) -> 4120.25 | AN15: =AVERAGE(AK$12:AK15) -> 4120.25 | AO15: 0 | AP15: =IF(E15=2,VLOOKUP(C15,Control!$N$4:$Y$25,12,FALSE),IF(AND(E15>2,E15<7),0.35,0.65)) -> 0.65 | AQ15: =Data!T15+Data!U15 -> 10761 | AR15: =AVERAGE(AQ13:AQ15) -> 10639.33333 | AS15: =AVERAGE(Data!P12:P15) -> 16527.25 | AT15: 159.0448718 | AU15: =MIN(MAX(INDEX(WRs!$C$364:$N$364,1,WAA!E15)-WAA!AQ15,0),MAX(AS15*AP15-AR15,0)) -> 103.3791667 | AV15: =MAX(INDEX(WRs!$C$358:$N$358,1,E15)-Data!V15,0) -> 86 | AW15: =MAX(INDEX(WRs!$C$361:$N$361,1,E15)+INDEX(WRs!$C$362:$N$362,1,E15)-Data!S15,0) -> 250 | AX15: =INDEX(WRs!$C$363:$N$363,1,E15) -> 31 | AY15: 470.3791667 | AZ15: =Data!Z15 -> 80.39 | BA15: =IF(AND(E15>1,E15<5),7100,IF(AND(E15>4,E15<7),VLOOKUP(A15,Control!$N$4:$Z$25,13,FALSE),0)) -> 0 | BB15: =Data!AA15 -> 2.448 | BC15: =AVERAGE(BB12:BB15) -> 5.63075 | BD15: =IF(G15=2.01,IF(AND(VLOOKUP(A15,Control!$N$4:$S$25,6,FALSE)>0.9,MIN(BB15:BB28,BC15:BC28)>2.64),0,1),BD14) -> 1 | BE15: =Data!AB15 -> 6.8 | BF15: =AVERAGE(BE12:BE15) -> 6.84 | BG15: =IF(AND(E15>1,E15<7),INDEX(Control!$AJ$4:$AN$126,MATCH(VLOOKUP(A15,Control!$N$4:$W$25,E15+4,FALSE)*1000,Control!$AI$4:$AI$126,1),E15-1),0) -> 0 | BH15: 0 | BI15: 0 | BJ15: =Data!AC15 -> 15.44 | BK15: =AVERAGE(BJ12:BJ15) -> 15.639 | BL15: =IF(F15=1,IF(AND(E15>1,E15<7,BK14<=2.64),INDEX(Control!$AQ$4:$AU$102,MATCH(VLOOKUP(A15,Control!$N$4:$W$25,E15+4,FALSE)*1000,Control!$AP$4:$AP$126,1),E15-1),0),BL14) -> 0 | BM15: 0 | BN15: 0 | BO15: 99999 | BP15: =INDEX(Control!$V$30:$Z$41,E15,MATCH(I15,Control!$V$29:$Z$29,0)) -> 99999 | BQ15: 0 | BR15: 0 | BS15: 99999 | BT15: =INDEX(Control!$AC$30:$AG$41,E15,MATCH(I15,Control!$AC$29:$AG$29,0)) -> 0 | BU15: =Data!Y15 -> 7636 | BV15: =AVERAGE(BU12:BU15) -> 7756.5 | BW15: =AVERAGE(BU$12:BU15) -> 7756.5 | BX15: =Data!N15 -> 6280 | BY15: =ABS(BX15-(Data!L15*Control!$AC$18+Control!$AD$18)) -> 3549.1 | BZ15: =ABS(BX15-(Data!L15*Control!$AC$19+Control!$AD$19)) -> 531.2 | CA15: =ABS(BX15-(Data!L15*Control!$AC$20+Control!$AD$20)) -> 0.1 | CB15: 2 | CC15: 7756.5 | CD15: =IF(BT15=0,99999,(CC15+INDEX(Control!$AD$18:$AD$20,CB15+1))/(1-INDEX(Control!$AC$18:$AC$20,CB15+1))) -> 99999 | CE15: =IF(OR(G15>=Control!$B$4,G15<=Control!$C$4),1,0) -> 1 | CF15: =Data!B15 -> 0 | CG15: 0 | CH15: 0 | CI15: =Data!C15 -> 1 | CJ15: 0 | CK15: 0 | CL15: 0 | CM15: 0 | CN15: 0 | CO15: =INDEX(Control!$G$15:$G$26,MATCH(E15,Control!$C$15:$C$26,0)) -> 2200 | CP15: 0 | CQ15: =INDEX(Control!$H$15:$H$26,MATCH(E15,Control!$C$15:$C$26,0)) -> 2000 | CR15: 0 | CS15: 0 | CU15: 30 | CV15: 2000.04 | CW15: 649745.1026 | CX15: 163721.5642 | CY15: 0 | CZ15: 30 | DA15: 649745.1026 | DB15: 193388.325 | DC15: 370376.5029 | DD15: 279368.5997 | DE15: 30 | DF15: 649745.1026 | DG15: 238016.4 | DH15: 643058.693 | DI15: 48982.84949 | DJ15: 15 | DK15: 721665.7248 | DL15: 636693.87 | DM15: 710366.9391 | DN15: 53071.59226 | DO15: 9 | DP15: 1343999.272 | DQ15: 811616.9959 | DR15: 532382.2761 | DS15: 30 | DT15: 0 | DU15: 22042.56266 | DV15: 22042.56266 | DW15: 0 | DX15: 30 | DY15: 68508.3247 | DZ15: 20641.04591 | EA15: 20641.04591 | EB15: 1163.180485 | EC15: 19477.86542 | ED15: 1163.180485 | EE15: 20641.04591
A16: 2000 | B16: 2000.01 | C16: 2000 | D16: 2000.04 | E16: 1 | F16: 5 | G16: 1.05 | H16: 4.05 | I16: W | J16: 2000-01-05 | K16: =Data!D16 -> 6330 | L16: 6170 | M16: =Data!E16+Data!F16+Data!G16 -> 606 | N16: 595 | O16: =IF(AND(L16>Control!$F$6,N16>Control!$F$7,R15=1),1,0) -> 0 | T16: =CHOOSE($T$1+1,99999,IF(AND(H16>=Control!$F$4,H16<=Control!$F$5),IF(Q16<>0,S16,99999),0)) -> 99999 | U16: 6330 | V16: =INDEX(Control!$D$15:$D$26,MATCH(E16,Control!$C$15:$C$26,0)) -> 3250 | W16: =(INDEX(WRs!$C$47:$N$47,1,MATCH(E16,WRs!$C$1:$N$1,0))+$W$1*(INDEX(WRs!$C$6:$N$6,1,MATCH(E16,WRs!$C$1:$N$1,0))+INDEX(WRs!$C$7:$N$7,1,MATCH(E16,WRs!$C$1:$N$1,0))))*$X$1 -> 3524.282527 | X16: 2805.717473 | Y16: =IF(ISNUMBER(Data!H16),Data!H16,U16) -> 6330 | Z16: =INDEX(Control!$E$15:$E$26,MATCH(E16,Control!$C$15:$C$26,0)) -> 4000 | AA16: =(INDEX(WRs!$C$181:$N$181,1,MATCH(E16,WRs!$C$1:$N$1,0))+$W$1*INDEX(WRs!$C$8:$N$8,1,MATCH(E16,WRs!$C$1:$N$1,0))+W16)*$X$1 -> 8463.419907 | AB16: 0 | AC16: =Data!I16 -> 6820 | AD16: =INDEX(Control!$F$15:$F$26,MATCH(E16,Control!$C$15:$C$26,0)) -> 10700 | AE16: =(INDEX(WRs!$C$274:$N$274,1,MATCH(E16,WRs!$C$1:$N$1,0))+AA16)*$X$1 -> 8985.202438 | AF16: 0 | AG16: =Data!J16 -> 11900 | AH16: =(INDEX(WRs!$C$353:$N$353,1,MATCH(E16,WRs!$C$1:$N$1,0))+AE16)*$X$1 -> 10440.7222 | AI16: 1459.277799 | AJ16: =IF(AND(E16=1,VLOOKUP(C16,Control!$N$4:$R$25,5,FALSE)>0.8),6000,INDEX(Control!$O$30:$S$41,E16,MATCH(I16,Control!$O$29:$S$29,0))) -> 4500 | AK16: =Data!R16 -> 3715 | AL16: 4003.666667 | AM16: =AVERAGE(AK12:AK16) -> 4039.2 | AN16: =AVERAGE(AK$12:AK16) -> 4039.2 | AO16: 0 | AP16: =IF(E16=2,VLOOKUP(C16,Control!$N$4:$Y$25,12,FALSE),IF(AND(E16>2,E16<7),0.35,0.65)) -> 0.65 | AQ16: =Data!T16+Data!U16 -> 10724 | AR16: 10637.66667 | AS16: =AVERAGE(Data!P12:P16) -> 16462.6 | AT16: 96.95897436 | AU16: =MIN(MAX(INDEX(WRs!$C$364:$N$364,1,WAA!E16)-WAA!AQ16,0),MAX(AS16*AP16-AR16,0)) -> 63.02333333 | AV16: =MAX(INDEX(WRs!$C$358:$N$358,1,E16)-Data!V16,0) -> 99 | AW16: =MAX(INDEX(WRs!$C$361:$N$361,1,E16)+INDEX(WRs!$C$362:$N$362,1,E16)-Data!S16,0) -> 180 | AX16: =INDEX(WRs!$C$363:$N$363,1,E16) -> 31 | AY16: 373.0233333 | AZ16: =Data!Z16 -> 80.82 | BA16: =IF(AND(E16>1,E16<5),7100,IF(AND(E16>4,E16<7),VLOOKUP(A16,Control!$N$4:$Z$25,13,FALSE),0)) -> 0 | BB16: =Data!AA16 -> 2.877 | BC16: =AVERAGE(BB12:BB16) -> 5.08 | BD16: =IF(G16=2.01,IF(AND(VLOOKUP(A16,Control!$N$4:$S$25,6,FALSE)>0.9,MIN(BB16:BB29,BC16:BC29)>2.64),0,1),BD15) -> 1 | BE16: =Data!AB16 -> 7.43 | BF16: =AVERAGE(BE12:BE16) -> 6.958 | BG16: =IF(AND(E16>1,E16<7),INDEX(Control!$AJ$4:$AN$126,MATCH(VLOOKUP(A16,Control!$N$4:$W$25,E16+4,FALSE)*1000,Control!$AI$4:$AI$126,1),E16-1),0) -> 0 | BH16: 0 | BI16: 0 | BJ16: =Data!AC16 -> 15.93 | BK16: =AVERAGE(BJ12:BJ16) -> 15.6972 | BL16: =IF(F16=1,IF(AND(E16>1,E16<7,BK15<=2.64),INDEX(Control!$AQ$4:$AU$102,MATCH(VLOOKUP(A16,Control!$N$4:$W$25,E16+4,FALSE)*1000,Control!$AP$4:$AP$126,1),E16-1),0),BL15) -> 0 | BM16: 0 | BN16: 0 | BO16: 99999 | BP16: =INDEX(Control!$V$30:$Z$41,E16,MATCH(I16,Control!$V$29:$Z$29,0)) -> 99999 | BQ16: 0 | BR16: 0 | BS16: 99999 | BT16: =INDEX(Control!$AC$30:$AG$41,E16,MATCH(I16,Control!$AC$29:$AG$29,0)) -> 0 | BU16: =Data!Y16 -> 7579 | BV16: =AVERAGE(BU12:BU16) -> 7721 | BW16: =AVERAGE(BU$12:BU16) -> 7721 | BX16: =Data!N16 -> 6251 | BY16: =ABS(BX16-(Data!L16*Control!$AC$18+Control!$AD$18)) -> 3533.4 | BZ16: =ABS(BX16-(Data!L16*Control!$AC$19+Control!$AD$19)) -> 523.8 | CA16: =ABS(BX16-(Data!L16*Control!$AC$20+Control!$AD$20)) -> 0.4 | CB16: 2 | CC16: 7721 | CD16: =IF(BT16=0,99999,(CC16+INDEX(Control!$AD$18:$AD$20,CB16+1))/(1-INDEX(Control!$AC$18:$AC$20,CB16+1))) -> 99999 | CE16: =IF(OR(G16>=Control!$B$4,G16<=Control!$C$4),1,0) -> 1 | CF16: =Data!B16 -> 0 | CG16: 0 | CH16: 0 | CI16: =Data!C16 -> 1 | CJ16: 0 | CK16: 0 | CL16: 0 | CM16: 0 | CN16: 0 | CO16: =INDEX(Control!$G$15:$G$26,MATCH(E16,Control!$C$15:$C$26,0)) -> 2200 | CP16: 0 | CQ16: =INDEX(Control!$H$15:$H$26,MATCH(E16,Control!$C$15:$C$26,0)) -> 2000 | CR16: 0 | CS16: 0 | CU16: 31 | CV16: 2000.05 | CW16: 769586.36 | CX16: 100371.5159 | CY16: 0 | CZ16: 31 | DA16: 769586.36 | DB16: 199834.6025 | DC16: 387542.3707 | DD16: 382043.9893 | DE16: 31 | DF16: 769586.36 | DG16: 245950.28 | DH16: 708380.304 | DI16: 84666.10602 | DJ16: 20 | DK16: 605474.0522 | DL16: 657916.999 | DM16: 783209.3849 | DN16: 0 | DO16: 0 | DP16: 1041123.403 | DQ16: 899093.7597 | DR16: 157547.6404 | DS16: 21 | DT16: 0 | DU16: 0 | DV16: 0 | DW16: 8 | DX16: 17 | DY16: 0 | DZ16: 0 | EA16: 0 | EB16: 0 | EC16: 0 | ED16: 0 | EE16: 0
A17: 2000 | B17: 2000.01 | C17: 2000 | D17: 2000.04 | E17: 1 | F17: 6 | G17: 1.06 | H17: 4.06 | I17: W | J17: 2000-01-06 | K17: =Data!D17 -> 6150 | L17: 6063.333333 | M17: =Data!E17+Data!F17+Data!G17 -> 594 | N17: 586.3333333 | O17: =IF(AND(L17>Control!$F$6,N17>Control!$F$7,R16=1),1,0) -> 0 | T17: =CHOOSE($T$1+1,99999,IF(AND(H17>=Control!$F$4,H17<=Control!$F$5),IF(Q17<>0,S17,99999),0)) -> 99999 | U17: 6150 | V17: =INDEX(Control!$D$15:$D$26,MATCH(E17,Control!$C$15:$C$26,0)) -> 3250 | W17: =(INDEX(WRs!$C$47:$N$47,1,MATCH(E17,WRs!$C$1:$N$1,0))+$W$1*(INDEX(WRs!$C$6:$N$6,1,MATCH(E17,WRs!$C$1:$N$1,0))+INDEX(WRs!$C$7:$N$7,1,MATCH(E17,WRs!$C$1:$N$1,0))))*$X$1 -> 3524.282527 | X17: 2625.717473 | Y17: =IF(ISNUMBER(Data!H17),Data!H17,U17) -> 6150 | Z17: =INDEX(Control!$E$15:$E$26,MATCH(E17,Control!$C$15:$C$26,0)) -> 4000 | AA17: =(INDEX(WRs!$C$181:$N$181,1,MATCH(E17,WRs!$C$1:$N$1,0))+$W$1*INDEX(WRs!$C$8:$N$8,1,MATCH(E17,WRs!$C$1:$N$1,0))+W17)*$X$1 -> 8463.419907 | AB17: 0 | AC17: =Data!I17 -> 6700 | AD17: =INDEX(Control!$F$15:$F$26,MATCH(E17,Control!$C$15:$C$26,0)) -> 10700 | AE17: =(INDEX(WRs!$C$274:$N$274,1,MATCH(E17,WRs!$C$1:$N$1,0))+AA17)*$X$1 -> 8985.202438 | AF17: 0 | AG17: =Data!J17 -> 11800 | AH17: =(INDEX(WRs!$C$353:$N$353,1,MATCH(E17,WRs!$C$1:$N$1,0))+AE17)*$X$1 -> 10440.7222 | AI17: 1359.277799 | AJ17: =IF(AND(E17=1,VLOOKUP(C17,Control!$N$4:$R$25,5,FALSE)>0.8),6000,INDEX(Control!$O$30:$S$41,E17,MATCH(I17,Control!$O$29:$S$29,0))) -> 4500 | AK17: =Data!R17 -> 4045 | AL17: 3852 | AM17: =AVERAGE(AK12:AK17) -> 4040.166667 | AN17: =AVERAGE(AK$12:AK17) -> 4040.166667 | AO17: 0 | AP17: =IF(E17=2,VLOOKUP(C17,Control!$N$4:$Y$25,12,FALSE),IF(AND(E17>2,E17<7),0.35,0.65)) -> 0.65 | AQ17: =Data!T17+Data!U17 -> 10409 | AR17: 10631.33333 | AS17: =AVERAGE(Data!P12:P17) -> 16420.16667 | AT17: 64.26923077 | AU17: =MIN(MAX(INDEX(WRs!$C$364:$N$364,1,WAA!E17)-WAA!AQ17,0),MAX(AS17*AP17-AR17,0)) -> 41.775 | AV17: =MAX(INDEX(WRs!$C$358:$N$358,1,E17)-Data!V17,0) -> 83 | AW17: =MAX(INDEX(WRs!$C$361:$N$361,1,E17)+INDEX(WRs!$C$362:$N$362,1,E17)-Data!S17,0) -> 158 | AX17: =INDEX(WRs!$C$363:$N$363,1,E17) -> 31 | AY17: 313.775 | AZ17: =Data!Z17 -> 81.17 | BA17: =IF(AND(E17>1,E17<5),7100,IF(AND(E17>4,E17<7),VLOOKUP(A17,Control!$N$4:$Z$25,13,FALSE),0)) -> 0 | BB17: =Data!AA17 -> 3.718 | BC17: =AVERAGE(BB12:BB17) -> 4.853 | BD17: =IF(G17=2.01,IF(AND(VLOOKUP(A17,Control!$N$4:$S$25,6,FALSE)>0.9,MIN(BB17:BB30,BC17:BC30)>2.64),0,1),BD16) -> 1 | BE17: =Data!AB17 -> 7.64 | BF17: =AVERAGE(BE12:BE17) -> 7.071666667 | BG17: =IF(AND(E17>1,E17<7),INDEX(Control!$AJ$4:$AN$126,MATCH(VLOOKUP(A17,Control!$N$4:$W$25,E17+4,FALSE)*1000,Control!$AI$4:$AI$126,1),E17-1),0) -> 0 | BH17: 0 | BI17: 0 | BJ17: =Data!AC17 -> 15.978 | BK17: =AVERAGE(BJ12:BJ17) -> 15.744 | BL17: =IF(F17=1,IF(AND(E17>1,E17<7,BK16<=2.64),INDEX(Control!$AQ$4:$AU$102,MATCH(VLOOKUP(A17,Control!$N$4:$W$25,E17+4,FALSE)*1000,Control!$AP$4:$AP$126,1),E17-1),0),BL16) -> 0 | BM17: 0 | BN17: 0 | BO17: 99999 | BP17: =INDEX(Control!$V$30:$Z$41,E17,MATCH(I17,Control!$V$29:$Z$29,0)) -> 99999 | BQ17: 0 | BR17: 0 | BS17: 99999 | BT17: =INDEX(Control!$AC$30:$AG$41,E17,MATCH(I17,Control!$AC$29:$AG$29,0)) -> 0 | BU17: =Data!Y17 -> 7583 | BV17: =AVERAGE(BU12:BU17) -> 7698 | BW17: =AVERAGE(BU$12:BU17) -> 7698 | BX17: =Data!N17 -> 6251 | BY17: =ABS(BX17-(Data!L17*Control!$AC$18+Control!$AD$18)) -> 3533.4 | BZ17: =ABS(BX17-(Data!L17*Control!$AC$19+Control!$AD$19)) -> 523.8 | CA17: =ABS(BX17-(Data!L17*Control!$AC$20+Control!$AD$20)) -> 0.4 | CB17: 2 | CC17: 7698 | CD17: =IF(BT17=0,99999,(CC17+INDEX(Control!$AD$18:$AD$20,CB17+1))/(1-INDEX(Control!$AC$18:$AC$20,CB17+1))) -> 99999 | CE17: =IF(OR(G17>=Control!$B$4,G17<=Control!$C$4),1,0) -> 1 | CF17: =Data!B17 -> 0 | CG17: 0 | CH17: 0 | CI17: =Data!C17 -> 1 | CJ17: 0 | CK17: 0 | CL17: 0 | CM17: 0 | CN17: 0 | CO17: =INDEX(Control!$G$15:$G$26,MATCH(E17,Control!$C$15:$C$26,0)) -> 2200 | CP17: 0 | CQ17: =INDEX(Control!$H$15:$H$26,MATCH(E17,Control!$C$15:$C$26,0)) -> 2000 | CR17: 0 | CS17: 0 | CU17: 30 | CV17: 2000.06 | CW17: 801718.574 | CX17: 50219.47693 | CY17: 0 | CZ17: 30 | DA17: 801718.574 | DB17: 193388.325 | DC17: 381824.6165 | DD17: 160790.202 | DE17: 14 | DF17: 801718.574 | DG17: 238016.4 | DH17: 701356.811 | DI17: 16449.15344 | DJ17: 7 | DK17: 489817.9165 | DL17: 636693.87 | DM17: 773695.8232 | DN17: 0 | DO17: 0 | DP17: 842776.403 | DQ17: 886248.6239 | DR17: 619.2054071 | DS17: 2 | DT17: 3 | DU17: 0 | DV17: 0 | DW17: 26 | DX17: 4 | DY17: 0 | DZ17: 0 | EA17: 0 | EB17: 0 | EC17: 0 | ED17: 0 | EE17: 0
A18: 2000 | B18: 2000.01 | C18: 2000 | D18: 2000.04 | E18: 1 | F18: 7 | G18: 1.07 | H18: 4.07 | I18: W | J18: 2000-01-07 | K18: =Data!D18 -> 6030 | L18: 5996.666667 | M18: =Data!E18+Data!F18+Data!G18 -> 585 | N18: 580.3333333 | O18: =IF(AND(L18>Control!$F$6,N18>Control!$F$7,R17=1),1,0) -> 0 | Q18: 0 | R18: 1 | T18: =CHOOSE($T$1+1,99999,IF(AND(H18>=Control!$F$4,H18<=Control!$F$5),IF(Q18<>0,S18,99999),0)) -> 99999 | U18: 6030 | V18: =INDEX(Control!$D$15:$D$26,MATCH(E18,Control!$C$15:$C$26,0)) -> 3250 | W18: =(INDEX(WRs!$C$47:$N$47,1,MATCH(E18,WRs!$C$1:$N$1,0))+$W$1*(INDEX(WRs!$C$6:$N$6,1,MATCH(E18,WRs!$C$1:$N$1,0))+INDEX(WRs!$C$7:$N$7,1,MATCH(E18,WRs!$C$1:$N$1,0))))*$X$1 -> 3524.282527 | X18: 2505.717473 | Y18: =IF(ISNUMBER(Data!H18),Data!H18,U18) -> 6030 | Z18: =INDEX(Control!$E$15:$E$26,MATCH(E18,Control!$C$15:$C$26,0)) -> 4000 | AA18: =(INDEX(WRs!$C$181:$N$181,1,MATCH(E18,WRs!$C$1:$N$1,0))+$W$1*INDEX(WRs!$C$8:$N$8,1,MATCH(E18,WRs!$C$1:$N$1,0))+W18)*$X$1 -> 8463.419907 | AB18: 0 | AC18: =Data!I18 -> 6580 | AD18: =INDEX(Control!$F$15:$F$26,MATCH(E18,Control!$C$15:$C$26,0)) -> 10700 | AE18: =(INDEX(WRs!$C$274:$N$274,1,MATCH(E18,WRs!$C$1:$N$1,0))+AA18)*$X$1 -> 8985.202438 | AF18: 0 | AG18: =Data!J18 -> 11700 | AH18: =(INDEX(WRs!$C$353:$N$353,1,MATCH(E18,WRs!$C$1:$N$1,0))+AE18)*$X$1 -> 10440.7222 | AI18: 1259.277799 | AJ18: =IF(AND(E18=1,VLOOKUP(C18,Control!$N$4:$R$25,5,FALSE)>0.8),6000,INDEX(Control!$O$30:$S$41,E18,MATCH(I18,Control!$O$29:$S$29,0))) -> 4500 | AK18: =Data!R18 -> 3555 | AL18: 3771.666667 | AM18: =AVERAGE(AK12:AK18) -> 3970.857143 | AN18: =AVERAGE(AK$12:AK18) -> 3970.857143 | AO18: 0 | AP18: =IF(E18=2,VLOOKUP(C18,Control!$N$4:$Y$25,12,FALSE),IF(AND(E18>2,E18<7),0.35,0.65)) -> 0.65 | AQ18: =Data!T18+Data!U18 -> 10751 | AR18: 10628 | AS18: =AVERAGE(Data!P12:P18) -> 16370.14286 | AT18: 19.37362637 | AU18: =MIN(MAX(INDEX(WRs!$C$364:$N$364,1,WAA!E18)-WAA!AQ18,0),MAX(AS18*AP18-AR18,0)) -> 12.59285714 | AV18: =MAX(INDEX(WRs!$C$358:$N$358,1,E18)-Data!V18,0) -> 67 | AW18: =MAX(INDEX(WRs!$C$361:$N$361,1,E18)+INDEX(WRs!$C$362:$N$362,1,E18)-Data!S18,0) -> 164 | AX18: =INDEX(WRs!$C$363:$N$363,1,E18) -> 31 | AY18: 274.5928571 | AZ18: =Data!Z18 -> 81.59 | BA18: =IF(AND(E18>1,E18<5),7100,IF(AND(E18>4,E18<7),VLOOKUP(A18,Control!$N$4:$Z$25,13,FALSE),0)) -> 0 | BB18: =Data!AA18 -> 4.164 | BC18: =AVERAGE(BB12:BB18) -> 4.754571429 | BD18: =IF(G18=2.01,IF(AND(VLOOKUP(A18,Control!$N$4:$S$25,6,FALSE)>0.9,MIN(BB18:BB31,BC18:BC31)>2.64),0,1),BD17) -> 1 | BE18: =Data!AB18 -> 8.26 | BF18: =AVERAGE(BE12:BE18) -> 7.241428571 | BG18: =IF(AND(E18>1,E18<7),INDEX(Control!$AJ$4:$AN$126,MATCH(VLOOKUP(A18,Control!$N$4:$W$25,E18+4,FALSE)*1000,Control!$AI$4:$AI$126,1),E18-1),0) -> 0 | BH18: 0 | BI18: 0 | BJ18: =Data!AC18 -> 17.025 | BK18: =AVERAGE(BJ12:BJ18) -> 15.927 | BL18: =IF(F18=1,IF(AND(E18>1,E18<7,BK17<=2.64),INDEX(Control!$AQ$4:$AU$102,MATCH(VLOOKUP(A18,Control!$N$4:$W$25,E18+4,FALSE)*1000,Control!$AP$4:$AP$126,1),E18-1),0),BL17) -> 0 | BM18: 0 | BN18: 0 | BO18: 99999 | BP18: =INDEX(Control!$V$30:$Z$41,E18,MATCH(I18,Control!$V$29:$Z$29,0)) -> 99999 | BQ18: 0 | BR18: 0 | BS18: 99999 | BT18: =INDEX(Control!$AC$30:$AG$41,E18,MATCH(I18,Control!$AC$29:$AG$29,0)) -> 0 | BU18: =Data!Y18 -> 7498 | BV18: =AVERAGE(BU12:BU18) -> 7669.428571 | BW18: =AVERAGE(BU$12:BU18) -> 7669.428571 | BX18: =Data!N18 -> 6221 | BY18: =ABS(BX18-(Data!L18*Control!$AC$18+Control!$AD$18)) -> 3516.7 | BZ18: =ABS(BX18-(Data!L18*Control!$AC$19+Control!$AD$19)) -> 515.4 | CA18: =ABS(BX18-(Data!L18*Control!$AC$20+Control!$AD$20)) -> 0.3 | CB18: 2 | CC18: 7669.428571 | CD18: =IF(BT18=0,99999,(CC18+INDEX(Control!$AD$18:$AD$20,CB18+1))/(1-INDEX(Control!$AC$18:$AC$20,CB18+1))) -> 99999 | CE18: =IF(OR(G18>=Control!$B$4,G18<=Control!$C$4),1,0) -> 1 | CF18: =Data!B18 -> 0 | CG18: 0 | CH18: 0 | CI18: =Data!C18 -> 1 | CJ18: =IF(SUM(INDIRECT(_xlfn.CONCAT($CJ$1,ROW(CI18)-Control!$I$3+1,":",$CJ$1,ROW(CI18))))=0,1,0) -> 0 | CK18: 0 | CL18: 0 | CM18: 0 | CN18: 0 | CO18: =INDEX(Control!$G$15:$G$26,MATCH(E18,Control!$C$15:$C$26,0)) -> 2200 | CP18: 0 | CQ18: =INDEX(Control!$H$15:$H$26,MATCH(E18,Control!$C$15:$C$26,0)) -> 2000 | CR18: 0 | CS18: 0 | CU18: 31 | CV18: 2000.07 | CW18: 943338.332 | CX18: 30930.23118 | CY18: 0 | CZ18: 31 | DA18: 943338.332 | DB18: 199834.6025 | DC18: 397979.8858 | DD18: 0 | DE18: 0 | DF18: 943338.332 | DG18: 245950.28 | DH18: 713136.1162 | DI18: 0 | DJ18: 0 | DK18: 594267.4467 | DL18: 307437.85 | DM18: 783413.5579 | DN18: 0 | DO18: 0 | DP18: 1148230.783 | DQ18: 887940.0372 | DR18: 0 | DS18: 0 | DT18: 31 | DU18: 0 | DV18: 0 | DW18: 31 | DX18: 0 | DY18: 0 | DZ18: 0 | EA18: 0 | EB18: 0 | EC18: 0 | ED18: 0 | EE18: 0
A19: 2000 | B19: 2000.01 | C19: 2000 | D19: 2000.04 | E19: 1 | F19: 8 | G19: 1.08 | H19: 4.08 | I19: W | J19: 2000-01-08 | K19: =Data!D19 -> 6010 | L19: 5963.333333 | M19: =Data!E19+Data!F19+Data!G19 -> 580 | N19: 583.3333333 | O19: =IF(AND(L19>Control!$F$6,N19>Control!$F$7,R18=1),1,0) -> 0 | P19: =IF(AND(Q18>0,Q18<Control!$F$8),0,IF(AND(L19<Control!$F$6-500,N19<Control!$F$7),1,0))*(1-O19) -> 1 | Q19: =IF(AND(Q18<Control!$F$8,Q18>0),Q18+1,IF(AND(O19=1,R18=1),1,0)) -> 0 | R19: =IF(G19=9.01,1,IF(SUM(P13:P19)=7,1,R18))*(1-O19) -> 1 | S19: =IF(AND(Q19>0,OR(K19>Control!$F$9,SUM(S13:S18)>0)),MAX(K19-Control!$F$10,0),0) -> 0 | T19: =CHOOSE($T$1+1,99999,IF(AND(H19>=Control!$F$4,H19<=Control!$F$5),IF(Q19<>0,S19,99999),0)) -> 99999 | U19: 6010 | V19: =INDEX(Control!$D$15:$D$26,MATCH(E19,Control!$C$15:$C$26,0)) -> 3250 | W19: =(INDEX(WRs!$C$47:$N$47,1,MATCH(E19,WRs!$C$1:$N$1,0))+$W$1*(INDEX(WRs!$C$6:$N$6,1,MATCH(E19,WRs!$C$1:$N$1,0))+INDEX(WRs!$C$7:$N$7,1,MATCH(E19,WRs!$C$1:$N$1,0))))*$X$1 -> 3524.282527 | X19: 2485.717473 | Y19: =IF(ISNUMBER(Data!H19),Data!H19,U19) -> 6010 | Z19: =INDEX(Control!$E$15:$E$26,MATCH(E19,Control!$C$15:$C$26,0)) -> 4000 | AA19: =(INDEX(WRs!$C$181:$N$181,1,MATCH(E19,WRs!$C$1:$N$1,0))+$W$1*INDEX(WRs!$C$8:$N$8,1,MATCH(E19,WRs!$C$1:$N$1,0))+W19)*$X$1 -> 8463.419907 | AB19: 0 | AC19: =Data!I19 -> 6430 | AD19: =INDEX(Control!$F$15:$F$26,MATCH(E19,Control!$C$15:$C$26,0)) -> 10700 | AE19: =(INDEX(WRs!$C$274:$N$274,1,MATCH(E19,WRs!$C$1:$N$1,0))+AA19)*$X$1 -> 8985.202438 | AF19: 0 | AG19: =Data!J19 -> 11500 | AH19: =(INDEX(WRs!$C$353:$N$353,1,MATCH(E19,WRs!$C$1:$N$1,0))+AE19)*$X$1 -> 10440.7222 | AI19: 1059.277799 | AJ19: =IF(AND(E19=1,VLOOKUP(C19,Control!$N$4:$R$25,5,FALSE)>0.8),6000,INDEX(Control!$O$30:$S$41,E19,MATCH(I19,Control!$O$29:$S$29,0))) -> 4500 | AK19: =Data!R19 -> 3824 | AL19: 3808 | AM19: =AVERAGE(AK13:AK19) -> 3934.714286 | AN19: =AVERAGE(AK$12:AK19) -> 3952.5 | AO19: 0 | AP19: =IF(E19=2,VLOOKUP(C19,Control!$N$4:$Y$25,12,FALSE),IF(AND(E19>2,E19<7),0.35,0.65)) -> 0.65 | AQ19: =Data!T19+Data!U19 -> 10253 | AR19: 10471 | AS19: =AVERAGE(Data!P12:P19) -> 16304.625 | AT19: 195.3942308 | AU19: =MIN(MAX(INDEX(WRs!$C$364:$N$364,1,WAA!E19)-WAA!AQ19,0),MAX(AS19*AP19-AR19,0)) -> 127.00625 | AV19: =MAX(INDEX(WRs!$C$358:$N$358,1,E19)-Data!V19,0) -> 65 | AW19: =MAX(INDEX(WRs!$C$361:$N$361,1,E19)+INDEX(WRs!$C$362:$N$362,1,E19)-Data!S19,0) -> 161 | AX19: =INDEX(WRs!$C$363:$N$363,1,E19) -> 31 | AY19: 384.00625 | AZ19: =Data!Z19 -> 81.93 | BA19: =IF(AND(E19>1,E19<5),7100,IF(AND(E19>4,E19<7),VLOOKUP(A19,Control!$N$4:$Z$25,13,FALSE),0)) -> 0 | BB19: =Data!AA19 -> 4.352 | BC19: =AVERAGE(BB12:BB19) -> 4.70425 | BD19: =IF(G19=2.01,IF(AND(VLOOKUP(A19,Control!$N$4:$S$25,6,FALSE)>0.9,MIN(BB19:BB32,BC19:BC32)>2.64),0,1),BD18) -> 1 | BE19: =Data!AB19 -> 8.47 | BF19: =AVERAGE(BE12:BE19) -> 7.395 | BG19: =IF(AND(E19>1,E19<7),INDEX(Control!$AJ$4:$AN$126,MATCH(VLOOKUP(A19,Control!$N$4:$W$25,E19+4,FALSE)*1000,Control!$AI$4:$AI$126,1),E19-1),0) -> 0 | BH19: 0 | BI19: 0 | BJ19: =Data!AC19 -> 17.231 | BK19: =AVERAGE(BJ12:BJ19) -> 16.09 | BL19: =IF(F19=1,IF(AND(E19>1,E19<7,BK18<=2.64),INDEX(Control!$AQ$4:$AU$102,MATCH(VLOOKUP(A19,Control!$N$4:$W$25,E19+4,FALSE)*1000,Control!$AP$4:$AP$126,1),E19-1),0),BL18) -> 0 | BM19: 0 | BN19: 0 | BO19: 99999 | BP19: =INDEX(Control!$V$30:$Z$41,E19,MATCH(I19,Control!$V$29:$Z$29,0)) -> 99999 | BQ19: 0 | BR19: 0 | BS19: 99999 | BT19: =INDEX(Control!$AC$30:$AG$41,E19,MATCH(I19,Control!$AC$29:$AG$29,0)) -> 0 | BU19: =Data!Y19 -> 7356 | BV19: =AVERAGE(BU13:BU19) -> 7605.857143 | BW19: =AVERAGE(BU$12:BU19) -> 7630.25 | BX19: =Data!N19 -> 6163 | BY19: =ABS(BX19-(Data!L19*Control!$AC$18+Control!$AD$18)) -> 3485.3 | BZ19: =ABS(BX19-(Data!L19*Control!$AC$19+Control!$AD$19)) -> 500.6 | CA19: =ABS(BX19-(Data!L19*Control!$AC$20+Control!$AD$20)) -> 0.3 | CB19: 2 | CC19: 7605.857143 | CD19: =IF(BT19=0,99999,(CC19+INDEX(Control!$AD$18:$AD$20,CB19+1))/(1-INDEX(Control!$AC$18:$AC$20,CB19+1))) -> 99999 | CE19: =IF(OR(G19>=Control!$B$4,G19<=Control!$C$4),1,0) -> 1 | CF19: =Data!B19 -> 0 | CG19: 0 | CH19: 0 | CI19: =Data!C19 -> 1 | CJ19: =IF(SUM(INDIRECT(_xlfn.CONCAT($CJ$1,ROW(CI19)-Control!$I$3+1,":",$CJ$1,ROW(CI19))))=0,1,0) -> 0 | CK19: 0 | CL19: 0 | CM19: 0 | CN19: 0 | CO19: =INDEX(Control!$G$15:$G$26,MATCH(E19,Control!$C$15:$C$26,0)) -> 2200 | CP19: 0 | CQ19: =INDEX(Control!$H$15:$H$26,MATCH(E19,Control!$C$15:$C$26,0)) -> 2000 | CR19: 0 | CS19: 0 | CU19: 31 | CV19: 2000.08 | CW19: 713632.6713 | CX19: 21580.1536 | CY19: 0 | CZ19: 31 | DA19: 713632.6713 | DB19: 199834.6025 | DC19: 374553.1216 | DD19: 0 | DE19: 0 | DF19: 713632.6713 | DG19: 245950.28 | DH19: 696430.3127 | DI19: 0 | DJ19: 0 | DK19: 479682.3848 | DL19: 307437.85 | DM19: 766586.078 | DN19: 0 | DO19: 0 | DP19: 1028627.542 | DQ19: 871128.5646 | DR19: 0 | DS19: 0 | DT19: 17 | DU19: 0 | DV19: 0 | DW19: 31 | DX19: 0 | DY19: 0 | DZ19: 0 | EA19: 0 | EB19: 0 | EC19: 0 | ED19: 0 | EE19: 0
A20: 2000 | B20: 2000.01 | C20: 2000 | D20: 2000.04 | E20: 1 | F20: 9 | G20: 1.09 | H20: 4.09 | I20: W | J20: 2000-01-09 | K20: =Data!D20 -> 5950 | L20: 6233.333333 | M20: =Data!E20+Data!F20+Data!G20 -> 576 | N20: 775.3333333 | O20: =IF(AND(L20>Control!$F$6,N20>Control!$F$7,R19=1),1,0) -> 0 | P20: =IF(AND(Q19>0,Q19<Control!$F$8),0,IF(AND(L20<Control!$F$6-500,N20<Control!$F$7),1,0))*(1-O20) -> 1 | Q20: =IF(AND(Q19<Control!$F$8,Q19>0),Q19+1,IF(AND(O20=1,R19=1),1,0)) -> 0 | R20: =IF(G20=9.01,1,IF(SUM(P14:P20)=7,1,R19))*(1-O20) -> 1 | S20: =IF(AND(Q20>0,OR(K20>Control!$F$9,SUM(S14:S19)>0)),MAX(K20-Control!$F$10,0),0) -> 0 | T20: =CHOOSE($T$1+1,99999,IF(AND(H20>=Control!$F$4,H20<=Control!$F$5),IF(Q20<>0,S20,99999),0)) -> 99999 | U20: 5950 | V20: =INDEX(Control!$D$15:$D$26,MATCH(E20,Control!$C$15:$C$26,0)) -> 3250 | W20: =(INDEX(WRs!$C$47:$N$47,1,MATCH(E20,WRs!$C$1:$N$1,0))+$W$1*(INDEX(WRs!$C$6:$N$6,1,MATCH(E20,WRs!$C$1:$N$1,0))+INDEX(WRs!$C$7:$N$7,1,MATCH(E20,WRs!$C$1:$N$1,0))))*$X$1 -> 3524.282527 | X20: 2425.717473 | Y20: =IF(ISNUMBER(Data!H20),Data!H20,U20) -> 5950 | Z20: =INDEX(Control!$E$15:$E$26,MATCH(E20,Control!$C$15:$C$26,0)) -> 4000 | AA20: =(INDEX(WRs!$C$181:$N$181,1,MATCH(E20,WRs!$C$1:$N$1,0))+$W$1*INDEX(WRs!$C$8:$N$8,1,MATCH(E20,WRs!$C$1:$N$1,0))+W20)*$X$1 -> 8463.419907 | AB20: 0 | AC20: =Data!I20 -> 6290 | AD20: =INDEX(Control!$F$15:$F$26,MATCH(E20,Control!$C$15:$C$26,0)) -> 10700 | AE20: =(INDEX(WRs!$C$274:$N$274,1,MATCH(E20,WRs!$C$1:$N$1,0))+AA20)*$X$1 -> 8985.202438 | AF20: 0 | AG20: =Data!J20 -> 11400 | AH20: =(INDEX(WRs!$C$353:$N$353,1,MATCH(E20,WRs!$C$1:$N$1,0))+AE20)*$X$1 -> 10440.7222 | AI20: 959.2777993 | AJ20: =IF(AND(E20=1,VLOOKUP(C20,Control!$N$4:$R$25,5,FALSE)>0.8),6000,INDEX(Control!$O$30:$S$41,E20,MATCH(I20,Control!$O$29:$S$29,0))) -> 4500 | AK20: =Data!R20 -> 3523 | AL20: 3634 | AM20: 3851.142857 | AN20: =AVERAGE(AK$12:AK20) -> 3904.777778 | AO20: 0 | AP20: =IF(E20=2,VLOOKUP(C20,Control!$N$4:$Y$25,12,FALSE),IF(AND(E20>2,E20<7),0.35,0.65)) -> 0.65 | AQ20: =Data!T20+Data!U20 -> 10600 | AR20: 10534.66667 | AS20: =AVERAGE(Data!P12:P20) -> 16248.33333 | AT20: 41.15384615 | AU20: =MIN(MAX(INDEX(WRs!$C$364:$N$364,1,WAA!E20)-WAA!AQ20,0),MAX(AS20*AP20-AR20,0)) -> 26.75 | AV20: =MAX(INDEX(WRs!$C$358:$N$358,1,E20)-Data!V20,0) -> 59 | AW20: =MAX(INDEX(WRs!$C$361:$N$361,1,E20)+INDEX(WRs!$C$362:$N$362,1,E20)-Data!S20,0) -> 161 | AX20: =INDEX(WRs!$C$363:$N$363,1,E20) -> 31 | AY20: 277.75 | AZ20: =Data!Z20 -> 82.31 | BA20: =IF(AND(E20>1,E20<5),7100,IF(AND(E20>4,E20<7),VLOOKUP(A20,Control!$N$4:$Z$25,13,FALSE),0)) -> 0 | BB20: =Data!AA20 -> 4.425 | BC20: =AVERAGE(BB12:BB20) -> 4.673222222 | BD20: =IF(G20=2.01,IF(AND(VLOOKUP(A20,Control!$N$4:$S$25,6,FALSE)>0.9,MIN(BB20:BB33,BC20:BC33)>2.64),0,1),BD19) -> 1 | BE20: =Data!AB20 -> 8.44 | BF20: =AVERAGE(BE12:BE20) -> 7.511111111 | BG20: =IF(AND(E20>1,E20<7),INDEX(Control!$AJ$4:$AN$126,MATCH(VLOOKUP(A20,Control!$N$4:$W$25,E20+4,FALSE)*1000,Control!$AI$4:$AI$126,1),E20-1),0) -> 0 | BH20: 0 | BI20: 0 | BJ20: =Data!AC20 -> 17.178 | BK20: =AVERAGE(BJ12:BJ20) -> 16.21088889 | BL20: =IF(F20=1,IF(AND(E20>1,E20<7,BK19<=2.64),INDEX(Control!$AQ$4:$AU$102,MATCH(VLOOKUP(A20,Control!$N$4:$W$25,E20+4,FALSE)*1000,Control!$AP$4:$AP$126,1),E20-1),0),BL19) -> 0 | BM20: 0 | BN20: 0 | BO20: 99999 | BP20: =INDEX(Control!$V$30:$Z$41,E20,MATCH(I20,Control!$V$29:$Z$29,0)) -> 99999 | BQ20: 0 | BR20: 0 | BS20: 99999 | BT20: =INDEX(Control!$AC$30:$AG$41,E20,MATCH(I20,Control!$AC$29:$AG$29,0)) -> 0 | BU20: =Data!Y20 -> 7342 | BV20: 7547 | BW20: =AVERAGE(BU$12:BU20) -> 7598.222222 | BX20: =Data!N20 -> 6133 | BY20: =ABS(BX20-(Data!L20*Control!$AC$18+Control!$AD$18)) -> 3468.6 | BZ20: =ABS(BX20-(Data!L20*Control!$AC$19+Control!$AD$19)) -> 492.2 | CA20: =ABS(BX20-(Data!L20*Control!$AC$20+Control!$AD$20)) -> 0.4 | CB20: 2 | CC20: 7547 | CD20: =IF(BT20=0,99999,(CC20+INDEX(Control!$AD$18:$AD$20,CB20+1))/(1-INDEX(Control!$AC$18:$AC$20,CB20+1))) -> 99999 | CE20: =IF(OR(G20>=Control!$B$4,G20<=Control!$C$4),1,0) -> 1 | CF20: =Data!B20 -> 0 | CG20: 0 | CH20: 0 | CI20: =Data!C20 -> 1 | CJ20: =IF(SUM(INDIRECT(_xlfn.CONCAT($CJ$1,ROW(CI20)-Control!$I$3+1,":",$CJ$1,ROW(CI20))))=0,1,0) -> 0 | CK20: 0 | CL20: 0 | CM20: 0 | CN20: 0 | CO20: =INDEX(Control!$G$15:$G$26,MATCH(E20,Control!$C$15:$C$26,0)) -> 2200 | CP20: 0 | CQ20: =INDEX(Control!$H$15:$H$26,MATCH(E20,Control!$C$15:$C$26,0)) -> 2000 | CR20: 0 | CS20: 0 | CU20: 30 | CV20: 2000.09 | CW20: 467979.9118 | CX20: 24789.40806 | CY20: 0 | CZ20: 30 | DA20: 467979.9118 | DB20: 193388.325 | DC20: 301430.0774 | DD20: 166549.8344 | DE20: 30 | DF20: 467979.9118 | DG20: 238016.4 | DH20: 660383.5761 | DI20: 0 | DJ20: 0 | DK20: 428627.867 | DL20: 297520.5 | DM20: 732766.2703 | DN20: 0 | DO20: 0 | DP20: 835834.258 | DQ20: 836858.0924 | DR20: 45146.30054 | DS20: 10 | DT20: 0 | DU20: 0 | DV20: 0 | DW20: 18 | DX20: 6 | DY20: 0 | DZ20: 0 | EA20: 0 | EB20: 0 | EC20: 0 | ED20: 0 | EE20: 0
A21: 2000 | B21: 2000.01 | C21: 2000 | D21: 2000.04 | E21: 1 | F21: 10 | G21: 1.1 | H21: 4.1 | I21: W | J21: 2000-01-10 | K21: =Data!D21 -> 5930 | L21: 6613.333333 | M21: =Data!E21+Data!F21+Data!G21 -> 594 | N21: 1068.666667 | O21: =IF(AND(L21>Control!$F$6,N21>Control!$F$7,R20=1),1,0) -> 0 | P21: =IF(AND(Q20>0,Q20<Control!$F$8),0,IF(AND(L21<Control!$F$6-500,N21<Control!$F$7),1,0))*(1-O21) -> 1 | Q21: =IF(AND(Q20<Control!$F$8,Q20>0),Q20+1,IF(AND(O21=1,R20=1),1,0)) -> 0 | R21: 1 | S21: =IF(AND(Q21>0,OR(K21>Control!$F$9,SUM(S15:S20)>0)),MAX(K21-Control!$F$10,0),0) -> 0 | T21: =CHOOSE($T$1+1,99999,IF(AND(H21>=Control!$F$4,H21<=Control!$F$5),IF(Q21<>0,S21,99999),0)) -> 99999 | U21: 5930 | V21: =INDEX(Control!$D$15:$D$26,MATCH(E21,Control!$C$15:$C$26,0)) -> 3250 | W21: =(INDEX(WRs!$C$47:$N$47,1,MATCH(E21,WRs!$C$1:$N$1,0))+$W$1*(INDEX(WRs!$C$6:$N$6,1,MATCH(E21,WRs!$C$1:$N$1,0))+INDEX(WRs!$C$7:$N$7,1,MATCH(E21,WRs!$C$1:$N$1,0))))*$X$1 -> 3524.282527 | X21: 2405.717473 | Y21: =IF(ISNUMBER(Data!H21),Data!H21,U21) -> 5930 | Z21: =INDEX(Control!$E$15:$E$26,MATCH(E21,Control!$C$15:$C$26,0)) -> 4000 | AA21: =(INDEX(WRs!$C$181:$N$181,1,MATCH(E21,WRs!$C$1:$N$1,0))+$W$1*INDEX(WRs!$C$8:$N$8,1,MATCH(E21,WRs!$C$1:$N$1,0))+W21)*$X$1 -> 8463.419907 | AB21: 0 | AC21: =Data!I21 -> 6290 | AD21: =INDEX(Control!$F$15:$F$26,MATCH(E21,Control!$C$15:$C$26,0)) -> 10700 | AE21: =(INDEX(WRs!$C$274:$N$274,1,MATCH(E21,WRs!$C$1:$N$1,0))+AA21)*$X$1 -> 8985.202438 | AF21: 0 | AG21: =Data!J21 -> 11300 | AH21: =(INDEX(WRs!$C$353:$N$353,1,MATCH(E21,WRs!$C$1:$N$1,0))+AE21)*$X$1 -> 10440.7222 | AI21: 859.2777993 | AJ21: =IF(AND(E21=1,VLOOKUP(C21,Control!$N$4:$R$25,5,FALSE)>0.8),6000,INDEX(Control!$O$30:$S$41,E21,MATCH(I21,Control!$O$29:$S$29,0))) -> 4500 | AK21: =Data!R21 -> 3496 | AL21: 3614.333333 | AM21: 3707.714286 | AN21: =AVERAGE(AK$12:AK21) -> 3863.9 | AO21: 0 | AP21: =IF(E21=2,VLOOKUP(C21,Control!$N$4:$Y$25,12,FALSE),IF(AND(E21>2,E21<7),0.35,0.65)) -> 0.65 | AQ21: =Data!T21+Data!U21 -> 10503 | AR21: 10452 | AS21: =AVERAGE(Data!P12:P21) -> 16186.4 | AT21: 106.4 | AU21: =MIN(MAX(INDEX(WRs!$C$364:$N$364,1,WAA!E21)-WAA!AQ21,0),MAX(AS21*AP21-AR21,0)) -> 69.16 | AV21: =MAX(INDEX(WRs!$C$358:$N$358,1,E21)-Data!V21,0) -> 54 | AW21: =MAX(INDEX(WRs!$C$361:$N$361,1,E21)+INDEX(WRs!$C$362:$N$362,1,E21)-Data!S21,0) -> 161 | AX21: =INDEX(WRs!$C$363:$N$363,1,E21) -> 31 | AY21: 315.16 | AZ21: =Data!Z21 -> 82.68 | BA21: =IF(AND(E21>1,E21<5),7100,IF(AND(E21>4,E21<7),VLOOKUP(A21,Control!$N$4:$Z$25,13,FALSE),0)) -> 0 | BB21: =Data!AA21 -> 4.505 | BC21: =AVERAGE(BB12:BB21) -> 4.6564 | BD21: =IF(G21=2.01,IF(AND(VLOOKUP(A21,Control!$N$4:$S$25,6,FALSE)>0.9,MIN(BB21:BB34,BC21:BC34)>2.64),0,1),BD20) -> 1 | BE21: =Data!AB21 -> 8.16 | BF21: =AVERAGE(BE12:BE21) -> 7.576 | BG21: =IF(AND(E21>1,E21<7),INDEX(Control!$AJ$4:$AN$126,MATCH(VLOOKUP(A21,Control!$N$4:$W$25,E21+4,FALSE)*1000,Control!$AI$4:$AI$126,1),E21-1),0) -> 0 | BH21: 0 | BI21: 0 | BJ21: =Data!AC21 -> 17.634 | BK21: =AVERAGE(BJ12:BJ21) -> 16.3532 | BL21: =IF(F21=1,IF(AND(E21>1,E21<7,BK20<=2.64),INDEX(Control!$AQ$4:$AU$102,MATCH(VLOOKUP(A21,Control!$N$4:$W$25,E21+4,FALSE)*1000,Control!$AP$4:$AP$126,1),E21-1),0),BL20) -> 0 | BM21: 0 | BN21: 0 | BO21: 99999 | BP21: =INDEX(Control!$V$30:$Z$41,E21,MATCH(I21,Control!$V$29:$Z$29,0)) -> 99999 | BQ21: 0 | BR21: 0 | BS21: 99999 | BT21: =INDEX(Control!$AC$30:$AG$41,E21,MATCH(I21,Control!$AC$29:$AG$29,0)) -> 0 | BU21: =Data!Y21 -> 7226 | BV21: 7460 | BW21: =AVERAGE(BU$12:BU21) -> 7561 | BX21: =Data!N21 -> 6075 | BY21: =ABS(BX21-(Data!L21*Control!$AC$18+Control!$AD$18)) -> 3437.2 | BZ21: =ABS(BX21-(Data!L21*Control!$AC$19+Control!$AD$19)) -> 477.4 | CA21: =ABS(BX21-(Data!L21*Control!$AC$20+Control!$AD$20)) -> 0.2 | CB21: 2 | CC21: 7460 | CD21: =IF(BT21=0,99999,(CC21+INDEX(Control!$AD$18:$AD$20,CB21+1))/(1-INDEX(Control!$AC$18:$AC$20,CB21+1))) -> 99999 | CE21: =IF(OR(G21>=Control!$B$4,G21<=Control!$C$4),1,0) -> 1 | CF21: =Data!B21 -> 0 | CG21: 0 | CH21: 0 | CI21: =Data!C21 -> 1 | CJ21: =IF(SUM(INDIRECT(_xlfn.CONCAT($CJ$1,ROW(CI21)-Control!$I$3+1,":",$CJ$1,ROW(CI21))))=0,1,0) -> 0 | CK21: 0 | CL21: 0 | CM21: 0 | CN21: 0 | CO21: =INDEX(Control!$G$15:$G$26,MATCH(E21,Control!$C$15:$C$26,0)) -> 2200 | CP21: 0 | CQ21: =INDEX(Control!$H$15:$H$26,MATCH(E21,Control!$C$15:$C$26,0)) -> 2000 | CR21: 0 | CS21: 0 | CU21: 31 | CV21: 2000.1 | CW21: 422379.9365 | CX21: 36444.27778 | CY21: 0 | CZ21: 31 | DA21: 422379.9365 | DB21: 199834.6025 | DC21: 358035.5198 | DD21: 64344.41671 | DE21: 31 | DF21: 422379.9365 | DG21: 245950.28 | DH21: 722198.0626 | DI21: 0 | DJ21: 0 | DK21: 352363.4455 | DL21: 657916.999 | DM21: 788616.788 | DN21: 0 | DO21: 0 | DP21: 617057.517 | DQ21: 897095.1626 | DR21: 0 | DS21: 0 | DT21: 0 | DU21: 0 | DV21: 0 | DW21: 30 | DX21: 0 | DY21: 0 | DZ21: 0 | EA21: 0 | EB21: 0 | EC21: 0 | ED21: 0 | EE21: 0
A22: 2000 | B22: 2000.01 | C22: 2000 | D22: 2000.04 | E22: 1 | F22: 11 | G22: 1.11 | H22: 4.11 | I22: W | J22: 2000-01-11 | K22: =Data!D22 -> 6820 | L22: 6766.666667 | M22: =Data!E22+Data!F22+Data!G22 -> 1156 | N22: 1300.666667 | O22: =IF(AND(L22>Control!$F$6,N22>Control!$F$7,R21=1),1,0) -> 0 | P22: =IF(AND(Q21>0,Q21<Control!$F$8),0,IF(AND(L22<Control!$F$6-500,N22<Control!$F$7),1,0))*(1-O22) -> 1 | Q22: =IF(AND(Q21<Control!$F$8,Q21>0),Q21+1,IF(AND(O22=1,R21=1),1,0)) -> 0 | R22: 1 | S22: =IF(AND(Q22>0,OR(K22>Control!$F$9,SUM(S16:S21)>0)),MAX(K22-Control!$F$10,0),0) -> 0 | T22: =CHOOSE($T$1+1,99999,IF(AND(H22>=Control!$F$4,H22<=Control!$F$5),IF(Q22<>0,S22,99999),0)) -> 99999 | U22: 6820 | V22: =INDEX(Control!$D$15:$D$26,MATCH(E22,Control!$C$15:$C$26,0)) -> 3250 | W22: =(INDEX(WRs!$C$47:$N$47,1,MATCH(E22,WRs!$C$1:$N$1,0))+$W$1*(INDEX(WRs!$C$6:$N$6,1,MATCH(E22,WRs!$C$1:$N$1,0))+INDEX(WRs!$C$7:$N$7,1,MATCH(E22,WRs!$C$1:$N$1,0))))*$X$1 -> 3524.282527 | X22: 3295.717473 | Y22: =IF(ISNUMBER(Data!H22),Data!H22,U22) -> 6820 | Z22: =INDEX(Control!$E$15:$E$26,MATCH(E22,Control!$C$15:$C$26,0)) -> 4000 | AA22: =(INDEX(WRs!$C$181:$N$181,1,MATCH(E22,WRs!$C$1:$N$1,0))+$W$1*INDEX(WRs!$C$8:$N$8,1,MATCH(E22,WRs!$C$1:$N$1,0))+W22)*$X$1 -> 8463.419907 | AB22: 0 | AC22: =Data!I22 -> 6350 | AD22: =INDEX(Control!$F$15:$F$26,MATCH(E22,Control!$C$15:$C$26,0)) -> 10700 | AE22: =(INDEX(WRs!$C$274:$N$274,1,MATCH(E22,WRs!$C$1:$N$1,0))+AA22)*$X$1 -> 8985.202438 | AF22: 0 | AG22: =Data!J22 -> 11400 | AH22: =(INDEX(WRs!$C$353:$N$353,1,MATCH(E22,WRs!$C$1:$N$1,0))+AE22)*$X$1 -> 10440.7222 | AI22: 959.2777993 | AJ22: =IF(AND(E22=1,VLOOKUP(C22,Control!$N$4:$R$25,5,FALSE)>0.8),6000,INDEX(Control!$O$30:$S$41,E22,MATCH(I22,Control!$O$29:$S$29,0))) -> 4500 | AK22: =Data!R22 -> 5900 | AL22: 4306.333333 | AM22: 4008.285714 | AN22: =AVERAGE(AK$12:AK22) -> 4049 | AO22: 0 | AP22: =IF(E22=2,VLOOKUP(C22,Control!$N$4:$Y$25,12,FALSE),IF(AND(E22>2,E22<7),0.35,0.65)) -> 0.65 | AQ22: =Data!T22+Data!U22 -> 10594 | AR22: 10565.66667 | AS22: =AVERAGE(Data!P12:P22) -> 16135.81818 | AT22: 0 | AU22: =MIN(MAX(INDEX(WRs!$C$364:$N$364,1,WAA!E22)-WAA!AQ22,0),MAX(AS22*AP22-AR22,0)) -> 0 | AV22: =MAX(INDEX(WRs!$C$358:$N$358,1,E22)-Data!V22,0) -> 47 | AW22: =MAX(INDEX(WRs!$C$361:$N$361,1,E22)+INDEX(WRs!$C$362:$N$362,1,E22)-Data!S22,0) -> 141 | AX22: =INDEX(WRs!$C$363:$N$363,1,E22) -> 31 | AY22: 219 | AZ22: =Data!Z22 -> 82.68 | BA22: =IF(AND(E22>1,E22<5),7100,IF(AND(E22>4,E22<7),VLOOKUP(A22,Control!$N$4:$Z$25,13,FALSE),0)) -> 0 | BB22: =Data!AA22 -> 4.745 | BC22: =AVERAGE(BB12:BB22) -> 4.664454545 | BD22: =IF(G22=2.01,IF(AND(VLOOKUP(A22,Control!$N$4:$S$25,6,FALSE)>0.9,MIN(BB22:BB35,BC22:BC35)>2.64),0,1),BD21) -> 1 | BE22: =Data!AB22 -> 8.89 | BF22: =AVERAGE(BE12:BE22) -> 7.695454545 | BG22: =IF(AND(E22>1,E22<7),INDEX(Control!$AJ$4:$AN$126,MATCH(VLOOKUP(A22,Control!$N$4:$W$25,E22+4,FALSE)*1000,Control!$AI$4:$AI$126,1),E22-1),0) -> 0 | BH22: 0 | BI22: 0 | BJ22: =Data!AC22 -> 18.488 | BK22: =AVERAGE(BJ12:BJ22) -> 16.54727273 | BL22: =IF(F22=1,IF(AND(E22>1,E22<7,BK21<=2.64),INDEX(Control!$AQ$4:$AU$102,MATCH(VLOOKUP(A22,Control!$N$4:$W$25,E22+4,FALSE)*1000,Control!$AP$4:$AP$126,1),E22-1),0),BL21) -> 0 | BM22: 0 | BN22: 0 | BO22: 99999 | BP22: =INDEX(Control!$V$30:$Z$41,E22,MATCH(I22,Control!$V$29:$Z$29,0)) -> 99999 | BQ22: 0 | BR22: 0 | BS22: 99999 | BT22: =INDEX(Control!$AC$30:$AG$41,E22,MATCH(I22,Control!$AC$29:$AG$29,0)) -> 0 | BU22: =Data!Y22 -> 7925 | BV22: 7501.285714 | BW22: =AVERAGE(BU$12:BU22) -> 7594.090909 | BX22: =Data!N22 -> 6075 | BY22: =ABS(BX22-(Data!L22*Control!$AC$18+Control!$AD$18)) -> 3437.2 | BZ22: =ABS(BX22-(Data!L22*Control!$AC$19+Control!$AD$19)) -> 477.4 | CA22: =ABS(BX22-(Data!L22*Control!$AC$20+Control!$AD$20)) -> 0.2 | CB22: 2 | CC22: 7501.285714 | CD22: =IF(BT22=0,99999,(CC22+INDEX(Control!$AD$18:$AD$20,CB22+1))/(1-INDEX(Control!$AC$18:$AC$20,CB22+1))) -> 99999 | CE22: =IF(OR(G22>=Control!$B$4,G22<=Control!$C$4),1,0) -> 1 | CF22: =Data!B22 -> 0 | CG22: 0 | CH22: 0 | CI22: =Data!C22 -> 1 | CJ22: =IF(SUM(INDIRECT(_xlfn.CONCAT($CJ$1,ROW(CI22)-Control!$I$3+1,":",$CJ$1,ROW(CI22))))=0,1,0) -> 0 | CK22: 0 | CL22: 0 | CM22: 0 | CN22: 0 | CO22: =INDEX(Control!$G$15:$G$26,MATCH(E22,Control!$C$15:$C$26,0)) -> 2200 | CP22: 0 | CQ22: =INDEX(Control!$H$15:$H$26,MATCH(E22,Control!$C$15:$C$26,0)) -> 2000 | CR22: 0 | CS22: 0 | CU22: 30 | CV22: 2000.11 | CW22: 399808.0479 | CX22: 34663.12172 | CY22: 0 | CZ22: 30 | DA22: 399808.0479 | DB22: 193388.325 | DC22: 242229.2903 | DD22: 157578.7576 | DE22: 30 | DF22: 399808.0479 | DG22: 238016.4 | DH22: 522373.9168 | DI22: 0 | DJ22: 0 | DK22: 345203.1188 | DL22: 636693.87 | DM22: 575957.0887 | DN22: 0 | DO22: 0 | DP22: 619318.6728 | DQ22: 662687.2297 | DR22: 4071.404713 | DS22: 4 | DT22: 0 | DU22: 0 | DV22: 0 | DW22: 25 | DX22: 0 | DY22: 0 | DZ22: 0 | EA22: 0 | EB22: 0 | EC22: 0 | ED22: 0 | EE22: 0
A23: 2000 | B23: 2000.01 | C23: 2000 | D23: 2000.04 | E23: 1 | F23: 12 | G23: 1.12 | H23: 4.12 | I23: W | J23: 2000-01-12 | K23: =Data!D23 -> 7090 | L23: 6733.333333 | M23: =Data!E23+Data!F23+Data!G23 -> 1456 | N23: 1473.666667 | O23: =IF(AND(L23>Control!$F$6,N23>Control!$F$7,R22=1),1,0) -> 0 | P23: =IF(AND(Q22>0,Q22<Control!$F$8),0,IF(AND(L23<Control!$F$6-500,N23<Control!$F$7),1,0))*(1-O23) -> 1 | Q23: =IF(AND(Q22<Control!$F$8,Q22>0),Q22+1,IF(AND(O23=1,R22=1),1,0)) -> 0 | R23: 1 | S23: =IF(AND(Q23>0,OR(K23>Control!$F$9,SUM(S17:S22)>0)),MAX(K23-Control!$F$10,0),0) -> 0 | T23: =CHOOSE($T$1+1,99999,IF(AND(H23>=Control!$F$4,H23<=Control!$F$5),IF(Q23<>0,S23,99999),0)) -> 99999 | U23: 7090 | V23: =INDEX(Control!$D$15:$D$26,MATCH(E23,Control!$C$15:$C$26,0)) -> 3250 | W23: =(INDEX(WRs!$C$47:$N$47,1,MATCH(E23,WRs!$C$1:$N$1,0))+$W$1*(INDEX(WRs!$C$6:$N$6,1,MATCH(E23,WRs!$C$1:$N$1,0))+INDEX(WRs!$C$7:$N$7,1,MATCH(E23,WRs!$C$1:$N$1,0))))*$X$1 -> 3524.282527 | X23: 3565.717473 | Y23: =IF(ISNUMBER(Data!H23),Data!H23,U23) -> 7090 | Z23: =INDEX(Control!$E$15:$E$26,MATCH(E23,Control!$C$15:$C$26,0)) -> 4000 | AA23: =(INDEX(WRs!$C$181:$N$181,1,MATCH(E23,WRs!$C$1:$N$1,0))+$W$1*INDEX(WRs!$C$8:$N$8,1,MATCH(E23,WRs!$C$1:$N$1,0))+W23)*$X$1 -> 8463.419907 | AB23: 0 | AC23: =Data!I23 -> 6600 | AD23: =INDEX(Control!$F$15:$F$26,MATCH(E23,Control!$C$15:$C$26,0)) -> 10700 | AE23: =(INDEX(WRs!$C$274:$N$274,1,MATCH(E23,WRs!$C$1:$N$1,0))+AA23)*$X$1 -> 8985.202438 | AF23: 0 | AG23: =Data!J23 -> 11800 | AH23: =(INDEX(WRs!$C$353:$N$353,1,MATCH(E23,WRs!$C$1:$N$1,0))+AE23)*$X$1 -> 10440.7222 | AI23: 1359.277799 | AJ23: =IF(AND(E23=1,VLOOKUP(C23,Control!$N$4:$R$25,5,FALSE)>0.8),6000,INDEX(Control!$O$30:$S$41,E23,MATCH(I23,Control!$O$29:$S$29,0))) -> 4500 | AK23: =Data!R23 -> 8037 | AL23: 5811 | AM23: 4625.714286 | AN23: =AVERAGE(AK$12:AK23) -> 4381.333333 | AO23: 0 | AP23: =IF(E23=2,VLOOKUP(C23,Control!$N$4:$Y$25,12,FALSE),IF(AND(E23>2,E23<7),0.35,0.65)) -> 0.65 | AQ23: =Data!T23+Data!U23 -> 9832 | AR23: 10309.66667 | AS23: =AVERAGE(Data!P12:P23) -> 16204.33333 | AT23: 343.3076923 | AU23: =MIN(MAX(INDEX(WRs!$C$364:$N$364,1,WAA!E23)-WAA!AQ23,0),MAX(AS23*AP23-AR23,0)) -> 223.15 | AV23: =MAX(INDEX(WRs!$C$358:$N$358,1,E23)-Data!V23,0) -> 65 | AW23: =MAX(INDEX(WRs!$C$361:$N$361,1,E23)+INDEX(WRs!$C$362:$N$362,1,E23)-Data!S23,0) -> 119 | AX23: =INDEX(WRs!$C$363:$N$363,1,E23) -> 31 | AY23: 438.15 | AZ23: =Data!Z23 -> 82.49 | BA23: =IF(AND(E23>1,E23<5),7100,IF(AND(E23>4,E23<7),VLOOKUP(A23,Control!$N$4:$Z$25,13,FALSE),0)) -> 0 | BB23: =Data!AA23 -> 4.436 | BC23: =AVERAGE(BB12:BB23) -> 4.645416667 | BD23: =IF(G23=2.01,IF(AND(VLOOKUP(A23,Control!$N$4:$S$25,6,FALSE)>0.9,MIN(BB23:BB36,BC23:BC36)>2.64),0,1),BD22) -> 1 | BE23: =Data!AB23 -> 8.45 | BF23: =AVERAGE(BE12:BE23) -> 7.758333333 | BG23: =IF(AND(E23>1,E23<7),INDEX(Control!$AJ$4:$AN$126,MATCH(VLOOKUP(A23,Control!$N$4:$W$25,E23+4,FALSE)*1000,Control!$AI$4:$AI$126,1),E23-1),0) -> 0 | BH23: 0 | BI23: 0 | BJ23: =Data!AC23 -> 16.606 | BK23: =AVERAGE(BJ12:BJ23) -> 16.55216667 | BL23: =IF(F23=1,IF(AND(E23>1,E23<7,BK22<=2.64),INDEX(Control!$AQ$4:$AU$102,MATCH(VLOOKUP(A23,Control!$N$4:$W$25,E23+4,FALSE)*1000,Control!$AP$4:$AP$126,1),E23-1),0),BL22) -> 0 | BM23: 0 | BN23: 0 | BO23: 99999 | BP23: =INDEX(Control!$V$30:$Z$41,E23,MATCH(I23,Control!$V$29:$Z$29,0)) -> 99999 | BQ23: 0 | BR23: 0 | BS23: 99999 | BT23: =INDEX(Control!$AC$30:$AG$41,E23,MATCH(I23,Control!$AC$29:$AG$29,0)) -> 0 | BU23: =Data!Y23 -> 8773 | BV23: 7671.857143 | BW23: =AVERAGE(BU$12:BU23) -> 7692.333333 | BX23: =Data!N23 -> 6426 | BY23: =ABS(BX23-(Data!L23*Control!$AC$18+Control!$AD$18)) -> 3628.6 | BZ23: =ABS(BX23-(Data!L23*Control!$AC$19+Control!$AD$19)) -> 569.2 | CA23: =ABS(BX23-(Data!L23*Control!$AC$20+Control!$AD$20)) -> 0.4 | CB23: 2 | CC23: 7671.857143 | CD23: =IF(BT23=0,99999,(CC23+INDEX(Control!$AD$18:$AD$20,CB23+1))/(1-INDEX(Control!$AC$18:$AC$20,CB23+1))) -> 99999 | CE23: =IF(OR(G23>=Control!$B$4,G23<=Control!$C$4),1,0) -> 1 | CF23: =Data!B23 -> 0 | CG23: 0 | CH23: 0 | CI23: =Data!C23 -> 1 | CJ23: =IF(SUM(INDIRECT(_xlfn.CONCAT($CJ$1,ROW(CI23)-Control!$I$3+1,":",$CJ$1,ROW(CI23))))=0,1,0) -> 0 | CK23: 0 | CL23: 0 | CM23: 0 | CN23: 0 | CO23: =INDEX(Control!$G$15:$G$26,MATCH(E23,Control!$C$15:$C$26,0)) -> 2200 | CP23: 0 | CQ23: =INDEX(Control!$H$15:$H$26,MATCH(E23,Control!$C$15:$C$26,0)) -> 2000 | CR23: 0 | CS23: 0 | CU23: 31 | CV23: 2000.12 | CW23: 396654.3306 | CX23: 48493.85803 | CY23: 0 | CZ23: 31 | DA23: 396654.3306 | DB23: 199834.6025 | DC23: 225578.8332 | DD23: 171075.4974 | DE23: 31 | DF23: 396654.3306 | DG23: 245950.28 | DH23: 521062.8002 | DI23: 546.8850726 | DJ23: 1 | DK23: 398082.429 | DL23: 657916.999 | DM23: 550870.9001 | DN23: 0 | DO23: 0 | DP23: 716826.058 | DQ23: 639670.5309 | DR23: 77155.52707 | DS23: 31 | DT23: 0 | DU23: 0 | DV23: 0 | DW23: 31 | DX23: 0 | DY23: 0 | DZ23: 0 | EA23: 0 | EB23: 0 | EC23: 0 | ED23: 0 | EE23: 0
A24: 2000 | B24: 2000.01 | C24: 2000 | D24: 2000.04 | E24: 1 | F24: 13 | G24: 1.13 | H24: 4.13 | I24: W | J24: 2000-01-13 | K24: =Data!D24 -> 6390 | L24: 10236.66667 | M24: =Data!E24+Data!F24+Data!G24 -> 1290 | N24: 4272.666667 | O24: =IF(AND(L24>Control!$F$6,N24>Control!$F$7,R23=1),1,0) -> 1 | P24: =IF(AND(Q23>0,Q23<Control!$F$8),0,IF(AND(L24<Control!$F$6-500,N24<Control!$F$7),1,0))*(1-O24) -> 0 | Q24: =IF(AND(Q23<Control!$F$8,Q23>0),Q23+1,IF(AND(O24=1,R23=1),1,0)) -> 1 | R24: 0 | S24: =IF(AND(Q24>0,OR(K24>Control!$F$9,SUM(S18:S23)>0)),MAX(K24-Control!$F$10,0),0) -> 0 | T24: =CHOOSE($T$1+1,99999,IF(AND(H24>=Control!$F$4,H24<=Control!$F$5),IF(Q24<>0,S24,99999),0)) -> 0 | U24: 6390 | V24: =INDEX(Control!$D$15:$D$26,MATCH(E24,Control!$C$15:$C$26,0)) -> 3250 | W24: =(INDEX(WRs!$C$47:$N$47,1,MATCH(E24,WRs!$C$1:$N$1,0))+$W$1*(INDEX(WRs!$C$6:$N$6,1,MATCH(E24,WRs!$C$1:$N$1,0))+INDEX(WRs!$C$7:$N$7,1,MATCH(E24,WRs!$C$1:$N$1,0))))*$X$1 -> 3524.282527 | X24: 0 | Y24: =IF(ISNUMBER(Data!H24),Data!H24,U24) -> 6390 | Z24: =INDEX(Control!$E$15:$E$26,MATCH(E24,Control!$C$15:$C$26,0)) -> 4000 | AA24: =(INDEX(WRs!$C$181:$N$181,1,MATCH(E24,WRs!$C$1:$N$1,0))+$W$1*INDEX(WRs!$C$8:$N$8,1,MATCH(E24,WRs!$C$1:$N$1,0))+W24)*$X$1 -> 8463.419907 | AB24: 0 | AC24: =Data!I24 -> 8000 | AD24: =INDEX(Control!$F$15:$F$26,MATCH(E24,Control!$C$15:$C$26,0)) -> 10700 | AE24: =(INDEX(WRs!$C$274:$N$274,1,MATCH(E24,WRs!$C$1:$N$1,0))+AA24)*$X$1 -> 8985.202438 | AF24: 0 | AG24: =Data!J24 -> 12400 | AH24: =(INDEX(WRs!$C$353:$N$353,1,MATCH(E24,WRs!$C$1:$N$1,0))+AE24)*$X$1 -> 10440.7222 | AI24: 0 | AJ24: =IF(AND(E24=1,VLOOKUP(C24,Control!$N$4:$R$25,5,FALSE)>0.8),6000,INDEX(Control!$O$30:$S$41,E24,MATCH(I24,Control!$O$29:$S$29,0))) -> 4500 | AK24: =Data!R24 -> 8285 | AL24: 7407.333333 | AM24: 5231.428571 | AN24: =AVERAGE(AK$12:AK24) -> 4681.615385 | AO24: 181.6153846 | AP24: =IF(E24=2,VLOOKUP(C24,Control!$N$4:$Y$25,12,FALSE),IF(AND(E24>2,E24<7),0.35,0.65)) -> 0.65 | AQ24: =Data!T24+Data!U24 -> 9678 | AR24: 10034.66667 | AS24: =AVERAGE(Data!P12:P24) -> 16265.92308 | AT24: 827.974359 | AU24: =MIN(MAX(INDEX(WRs!$C$364:$N$364,1,WAA!E24)-WAA!AQ24,0),MAX(AS24*AP24-AR24,0)) -> 538.1833333 | AV24: =MAX(INDEX(WRs!$C$358:$N$358,1,E24)-Data!V24,0) -> 61 | AW24: =MAX(INDEX(WRs!$C$361:$N$361,1,E24)+INDEX(WRs!$C$362:$N$362,1,E24)-Data!S24,0) -> 170 | AX24: =INDEX(WRs!$C$363:$N$363,1,E24) -> 31 | AY24: 800.1833333 | AZ24: =Data!Z24 -> 82.28 | BA24: =IF(AND(E24>1,E24<5),7100,IF(AND(E24>4,E24<7),VLOOKUP(A24,Control!$N$4:$Z$25,13,FALSE),0)) -> 0 | BB24: =Data!AA24 -> 3.902 | BC24: =AVERAGE(BB12:BB24) -> 4.588230769 | BD24: =IF(G24=2.01,IF(AND(VLOOKUP(A24,Control!$N$4:$S$25,6,FALSE)>0.9,MIN(BB24:BB37,BC24:BC37)>2.64),0,1),BD23) -> 1 | BE24: =Data!AB24 -> 7.64 | BF24: =AVERAGE(BE12:BE24) -> 7.749230769 | BG24: =IF(AND(E24>1,E24<7),INDEX(Control!$AJ$4:$AN$126,MATCH(VLOOKUP(A24,Control!$N$4:$W$25,E24+4,FALSE)*1000,Control!$AI$4:$AI$126,1),E24-1),0) -> 0 | BH24: 0 | BI24: 0 | BJ24: =Data!AC24 -> 16.015 | BK24: =AVERAGE(BJ12:BJ24) -> 16.51084615 | BL24: =IF(F24=1,IF(AND(E24>1,E24<7,BK23<=2.64),INDEX(Control!$AQ$4:$AU$102,MATCH(VLOOKUP(A24,Control!$N$4:$W$25,E24+4,FALSE)*1000,Control!$AP$4:$AP$126,1),E24-1),0),BL23) -> 0 | BM24: 0 | BN24: 0 | BO24: 99999 | BP24: =INDEX(Control!$V$30:$Z$41,E24,MATCH(I24,Control!$V$29:$Z$29,0)) -> 99999 | BQ24: 0 | BR24: 0 | BS24: 99999 | BT24: =INDEX(Control!$AC$30:$AG$41,E24,MATCH(I24,Control!$AC$29:$AG$29,0)) -> 0 | BU24: =Data!Y24 -> 8760 | BV24: 7840 | BW24: =AVERAGE(BU$12:BU24) -> 7774.461538 | BX24: =Data!N24 -> 6426 | BY24: =ABS(BX24-(Data!L24*Control!$AC$18+Control!$AD$18)) -> 3628.6 | BZ24: =ABS(BX24-(Data!L24*Control!$AC$19+Control!$AD$19)) -> 569.2 | CA24: =ABS(BX24-(Data!L24*Control!$AC$20+Control!$AD$20)) -> 0.4 | CB24: 2 | CC24: 7774.461538 | CD24: =IF(BT24=0,99999,(CC24+INDEX(Control!$AD$18:$AD$20,CB24+1))/(1-INDEX(Control!$AC$18:$AC$20,CB24+1))) -> 99999 | CE24: =IF(OR(G24>=Control!$B$4,G24<=Control!$C$4),1,0) -> 1 | CF24: =Data!B24 -> 0 | CG24: 0 | CH24: 0 | CI24: =Data!C24 -> 1 | CJ24: =IF(SUM(INDIRECT(_xlfn.CONCAT($CJ$1,ROW(CI24)-Control!$I$3+1,":",$CJ$1,ROW(CI24))))=0,1,0) -> 0 | CK24: 0 | CL24: 0 | CM24: 0 | CN24: 0 | CO24: =INDEX(Control!$G$15:$G$26,MATCH(E24,Control!$C$15:$C$26,0)) -> 2200 | CP24: 0 | CQ24: =INDEX(Control!$H$15:$H$26,MATCH(E24,Control!$C$15:$C$26,0)) -> 2000 | CR24: 0 | CS24: 0 | CU24: 31 | CV24: 2001.01 | CW24: 428449.3547 | CX24: 96626.72452 | CY24: 1 | CZ24: 24 | DA24: 428449.3547 | DB24: 199834.6025 | DC24: 216699.5686 | DD24: 156569.6065 | DE24: 24 | DF24: 473079.4132 | DG24: 245950.28 | DH24: 520395.1239 | DI24: 70228.52487 | DJ24: 5 | DK24: 562293.9103 | DL24: 657916.999 | DM24: 552478.2639 | DN24: 48793.362 | DO24: 5 | DP24: 947900.313 | DQ24: 641974.6372 | DR24: 206722.5337 | DS24: 24 | DT24: 0 | DU24: 22729.17294 | DV24: 27465.42682 | DW24: 18 | DX24: 2 | DY24: 0 | DZ24: 0 | EA24: 0 | EB24: 0 | EC24: 0 | ED24: 0 | EE24: 0
A25: 2000 | B25: 2000.01 | C25: 2000 | D25: 2000.04 | E25: 1 | F25: 14 | G25: 1.14 | H25: 4.14 | I25: W | J25: 2000-01-14 | K25: =Data!D25 -> 6720 | L25: 12440 | M25: =Data!E25+Data!F25+Data!G25 -> 1675 | N25: 5802.333333 | O25: =IF(AND(L25>Control!$F$6,N25>Control!$F$7,R24=1),1,0) -> 0 | P25: =IF(AND(Q24>0,Q24<Control!$F$8),0,IF(AND(L25<Control!$F$6-500,N25<Control!$F$7),1,0))*(1-O25) -> 0 | Q25: =IF(AND(Q24<Control!$F$8,Q24>0),Q24+1,IF(AND(O25=1,R24=1),1,0)) -> 2 | R25: 0 | S25: =IF(AND(Q25>0,OR(K25>Control!$F$9,SUM(S19:S24)>0)),MAX(K25-Control!$F$10,0),0) -> 0 | T25: =CHOOSE($T$1+1,99999,IF(AND(H25>=Control!$F$4,H25<=Control!$F$5),IF(Q25<>0,S25,99999),0)) -> 0 | U25: 6720 | V25: =INDEX(Control!$D$15:$D$26,MATCH(E25,Control!$C$15:$C$26,0)) -> 3250 | W25: =(INDEX(WRs!$C$47:$N$47,1,MATCH(E25,WRs!$C$1:$N$1,0))+$W$1*(INDEX(WRs!$C$6:$N$6,1,MATCH(E25,WRs!$C$1:$N$1,0))+INDEX(WRs!$C$7:$N$7,1,MATCH(E25,WRs!$C$1:$N$1,0))))*$X$1 -> 3524.282527 | X25: 0 | Y25: =IF(ISNUMBER(Data!H25),Data!H25,U25) -> 6720 | Z25: =INDEX(Control!$E$15:$E$26,MATCH(E25,Control!$C$15:$C$26,0)) -> 4000 | AA25: =(INDEX(WRs!$C$181:$N$181,1,MATCH(E25,WRs!$C$1:$N$1,0))+$W$1*INDEX(WRs!$C$8:$N$8,1,MATCH(E25,WRs!$C$1:$N$1,0))+W25)*$X$1 -> 8463.419907 | AB25: 0 | AC25: =Data!I25 -> 8140 | AD25: =INDEX(Control!$F$15:$F$26,MATCH(E25,Control!$C$15:$C$26,0)) -> 10700 | AE25: =(INDEX(WRs!$C$274:$N$274,1,MATCH(E25,WRs!$C$1:$N$1,0))+AA25)*$X$1 -> 8985.202438 | AF25: 0 | AG25: =Data!J25 -> 13500 | AH25: =(INDEX(WRs!$C$353:$N$353,1,MATCH(E25,WRs!$C$1:$N$1,0))+AE25)*$X$1 -> 10440.7222 | AI25: 0 | AJ25: =IF(AND(E25=1,VLOOKUP(C25,Control!$N$4:$R$25,5,FALSE)>0.8),6000,INDEX(Control!$O$30:$S$41,E25,MATCH(I25,Control!$O$29:$S$29,0))) -> 4500 | AK25: =Data!R25 -> 10070 | AL25: 8797.333333 | AM25: 6162.142857 | AN25: =AVERAGE(AK$12:AK25) -> 5066.5 | AO25: 566.5 | AP25: =IF(E25=2,VLOOKUP(C25,Control!$N$4:$Y$25,12,FALSE),IF(AND(E25>2,E25<7),0.35,0.65)) -> 0.65 | AQ25: =Data!T25+Data!U25 -> 9227 | AR25: 9579 | AS25: =AVERAGE(Data!P12:P25) -> 16408.92857 | AT25: 1672.005495 | AU25: =MIN(MAX(INDEX(WRs!$C$364:$N$364,1,WAA!E25)-WAA!AQ25,0),MAX(AS25*AP25-AR25,0)) -> 1086.803571 | AV25: =MAX(INDEX(WRs!$C$358:$N$358,1,E25)-Data!V25,0) -> 62 | AW25: =MAX(INDEX(WRs!$C$361:$N$361,1,E25)+INDEX(WRs!$C$362:$N$362,1,E25)-Data!S25,0) -> 191 | AX25: =INDEX(WRs!$C$363:$N$363,1,E25) -> 31 | AY25: 1370.803571 | AZ25: =Data!Z25 -> 81.97 | BA25: =IF(AND(E25>1,E25<5),7100,IF(AND(E25>4,E25<7),VLOOKUP(A25,Control!$N$4:$Z$25,13,FALSE),0)) -> 0 | BB25: =Data!AA25 -> 3.901 | BC25: =AVERAGE(BB12:BB25) -> 4.539142857 | BD25: =IF(G25=2.01,IF(AND(VLOOKUP(A25,Control!$N$4:$S$25,6,FALSE)>0.9,MIN(BB25:BB38,BC25:BC38)>2.64),0,1),BD24) -> 1 | BE25: =Data!AB25 -> 7.52 | BF25: =AVERAGE(BE12:BE25) -> 7.732857143 | BG25: =IF(AND(E25>1,E25<7),INDEX(Control!$AJ$4:$AN$126,MATCH(VLOOKUP(A25,Control!$N$4:$W$25,E25+4,FALSE)*1000,Control!$AI$4:$AI$126,1),E25-1),0) -> 0 | BH25: 0 | BI25: 0 | BJ25: =Data!AC25 -> 16.372 | BK25: =AVERAGE(BJ12:BJ25) -> 16.50092857 | BL25: =IF(F25=1,IF(AND(E25>1,E25<7,BK24<=2.64),INDEX(Control!$AQ$4:$AU$102,MATCH(VLOOKUP(A25,Control!$N$4:$W$25,E25+4,FALSE)*1000,Control!$AP$4:$AP$126,1),E25-1),0),BL24) -> 0 | BM25: 0 | BN25: 0 | BO25: 99999 | BP25: =INDEX(Control!$V$30:$Z$41,E25,MATCH(I25,Control!$V$29:$Z$29,0)) -> 99999 | BQ25: 0 | BR25: 0 | BS25: 99999 | BT25: =INDEX(Control!$AC$30:$AG$41,E25,MATCH(I25,Control!$AC$29:$AG$29,0)) -> 0 | BU25: =Data!Y25 -> 9693 | BV25: 8153.571429 | BW25: =AVERAGE(BU$12:BU25) -> 7911.5 | BX25: =Data!N25 -> 6807 | BY25: =ABS(BX25-(Data!L25*Control!$AC$18+Control!$AD$18)) -> 3836.7 | BZ25: =ABS(BX25-(Data!L25*Control!$AC$19+Control!$AD$19)) -> 669.4 | CA25: =ABS(BX25-(Data!L25*Control!$AC$20+Control!$AD$20)) -> 0.3 | CB25: 2 | CC25: 7911.5 | CD25: =IF(BT25=0,99999,(CC25+INDEX(Control!$AD$18:$AD$20,CB25+1))/(1-INDEX(Control!$AC$18:$AC$20,CB25+1))) -> 99999 | CE25: =IF(OR(G25>=Control!$B$4,G25<=Control!$C$4),1,0) -> 1 | CF25: =Data!B25 -> 0 | CG25: 0 | CH25: 0 | CI25: =Data!C25 -> 1 | CJ25: =IF(SUM(INDIRECT(_xlfn.CONCAT($CJ$1,ROW(CI25)-Control!$I$3+1,":",$CJ$1,ROW(CI25))))=0,1,0) -> 0 | CK25: 0 | CL25: 0 | CM25: 0 | CN25: 0 | CO25: =INDEX(Control!$G$15:$G$26,MATCH(E25,Control!$C$15:$C$26,0)) -> 2200 | CP25: 0 | CQ25: =INDEX(Control!$H$15:$H$26,MATCH(E25,Control!$C$15:$C$26,0)) -> 2000 | CR25: 0 | CS25: 0 | CU25: 28 | CV25: 2001.02 | CW25: 469626.1919 | CX25: 176915.6067 | CY25: 1 | CZ25: 21 | DA25: 469626.1919 | DB25: 180495.77 | DC25: 170403.8912 | DD25: 229546.9831 | DE25: 21 | DF25: 630555.0304 | DG25: 222148.64 | DH25: 501470.6151 | DI25: 204395.3754 | DJ25: 10 | DK25: 689235.9903 | DL25: 594247.612 | DM25: 529111.7864 | DN25: 161057.764 | DO25: 9 | DP25: 1046082.078 | DQ25: 587045.2674 | DR25: 366988.3395 | DS25: 21 | DT25: 0 | DU25: 116852.3232 | DV25: 127149.5852 | DW25: 8 | DX25: 14 | DY25: 0 | DZ25: 0 | EA25: 0 | EB25: 0 | EC25: 0 | ED25: 0 | EE25: 0
A26: 2000 | B26: 2000.01 | C26: 2000 | D26: 2000.04 | E26: 1 | F26: 15 | G26: 1.15 | H26: 4.15 | I26: W | J26: 2000-01-15 | K26: =Data!D26 -> 17600 | L26: 13403.33333 | M26: =Data!E26+Data!F26+Data!G26 -> 9853 | N26: 6377 | O26: =IF(AND(L26>Control!$F$6,N26>Control!$F$7,R25=1),1,0) -> 0 | P26: =IF(AND(Q25>0,Q25<Control!$F$8),0,IF(AND(L26<Control!$F$6-500,N26<Control!$F$7),1,0))*(1-O26) -> 0 | Q26: =IF(AND(Q25<Control!$F$8,Q25>0),Q25+1,IF(AND(O26=1,R25=1),1,0)) -> 3 | R26: 0 | S26: =IF(AND(Q26>0,OR(K26>Control!$F$9,SUM(S20:S25)>0)),MAX(K26-Control!$F$10,0),0) -> 0 | T26: =CHOOSE($T$1+1,99999,IF(AND(H26>=Control!$F$4,H26<=Control!$F$5),IF(Q26<>0,S26,99999),0)) -> 0 | U26: 17600 | V26: =INDEX(Control!$D$15:$D$26,MATCH(E26,Control!$C$15:$C$26,0)) -> 3250 | W26: =(INDEX(WRs!$C$47:$N$47,1,MATCH(E26,WRs!$C$1:$N$1,0))+$W$1*(INDEX(WRs!$C$6:$N$6,1,MATCH(E26,WRs!$C$1:$N$1,0))+INDEX(WRs!$C$7:$N$7,1,MATCH(E26,WRs!$C$1:$N$1,0))))*$X$1 -> 3524.282527 | X26: 0 | Y26: =IF(ISNUMBER(Data!H26),Data!H26,U26) -> 17600 | Z26: =INDEX(Control!$E$15:$E$26,MATCH(E26,Control!$C$15:$C$26,0)) -> 4000 | AA26: =(INDEX(WRs!$C$181:$N$181,1,MATCH(E26,WRs!$C$1:$N$1,0))+$W$1*INDEX(WRs!$C$8:$N$8,1,MATCH(E26,WRs!$C$1:$N$1,0))+W26)*$X$1 -> 8463.419907 | AB26: 0 | AC26: =Data!I26 -> 8000 | AD26: =INDEX(Control!$F$15:$F$26,MATCH(E26,Control!$C$15:$C$26,0)) -> 10700 | AE26: =(INDEX(WRs!$C$274:$N$274,1,MATCH(E26,WRs!$C$1:$N$1,0))+AA26)*$X$1 -> 8985.202438 | AF26: 0 | AG26: =Data!J26 -> 13600 | AH26: =(INDEX(WRs!$C$353:$N$353,1,MATCH(E26,WRs!$C$1:$N$1,0))+AE26)*$X$1 -> 10440.7222 | AI26: 0 | AJ26: =IF(AND(E26=1,VLOOKUP(C26,Control!$N$4:$R$25,5,FALSE)>0.8),6000,INDEX(Control!$O$30:$S$41,E26,MATCH(I26,Control!$O$29:$S$29,0))) -> 4500 | AK26: =Data!R26 -> 10226 | AL26: 9527 | AM26: 7076.714286 | AN26: =AVERAGE(AK$12:AK26) -> 5410.466667 | AO26: 910.4666667 | AP26: =IF(E26=2,VLOOKUP(C26,Control!$N$4:$Y$25,12,FALSE),IF(AND(E26>2,E26<7),0.35,0.65)) -> 0.65 | AQ26: =Data!T26+Data!U26 -> 9753 | AR26: =AVERAGE(AQ24:AQ26) -> 9552.666667 | AS26: =AVERAGE(Data!P13:P26) -> 16547.5 | AT26: 1851.089744 | AU26: =MIN(MAX(INDEX(WRs!$C$364:$N$364,1,WAA!E26)-WAA!AQ26,0),MAX(AS26*AP26-AR26,0)) -> 1203.208333 | AV26: =MAX(INDEX(WRs!$C$358:$N$358,1,E26)-Data!V26,0) -> 60 | AW26: =MAX(INDEX(WRs!$C$361:$N$361,1,E26)+INDEX(WRs!$C$362:$N$362,1,E26)-Data!S26,0) -> 129 | AX26: =INDEX(WRs!$C$363:$N$363,1,E26) -> 31 | AY26: 1423.208333 | AZ26: =Data!Z26 -> 81.65 | BA26: =IF(AND(E26>1,E26<5),7100,IF(AND(E26>4,E26<7),VLOOKUP(A26,Control!$N$4:$Z$25,13,FALSE),0)) -> 0 | BB26: =Data!AA26 -> 4.342 | BC26: 4.349 | BD26: =IF(G26=2.01,IF(AND(VLOOKUP(A26,Control!$N$4:$S$25,6,FALSE)>0.9,MIN(BB26:BB39,BC26:BC39)>2.64),0,1),BD25) -> 1 | BE26: =Data!AB26 -> 8.24 | BF26: =AVERAGE(BE13:BE26) -> 7.831428571 | BG26: =IF(AND(E26>1,E26<7),INDEX(Control!$AJ$4:$AN$126,MATCH(VLOOKUP(A26,Control!$N$4:$W$25,E26+4,FALSE)*1000,Control!$AI$4:$AI$126,1),E26-1),0) -> 0 | BH26: 0 | BI26: 0 | BJ26: =Data!AC26 -> 17.085 | BK26: =AVERAGE(BJ13:BJ26) -> 16.56771429 | BL26: =IF(F26=1,IF(AND(E26>1,E26<7,BK25<=2.64),INDEX(Control!$AQ$4:$AU$102,MATCH(VLOOKUP(A26,Control!$N$4:$W$25,E26+4,FALSE)*1000,Control!$AP$4:$AP$126,1),E26-1),0),BL25) -> 0 | BM26: 0 | BN26: 0 | BO26: 99999 | BP26: =INDEX(Control!$V$30:$Z$41,E26,MATCH(I26,Control!$V$29:$Z$29,0)) -> 99999 | BQ26: 0 | BR26: 0 | BS26: 99999 | BT26: =INDEX(Control!$AC$30:$AG$41,E26,MATCH(I26,Control!$AC$29:$AG$29,0)) -> 0 | BU26: =Data!Y26 -> 9967 | BV26: 8526.571429 | BW26: =AVERAGE(BU$12:BU26) -> 8048.533333 | BX26: =Data!N26 -> 6866 | BY26: =ABS(BX26-(Data!L26*Control!$AC$18+Control!$AD$18)) -> 3869.1 | BZ26: =ABS(BX26-(Data!L26*Control!$AC$19+Control!$AD$19)) -> 685.2 | CA26: =ABS(BX26-(Data!L26*Control!$AC$20+Control!$AD$20)) -> 0.1 | CB26: 2 | CC26: 8048.533333 | CD26: =IF(BT26=0,99999,(CC26+INDEX(Control!$AD$18:$AD$20,CB26+1))/(1-INDEX(Control!$AC$18:$AC$20,CB26+1))) -> 99999 | CE26: =IF(OR(G26>=Control!$B$4,G26<=Control!$C$4),1,0) -> 1 | CF26: =Data!B26 -> 0 | CG26: 0 | CH26: 0 | CI26: =Data!C26 -> 1 | CJ26: =IF(SUM(INDIRECT(_xlfn.CONCAT($CJ$1,ROW(CI26)-Control!$I$3+1,":",$CJ$1,ROW(CI26))))=0,1,0) -> 0 | CK26: 0 | CL26: 0 | CM26: 0 | CN26: 0 | CO26: =INDEX(Control!$G$15:$G$26,MATCH(E26,Control!$C$15:$C$26,0)) -> 2200 | CP26: 0 | CQ26: =INDEX(Control!$H$15:$H$26,MATCH(E26,Control!$C$15:$C$26,0)) -> 2000 | CR26: 0 | CS26: 0 | CU26: 31 | CV26: 2001.03 | CW26: 599840.9974 | CX26: 212463.356 | CY26: 0 | CZ26: 31 | DA26: 599840.9974 | DB26: 199834.6025 | DC26: 202707.4571 | DD26: 397133.5403 | DE26: 31 | DF26: 782578.0885 | DG26: 245950.28 | DH26: 580490.0262 | DI26: 238252.4047 | DJ26: 13 | DK26: 870187.9584 | DL26: 657916.999 | DM26: 636274.7303 | DN26: 222148.64 | DO26: 23 | DP26: 1362247.196 | DQ26: 704272.2688 | DR26: 657974.9272 | DS26: 31 | DT26: 0 | DU26: 111166.8882 | DV26: 122408.4562 | DW26: 0 | DX26: 31 | DY26: 126225.5791 | DZ26: 48622.38318 | EA26: 48951.5444 | EB26: 20368.54774 | EC26: 28582.99666 | ED26: 14690.94549 | EE26: 43273.94214
A27: 2000 | B27: 2000.01 | C27: 2000 | D27: 2000.04 | E27: 1 | F27: 16 | G27: 1.16 | H27: 4.16 | I27: W | J27: 2000-01-16 | K27: =Data!D27 -> 13000 | L27: 10330 | M27: =Data!E27+Data!F27+Data!G27 -> 5879 | N27: 4074.333333 | O27: =IF(AND(L27>Control!$F$6,N27>Control!$F$7,R26=1),1,0) -> 0 | P27: =IF(AND(Q26>0,Q26<Control!$F$8),0,IF(AND(L27<Control!$F$6-500,N27<Control!$F$7),1,0))*(1-O27) -> 0 | Q27: =IF(AND(Q26<Control!$F$8,Q26>0),Q26+1,IF(AND(O27=1,R26=1),1,0)) -> 4 | R27: 0 | S27: =IF(AND(Q27>0,OR(K27>Control!$F$9,SUM(S21:S26)>0)),MAX(K27-Control!$F$10,0),0) -> 0 | T27: =CHOOSE($T$1+1,99999,IF(AND(H27>=Control!$F$4,H27<=Control!$F$5),IF(Q27<>0,S27,99999),0)) -> 0 | U27: 13000 | V27: =INDEX(Control!$D$15:$D$26,MATCH(E27,Control!$C$15:$C$26,0)) -> 3250 | W27: =(INDEX(WRs!$C$47:$N$47,1,MATCH(E27,WRs!$C$1:$N$1,0))+$W$1*(INDEX(WRs!$C$6:$N$6,1,MATCH(E27,WRs!$C$1:$N$1,0))+INDEX(WRs!$C$7:$N$7,1,MATCH(E27,WRs!$C$1:$N$1,0))))*$X$1 -> 3524.282527 | X27: 0 | Y27: =IF(ISNUMBER(Data!H27),Data!H27,U27) -> 13000 | Z27: =INDEX(Control!$E$15:$E$26,MATCH(E27,Control!$C$15:$C$26,0)) -> 4000 | AA27: =(INDEX(WRs!$C$181:$N$181,1,MATCH(E27,WRs!$C$1:$N$1,0))+$W$1*INDEX(WRs!$C$8:$N$8,1,MATCH(E27,WRs!$C$1:$N$1,0))+W27)*$X$1 -> 8463.419907 | AB27: 0 | AC27: =Data!I27 -> 10300 | AD27: =INDEX(Control!$F$15:$F$26,MATCH(E27,Control!$C$15:$C$26,0)) -> 10700 | AE27: =(INDEX(WRs!$C$274:$N$274,1,MATCH(E27,WRs!$C$1:$N$1,0))+AA27)*$X$1 -> 8985.202438 | AF27: 0 | AG27: =Data!J27 -> 14300 | AH27: =(INDEX(WRs!$C$353:$N$353,1,MATCH(E27,WRs!$C$1:$N$1,0))+AE27)*$X$1 -> 10440.7222 | AI27: 0 | AJ27: =IF(AND(E27=1,VLOOKUP(C27,Control!$N$4:$R$25,5,FALSE)>0.8),6000,INDEX(Control!$O$30:$S$41,E27,MATCH(I27,Control!$O$29:$S$29,0))) -> 4500 | AK27: =Data!R27 -> 8433 | AL27: 9576.333333 | AM27: 7778.142857 | AN27: =AVERAGE(AK$12:AK27) -> 5599.375 | AO27: 1099.375 | AP27: =IF(E27=2,VLOOKUP(C27,Control!$N$4:$Y$25,12,FALSE),IF(AND(E27>2,E27<7),0.35,0.65)) -> 0.65 | AQ27: =Data!T27+Data!U27 -> 9847 | AR27: 9609 | AS27: =AVERAGE(Data!P14:P27) -> 16697.57143 | AT27: 1914.494505 | AU27: =MIN(MAX(INDEX(WRs!$C$364:$N$364,1,WAA!E27)-WAA!AQ27,0),MAX(AS27*AP27-AR27,0)) -> 1244.421429 | AV27: =MAX(INDEX(WRs!$C$358:$N$358,1,E27)-Data!V27,0) -> 59 | AW27: =MAX(INDEX(WRs!$C$361:$N$361,1,E27)+INDEX(WRs!$C$362:$N$362,1,E27)-Data!S27,0) -> 131 | AX27: =INDEX(WRs!$C$363:$N$363,1,E27) -> 31 | AY27: 1465.421429 | AZ27: =Data!Z27 -> 81.49 | BA27: =IF(AND(E27>1,E27<5),7100,IF(AND(E27>4,E27<7),VLOOKUP(A27,Control!$N$4:$Z$25,13,FALSE),0)) -> 0 | BB27: =Data!AA27 -> 5.537 | BC27: 4.296 | BD27: =IF(G27=2.01,IF(AND(VLOOKUP(A27,Control!$N$4:$S$25,6,FALSE)>0.9,MIN(BB27:BB40,BC27:BC40)>2.64),0,1),BD26) -> 1 | BE27: =Data!AB27 -> 10.76 | BF27: 8.089285714 | BG27: =IF(AND(E27>1,E27<7),INDEX(Control!$AJ$4:$AN$126,MATCH(VLOOKUP(A27,Control!$N$4:$W$25,E27+4,FALSE)*1000,Control!$AI$4:$AI$126,1),E27-1),0) -> 0 | BH27: 0 | BI27: 0 | BJ27: =Data!AC27 -> 19.717 | BK27: 16.86435714 | BL27: =IF(F27=1,IF(AND(E27>1,E27<7,BK26<=2.64),INDEX(Control!$AQ$4:$AU$102,MATCH(VLOOKUP(A27,Control!$N$4:$W$25,E27+4,FALSE)*1000,Control!$AP$4:$AP$126,1),E27-1),0),BL26) -> 0 | BM27: 0 | BN27: 0 | BO27: 99999 | BP27: =INDEX(Control!$V$30:$Z$41,E27,MATCH(I27,Control!$V$29:$Z$29,0)) -> 99999 | BQ27: 0 | BR27: 0 | BS27: 99999 | BT27: =INDEX(Control!$AC$30:$AG$41,E27,MATCH(I27,Control!$AC$29:$AG$29,0)) -> 0 | BU27: =Data!Y27 -> 11788 | BV27: 9161.714286 | BW27: =AVERAGE(BU$12:BU27) -> 8282.25 | BX27: =Data!N27 -> 4558 | BY27: =ABS(BX27-(Data!L27*Control!$AC$18+Control!$AD$18)) -> 1561.1 | BZ27: =ABS(BX27-(Data!L27*Control!$AC$19+Control!$AD$19)) -> 1622.8 | CA27: =ABS(BX27-(Data!L27*Control!$AC$20+Control!$AD$20)) -> 2307.9 | CB27: 0 | CC27: 8282.25 | CD27: =IF(BT27=0,99999,(CC27+INDEX(Control!$AD$18:$AD$20,CB27+1))/(1-INDEX(Control!$AC$18:$AC$20,CB27+1))) -> 99999 | CE27: =IF(OR(G27>=Control!$B$4,G27<=Control!$C$4),1,0) -> 1 | CF27: =Data!B27 -> 0 | CG27: 0 | CH27: 0 | CI27: =Data!C27 -> 1 | CJ27: =IF(SUM(INDIRECT(_xlfn.CONCAT($CJ$1,ROW(CI27)-Control!$I$3+1,":",$CJ$1,ROW(CI27))))=0,1,0) -> 0 | CK27: 0 | CL27: 0 | CM27: 0 | CN27: 0 | CO27: =INDEX(Control!$G$15:$G$26,MATCH(E27,Control!$C$15:$C$26,0)) -> 2200 | CP27: 0 | CQ27: =INDEX(Control!$H$15:$H$26,MATCH(E27,Control!$C$15:$C$26,0)) -> 2000 | CR27: 0 | CS27: 0 | CU27: 30 | CV27: 2001.04 | CW27: 470082.39 | CX27: 70768.22613 | CY27: 0 | CZ27: 30 | DA27: 470082.39 | DB27: 193388.325 | DC27: 370376.5029 | DD27: 99705.88712 | DE27: 30 | DF27: 383813.3458 | DG27: 238016.4 | DH27: 643058.693 | DI27: 0 | DJ27: 0 | DK27: 440052.6542 | DL27: 636693.87 | DM27: 710366.9391 | DN27: 0 | DO27: 0 | DP27: 629355.031 | DQ27: 811616.9959 | DR27: 0 | DS27: 0 | DT27: 0 | DU27: 0 | DV27: 0 | DW27: 0 | DX27: 30 | DY27: 0 | DZ27: 0 | EA27: 0 | EB27: 0 | EC27: 0 | ED27: 0 | EE27: 0
A28: 2000 | B28: 2000.01 | C28: 2000 | D28: 2000.04 | E28: 1 | F28: 17 | G28: 1.17 | H28: 4.17 | I28: W | J28: 2000-01-17 | K28: =Data!D28 -> 9610 | L28: 10330 | M28: =Data!E28+Data!F28+Data!G28 -> 3399 | N28: 4518 | O28: =IF(AND(L28>Control!$F$6,N28>Control!$F$7,R27=1),1,0) -> 0 | P28: =IF(AND(Q27>0,Q27<Control!$F$8),0,IF(AND(L28<Control!$F$6-500,N28<Control!$F$7),1,0))*(1-O28) -> 0 | Q28: =IF(AND(Q27<Control!$F$8,Q27>0),Q27+1,IF(AND(O28=1,R27=1),1,0)) -> 5 | R28: 0 | S28: =IF(AND(Q28>0,OR(K28>Control!$F$9,SUM(S22:S27)>0)),MAX(K28-Control!$F$10,0),0) -> 0 | T28: =CHOOSE($T$1+1,99999,IF(AND(H28>=Control!$F$4,H28<=Control!$F$5),IF(Q28<>0,S28,99999),0)) -> 0 | U28: 9610 | V28: =INDEX(Control!$D$15:$D$26,MATCH(E28,Control!$C$15:$C$26,0)) -> 3250 | W28: =(INDEX(WRs!$C$47:$N$47,1,MATCH(E28,WRs!$C$1:$N$1,0))+$W$1*(INDEX(WRs!$C$6:$N$6,1,MATCH(E28,WRs!$C$1:$N$1,0))+INDEX(WRs!$C$7:$N$7,1,MATCH(E28,WRs!$C$1:$N$1,0))))*$X$1 -> 3524.282527 | X28: 0 | Y28: =IF(ISNUMBER(Data!H28),Data!H28,U28) -> 9610 | Z28: =INDEX(Control!$E$15:$E$26,MATCH(E28,Control!$C$15:$C$26,0)) -> 4000 | AA28: =(INDEX(WRs!$C$181:$N$181,1,MATCH(E28,WRs!$C$1:$N$1,0))+$W$1*INDEX(WRs!$C$8:$N$8,1,MATCH(E28,WRs!$C$1:$N$1,0))+W28)*$X$1 -> 8463.419907 | AB28: 0 | AC28: =Data!I28 -> 15000 | AD28: =INDEX(Control!$F$15:$F$26,MATCH(E28,Control!$C$15:$C$26,0)) -> 10700 | AE28: =(INDEX(WRs!$C$274:$N$274,1,MATCH(E28,WRs!$C$1:$N$1,0))+AA28)*$X$1 -> 8985.202438 | AF28: 0 | AG28: =Data!J28 -> 18700 | AH28: =(INDEX(WRs!$C$353:$N$353,1,MATCH(E28,WRs!$C$1:$N$1,0))+AE28)*$X$1 -> 10440.7222 | AI28: 0 | AJ28: =IF(AND(E28=1,VLOOKUP(C28,Control!$N$4:$R$25,5,FALSE)>0.8),6000,INDEX(Control!$O$30:$S$41,E28,MATCH(I28,Control!$O$29:$S$29,0))) -> 4500 | AK28: =Data!R28 -> 14777 | AL28: 11145.33333 | AM28: 9389.714286 | AN28: =AVERAGE(AK$12:AK28) -> 6139.235294 | AO28: 1639.235294 | AP28: =IF(E28=2,VLOOKUP(C28,Control!$N$4:$Y$25,12,FALSE),IF(AND(E28>2,E28<7),0.35,0.65)) -> 0.65 | AQ28: =Data!T28+Data!U28 -> 7857 | AR28: 9152.333333 | AS28: =AVERAGE(Data!P15:P28) -> 17100.07143 | AT28: 3019.558608 | AU28: =MIN(MAX(INDEX(WRs!$C$364:$N$364,1,WAA!E28)-WAA!AQ28,0),MAX(AS28*AP28-AR28,0)) -> 1962.713095 | AV28: =MAX(INDEX(WRs!$C$358:$N$358,1,E28)-Data!V28,0) -> 59 | AW28: =MAX(INDEX(WRs!$C$361:$N$361,1,E28)+INDEX(WRs!$C$362:$N$362,1,E28)-Data!S28,0) -> 160 | AX28: =INDEX(WRs!$C$363:$N$363,1,E28) -> 31 | AY28: 2212.713095 | AZ28: =Data!Z28 -> 80.96 | BA28: =IF(AND(E28>1,E28<5),7100,IF(AND(E28>4,E28<7),VLOOKUP(A28,Control!$N$4:$Z$25,13,FALSE),0)) -> 0 | BB28: =Data!AA28 -> 5.12 | BC28: 4.176571429 | BD28: =IF(G28=2.01,IF(AND(VLOOKUP(A28,Control!$N$4:$S$25,6,FALSE)>0.9,MIN(BB28:BB41,BC28:BC41)>2.64),0,1),BD27) -> 1 | BE28: =Data!AB28 -> 9.26 | BF28: 8.282857143 | BG28: =IF(AND(E28>1,E28<7),INDEX(Control!$AJ$4:$AN$126,MATCH(VLOOKUP(A28,Control!$N$4:$W$25,E28+4,FALSE)*1000,Control!$AI$4:$AI$126,1),E28-1),0) -> 0 | BH28: 0 | BI28: 0 | BJ28: =Data!AC28 -> 18.174 | BK28: 17.06235714 | BL28: =IF(F28=1,IF(AND(E28>1,E28<7,BK27<=2.64),INDEX(Control!$AQ$4:$AU$102,MATCH(VLOOKUP(A28,Control!$N$4:$W$25,E28+4,FALSE)*1000,Control!$AP$4:$AP$126,1),E28-1),0),BL27) -> 0 | BM28: 0 | BN28: 0 | BO28: 99999 | BP28: =INDEX(Control!$V$30:$Z$41,E28,MATCH(I28,Control!$V$29:$Z$29,0)) -> 99999 | BQ28: 0 | BR28: 0 | BS28: 99999 | BT28: =INDEX(Control!$AC$30:$AG$41,E28,MATCH(I28,Control!$AC$29:$AG$29,0)) -> 0 | BU28: =Data!Y28 -> 16492 | BV28: 10485.42857 | BW28: =AVERAGE(BU$12:BU28) -> 8765.176471 | BX28: =Data!N28 -> 3449 | BY28: =ABS(BX28-(Data!L28*Control!$AC$18+Control!$AD$18)) -> 0.1 | BZ28: =ABS(BX28-(Data!L28*Control!$AC$19+Control!$AD$19)) -> 3466.2 | CA28: =ABS(BX28-(Data!L28*Control!$AC$20+Control!$AD$20)) -> 4413.1 | CB28: 0 | CC28: 8765.176471 | CD28: =IF(BT28=0,99999,(CC28+INDEX(Control!$AD$18:$AD$20,CB28+1))/(1-INDEX(Control!$AC$18:$AC$20,CB28+1))) -> 99999 | CE28: =IF(OR(G28>=Control!$B$4,G28<=Control!$C$4),1,0) -> 1 | CF28: =Data!B28 -> 0 | CG28: 0 | CH28: 0 | CI28: =Data!C28 -> 1 | CJ28: =IF(SUM(INDIRECT(_xlfn.CONCAT($CJ$1,ROW(CI28)-Control!$I$3+1,":",$CJ$1,ROW(CI28))))=0,1,0) -> 0 | CK28: 0 | CL28: 0 | CM28: 0 | CN28: 0 | CO28: =INDEX(Control!$G$15:$G$26,MATCH(E28,Control!$C$15:$C$26,0)) -> 2200 | CP28: 0 | CQ28: =INDEX(Control!$H$15:$H$26,MATCH(E28,Control!$C$15:$C$26,0)) -> 2000 | CR28: 0 | CS28: 0 | CU28: 31 | CV28: 2001.05 | CW28: 649090.5575 | CX28: 48666.41992 | CY28: 0 | CZ28: 31 | DA28: 649090.5575 | DB28: 199834.6025 | DC28: 387542.3707 | DD28: 261548.1868 | DE28: 31 | DF28: 458780.5779 | DG28: 245950.28 | DH28: 708380.304 | DI28: 0 | DJ28: 0 | DK28: 361824.5974 | DL28: 657916.999 | DM28: 783209.3849 | DN28: 0 | DO28: 0 | DP28: 473791.4789 | DQ28: 899093.7597 | DR28: 0 | DS28: 0 | DT28: 0 | DU28: 0 | DV28: 0 | DW28: 20 | DX28: 11 | DY28: 0 | DZ28: 0 | EA28: 0 | EB28: 0 | EC28: 0 | ED28: 0 | EE28: 0
A29: 2000 | B29: 2000.01 | C29: 2000 | D29: 2000.04 | E29: 1 | F29: 18 | G29: 1.18 | H29: 4.18 | I29: W | J29: 2000-01-18 | K29: =Data!D29 -> 8380 | L29: 13593.33333 | M29: =Data!E29+Data!F29+Data!G29 -> 2945 | N29: 6329.333333 | O29: =IF(AND(L29>Control!$F$6,N29>Control!$F$7,R28=1),1,0) -> 0 | P29: =IF(AND(Q28>0,Q28<Control!$F$8),0,IF(AND(L29<Control!$F$6-500,N29<Control!$F$7),1,0))*(1-O29) -> 0 | Q29: =IF(AND(Q28<Control!$F$8,Q28>0),Q28+1,IF(AND(O29=1,R28=1),1,0)) -> 6 | R29: 0 | S29: =IF(AND(Q29>0,OR(K29>Control!$F$9,SUM(S23:S28)>0)),MAX(K29-Control!$F$10,0),0) -> 0 | T29: =CHOOSE($T$1+1,99999,IF(AND(H29>=Control!$F$4,H29<=Control!$F$5),IF(Q29<>0,S29,99999),0)) -> 0 | U29: 8380 | V29: =INDEX(Control!$D$15:$D$26,MATCH(E29,Control!$C$15:$C$26,0)) -> 3250 | W29: =(INDEX(WRs!$C$47:$N$47,1,MATCH(E29,WRs!$C$1:$N$1,0))+$W$1*(INDEX(WRs!$C$6:$N$6,1,MATCH(E29,WRs!$C$1:$N$1,0))+INDEX(WRs!$C$7:$N$7,1,MATCH(E29,WRs!$C$1:$N$1,0))))*$X$1 -> 3524.282527 | X29: 0 | Y29: =IF(ISNUMBER(Data!H29),Data!H29,U29) -> 8380 | Z29: =INDEX(Control!$E$15:$E$26,MATCH(E29,Control!$C$15:$C$26,0)) -> 4000 | AA29: =(INDEX(WRs!$C$181:$N$181,1,MATCH(E29,WRs!$C$1:$N$1,0))+$W$1*INDEX(WRs!$C$8:$N$8,1,MATCH(E29,WRs!$C$1:$N$1,0))+W29)*$X$1 -> 8463.419907 | AB29: 0 | AC29: =Data!I29 -> 14500 | AD29: =INDEX(Control!$F$15:$F$26,MATCH(E29,Control!$C$15:$C$26,0)) -> 10700 | AE29: =(INDEX(WRs!$C$274:$N$274,1,MATCH(E29,WRs!$C$1:$N$1,0))+AA29)*$X$1 -> 8985.202438 | AF29: 0 | AG29: =Data!J29 -> 21300 | AH29: =(INDEX(WRs!$C$353:$N$353,1,MATCH(E29,WRs!$C$1:$N$1,0))+AE29)*$X$1 -> 10440.7222 | AI29: 0 | AJ29: =IF(AND(E29=1,VLOOKUP(C29,Control!$N$4:$R$25,5,FALSE)>0.8),6000,INDEX(Control!$O$30:$S$41,E29,MATCH(I29,Control!$O$29:$S$29,0))) -> 4500 | AK29: =Data!R29 -> 23910 | AL29: 15706.66667 | AM29: 11962.57143 | AN29: =AVERAGE(AK$12:AK29) -> 7126.5 | AO29: 2626.5 | AP29: =IF(E29=2,VLOOKUP(C29,Control!$N$4:$Y$25,12,FALSE),IF(AND(E29>2,E29<7),0.35,0.65)) -> 0.65 | AQ29: =Data!T29+Data!U29 -> 6913 | AR29: 8205.666667 | AS29: =AVERAGE(Data!P16:P29) -> 17851.42857 | AT29: 5227.326007 | AU29: =MIN(MAX(INDEX(WRs!$C$364:$N$364,1,WAA!E29)-WAA!AQ29,0),MAX(AS29*AP29-AR29,0)) -> 3397.761905 | AV29: =MAX(INDEX(WRs!$C$358:$N$358,1,E29)-Data!V29,0) -> 53 | AW29: =MAX(INDEX(WRs!$C$361:$N$361,1,E29)+INDEX(WRs!$C$362:$N$362,1,E29)-Data!S29,0) -> 308 | AX29: =INDEX(WRs!$C$363:$N$363,1,E29) -> 31 | AY29: 3789.761905 | AZ29: =Data!Z29 -> 80.16 | BA29: =IF(AND(E29>1,E29<5),7100,IF(AND(E29>4,E29<7),VLOOKUP(A29,Control!$N$4:$Z$25,13,FALSE),0)) -> 0 | BB29: =Data!AA29 -> 4.737 | BC29: 4.340071429 | BD29: =IF(G29=2.01,IF(AND(VLOOKUP(A29,Control!$N$4:$S$25,6,FALSE)>0.9,MIN(BB29:BB42,BC29:BC42)>2.64),0,1),BD28) -> 1 | BE29: =Data!AB29 -> 8.84 | BF29: 8.428571429 | BG29: =IF(AND(E29>1,E29<7),INDEX(Control!$AJ$4:$AN$126,MATCH(VLOOKUP(A29,Control!$N$4:$W$25,E29+4,FALSE)*1000,Control!$AI$4:$AI$126,1),E29-1),0) -> 0 | BH29: 0 | BI29: 0 | BJ29: =Data!AC29 -> 18.045 | BK29: 17.24842857 | BL29: =IF(F29=1,IF(AND(E29>1,E29<7,BK28<=2.64),INDEX(Control!$AQ$4:$AU$102,MATCH(VLOOKUP(A29,Control!$N$4:$W$25,E29+4,FALSE)*1000,Control!$AP$4:$AP$126,1),E29-1),0),BL28) -> 0 | BM29: 0 | BN29: 0 | BO29: 99999 | BP29: =INDEX(Control!$V$30:$Z$41,E29,MATCH(I29,Control!$V$29:$Z$29,0)) -> 99999 | BQ29: 0 | BR29: 0 | BS29: 99999 | BT29: =INDEX(Control!$AC$30:$AG$41,E29,MATCH(I29,Control!$AC$29:$AG$29,0)) -> 0 | BU29: =Data!Y29 -> 21111 | BV29: 12369.14286 | BW29: =AVERAGE(BU$12:BU29) -> 9451.055556 | BX29: =Data!N29 -> 4008 | BY29: =ABS(BX29-(Data!L29*Control!$AC$18+Control!$AD$18)) -> 0.3 | BZ29: =ABS(BX29-(Data!L29*Control!$AC$19+Control!$AD$19)) -> 3814.4 | CA29: =ABS(BX29-(Data!L29*Control!$AC$20+Control!$AD$20)) -> 5084.7 | CB29: 0 | CC29: 9451.055556 | CD29: =IF(BT29=0,99999,(CC29+INDEX(Control!$AD$18:$AD$20,CB29+1))/(1-INDEX(Control!$AC$18:$AC$20,CB29+1))) -> 99999 | CE29: =IF(OR(G29>=Control!$B$4,G29<=Control!$C$4),1,0) -> 1 | CF29: =Data!B29 -> 0 | CG29: 0 | CH29: 0 | CI29: =Data!C29 -> 1 | CJ29: =IF(SUM(INDIRECT(_xlfn.CONCAT($CJ$1,ROW(CI29)-Control!$I$3+1,":",$CJ$1,ROW(CI29))))=0,1,0) -> 0 | CK29: 0 | CL29: 0 | CM29: 0 | CN29: 0 | CO29: =INDEX(Control!$G$15:$G$26,MATCH(E29,Control!$C$15:$C$26,0)) -> 2200 | CP29: 0 | CQ29: =INDEX(Control!$H$15:$H$26,MATCH(E29,Control!$C$15:$C$26,0)) -> 2000 | CR29: 0 | CS29: 0 | CU29: 30 | CV29: 2001.06 | CW29: 838214.422 | CX29: 25469.73827 | CY29: 0 | CZ29: 30 | DA29: 838214.422 | DB29: 193388.325 | DC29: 381824.6165 | DD29: 186575.312 | DE29: 14 | DF29: 618481.6485 | DG29: 238016.4 | DH29: 701356.811 | DI29: 0 | DJ29: 0 | DK29: 490174.9411 | DL29: 636693.87 | DM29: 773695.8232 | DN29: 0 | DO29: 0 | DP29: 620350.0772 | DQ29: 886248.6239 | DR29: 0 | DS29: 0 | DT29: 27 | DU29: 0 | DV29: 0 | DW29: 30 | DX29: 0 | DY29: 0 | DZ29: 0 | EA29: 0 | EB29: 0 | EC29: 0 | ED29: 0 | EE29: 0
A30: 2000 | B30: 2000.01 | C30: 2000 | D30: 2000.04 | E30: 1 | F30: 19 | G30: 1.19 | H30: 4.19 | I30: W | J30: 2000-01-19 | K30: =Data!D30 -> 13000 | L30: 14100 | M30: =Data!E30+Data!F30+Data!G30 -> 7210 | N30: 6628 | O30: =IF(AND(L30>Control!$F$6,N30>Control!$F$7,R29=1),1,0) -> 0 | P30: =IF(AND(Q29>0,Q29<Control!$F$8),0,IF(AND(L30<Control!$F$6-500,N30<Control!$F$7),1,0))*(1-O30) -> 0 | Q30: =IF(AND(Q29<Control!$F$8,Q29>0),Q29+1,IF(AND(O30=1,R29=1),1,0)) -> 7 | R30: 0 | S30: =IF(AND(Q30>0,OR(K30>Control!$F$9,SUM(S24:S29)>0)),MAX(K30-Control!$F$10,0),0) -> 0 | T30: =CHOOSE($T$1+1,99999,IF(AND(H30>=Control!$F$4,H30<=Control!$F$5),IF(Q30<>0,S30,99999),0)) -> 0 | U30: 13000 | V30: =INDEX(Control!$D$15:$D$26,MATCH(E30,Control!$C$15:$C$26,0)) -> 3250 | W30: =(INDEX(WRs!$C$47:$N$47,1,MATCH(E30,WRs!$C$1:$N$1,0))+$W$1*(INDEX(WRs!$C$6:$N$6,1,MATCH(E30,WRs!$C$1:$N$1,0))+INDEX(WRs!$C$7:$N$7,1,MATCH(E30,WRs!$C$1:$N$1,0))))*$X$1 -> 3524.282527 | X30: 0 | Y30: =IF(ISNUMBER(Data!H30),Data!H30,U30) -> 13000 | Z30: =INDEX(Control!$E$15:$E$26,MATCH(E30,Control!$C$15:$C$26,0)) -> 4000 | AA30: =(INDEX(WRs!$C$181:$N$181,1,MATCH(E30,WRs!$C$1:$N$1,0))+$W$1*INDEX(WRs!$C$8:$N$8,1,MATCH(E30,WRs!$C$1:$N$1,0))+W30)*$X$1 -> 8463.419907 | AB30: 0 | AC30: =Data!I30 -> 12400 | AD30: =INDEX(Control!$F$15:$F$26,MATCH(E30,Control!$C$15:$C$26,0)) -> 10700 | AE30: =(INDEX(WRs!$C$274:$N$274,1,MATCH(E30,WRs!$C$1:$N$1,0))+AA30)*$X$1 -> 8985.202438 | AF30: 0 | AG30: =Data!J30 -> 21800 | AH30: =(INDEX(WRs!$C$353:$N$353,1,MATCH(E30,WRs!$C$1:$N$1,0))+AE30)*$X$1 -> 10440.7222 | AI30: 0 | AJ30: =IF(AND(E30=1,VLOOKUP(C30,Control!$N$4:$R$25,5,FALSE)>0.8),6000,INDEX(Control!$O$30:$S$41,E30,MATCH(I30,Control!$O$29:$S$29,0))) -> 4500 | AK30: =Data!R30 -> 25160 | AL30: 21282.33333 | AM30: 14408.71429 | AN30: =AVERAGE(AK$12:AK30) -> 8075.631579 | AO30: 3575.631579 | AP30: =IF(E30=2,VLOOKUP(C30,Control!$N$4:$Y$25,12,FALSE),IF(AND(E30>2,E30<7),0.35,0.65)) -> 0.65 | AQ30: =Data!T30+Data!U30 -> 7403 | AR30: 7391 | AS30: =AVERAGE(Data!P17:P30) -> 18717.71429 | AT30: 7346.945055 | AU30: =MIN(MAX(INDEX(WRs!$C$364:$N$364,1,WAA!E30)-WAA!AQ30,0),MAX(AS30*AP30-AR30,0)) -> 3877 | AV30: =MAX(INDEX(WRs!$C$358:$N$358,1,E30)-Data!V30,0) -> 65 | AW30: =MAX(INDEX(WRs!$C$361:$N$361,1,E30)+INDEX(WRs!$C$362:$N$362,1,E30)-Data!S30,0) -> 309 | AX30: =INDEX(WRs!$C$363:$N$363,1,E30) -> 31 | AY30: 4282 | AZ30: =Data!Z30 -> 79.37 | BA30: =IF(AND(E30>1,E30<5),7100,IF(AND(E30>4,E30<7),VLOOKUP(A30,Control!$N$4:$Z$25,13,FALSE),0)) -> 0 | BB30: =Data!AA30 -> 4.139 | BC30: 4.430214286 | BD30: =IF(G30=2.01,IF(AND(VLOOKUP(A30,Control!$N$4:$S$25,6,FALSE)>0.9,MIN(BB30:BB43,BC30:BC43)>2.64),0,1),BD29) -> 1 | BE30: =Data!AB30 -> 9.37 | BF30: 8.567142857 | BG30: =IF(AND(E30>1,E30<7),INDEX(Control!$AJ$4:$AN$126,MATCH(VLOOKUP(A30,Control!$N$4:$W$25,E30+4,FALSE)*1000,Control!$AI$4:$AI$126,1),E30-1),0) -> 0 | BH30: 0 | BI30: 0 | BJ30: =Data!AC30 -> 17.413 | BK30: 17.35435714 | BL30: =IF(F30=1,IF(AND(E30>1,E30<7,BK29<=2.64),INDEX(Control!$AQ$4:$AU$102,MATCH(VLOOKUP(A30,Control!$N$4:$W$25,E30+4,FALSE)*1000,Control!$AP$4:$AP$126,1),E30-1),0),BL29) -> 0 | BM30: 0 | BN30: 0 | BO30: 99999 | BP30: =INDEX(Control!$V$30:$Z$41,E30,MATCH(I30,Control!$V$29:$Z$29,0)) -> 99999 | BQ30: 0 | BR30: 0 | BS30: 99999 | BT30: =INDEX(Control!$AC$30:$AG$41,E30,MATCH(I30,Control!$AC$29:$AG$29,0)) -> 0 | BU30: =Data!Y30 -> 22128 | BV30: 14277 | BW30: =AVERAGE(BU$12:BU30) -> 10118.26316 | BX30: =Data!N30 -> 4154 | BY30: =ABS(BX30-(Data!L30*Control!$AC$18+Control!$AD$18)) -> 0 | BZ30: =ABS(BX30-(Data!L30*Control!$AC$19+Control!$AD$19)) -> 3906 | CA30: =ABS(BX30-(Data!L30*Control!$AC$20+Control!$AD$20)) -> 5261 | CB30: 0 | CC30: 10118.26316 | CD30: =IF(BT30=0,99999,(CC30+INDEX(Control!$AD$18:$AD$20,CB30+1))/(1-INDEX(Control!$AC$18:$AC$20,CB30+1))) -> 99999 | CE30: =IF(OR(G30>=Control!$B$4,G30<=Control!$C$4),1,0) -> 1 | CF30: =Data!B30 -> 0 | CG30: 0 | CH30: 0 | CI30: =Data!C30 -> 1 | CJ30: =IF(SUM(INDIRECT(_xlfn.CONCAT($CJ$1,ROW(CI30)-Control!$I$3+1,":",$CJ$1,ROW(CI30))))=0,1,0) -> 0 | CK30: 0 | CL30: 0 | CM30: 0 | CN30: 0 | CO30: =INDEX(Control!$G$15:$G$26,MATCH(E30,Control!$C$15:$C$26,0)) -> 2200 | CP30: 0 | CQ30: =INDEX(Control!$H$15:$H$26,MATCH(E30,Control!$C$15:$C$26,0)) -> 2000 | CR30: 0 | CS30: 0 | CU30: 31 | CV30: 2001.07 | CW30: 943536.679 | CX30: 20824.45153 | CY30: 0 | CZ30: 31 | DA30: 943536.679 | DB30: 199834.6025 | DC30: 397979.8858 | DD30: 0 | DE30: 0 | DF30: 742787.6968 | DG30: 245950.28 | DH30: 713136.1162 | DI30: 0 | DJ30: 0 | DK30: 600297.1955 | DL30: 307437.85 | DM30: 783413.5579 | DN30: 0 | DO30: 0 | DP30: 822148.315 | DQ30: 887940.0372 | DR30: 0 | DS30: 0 | DT30: 31 | DU30: 0 | DV30: 0 | DW30: 31 | DX30: 0 | DY30: 0 | DZ30: 0 | EA30: 0 | EB30: 0 | EC30: 0 | ED30: 0 | EE30: 0
A31: 2000 | B31: 2000.01 | C31: 2000 | D31: 2000.04 | E31: 1 | F31: 20 | G31: 1.2 | H31: 4.2 | I31: W | J31: 2000-01-20 | K31: =Data!D31 -> 19400 | L31: 13090 | M31: =Data!E31+Data!F31+Data!G31 -> 8833 | N31: 5236 | O31: =IF(AND(L31>Control!$F$6,N31>Control!$F$7,R30=1),1,0) -> 0 | P31: =IF(AND(Q30>0,Q30<Control!$F$8),0,IF(AND(L31<Control!$F$6-500,N31<Control!$F$7),1,0))*(1-O31) -> 0 | Q31: =IF(AND(Q30<Control!$F$8,Q30>0),Q30+1,IF(AND(O31=1,R30=1),1,0)) -> 0 | R31: 0 | S31: =IF(AND(Q31>0,OR(K31>Control!$F$9,SUM(S25:S30)>0)),MAX(K31-Control!$F$10,0),0) -> 0 | T31: =CHOOSE($T$1+1,99999,IF(AND(H31>=Control!$F$4,H31<=Control!$F$5),IF(Q31<>0,S31,99999),0)) -> 99999 | U31: 19400 | V31: =INDEX(Control!$D$15:$D$26,MATCH(E31,Control!$C$15:$C$26,0)) -> 3250 | W31: =(INDEX(WRs!$C$47:$N$47,1,MATCH(E31,WRs!$C$1:$N$1,0))+$W$1*(INDEX(WRs!$C$6:$N$6,1,MATCH(E31,WRs!$C$1:$N$1,0))+INDEX(WRs!$C$7:$N$7,1,MATCH(E31,WRs!$C$1:$N$1,0))))*$X$1 -> 3524.282527 | X31: 15875.71747 | Y31: =IF(ISNUMBER(Data!H31),Data!H31,U31) -> 19400 | Z31: =INDEX(Control!$E$15:$E$26,MATCH(E31,Control!$C$15:$C$26,0)) -> 4000 | AA31: =(INDEX(WRs!$C$181:$N$181,1,MATCH(E31,WRs!$C$1:$N$1,0))+$W$1*INDEX(WRs!$C$8:$N$8,1,MATCH(E31,WRs!$C$1:$N$1,0))+W31)*$X$1 -> 8463.419907 | AB31: 10936.58009 | AC31: =Data!I31 -> 13400 | AD31: =INDEX(Control!$F$15:$F$26,MATCH(E31,Control!$C$15:$C$26,0)) -> 10700 | AE31: =(INDEX(WRs!$C$274:$N$274,1,MATCH(E31,WRs!$C$1:$N$1,0))+AA31)*$X$1 -> 8985.202438 | AF31: 2700 | AG31: =Data!J31 -> 20400 | AH31: =(INDEX(WRs!$C$353:$N$353,1,MATCH(E31,WRs!$C$1:$N$1,0))+AE31)*$X$1 -> 10440.7222 | AI31: 9959.277799 | AJ31: =IF(AND(E31=1,VLOOKUP(C31,Control!$N$4:$R$25,5,FALSE)>0.8),6000,INDEX(Control!$O$30:$S$41,E31,MATCH(I31,Control!$O$29:$S$29,0))) -> 4500 | AK31: =Data!R31 -> 23690 | AL31: 24253.33333 | AM31: 16609.42857 | AN31: =AVERAGEIF(E1:E31,E31,AK1:AK31) -> 8856.35 | AO31: 4356.35 | AP31: =IF(E31=2,VLOOKUP(C31,Control!$N$4:$Y$25,12,FALSE),IF(AND(E31>2,E31<7),0.35,0.65)) -> 0.65 | AQ31: =Data!T31+Data!U31 -> 7283 | AR31: 7199.666667 | AS31: =AVERAGE(Data!P18:P31) -> 19469.64286 | AT31: 8393.232601 | AU31: =MIN(MAX(INDEX(WRs!$C$364:$N$364,1,WAA!E31)-WAA!AQ31,0),MAX(AS31*AP31-AR31,0)) -> 3997 | AV31: =MAX(INDEX(WRs!$C$358:$N$358,1,E31)-Data!V31,0) -> 71 | AW31: =MAX(INDEX(WRs!$C$361:$N$361,1,E31)+INDEX(WRs!$C$362:$N$362,1,E31)-Data!S31,0) -> 310 | AX31: =INDEX(WRs!$C$363:$N$363,1,E31) -> 31 | AY31: 4409 | AZ31: =Data!Z31 -> 78.66 | BA31: =IF(AND(E31>1,E31<5),7100,IF(AND(E31>4,E31<7),VLOOKUP(A31,Control!$N$4:$Z$25,13,FALSE),0)) -> 0 | BB31: =Data!AA31 -> 3.665 | BC31: 4.426428571 | BD31: =IF(G31=2.01,IF(AND(VLOOKUP(A31,Control!$N$4:$S$25,6,FALSE)>0.9,MIN(BB31:BB44,BC31:BC44)>2.64),0,1),BD30) -> 1 | BE31: =Data!AB31 -> 9.96 | BF31: 8.732857143 | BG31: =IF(AND(E31>1,E31<7),INDEX(Control!$AJ$4:$AN$126,MATCH(VLOOKUP(A31,Control!$N$4:$W$25,E31+4,FALSE)*1000,Control!$AI$4:$AI$126,1),E31-1),0) -> 0 | BH31: 0 | BI31: 0 | BJ31: =Data!AC31 -> 15.386 | BK31: 17.31207143 | BL31: =IF(F31=1,IF(AND(E31>1,E31<7,BK30<=2.64),INDEX(Control!$AQ$4:$AU$102,MATCH(VLOOKUP(A31,Control!$N$4:$W$25,E31+4,FALSE)*1000,Control!$AP$4:$AP$126,1),E31-1),0),BL30) -> 0 | BM31: 0 | BN31: 0 | BO31: 99999 | BP31: =INDEX(Control!$V$30:$Z$41,E31,MATCH(I31,Control!$V$29:$Z$29,0)) -> 99999 | BQ31: 0 | BR31: 0 | BS31: 99999 | BT31: =INDEX(Control!$AC$30:$AG$41,E31,MATCH(I31,Control!$AC$29:$AG$29,0)) -> 0 | BU31: =Data!Y31 -> 20907 | BV31: 16012.28571 | BW31: =AVERAGEIF(E1:E31,E31,BU1:BU31) -> 10657.7 | BX31: =Data!N31 -> 3968 | BY31: =ABS(BX31-(Data!L31*Control!$AC$18+Control!$AD$18)) -> 0.2 | BZ31: =ABS(BX31-(Data!L31*Control!$AC$19+Control!$AD$19)) -> 3789.6 | CA31: =ABS(BX31-(Data!L31*Control!$AC$20+Control!$AD$20)) -> 5036.8 | CB31: 0 | CC31: 10657.7 | CD31: =IF(BT31=0,99999,(CC31+INDEX(Control!$AD$18:$AD$20,CB31+1))/(1-INDEX(Control!$AC$18:$AC$20,CB31+1))) -> 99999 | CE31: =IF(OR(G31>=Control!$B$4,G31<=Control!$C$4),1,0) -> 1 | CF31: =Data!B31 -> 0 | CG31: 2700 | CH31: 2700 | CI31: =Data!C31 -> 0 | CJ31: =IF(SUM(INDIRECT(_xlfn.CONCAT($CJ$1,ROW(CI31)-Control!$I$3+1,":",$CJ$1,ROW(CI31))))=0,1,0) -> 0 | CK31: 0 | CL31: 0 | CM31: 0 | CN31: 0 | CO31: =INDEX(Control!$G$15:$G$26,MATCH(E31,Control!$C$15:$C$26,0)) -> 2200 | CP31: 0 | CQ31: =INDEX(Control!$H$15:$H$26,MATCH(E31,Control!$C$15:$C$26,0)) -> 2000 | CR31: 0 | CS31: 0 | CU31: 31 | CV31: 2001.08 | CW31: 706373.1711 | CX31: 17769.90773 | CY31: 0 | CZ31: 31 | DA31: 706373.1711 | DB31: 199834.6025 | DC31: 374553.1216 | DD31: 0 | DE31: 0 | DF31: 492461.882 | DG31: 245950.28 | DH31: 696430.3127 | DI31: 0 | DJ31: 0 | DK31: 445507.1967 | DL31: 307437.85 | DM31: 766586.078 | DN31: 0 | DO31: 0 | DP31: 751140.089 | DQ31: 871128.5646 | DR31: 0 | DS31: 0 | DT31: 31 | DU31: 0 | DV31: 0 | DW31: 31 | DX31: 0 | DY31: 0 | DZ31: 0 | EA31: 0 | EB31: 0 | EC31: 0 | ED31: 0 | EE31: 0
A32: 2000 | B32: 2000.01 | C32: 2000 | D32: 2000.04 | E32: 1 | F32: 21 | G32: 1.21 | H32: 4.21 | I32: W | J32: 2000-01-21 | K32: =Data!D32 -> 9900 | L32: 10356.66667 | M32: =Data!E32+Data!F32+Data!G32 -> 3841 | N32: 3806 | O32: =IF(AND(L32>Control!$F$6,N32>Control!$F$7,R31=1),1,0) -> 0 | P32: =IF(AND(Q31>0,Q31<Control!$F$8),0,IF(AND(L32<Control!$F$6-500,N32<Control!$F$7),1,0))*(1-O32) -> 0 | Q32: =IF(AND(Q31<Control!$F$8,Q31>0),Q31+1,IF(AND(O32=1,R31=1),1,0)) -> 0 | R32: 0 | S32: =IF(AND(Q32>0,OR(K32>Control!$F$9,SUM(S26:S31)>0)),MAX(K32-Control!$F$10,0),0) -> 0 | T32: =CHOOSE($T$1+1,99999,IF(AND(H32>=Control!$F$4,H32<=Control!$F$5),IF(Q32<>0,S32,99999),0)) -> 99999 | U32: 9900 | V32: =INDEX(Control!$D$15:$D$26,MATCH(E32,Control!$C$15:$C$26,0)) -> 3250 | W32: =(INDEX(WRs!$C$47:$N$47,1,MATCH(E32,WRs!$C$1:$N$1,0))+$W$1*(INDEX(WRs!$C$6:$N$6,1,MATCH(E32,WRs!$C$1:$N$1,0))+INDEX(WRs!$C$7:$N$7,1,MATCH(E32,WRs!$C$1:$N$1,0))))*$X$1 -> 3524.282527 | X32: 6375.717473 | Y32: =IF(ISNUMBER(Data!H32),Data!H32,U32) -> 9900 | Z32: =INDEX(Control!$E$15:$E$26,MATCH(E32,Control!$C$15:$C$26,0)) -> 4000 | AA32: =(INDEX(WRs!$C$181:$N$181,1,MATCH(E32,WRs!$C$1:$N$1,0))+$W$1*INDEX(WRs!$C$8:$N$8,1,MATCH(E32,WRs!$C$1:$N$1,0))+W32)*$X$1 -> 8463.419907 | AB32: 1436.580093 | AC32: =Data!I32 -> 19100 | AD32: =INDEX(Control!$F$15:$F$26,MATCH(E32,Control!$C$15:$C$26,0)) -> 10700 | AE32: =(INDEX(WRs!$C$274:$N$274,1,MATCH(E32,WRs!$C$1:$N$1,0))+AA32)*$X$1 -> 8985.202438 | AF32: 8400 | AG32: =Data!J32 -> 22600 | AH32: =(INDEX(WRs!$C$353:$N$353,1,MATCH(E32,WRs!$C$1:$N$1,0))+AE32)*$X$1 -> 10440.7222 | AI32: 12159.2778 | AJ32: =IF(AND(E32=1,VLOOKUP(C32,Control!$N$4:$R$25,5,FALSE)>0.8),6000,INDEX(Control!$O$30:$S$41,E32,MATCH(I32,Control!$O$29:$S$29,0))) -> 4500 | AK32: =Data!R32 -> 23893 | AL32: 24247.66667 | AM32: 18584.14286 | AN32: 9572.380952 | AO32: 5072.380952 | AP32: =IF(E32=2,VLOOKUP(C32,Control!$N$4:$Y$25,12,FALSE),IF(AND(E32>2,E32<7),0.35,0.65)) -> 0.65 | AQ32: =Data!T32+Data!U32 -> 7226 | AR32: 7304 | AS32: =AVERAGE(Data!P19:P32) -> 20288.28571 | AT32: 9051.362637 | AU32: =MIN(MAX(INDEX(WRs!$C$364:$N$364,1,WAA!E32)-WAA!AQ32,0),MAX(AS32*AP32-AR32,0)) -> 4054 | AV32: =MAX(INDEX(WRs!$C$358:$N$358,1,E32)-Data!V32,0) -> 56 | AW32: =MAX(INDEX(WRs!$C$361:$N$361,1,E32)+INDEX(WRs!$C$362:$N$362,1,E32)-Data!S32,0) -> 313 | AX32: =INDEX(WRs!$C$363:$N$363,1,E32) -> 31 | AY32: 4454 | AZ32: =Data!Z32 -> 77.98 | BA32: =IF(AND(E32>1,E32<5),7100,IF(AND(E32>4,E32<7),VLOOKUP(A32,Control!$N$4:$Z$25,13,FALSE),0)) -> 0 | BB32: =Data!AA32 -> 3.28 | BC32: 4.363285714 | BD32: =IF(G32=2.01,IF(AND(VLOOKUP(A32,Control!$N$4:$S$25,6,FALSE)>0.9,MIN(BB32:BB45,BC32:BC45)>2.64),0,1),BD31) -> 1 | BE32: =Data!AB32 -> 6.45 | BF32: 8.603571429 | BG32: =IF(AND(E32>1,E32<7),INDEX(Control!$AJ$4:$AN$126,MATCH(VLOOKUP(A32,Control!$N$4:$W$25,E32+4,FALSE)*1000,Control!$AI$4:$AI$126,1),E32-1),0) -> 0 | BH32: 0 | BI32: 0 | BJ32: =Data!AC32 -> 15.264 | BK32: 17.18628571 | BL32: =IF(F32=1,IF(AND(E32>1,E32<7,BK31<=2.64),INDEX(Control!$AQ$4:$AU$102,MATCH(VLOOKUP(A32,Control!$N$4:$W$25,E32+4,FALSE)*1000,Control!$AP$4:$AP$126,1),E32-1),0),BL31) -> 0 | BM32: 0 | BN32: 0 | BO32: 99999 | BP32: =INDEX(Control!$V$30:$Z$41,E32,MATCH(I32,Control!$V$29:$Z$29,0)) -> 99999 | BQ32: 0 | BR32: 0 | BS32: 99999 | BT32: =INDEX(Control!$AC$30:$AG$41,E32,MATCH(I32,Control!$AC$29:$AG$29,0)) -> 0 | BU32: =Data!Y32 -> 21405 | BV32: =AVERAGE(BU26:BU32) -> 17685.42857 | BW32: 11169.47619 | BX32: =Data!N32 -> 4074 | BY32: =ABS(BX32-(Data!L32*Control!$AC$18+Control!$AD$18)) -> 0.2 | BZ32: =ABS(BX32-(Data!L32*Control!$AC$19+Control!$AD$19)) -> 3856.4 | CA32: =ABS(BX32-(Data!L32*Control!$AC$20+Control!$AD$20)) -> 5165.2 | CB32: 0 | CC32: 11169.47619 | CD32: =IF(BT32=0,99999,(CC32+INDEX(Control!$AD$18:$AD$20,CB32+1))/(1-INDEX(Control!$AC$18:$AC$20,CB32+1))) -> 99999 | CE32: =IF(OR(G32>=Control!$B$4,G32<=Control!$C$4),1,0) -> 1 | CF32: =Data!B32 -> 0 | CG32: 1436.580093 | CH32: 1436.580093 | CI32: =Data!C32 -> 0 | CJ32: =IF(SUM(INDIRECT(_xlfn.CONCAT($CJ$1,ROW(CI32)-Control!$I$3+1,":",$CJ$1,ROW(CI32))))=0,1,0) -> 0 | CK32: 0 | CL32: 0 | CM32: 0 | CN32: 0 | CO32: =INDEX(Control!$G$15:$G$26,MATCH(E32,Control!$C$15:$C$26,0)) -> 2200 | CP32: 0 | CQ32: =INDEX(Control!$H$15:$H$26,MATCH(E32,Control!$C$15:$C$26,0)) -> 2000 | CR32: 0 | CS32: 0 | CU32: 30 | CV32: 2001.09 | CW32: 532859.2155 | CX32: 17982.13902 | CY32: 0 | CZ32: 30 | DA32: 532859.2155 | DB32: 193388.325 | DC32: 301430.0774 | DD32: 231429.1381 | DE32: 30 | DF32: 413807.3792 | DG32: 238016.4 | DH32: 660383.5761 | DI32: 0 | DJ32: 0 | DK32: 446736.9481 | DL32: 297520.5 | DM32: 732766.2703 | DN32: 0 | DO32: 0 | DP32: 667437.655 | DQ32: 836858.0924 | DR32: 0 | DS32: 0 | DT32: 0 | DU32: 0 | DV32: 0 | DW32: 30 | DX32: 0 | DY32: 0 | DZ32: 0 | EA32: 0 | EB32: 0 | EC32: 0 | ED32: 0 | EE32: 0
A33: 2000 | B33: 2000.01 | C33: 2000 | D33: 2000.04 | E33: 1 | F33: 22 | G33: 1.22 | H33: 4.22 | I33: W | J33: 2000-01-22 | K33: =Data!D33 -> 9970 | L33: 14923.33333 | M33: =Data!E33+Data!F33+Data!G33 -> 3034 | N33: 5892.333333 | O33: =IF(AND(L33>Control!$F$6,N33>Control!$F$7,R32=1),1,0) -> 0 | P33: =IF(AND(Q32>0,Q32<Control!$F$8),0,IF(AND(L33<Control!$F$6-500,N33<Control!$F$7),1,0))*(1-O33) -> 0 | Q33: =IF(AND(Q32<Control!$F$8,Q32>0),Q32+1,IF(AND(O33=1,R32=1),1,0)) -> 0 | R33: 0 | S33: =IF(AND(Q33>0,OR(K33>Control!$F$9,SUM(S27:S32)>0)),MAX(K33-Control!$F$10,0),0) -> 0 | T33: =CHOOSE($T$1+1,99999,IF(AND(H33>=Control!$F$4,H33<=Control!$F$5),IF(Q33<>0,S33,99999),0)) -> 99999 | U33: 9970 | V33: =INDEX(Control!$D$15:$D$26,MATCH(E33,Control!$C$15:$C$26,0)) -> 3250 | W33: =(INDEX(WRs!$C$47:$N$47,1,MATCH(E33,WRs!$C$1:$N$1,0))+$W$1*(INDEX(WRs!$C$6:$N$6,1,MATCH(E33,WRs!$C$1:$N$1,0))+INDEX(WRs!$C$7:$N$7,1,MATCH(E33,WRs!$C$1:$N$1,0))))*$X$1 -> 3524.282527 | X33: 6445.717473 | Y33: =IF(ISNUMBER(Data!H33),Data!H33,U33) -> 9970 | Z33: =INDEX(Control!$E$15:$E$26,MATCH(E33,Control!$C$15:$C$26,0)) -> 4000 | AA33: =(INDEX(WRs!$C$181:$N$181,1,MATCH(E33,WRs!$C$1:$N$1,0))+$W$1*INDEX(WRs!$C$8:$N$8,1,MATCH(E33,WRs!$C$1:$N$1,0))+W33)*$X$1 -> 8463.419907 | AB33: 1506.580093 | AC33: =Data!I33 -> 17500 | AD33: =INDEX(Control!$F$15:$F$26,MATCH(E33,Control!$C$15:$C$26,0)) -> 10700 | AE33: =(INDEX(WRs!$C$274:$N$274,1,MATCH(E33,WRs!$C$1:$N$1,0))+AA33)*$X$1 -> 8985.202438 | AF33: 6800 | AG33: =Data!J33 -> 24800 | AH33: =(INDEX(WRs!$C$353:$N$353,1,MATCH(E33,WRs!$C$1:$N$1,0))+AE33)*$X$1 -> 10440.7222 | AI33: 14359.2778 | AJ33: =IF(AND(E33=1,VLOOKUP(C33,Control!$N$4:$R$25,5,FALSE)>0.8),6000,INDEX(Control!$O$30:$S$41,E33,MATCH(I33,Control!$O$29:$S$29,0))) -> 4500 | AK33: =Data!R33 -> 26438 | AL33: 24673.66667 | AM33: 20900.14286 | AN33: 10339 | AO33: 5839 | AP33: =IF(E33=2,VLOOKUP(C33,Control!$N$4:$Y$25,12,FALSE),IF(AND(E33>2,E33<7),0.35,0.65)) -> 0.65 | AQ33: =Data!T33+Data!U33 -> 7224 | AR33: 7244.333333 | AS33: =AVERAGE(Data!P20:P33) -> 21353.64286 | AT33: 10208.51465 | AU33: =MIN(MAX(INDEX(WRs!$C$364:$N$364,1,WAA!E33)-WAA!AQ33,0),MAX(AS33*AP33-AR33,0)) -> 4056 | AV33: =MAX(INDEX(WRs!$C$358:$N$358,1,E33)-Data!V33,0) -> 60 | AW33: =MAX(INDEX(WRs!$C$361:$N$361,1,E33)+INDEX(WRs!$C$362:$N$362,1,E33)-Data!S33,0) -> 310 | AX33: =INDEX(WRs!$C$363:$N$363,1,E33) -> 31 | AY33: 4457 | AZ33: =Data!Z33 -> 77.28 | BA33: =IF(AND(E33>1,E33<5),7100,IF(AND(E33>4,E33<7),VLOOKUP(A33,Control!$N$4:$Z$25,13,FALSE),0)) -> 0 | BB33: =Data!AA33 -> 2.068 | BC33: 4.200142857 | BD33: =IF(G33=2.01,IF(AND(VLOOKUP(A33,Control!$N$4:$S$25,6,FALSE)>0.9,MIN(BB33:BB46,BC33:BC46)>2.64),0,1),BD32) -> 1 | BE33: =Data!AB33 -> 5.09 | BF33: 8.362142857 | BG33: =IF(AND(E33>1,E33<7),INDEX(Control!$AJ$4:$AN$126,MATCH(VLOOKUP(A33,Control!$N$4:$W$25,E33+4,FALSE)*1000,Control!$AI$4:$AI$126,1),E33-1),0) -> 0 | BH33: 0 | BI33: 0 | BJ33: =Data!AC33 -> 13.38 | BK33: 16.91121429 | BL33: =IF(F33=1,IF(AND(E33>1,E33<7,BK32<=2.64),INDEX(Control!$AQ$4:$AU$102,MATCH(VLOOKUP(A33,Control!$N$4:$W$25,E33+4,FALSE)*1000,Control!$AP$4:$AP$126,1),E33-1),0),BL32) -> 0 | BM33: 0 | BN33: 0 | BO33: 99999 | BP33: =INDEX(Control!$V$30:$Z$41,E33,MATCH(I33,Control!$V$29:$Z$29,0)) -> 99999 | BQ33: 0 | BR33: 0 | BS33: 99999 | BT33: =INDEX(Control!$AC$30:$AG$41,E33,MATCH(I33,Control!$AC$29:$AG$29,0)) -> 0 | BU33: =Data!Y33 -> 24160 | BV33: 19713 | BW33: 11759.95455 | BX33: =Data!N33 -> 4526 | BY33: =ABS(BX33-(Data!L33*Control!$AC$18+Control!$AD$18)) -> 0.4 | BZ33: =ABS(BX33-(Data!L33*Control!$AC$19+Control!$AD$19)) -> 4138.8 | CA33: =ABS(BX33-(Data!L33*Control!$AC$20+Control!$AD$20)) -> 5709.4 | CB33: 0 | CC33: 11759.95455 | CD33: =IF(BT33=0,99999,(CC33+INDEX(Control!$AD$18:$AD$20,CB33+1))/(1-INDEX(Control!$AC$18:$AC$20,CB33+1))) -> 99999 | CE33: =IF(OR(G33>=Control!$B$4,G33<=Control!$C$4),1,0) -> 1 | CF33: =Data!B33 -> 0 | CG33: 1506.580093 | CH33: 1506.580093 | CI33: =Data!C33 -> 0 | CJ33: =IF(SUM(INDIRECT(_xlfn.CONCAT($CJ$1,ROW(CI33)-Control!$I$3+1,":",$CJ$1,ROW(CI33))))=0,1,0) -> 0 | CK33: 0 | CL33: 0 | CM33: 0 | CN33: 0 | CO33: =INDEX(Control!$G$15:$G$26,MATCH(E33,Control!$C$15:$C$26,0)) -> 2200 | CP33: 0 | CQ33: =INDEX(Control!$H$15:$H$26,MATCH(E33,Control!$C$15:$C$26,0)) -> 2000 | CR33: 0 | CS33: 0 | CU33: 31 | CV33: 2001.1 | CW33: 417421.2615 | CX33: 19979.49331 | CY33: 0 | CZ33: 31 | DA33: 417421.2615 | DB33: 199834.6025 | DC33: 358035.5198 | DD33: 59385.74171 | DE33: 31 | DF33: 279778.3608 | DG33: 245950.28 | DH33: 722198.0626 | DI33: 0 | DJ33: 0 | DK33: 292859.3455 | DL33: 657916.999 | DM33: 788616.788 | DN33: 0 | DO33: 0 | DP33: 454492.3158 | DQ33: 897095.1626 | DR33: 0 | DS33: 0 | DT33: 0 | DU33: 0 | DV33: 0 | DW33: 31 | DX33: 0 | DY33: 0 | DZ33: 0 | EA33: 0 | EB33: 0 | EC33: 0 | ED33: 0 | EE33: 0
A34: 2000 | B34: 2000.01 | C34: 2000 | D34: 2000.04 | E34: 1 | F34: 23 | G34: 1.23 | H34: 4.23 | I34: W | J34: 2000-01-23 | K34: =Data!D34 -> 11200 | L34: 19000 | M34: =Data!E34+Data!F34+Data!G34 -> 4543 | N34: 7321.333333 | O34: =IF(AND(L34>Control!$F$6,N34>Control!$F$7,R33=1),1,0) -> 0 | P34: =IF(AND(Q33>0,Q33<Control!$F$8),0,IF(AND(L34<Control!$F$6-500,N34<Control!$F$7),1,0))*(1-O34) -> 0 | Q34: =IF(AND(Q33<Control!$F$8,Q33>0),Q33+1,IF(AND(O34=1,R33=1),1,0)) -> 0 | R34: 0 | S34: =IF(AND(Q34>0,OR(K34>Control!$F$9,SUM(S28:S33)>0)),MAX(K34-Control!$F$10,0),0) -> 0 | T34: =CHOOSE($T$1+1,99999,IF(AND(H34>=Control!$F$4,H34<=Control!$F$5),IF(Q34<>0,S34,99999),0)) -> 99999 | U34: 11200 | V34: =INDEX(Control!$D$15:$D$26,MATCH(E34,Control!$C$15:$C$26,0)) -> 3250 | W34: =(INDEX(WRs!$C$47:$N$47,1,MATCH(E34,WRs!$C$1:$N$1,0))+$W$1*(INDEX(WRs!$C$6:$N$6,1,MATCH(E34,WRs!$C$1:$N$1,0))+INDEX(WRs!$C$7:$N$7,1,MATCH(E34,WRs!$C$1:$N$1,0))))*$X$1 -> 3524.282527 | X34: 7675.717473 | Y34: =IF(ISNUMBER(Data!H34),Data!H34,U34) -> 11200 | Z34: =INDEX(Control!$E$15:$E$26,MATCH(E34,Control!$C$15:$C$26,0)) -> 4000 | AA34: =(INDEX(WRs!$C$181:$N$181,1,MATCH(E34,WRs!$C$1:$N$1,0))+$W$1*INDEX(WRs!$C$8:$N$8,1,MATCH(E34,WRs!$C$1:$N$1,0))+W34)*$X$1 -> 8463.419907 | AB34: 2736.580093 | AC34: =Data!I34 -> 14500 | AD34: =INDEX(Control!$F$15:$F$26,MATCH(E34,Control!$C$15:$C$26,0)) -> 10700 | AE34: =(INDEX(WRs!$C$274:$N$274,1,MATCH(E34,WRs!$C$1:$N$1,0))+AA34)*$X$1 -> 8985.202438 | AF34: 3800 | AG34: =Data!J34 -> 22100 | AH34: =(INDEX(WRs!$C$353:$N$353,1,MATCH(E34,WRs!$C$1:$N$1,0))+AE34)*$X$1 -> 10440.7222 | AI34: 11659.2778 | AJ34: =IF(AND(E34=1,VLOOKUP(C34,Control!$N$4:$R$25,5,FALSE)>0.8),6000,INDEX(Control!$O$30:$S$41,E34,MATCH(I34,Control!$O$29:$S$29,0))) -> 4500 | AK34: =Data!R34 -> 29204 | AL34: 26511.66667 | AM34: 23867.42857 | AN34: 11159.21739 | AO34: 6659.217391 | AP34: =IF(E34=2,VLOOKUP(C34,Control!$N$4:$Y$25,12,FALSE),IF(AND(E34>2,E34<7),0.35,0.65)) -> 0.65 | AQ34: =Data!T34+Data!U34 -> 7026 | AR34: 7158.666667 | AS34: =AVERAGE(Data!P21:P34) -> 22323.42857 | AT34: 11310.09524 | AU34: =MIN(MAX(INDEX(WRs!$C$364:$N$364,1,WAA!E34)-WAA!AQ34,0),MAX(AS34*AP34-AR34,0)) -> 4254 | AV34: =MAX(INDEX(WRs!$C$358:$N$358,1,E34)-Data!V34,0) -> 60 | AW34: =MAX(INDEX(WRs!$C$361:$N$361,1,E34)+INDEX(WRs!$C$362:$N$362,1,E34)-Data!S34,0) -> 317 | AX34: =INDEX(WRs!$C$363:$N$363,1,E34) -> 31 | AY34: 4662 | AZ34: =Data!Z34 -> 76.55 | BA34: =IF(AND(E34>1,E34<5),7100,IF(AND(E34>4,E34<7),VLOOKUP(A34,Control!$N$4:$Z$25,13,FALSE),0)) -> 0 | BB34: =Data!AA34 -> 1.276 | BC34: 3.975214286 | BD34: =IF(G34=2.01,IF(AND(VLOOKUP(A34,Control!$N$4:$S$25,6,FALSE)>0.9,MIN(BB34:BB47,BC34:BC47)>2.64),0,1),BD33) -> 1 | BE34: =Data!AB34 -> 4.43 | BF34: 8.075714286 | BG34: =IF(AND(E34>1,E34<7),INDEX(Control!$AJ$4:$AN$126,MATCH(VLOOKUP(A34,Control!$N$4:$W$25,E34+4,FALSE)*1000,Control!$AI$4:$AI$126,1),E34-1),0) -> 0 | BH34: 0 | BI34: 0 | BJ34: =Data!AC34 -> 12.422 | BK34: 16.5715 | BL34: =IF(F34=1,IF(AND(E34>1,E34<7,BK33<=2.64),INDEX(Control!$AQ$4:$AU$102,MATCH(VLOOKUP(A34,Control!$N$4:$W$25,E34+4,FALSE)*1000,Control!$AP$4:$AP$126,1),E34-1),0),BL33) -> 0 | BM34: 0 | BN34: 0 | BO34: 99999 | BP34: =INDEX(Control!$V$30:$Z$41,E34,MATCH(I34,Control!$V$29:$Z$29,0)) -> 99999 | BQ34: 0 | BR34: 0 | BS34: 99999 | BT34: =INDEX(Control!$AC$30:$AG$41,E34,MATCH(I34,Control!$AC$29:$AG$29,0)) -> 0 | BU34: =Data!Y34 -> 23878 | BV34: 21440.14286 | BW34: 12286.82609 | BX34: =Data!N34 -> 4314 | BY34: =ABS(BX34-(Data!L34*Control!$AC$18+Control!$AD$18)) -> 0.4 | BZ34: =ABS(BX34-(Data!L34*Control!$AC$19+Control!$AD$19)) -> 4005.2 | CA34: =ABS(BX34-(Data!L34*Control!$AC$20+Control!$AD$20)) -> 5452.6 | CB34: 0 | CC34: 12286.82609 | CD34: =IF(BT34=0,99999,(CC34+INDEX(Control!$AD$18:$AD$20,CB34+1))/(1-INDEX(Control!$AC$18:$AC$20,CB34+1))) -> 99999 | CE34: =IF(OR(G34>=Control!$B$4,G34<=Control!$C$4),1,0) -> 1 | CF34: =Data!B34 -> 0 | CG34: 2736.580093 | CH34: 2736.580093 | CI34: =Data!C34 -> 0 | CJ34: =IF(SUM(INDIRECT(_xlfn.CONCAT($CJ$1,ROW(CI34)-Control!$I$3+1,":",$CJ$1,ROW(CI34))))=0,1,0) -> 0 | CK34: 0 | CL34: 0 | CM34: 0 | CN34: 0 | CO34: =INDEX(Control!$G$15:$G$26,MATCH(E34,Control!$C$15:$C$26,0)) -> 2200 | CP34: 0 | CQ34: =INDEX(Control!$H$15:$H$26,MATCH(E34,Control!$C$15:$C$26,0)) -> 2000 | CR34: 0 | CS34: 0 | CU34: 30 | CV34: 2001.11 | CW34: 432158.4436 | CX34: 76093.84308 | CY34: 1 | CZ34: 23 | DA34: 432158.4436 | DB34: 193388.325 | DC34: 242229.2903 | DD34: 125338.6429 | DE34: 23 | DF34: 363266.5801 | DG34: 238016.4 | DH34: 522373.9168 | DI34: 20726.11651 | DJ34: 2 | DK34: 406055.9784 | DL34: 636693.87 | DM34: 575957.0887 | DN34: 1190.082 | DO34: 1 | DP34: 670591.3723 | DQ34: 662687.2297 | DR34: 19793.05007 | DS34: 6 | DT34: 0 | DU34: 1190.082 | DV34: 1190.082 | DW34: 30 | DX34: 0 | DY34: 0 | DZ34: 0 | EA34: 0 | EB34: 0 | EC34: 0 | ED34: 0 | EE34: 0
A35: 2000 | B35: 2000.01 | C35: 2000 | D35: 2000.04 | E35: 1 | F35: 24 | G35: 1.24 | H35: 4.24 | I35: W | J35: 2000-01-24 | K35: =Data!D35 -> 23600 | L35: 22533.33333 | M35: =Data!E35+Data!F35+Data!G35 -> 10100 | N35: 7402 | O35: =IF(AND(L35>Control!$F$6,N35>Control!$F$7,R34=1),1,0) -> 0 | P35: =IF(AND(Q34>0,Q34<Control!$F$8),0,IF(AND(L35<Control!$F$6-500,N35<Control!$F$7),1,0))*(1-O35) -> 0 | Q35: =IF(AND(Q34<Control!$F$8,Q34>0),Q34+1,IF(AND(O35=1,R34=1),1,0)) -> 0 | R35: 0 | S35: =IF(AND(Q35>0,OR(K35>Control!$F$9,SUM(S29:S34)>0)),MAX(K35-Control!$F$10,0),0) -> 0 | T35: =CHOOSE($T$1+1,99999,IF(AND(H35>=Control!$F$4,H35<=Control!$F$5),IF(Q35<>0,S35,99999),0)) -> 99999 | U35: 23600 | V35: =INDEX(Control!$D$15:$D$26,MATCH(E35,Control!$C$15:$C$26,0)) -> 3250 | W35: =(INDEX(WRs!$C$47:$N$47,1,MATCH(E35,WRs!$C$1:$N$1,0))+$W$1*(INDEX(WRs!$C$6:$N$6,1,MATCH(E35,WRs!$C$1:$N$1,0))+INDEX(WRs!$C$7:$N$7,1,MATCH(E35,WRs!$C$1:$N$1,0))))*$X$1 -> 3524.282527 | X35: 20075.71747 | Y35: =IF(ISNUMBER(Data!H35),Data!H35,U35) -> 23600 | Z35: =INDEX(Control!$E$15:$E$26,MATCH(E35,Control!$C$15:$C$26,0)) -> 4000 | AA35: =(INDEX(WRs!$C$181:$N$181,1,MATCH(E35,WRs!$C$1:$N$1,0))+$W$1*INDEX(WRs!$C$8:$N$8,1,MATCH(E35,WRs!$C$1:$N$1,0))+W35)*$X$1 -> 8463.419907 | AB35: 15136.58009 | AC35: =Data!I35 -> 14700 | AD35: =INDEX(Control!$F$15:$F$26,MATCH(E35,Control!$C$15:$C$26,0)) -> 10700 | AE35: =(INDEX(WRs!$C$274:$N$274,1,MATCH(E35,WRs!$C$1:$N$1,0))+AA35)*$X$1 -> 8985.202438 | AF35: 4000 | AG35: =Data!J35 -> 22300 | AH35: =(INDEX(WRs!$C$353:$N$353,1,MATCH(E35,WRs!$C$1:$N$1,0))+AE35)*$X$1 -> 10440.7222 | AI35: 11859.2778 | AJ35: =IF(AND(E35=1,VLOOKUP(C35,Control!$N$4:$R$25,5,FALSE)>0.8),6000,INDEX(Control!$O$30:$S$41,E35,MATCH(I35,Control!$O$29:$S$29,0))) -> 4500 | AK35: =Data!R35 -> 46138 | AL35: 33926.66667 | AM35: 28347.57143 | AN35: 12616.66667 | AO35: 8116.666667 | AP35: =IF(E35=2,VLOOKUP(C35,Control!$N$4:$Y$25,12,FALSE),IF(AND(E35>2,E35<7),0.35,0.65)) -> 0.65 | AQ35: =Data!T35+Data!U35 -> 7955 | AR35: 7401.666667 | AS35: =AVERAGE(Data!P22:P35) -> 23925.14286 | AT35: 12537.96337 | AU35: =MIN(MAX(INDEX(WRs!$C$364:$N$364,1,WAA!E35)-WAA!AQ35,0),MAX(AS35*AP35-AR35,0)) -> 3325 | AV35: =MAX(INDEX(WRs!$C$358:$N$358,1,E35)-Data!V35,0) -> 65 | AW35: =MAX(INDEX(WRs!$C$361:$N$361,1,E35)+INDEX(WRs!$C$362:$N$362,1,E35)-Data!S35,0) -> 327 | AX35: =INDEX(WRs!$C$363:$N$363,1,E35) -> 31 | AY35: 3748 | AZ35: =Data!Z35 -> 75.56 | BA35: =IF(AND(E35>1,E35<5),7100,IF(AND(E35>4,E35<7),VLOOKUP(A35,Control!$N$4:$Z$25,13,FALSE),0)) -> 0 | BB35: =Data!AA35 -> 1.13 | BC35: 3.734142857 | BD35: =IF(G35=2.01,IF(AND(VLOOKUP(A35,Control!$N$4:$S$25,6,FALSE)>0.9,MIN(BB35:BB48,BC35:BC48)>2.64),0,1),BD34) -> 1 | BE35: =Data!AB35 -> 3.48 | BF35: 7.741428571 | BG35: =IF(AND(E35>1,E35<7),INDEX(Control!$AJ$4:$AN$126,MATCH(VLOOKUP(A35,Control!$N$4:$W$25,E35+4,FALSE)*1000,Control!$AI$4:$AI$126,1),E35-1),0) -> 0 | BH35: 0 | BI35: 0 | BJ35: =Data!AC35 -> 10.434 | BK35: 16.05721429 | BL35: =IF(F35=1,IF(AND(E35>1,E35<7,BK34<=2.64),INDEX(Control!$AQ$4:$AU$102,MATCH(VLOOKUP(A35,Control!$N$4:$W$25,E35+4,FALSE)*1000,Control!$AP$4:$AP$126,1),E35-1),0),BL34) -> 0 | BM35: 0 | BN35: 0 | BO35: 99999 | BP35: =INDEX(Control!$V$30:$Z$41,E35,MATCH(I35,Control!$V$29:$Z$29,0)) -> 99999 | BQ35: 0 | BR35: 0 | BS35: 99999 | BT35: =INDEX(Control!$AC$30:$AG$41,E35,MATCH(I35,Control!$AC$29:$AG$29,0)) -> 0 | BU35: =Data!Y35 -> 29651 | BV35: 23320 | BW35: 13010.33333 | BX35: =Data!N35 -> 4806 | BY35: =ABS(BX35-(Data!L35*Control!$AC$18+Control!$AD$18)) -> 0.3 | BZ35: =ABS(BX35-(Data!L35*Control!$AC$19+Control!$AD$19)) -> 4312.4 | CA35: =ABS(BX35-(Data!L35*Control!$AC$20+Control!$AD$20)) -> 6044.7 | CB35: 0 | CC35: 13010.33333 | CD35: =IF(BT35=0,99999,(CC35+INDEX(Control!$AD$18:$AD$20,CB35+1))/(1-INDEX(Control!$AC$18:$AC$20,CB35+1))) -> 99999 | CE35: =IF(OR(G35>=Control!$B$4,G35<=Control!$C$4),1,0) -> 1 | CF35: =Data!B35 -> 0 | CG35: 4000 | CH35: 4000 | CI35: =Data!C35 -> 0 | CJ35: =IF(SUM(INDIRECT(_xlfn.CONCAT($CJ$1,ROW(CI35)-Control!$I$3+1,":",$CJ$1,ROW(CI35))))=0,1,0) -> 0 | CK35: 0 | CL35: 0 | CM35: 0 | CN35: 0 | CO35: =INDEX(Control!$G$15:$G$26,MATCH(E35,Control!$C$15:$C$26,0)) -> 2200 | CP35: 0 | CQ35: =INDEX(Control!$H$15:$H$26,MATCH(E35,Control!$C$15:$C$26,0)) -> 2000 | CR35: 0 | CS35: 0 | CU35: 31 | CV35: 2001.12 | CW35: 805725.1834 | CX35: 351125.7602 | CY35: 0 | CZ35: 31 | DA35: 805725.1834 | DB35: 199834.6025 | DC35: 225578.8332 | DD35: 580146.3502 | DE35: 31 | DF35: 965600.7993 | DG35: 245950.28 | DH35: 521062.8002 | DI35: 456054.253 | DJ35: 27 | DK35: 1049949.844 | DL35: 657916.999 | DM35: 550870.9001 | DN35: 395503.918 | DO35: 29 | DP35: 1513189.263 | DQ35: 639670.5309 | DR35: 873518.7321 | DS35: 31 | DT35: 0 | DU35: 262179.5799 | DV35: 272834.9818 | DW35: 5 | DX35: 20 | DY35: 66276.4797 | DZ35: 41110.86569 | EA35: 41110.86569 | EB35: 21425.33019 | EC35: 19685.5355 | ED35: 10314.044 | EE35: 29999.5795
A36: 2000 | B36: 2000.01 | C36: 2000 | D36: 2000.04 | E36: 1 | F36: 25 | G36: 1.25 | H36: 4.25 | I36: W | J36: 2000-01-25 | K36: =Data!D36 -> 22200 | L36: 20700 | M36: =Data!E36+Data!F36+Data!G36 -> 7321 | N36: 5121.333333 | O36: =IF(AND(L36>Control!$F$6,N36>Control!$F$7,R35=1),1,0) -> 0 | P36: =IF(AND(Q35>0,Q35<Control!$F$8),0,IF(AND(L36<Control!$F$6-500,N36<Control!$F$7),1,0))*(1-O36) -> 0 | Q36: =IF(AND(Q35<Control!$F$8,Q35>0),Q35+1,IF(AND(O36=1,R35=1),1,0)) -> 0 | R36: 0 | S36: =IF(AND(Q36>0,OR(K36>Control!$F$9,SUM(S30:S35)>0)),MAX(K36-Control!$F$10,0),0) -> 0 | T36: =CHOOSE($T$1+1,99999,IF(AND(H36>=Control!$F$4,H36<=Control!$F$5),IF(Q36<>0,S36,99999),0)) -> 99999 | U36: 22200 | V36: =INDEX(Control!$D$15:$D$26,MATCH(E36,Control!$C$15:$C$26,0)) -> 3250 | W36: =(INDEX(WRs!$C$47:$N$47,1,MATCH(E36,WRs!$C$1:$N$1,0))+$W$1*(INDEX(WRs!$C$6:$N$6,1,MATCH(E36,WRs!$C$1:$N$1,0))+INDEX(WRs!$C$7:$N$7,1,MATCH(E36,WRs!$C$1:$N$1,0))))*$X$1 -> 3524.282527 | X36: 18675.71747 | Y36: =IF(ISNUMBER(Data!H36),Data!H36,U36) -> 22200 | Z36: =INDEX(Control!$E$15:$E$26,MATCH(E36,Control!$C$15:$C$26,0)) -> 4000 | AA36: =(INDEX(WRs!$C$181:$N$181,1,MATCH(E36,WRs!$C$1:$N$1,0))+$W$1*INDEX(WRs!$C$8:$N$8,1,MATCH(E36,WRs!$C$1:$N$1,0))+W36)*$X$1 -> 8463.419907 | AB36: 13736.58009 | AC36: =Data!I36 -> 20800 | AD36: =INDEX(Control!$F$15:$F$26,MATCH(E36,Control!$C$15:$C$26,0)) -> 10700 | AE36: =(INDEX(WRs!$C$274:$N$274,1,MATCH(E36,WRs!$C$1:$N$1,0))+AA36)*$X$1 -> 8985.202438 | AF36: 10100 | AG36: =Data!J36 -> 34600 | AH36: =(INDEX(WRs!$C$353:$N$353,1,MATCH(E36,WRs!$C$1:$N$1,0))+AE36)*$X$1 -> 10440.7222 | AI36: 24159.2778 | AJ36: =IF(AND(E36=1,VLOOKUP(C36,Control!$N$4:$R$25,5,FALSE)>0.8),6000,INDEX(Control!$O$30:$S$41,E36,MATCH(I36,Control!$O$29:$S$29,0))) -> 4500 | AK36: =Data!R36 -> 63239 | AL36: 46193.66667 | AM36: 33966 | AN36: 14641.56 | AO36: 10141.56 | AP36: =IF(E36=2,VLOOKUP(C36,Control!$N$4:$Y$25,12,FALSE),IF(AND(E36>2,E36<7),0.35,0.65)) -> 0.65 | AQ36: =Data!T36+Data!U36 -> 9736 | AR36: 8239 | AS36: =AVERAGE(Data!P23:P36) -> 26892.28571 | AT36: 14216.9011 | AU36: =MIN(MAX(INDEX(WRs!$C$364:$N$364,1,WAA!E36)-WAA!AQ36,0),MAX(AS36*AP36-AR36,0)) -> 1544 | AV36: =MAX(INDEX(WRs!$C$358:$N$358,1,E36)-Data!V36,0) -> 67 | AW36: =MAX(INDEX(WRs!$C$361:$N$361,1,E36)+INDEX(WRs!$C$362:$N$362,1,E36)-Data!S36,0) -> 320 | AX36: =INDEX(WRs!$C$363:$N$363,1,E36) -> 31 | AY36: 1962 | AZ36: =Data!Z36 -> 74.43 | BA36: =IF(AND(E36>1,E36<5),7100,IF(AND(E36>4,E36<7),VLOOKUP(A36,Control!$N$4:$Z$25,13,FALSE),0)) -> 0 | BB36: =Data!AA36 -> 0.563 | BC36: 3.435428571 | BD36: =IF(G36=2.01,IF(AND(VLOOKUP(A36,Control!$N$4:$S$25,6,FALSE)>0.9,MIN(BB36:BB49,BC36:BC49)>2.64),0,1),BD35) -> 1 | BE36: =Data!AB36 -> 2.01 | BF36: 7.25 | BG36: =IF(AND(E36>1,E36<7),INDEX(Control!$AJ$4:$AN$126,MATCH(VLOOKUP(A36,Control!$N$4:$W$25,E36+4,FALSE)*1000,Control!$AI$4:$AI$126,1),E36-1),0) -> 0 | BH36: 0 | BI36: 0 | BJ36: =Data!AC36 -> 7.489 | BK36: 15.27157143 | BL36: =IF(F36=1,IF(AND(E36>1,E36<7,BK35<=2.64),INDEX(Control!$AQ$4:$AU$102,MATCH(VLOOKUP(A36,Control!$N$4:$W$25,E36+4,FALSE)*1000,Control!$AP$4:$AP$126,1),E36-1),0),BL35) -> 0 | BM36: 0 | BN36: 0 | BO36: 99999 | BP36: =INDEX(Control!$V$30:$Z$41,E36,MATCH(I36,Control!$V$29:$Z$29,0)) -> 99999 | BQ36: 0 | BR36: 0 | BS36: 99999 | BT36: =INDEX(Control!$AC$30:$AG$41,E36,MATCH(I36,Control!$AC$29:$AG$29,0)) -> 0 | BU36: =Data!Y36 -> 42852 | BV36: 26425.85714 | BW36: 14204 | BX36: =Data!N36 -> 6628 | BY36: =ABS(BX36-(Data!L36*Control!$AC$18+Control!$AD$18)) -> 0.2 | BZ36: =ABS(BX36-(Data!L36*Control!$AC$19+Control!$AD$19)) -> 5449.6 | CA36: =ABS(BX36-(Data!L36*Control!$AC$20+Control!$AD$20)) -> 8236.8 | CB36: 0 | CC36: 14204 | CD36: =IF(BT36=0,99999,(CC36+INDEX(Control!$AD$18:$AD$20,CB36+1))/(1-INDEX(Control!$AC$18:$AC$20,CB36+1))) -> 99999 | CE36: =IF(OR(G36>=Control!$B$4,G36<=Control!$C$4),1,0) -> 1 | CF36: =Data!B36 -> 0 | CG36: 10100 | CH36: 10100 | CI36: =Data!C36 -> 0 | CJ36: =IF(SUM(INDIRECT(_xlfn.CONCAT($CJ$1,ROW(CI36)-Control!$I$3+1,":",$CJ$1,ROW(CI36))))=0,1,0) -> 0 | CK36: 0 | CL36: 0 | CM36: 0 | CN36: 0 | CO36: =INDEX(Control!$G$15:$G$26,MATCH(E36,Control!$C$15:$C$26,0)) -> 2200 | CP36: 0 | CQ36: =INDEX(Control!$H$15:$H$26,MATCH(E36,Control!$C$15:$C$26,0)) -> 2000 | CR36: 0 | CS36: 0 | CU36: 31 | CV36: 2002.01 | CW36: 942505.2746 | CX36: 335509.9009 | CY36: 0 | CZ36: 31 | DA36: 942505.2746 | DB36: 199834.6025 | DC36: 216699.5686 | DD36: 725805.706 | DE36: 31 | DF36: 1164405.981 | DG36: 245950.28 | DH36: 520395.1239 | DI36: 666518.8364 | DJ36: 22 | DK36: 1157949.786 | DL36: 657916.999 | DM36: 552478.2639 | DN36: 501421.216 | DO36: 28 | DP36: 2093750.932 | DQ36: 641974.6372 | DR36: 1451776.295 | DS36: 31 | DT36: 0 | DU36: 423397.1368 | DV36: 427808.9345 | DW36: 0 | DX36: 31 | DY36: 1143069.708 | DZ36: 396770.3525 | EA36: 396770.3525 | EB36: 314045.9666 | EC36: 82724.38587 | ED36: 64867.72061 | EE36: 147592.1065
A37: 2000 | B37: 2000.01 | C37: 2000 | D37: 2000.04 | E37: 1 | F37: 26 | G37: 1.26 | H37: 4.26 | I37: W | J37: 2000-01-26 | K37: =Data!D37 -> 21800 | L37: 19166.66667 | M37: =Data!E37+Data!F37+Data!G37 -> 4785 | N37: 3527.666667 | O37: =IF(AND(L37>Control!$F$6,N37>Control!$F$7,R36=1),1,0) -> 0 | P37: =IF(AND(Q36>0,Q36<Control!$F$8),0,IF(AND(L37<Control!$F$6-500,N37<Control!$F$7),1,0))*(1-O37) -> 0 | Q37: =IF(AND(Q36<Control!$F$8,Q36>0),Q36+1,IF(AND(O37=1,R36=1),1,0)) -> 0 | R37: 0 | S37: =IF(AND(Q37>0,OR(K37>Control!$F$9,SUM(S31:S36)>0)),MAX(K37-Control!$F$10,0),0) -> 0 | T37: =CHOOSE($T$1+1,99999,IF(AND(H37>=Control!$F$4,H37<=Control!$F$5),IF(Q37<>0,S37,99999),0)) -> 99999 | U37: 21800 | V37: =INDEX(Control!$D$15:$D$26,MATCH(E37,Control!$C$15:$C$26,0)) -> 3250 | W37: =(INDEX(WRs!$C$47:$N$47,1,MATCH(E37,WRs!$C$1:$N$1,0))+$W$1*(INDEX(WRs!$C$6:$N$6,1,MATCH(E37,WRs!$C$1:$N$1,0))+INDEX(WRs!$C$7:$N$7,1,MATCH(E37,WRs!$C$1:$N$1,0))))*$X$1 -> 3524.282527 | X37: 18275.71747 | Y37: =IF(ISNUMBER(Data!H37),Data!H37,U37) -> 21800 | Z37: =INDEX(Control!$E$15:$E$26,MATCH(E37,Control!$C$15:$C$26,0)) -> 4000 | AA37: =(INDEX(WRs!$C$181:$N$181,1,MATCH(E37,WRs!$C$1:$N$1,0))+$W$1*INDEX(WRs!$C$8:$N$8,1,MATCH(E37,WRs!$C$1:$N$1,0))+W37)*$X$1 -> 8463.419907 | AB37: 13336.58009 | AC37: =Data!I37 -> 23600 | AD37: =INDEX(Control!$F$15:$F$26,MATCH(E37,Control!$C$15:$C$26,0)) -> 10700 | AE37: =(INDEX(WRs!$C$274:$N$274,1,MATCH(E37,WRs!$C$1:$N$1,0))+AA37)*$X$1 -> 8985.202438 | AF37: 12900 | AG37: =Data!J37 -> 39900 | AH37: =(INDEX(WRs!$C$353:$N$353,1,MATCH(E37,WRs!$C$1:$N$1,0))+AE37)*$X$1 -> 10440.7222 | AI37: 29459.2778 | AJ37: =IF(AND(E37=1,VLOOKUP(C37,Control!$N$4:$R$25,5,FALSE)>0.8),6000,INDEX(Control!$O$30:$S$41,E37,MATCH(I37,Control!$O$29:$S$29,0))) -> 4500 | AK37: =Data!R37 -> 67481 | AL37: 58952.66667 | AM37: 40011.85714 | AN37: 16673.84615 | AO37: 12173.84615 | AP37: =IF(E37=2,VLOOKUP(C37,Control!$N$4:$Y$25,12,FALSE),IF(AND(E37>2,E37<7),0.35,0.65)) -> 0.65 | AQ37: =Data!T37+Data!U37 -> 10500 | AR37: 9397 | AS37: =AVERAGE(Data!P24:P37) -> 30122.57143 | AT37: 15665.64835 | AU37: =MIN(MAX(INDEX(WRs!$C$364:$N$364,1,WAA!E37)-WAA!AQ37,0),MAX(AS37*AP37-AR37,0)) -> 780 | AV37: =MAX(INDEX(WRs!$C$358:$N$358,1,E37)-Data!V37,0) -> 58 | AW37: =MAX(INDEX(WRs!$C$361:$N$361,1,E37)+INDEX(WRs!$C$362:$N$362,1,E37)-Data!S37,0) -> 323 | AX37: =INDEX(WRs!$C$363:$N$363,1,E37) -> 31 | AY37: 1192 | AZ37: =Data!Z37 -> 73.31 | BA37: =IF(AND(E37>1,E37<5),7100,IF(AND(E37>4,E37<7),VLOOKUP(A37,Control!$N$4:$Z$25,13,FALSE),0)) -> 0 | BB37: =Data!AA37 -> 0.3 | BC37: 3.14 | BD37: =IF(G37=2.01,IF(AND(VLOOKUP(A37,Control!$N$4:$S$25,6,FALSE)>0.9,MIN(BB37:BB50,BC37:BC50)>2.64),0,1),BD36) -> 1 | BE37: =Data!AB37 -> 0.99 | BF37: 6.717142857 | BG37: =IF(AND(E37>1,E37<7),INDEX(Control!$AJ$4:$AN$126,MATCH(VLOOKUP(A37,Control!$N$4:$W$25,E37+4,FALSE)*1000,Control!$AI$4:$AI$126,1),E37-1),0) -> 0 | BH37: 0 | BI37: 0 | BJ37: =Data!AC37 -> 3.919 | BK37: 14.36535714 | BL37: =IF(F37=1,IF(AND(E37>1,E37<7,BK36<=2.64),INDEX(Control!$AQ$4:$AU$102,MATCH(VLOOKUP(A37,Control!$N$4:$W$25,E37+4,FALSE)*1000,Control!$AP$4:$AP$126,1),E37-1),0),BL36) -> 0 | BM37: 0 | BN37: 0 | BO37: 99999 | BP37: =INDEX(Control!$V$30:$Z$41,E37,MATCH(I37,Control!$V$29:$Z$29,0)) -> 99999 | BQ37: 0 | BR37: 0 | BS37: 99999 | BT37: =INDEX(Control!$AC$30:$AG$41,E37,MATCH(I37,Control!$AC$29:$AG$29,0)) -> 0 | BU37: =Data!Y37 -> 49814 | BV37: 30381 | BW37: 15573.61538 | BX37: =Data!N37 -> 7559 | BY37: =ABS(BX37-(Data!L37*Control!$AC$18+Control!$AD$18)) -> 0.2 | BZ37: =ABS(BX37-(Data!L37*Control!$AC$19+Control!$AD$19)) -> 6030.6 | CA37: =ABS(BX37-(Data!L37*Control!$AC$20+Control!$AD$20)) -> 9356.8 | CB37: 0 | CC37: 15573.61538 | CD37: =IF(BT37=0,99999,(CC37+INDEX(Control!$AD$18:$AD$20,CB37+1))/(1-INDEX(Control!$AC$18:$AC$20,CB37+1))) -> 99999 | CE37: =IF(OR(G37>=Control!$B$4,G37<=Control!$C$4),1,0) -> 1 | CF37: =Data!B37 -> 0 | CG37: 12900 | CH37: 12900 | CI37: =Data!C37 -> 0 | CJ37: =IF(SUM(INDIRECT(_xlfn.CONCAT($CJ$1,ROW(CI37)-Control!$I$3+1,":",$CJ$1,ROW(CI37))))=0,1,0) -> 1 | CK37: 541.1239532 | CL37: =MIN(CG37,CK37) -> 541.1239532 | CM37: =MIN(CH37,CK37) -> 541.1239532 | CN37: =MAX(CM37-CP37,0) -> 0 | CO37: =INDEX(Control!$G$15:$G$26,MATCH(E37,Control!$C$15:$C$26,0)) -> 2200 | CP37: =MIN(CO37,CL37) -> 541.1239532 | CQ37: =INDEX(Control!$H$15:$H$26,MATCH(E37,Control!$C$15:$C$26,0)) -> 2000 | CR37: =MIN(CQ37,CM37-CP37) -> 0 | CS37: =CP37+CR37 -> 541.1239532 | CU37: 28 | CV37: 2002.02 | CW37: 478293.9558 | CX37: 163035.2836 | CY37: 1 | CZ37: 22 | DA37: 478293.9558 | DB37: 180495.77 | DC37: 170403.8912 | DD37: 172680.8982 | DE37: 22 | DF37: 482998.7466 | DG37: 222148.64 | DH37: 501470.6151 | DI37: 19223.94632 | DJ37: 3 | DK37: 593533.5628 | DL37: 594247.612 | DM37: 529111.7864 | DN37: 9917.35 | DO37: 3 | DP37: 891371.418 | DQ37: 587045.2674 | DR37: 181989.4681 | DS37: 22 | DT37: 0 | DU37: 1966.688044 | DV37: 1966.688044 | DW37: 0 | DX37: 28 | DY37: 0 | DZ37: 0 | EA37: 0 | EB37: 0 | EC37: 0 | ED37: 0 | EE37: 0
A38: 2000 | B38: 2000.01 | C38: 2000 | D38: 2000.04 | E38: 1 | F38: 27 | G38: 1.27 | H38: 4.27 | I38: W | J38: 2000-01-27 | K38: =Data!D38 -> 18100 | L38: 19533.33333 | M38: =Data!E38+Data!F38+Data!G38 -> 3258 | N38: 2643.333333 | O38: =IF(AND(L38>Control!$F$6,N38>Control!$F$7,R37=1),1,0) -> 0 | P38: =IF(AND(Q37>0,Q37<Control!$F$8),0,IF(AND(L38<Control!$F$6-500,N38<Control!$F$7),1,0))*(1-O38) -> 0 | Q38: =IF(AND(Q37<Control!$F$8,Q37>0),Q37+1,IF(AND(O38=1,R37=1),1,0)) -> 0 | R38: 0 | S38: =IF(AND(Q38>0,OR(K38>Control!$F$9,SUM(S32:S37)>0)),MAX(K38-Control!$F$10,0),0) -> 0 | T38: =CHOOSE($T$1+1,99999,IF(AND(H38>=Control!$F$4,H38<=Control!$F$5),IF(Q38<>0,S38,99999),0)) -> 99999 | U38: 18100 | V38: =INDEX(Control!$D$15:$D$26,MATCH(E38,Control!$C$15:$C$26,0)) -> 3250 | W38: =(INDEX(WRs!$C$47:$N$47,1,MATCH(E38,WRs!$C$1:$N$1,0))+$W$1*(INDEX(WRs!$C$6:$N$6,1,MATCH(E38,WRs!$C$1:$N$1,0))+INDEX(WRs!$C$7:$N$7,1,MATCH(E38,WRs!$C$1:$N$1,0))))*$X$1 -> 3524.282527 | X38: 14575.71747 | Y38: =IF(ISNUMBER(Data!H38),Data!H38,U38) -> 18100 | Z38: =INDEX(Control!$E$15:$E$26,MATCH(E38,Control!$C$15:$C$26,0)) -> 4000 | AA38: =(INDEX(WRs!$C$181:$N$181,1,MATCH(E38,WRs!$C$1:$N$1,0))+$W$1*INDEX(WRs!$C$8:$N$8,1,MATCH(E38,WRs!$C$1:$N$1,0))+W38)*$X$1 -> 8463.419907 | AB38: 9636.580093 | AC38: =Data!I38 -> 23300 | AD38: =INDEX(Control!$F$15:$F$26,MATCH(E38,Control!$C$15:$C$26,0)) -> 10700 | AE38: =(INDEX(WRs!$C$274:$N$274,1,MATCH(E38,WRs!$C$1:$N$1,0))+AA38)*$X$1 -> 8985.202438 | AF38: 12600 | AG38: =Data!J38 -> 37700 | AH38: =(INDEX(WRs!$C$353:$N$353,1,MATCH(E38,WRs!$C$1:$N$1,0))+AE38)*$X$1 -> 10440.7222 | AI38: 27259.2778 | AJ38: =IF(AND(E38=1,VLOOKUP(C38,Control!$N$4:$R$25,5,FALSE)>0.8),6000,INDEX(Control!$O$30:$S$41,E38,MATCH(I38,Control!$O$29:$S$29,0))) -> 4500 | AK38: =Data!R38 -> 64830 | AL38: 65183.33333 | AM38: 45889 | AN38: 18457.40741 | AO38: 13957.40741 | AP38: =IF(E38=2,VLOOKUP(C38,Control!$N$4:$Y$25,12,FALSE),IF(AND(E38>2,E38<7),0.35,0.65)) -> 0.65 | AQ38: =Data!T38+Data!U38 -> 10343 | AR38: 10193 | AS38: =AVERAGE(Data!P25:P38) -> 33143.92857 | AT38: 17462.39011 | AU38: =MIN(MAX(INDEX(WRs!$C$364:$N$364,1,WAA!E38)-WAA!AQ38,0),MAX(AS38*AP38-AR38,0)) -> 937 | AV38: =MAX(INDEX(WRs!$C$358:$N$358,1,E38)-Data!V38,0) -> 78 | AW38: =MAX(INDEX(WRs!$C$361:$N$361,1,E38)+INDEX(WRs!$C$362:$N$362,1,E38)-Data!S38,0) -> 323 | AX38: =INDEX(WRs!$C$363:$N$363,1,E38) -> 31 | AY38: 1369 | AZ38: =Data!Z38 -> 72.28 | BA38: =IF(AND(E38>1,E38<5),7100,IF(AND(E38>4,E38<7),VLOOKUP(A38,Control!$N$4:$Z$25,13,FALSE),0)) -> 0 | BB38: =Data!AA38 -> 0.238 | BC38: 2.878285714 | BD38: =IF(G38=2.01,IF(AND(VLOOKUP(A38,Control!$N$4:$S$25,6,FALSE)>0.9,MIN(BB38:BB51,BC38:BC51)>2.64),0,1),BD37) -> 1 | BE38: =Data!AB38 -> 0.67 | BF38: 6.219285714 | BG38: =IF(AND(E38>1,E38<7),INDEX(Control!$AJ$4:$AN$126,MATCH(VLOOKUP(A38,Control!$N$4:$W$25,E38+4,FALSE)*1000,Control!$AI$4:$AI$126,1),E38-1),0) -> 0 | BH38: 0 | BI38: 0 | BJ38: =Data!AC38 -> 1.866 | BK38: 13.35471429 | BL38: =IF(F38=1,IF(AND(E38>1,E38<7,BK37<=2.64),INDEX(Control!$AQ$4:$AU$102,MATCH(VLOOKUP(A38,Control!$N$4:$W$25,E38+4,FALSE)*1000,Control!$AP$4:$AP$126,1),E38-1),0),BL37) -> 0 | BM38: 0 | BN38: 0 | BO38: 99999 | BP38: =INDEX(Control!$V$30:$Z$41,E38,MATCH(I38,Control!$V$29:$Z$29,0)) -> 99999 | BQ38: 0 | BR38: 0 | BS38: 99999 | BT38: =INDEX(Control!$AC$30:$AG$41,E38,MATCH(I38,Control!$AC$29:$AG$29,0)) -> 0 | BU38: =Data!Y38 -> 48384 | BV38: 34306.28571 | BW38: 16788.81481 | BX38: =Data!N38 -> 7333 | BY38: =ABS(BX38-(Data!L38*Control!$AC$18+Control!$AD$18)) -> 0.3 | BZ38: =ABS(BX38-(Data!L38*Control!$AC$19+Control!$AD$19)) -> 5889.4 | CA38: =ABS(BX38-(Data!L38*Control!$AC$20+Control!$AD$20)) -> 9084.7 | CB38: 0 | CC38: 16788.81481 | CD38: =IF(BT38=0,99999,(CC38+INDEX(Control!$AD$18:$AD$20,CB38+1))/(1-INDEX(Control!$AC$18:$AC$20,CB38+1))) -> 99999 | CE38: =IF(OR(G38>=Control!$B$4,G38<=Control!$C$4),1,0) -> 1 | CF38: =Data!B38 -> 0 | CG38: 9636.580093 | CH38: 9636.580093 | CI38: =Data!C38 -> 0 | CJ38: =IF(SUM(INDIRECT(_xlfn.CONCAT($CJ$1,ROW(CI38)-Control!$I$3+1,":",$CJ$1,ROW(CI38))))=0,1,0) -> 1 | CK38: 2147.685207 | CL38: 2147.685207 | CM38: 2147.685207 | CN38: 0 | CO38: =INDEX(Control!$G$15:$G$26,MATCH(E38,Control!$C$15:$C$26,0)) -> 2200 | CP38: 2147.685207 | CQ38: =INDEX(Control!$H$15:$H$26,MATCH(E38,Control!$C$15:$C$26,0)) -> 2000 | CR38: 0 | CS38: 2147.685207 | CU38: 31 | CV38: 2002.03 | CW38: 523576.5759 | CX38: 125174.8082 | CY38: 0 | CZ38: 31 | DA38: 523576.5759 | DB38: 199834.6025 | DC38: 202707.4571 | DD38: 320869.1188 | DE38: 31 | DF38: 546344.828 | DG38: 245950.28 | DH38: 580490.0262 | DI38: 38523.0874 | DJ38: 9 | DK38: 660059.1466 | DL38: 657916.999 | DM38: 636274.7303 | DN38: 41256.176 | DO38: 13 | DP38: 1095073.787 | DQ38: 704272.2688 | DR38: 390801.5182 | DS38: 31 | DT38: 0 | DU38: 22209.2079 | DV38: 22209.2079 | DW38: 0 | DX38: 31 | DY38: 0 | DZ38: 0 | EA38: 0 | EB38: 0 | EC38: 0 | ED38: 0 | EE38: 0
A39: 2000 | B39: 2000.01 | C39: 2000 | D39: 2000.04 | E39: 1 | F39: 28 | G39: 1.28 | H39: 4.28 | I39: W | J39: 2000-01-28 | K39: =Data!D39 -> 17600 | L39: 22800 | M39: =Data!E39+Data!F39+Data!G39 -> 2540 | N39: 3324 | O39: =IF(AND(L39>Control!$F$6,N39>Control!$F$7,R38=1),1,0) -> 0 | P39: =IF(AND(Q38>0,Q38<Control!$F$8),0,IF(AND(L39<Control!$F$6-500,N39<Control!$F$7),1,0))*(1-O39) -> 0 | Q39: =IF(AND(Q38<Control!$F$8,Q38>0),Q38+1,IF(AND(O39=1,R38=1),1,0)) -> 0 | R39: 0 | S39: =IF(AND(Q39>0,OR(K39>Control!$F$9,SUM(S33:S38)>0)),MAX(K39-Control!$F$10,0),0) -> 0 | T39: =CHOOSE($T$1+1,99999,IF(AND(H39>=Control!$F$4,H39<=Control!$F$5),IF(Q39<>0,S39,99999),0)) -> 99999 | U39: 17600 | V39: =INDEX(Control!$D$15:$D$26,MATCH(E39,Control!$C$15:$C$26,0)) -> 3250 | W39: =(INDEX(WRs!$C$47:$N$47,1,MATCH(E39,WRs!$C$1:$N$1,0))+$W$1*(INDEX(WRs!$C$6:$N$6,1,MATCH(E39,WRs!$C$1:$N$1,0))+INDEX(WRs!$C$7:$N$7,1,MATCH(E39,WRs!$C$1:$N$1,0))))*$X$1 -> 3524.282527 | X39: 14075.71747 | Y39: =IF(ISNUMBER(Data!H39),Data!H39,U39) -> 17600 | Z39: =INDEX(Control!$E$15:$E$26,MATCH(E39,Control!$C$15:$C$26,0)) -> 4000 | AA39: =(INDEX(WRs!$C$181:$N$181,1,MATCH(E39,WRs!$C$1:$N$1,0))+$W$1*INDEX(WRs!$C$8:$N$8,1,MATCH(E39,WRs!$C$1:$N$1,0))+W39)*$X$1 -> 8463.419907 | AB39: 9136.580093 | AC39: =Data!I39 -> 22100 | AD39: =INDEX(Control!$F$15:$F$26,MATCH(E39,Control!$C$15:$C$26,0)) -> 10700 | AE39: =(INDEX(WRs!$C$274:$N$274,1,MATCH(E39,WRs!$C$1:$N$1,0))+AA39)*$X$1 -> 8985.202438 | AF39: 11400 | AG39: =Data!J39 -> 35400 | AH39: =(INDEX(WRs!$C$353:$N$353,1,MATCH(E39,WRs!$C$1:$N$1,0))+AE39)*$X$1 -> 10440.7222 | AI39: 24959.2778 | AJ39: =IF(AND(E39=1,VLOOKUP(C39,Control!$N$4:$R$25,5,FALSE)>0.8),6000,INDEX(Control!$O$30:$S$41,E39,MATCH(I39,Control!$O$29:$S$29,0))) -> 4500 | AK39: =Data!R39 -> 53145 | AL39: 61818.66667 | AM39: 50067.85714 | AN39: 19696.25 | AO39: 15196.25 | AP39: =IF(E39=2,VLOOKUP(C39,Control!$N$4:$Y$25,12,FALSE),IF(AND(E39>2,E39<7),0.35,0.65)) -> 0.65 | AQ39: =Data!T39+Data!U39 -> 10529 | AR39: 10457.33333 | AS39: =AVERAGE(Data!P26:P39) -> 35778.57143 | AT39: 19690.3663 | AU39: =MIN(MAX(INDEX(WRs!$C$364:$N$364,1,WAA!E39)-WAA!AQ39,0),MAX(AS39*AP39-AR39,0)) -> 751 | AV39: =MAX(INDEX(WRs!$C$358:$N$358,1,E39)-Data!V39,0) -> 86 | AW39: =MAX(INDEX(WRs!$C$361:$N$361,1,E39)+INDEX(WRs!$C$362:$N$362,1,E39)-Data!S39,0) -> 303 | AX39: =INDEX(WRs!$C$363:$N$363,1,E39) -> 31 | AY39: 1171 | AZ39: =Data!Z39 -> 71.44 | BA39: =IF(AND(E39>1,E39<5),7100,IF(AND(E39>4,E39<7),VLOOKUP(A39,Control!$N$4:$Z$25,13,FALSE),0)) -> 0 | BB39: =Data!AA39 -> 0.18 | BC39: 2.6125 | BD39: =IF(G39=2.01,IF(AND(VLOOKUP(A39,Control!$N$4:$S$25,6,FALSE)>0.9,MIN(BB39:BB52,BC39:BC52)>2.64),0,1),BD38) -> 1 | BE39: =Data!AB39 -> 0.6 | BF39: 5.725 | BG39: =IF(AND(E39>1,E39<7),INDEX(Control!$AJ$4:$AN$126,MATCH(VLOOKUP(A39,Control!$N$4:$W$25,E39+4,FALSE)*1000,Control!$AI$4:$AI$126,1),E39-1),0) -> 0 | BH39: 0 | BI39: 0 | BJ39: =Data!AC39 -> 1.486 | BK39: 12.29142857 | BL39: =IF(F39=1,IF(AND(E39>1,E39<7,BK38<=2.64),INDEX(Control!$AQ$4:$AU$102,MATCH(VLOOKUP(A39,Control!$N$4:$W$25,E39+4,FALSE)*1000,Control!$AP$4:$AP$126,1),E39-1),0),BL38) -> 0 | BM39: 0 | BN39: 0 | BO39: 99999 | BP39: =INDEX(Control!$V$30:$Z$41,E39,MATCH(I39,Control!$V$29:$Z$29,0)) -> 99999 | BQ39: 0 | BR39: 0 | BS39: 99999 | BT39: =INDEX(Control!$AC$30:$AG$41,E39,MATCH(I39,Control!$AC$29:$AG$29,0)) -> 0 | BU39: =Data!Y39 -> 44028 | BV39: 37538.14286 | BW39: 17761.64286 | BX39: =Data!N39 -> 7014 | BY39: =ABS(BX39-(Data!L39*Control!$AC$18+Control!$AD$18)) -> 0.5 | BZ39: =ABS(BX39-(Data!L39*Control!$AC$19+Control!$AD$19)) -> 5690 | CA39: =ABS(BX39-(Data!L39*Control!$AC$20+Control!$AD$20)) -> 8700.5 | CB39: 0 | CC39: 17761.64286 | CD39: =IF(BT39=0,99999,(CC39+INDEX(Control!$AD$18:$AD$20,CB39+1))/(1-INDEX(Control!$AC$18:$AC$20,CB39+1))) -> 99999 | CE39: =IF(OR(G39>=Control!$B$4,G39<=Control!$C$4),1,0) -> 1 | CF39: =Data!B39 -> 0 | CG39: 9136.580093 | CH39: 9136.580093 | CI39: =Data!C39 -> 0 | CJ39: =IF(SUM(INDIRECT(_xlfn.CONCAT($CJ$1,ROW(CI39)-Control!$I$3+1,":",$CJ$1,ROW(CI39))))=0,1,0) -> 1 | CK39: 3584.527799 | CL39: 3584.527799 | CM39: 3584.527799 | CN39: 1384.527799 | CO39: =INDEX(Control!$G$15:$G$26,MATCH(E39,Control!$C$15:$C$26,0)) -> 2200 | CP39: 2200 | CQ39: =INDEX(Control!$H$15:$H$26,MATCH(E39,Control!$C$15:$C$26,0)) -> 2000 | CR39: 1384.527799 | CS39: 3584.527799 | CU39: 30 | CV39: 2002.04 | CW39: 443067.5286 | CX39: 90495.81875 | CY39: 0 | CZ39: 30 | DA39: 443067.5286 | DB39: 193388.325 | DC39: 370376.5029 | DD39: 72691.02572 | DE39: 30 | DF39: 323503.957 | DG39: 238016.4 | DH39: 643058.693 | DI39: 0 | DJ39: 0 | DK39: 357579.9716 | DL39: 636693.87 | DM39: 710366.9391 | DN39: 0 | DO39: 0 | DP39: 656687.2476 | DQ39: 811616.9959 | DR39: 437.6252761 | DS39: 2 | DT39: 0 | DU39: 0 | DV39: 0 | DW39: 0 | DX39: 30 | DY39: 0 | DZ39: 0 | EA39: 0 | EB39: 0 | EC39: 0 | ED39: 0 | EE39: 0
A40: 2000 | B40: 2000.01 | C40: 2000 | D40: 2000.04 | E40: 1 | F40: 29 | G40: 1.29 | H40: 4.29 | I40: W | J40: 2000-01-29 | K40: =Data!D40 -> 22900 | L40: 26033.33333 | M40: =Data!E40+Data!F40+Data!G40 -> 2132 | N40: 4266.333333 | O40: =IF(AND(L40>Control!$F$6,N40>Control!$F$7,R39=1),1,0) -> 0 | P40: =IF(AND(Q39>0,Q39<Control!$F$8),0,IF(AND(L40<Control!$F$6-500,N40<Control!$F$7),1,0))*(1-O40) -> 0 | Q40: =IF(AND(Q39<Control!$F$8,Q39>0),Q39+1,IF(AND(O40=1,R39=1),1,0)) -> 0 | R40: 0 | S40: =IF(AND(Q40>0,OR(K40>Control!$F$9,SUM(S34:S39)>0)),MAX(K40-Control!$F$10,0),0) -> 0 | T40: =CHOOSE($T$1+1,99999,IF(AND(H40>=Control!$F$4,H40<=Control!$F$5),IF(Q40<>0,S40,99999),0)) -> 99999 | U40: 22900 | V40: =INDEX(Control!$D$15:$D$26,MATCH(E40,Control!$C$15:$C$26,0)) -> 3250 | W40: =(INDEX(WRs!$C$47:$N$47,1,MATCH(E40,WRs!$C$1:$N$1,0))+$W$1*(INDEX(WRs!$C$6:$N$6,1,MATCH(E40,WRs!$C$1:$N$1,0))+INDEX(WRs!$C$7:$N$7,1,MATCH(E40,WRs!$C$1:$N$1,0))))*$X$1 -> 3524.282527 | X40: 19375.71747 | Y40: =IF(ISNUMBER(Data!H40),Data!H40,U40) -> 22900 | Z40: =INDEX(Control!$E$15:$E$26,MATCH(E40,Control!$C$15:$C$26,0)) -> 4000 | AA40: =(INDEX(WRs!$C$181:$N$181,1,MATCH(E40,WRs!$C$1:$N$1,0))+$W$1*INDEX(WRs!$C$8:$N$8,1,MATCH(E40,WRs!$C$1:$N$1,0))+W40)*$X$1 -> 8463.419907 | AB40: 14436.58009 | AC40: =Data!I40 -> 20300 | AD40: =INDEX(Control!$F$15:$F$26,MATCH(E40,Control!$C$15:$C$26,0)) -> 10700 | AE40: =(INDEX(WRs!$C$274:$N$274,1,MATCH(E40,WRs!$C$1:$N$1,0))+AA40)*$X$1 -> 8985.202438 | AF40: 9600 | AG40: =Data!J40 -> 33800 | AH40: =(INDEX(WRs!$C$353:$N$353,1,MATCH(E40,WRs!$C$1:$N$1,0))+AE40)*$X$1 -> 10440.7222 | AI40: 23359.2778 | AJ40: =IF(AND(E40=1,VLOOKUP(C40,Control!$N$4:$R$25,5,FALSE)>0.8),6000,INDEX(Control!$O$30:$S$41,E40,MATCH(I40,Control!$O$29:$S$29,0))) -> 4500 | AK40: =Data!R40 -> 39530 | AL40: 52501.66667 | AM40: 51938.14286 | AN40: 20380.17241 | AO40: 15880.17241 | AP40: =IF(E40=2,VLOOKUP(C40,Control!$N$4:$Y$25,12,FALSE),IF(AND(E40>2,E40<7),0.35,0.65)) -> 0.65 | AQ40: =Data!T40+Data!U40 -> 11603 | AR40: 10825 | AS40: =AVERAGE(Data!P27:P40) -> 38170.78571 | AT40: 21516.93956 | AU40: =MIN(MAX(INDEX(WRs!$C$364:$N$364,1,WAA!E40)-WAA!AQ40,0),MAX(AS40*AP40-AR40,0)) -> 0 | AV40: =MAX(INDEX(WRs!$C$358:$N$358,1,E40)-Data!V40,0) -> 88 | AW40: =MAX(INDEX(WRs!$C$361:$N$361,1,E40)+INDEX(WRs!$C$362:$N$362,1,E40)-Data!S40,0) -> 265 | AX40: =INDEX(WRs!$C$363:$N$363,1,E40) -> 31 | AY40: 384 | AZ40: =Data!Z40 -> 70.84 | BA40: =IF(AND(E40>1,E40<5),7100,IF(AND(E40>4,E40<7),VLOOKUP(A40,Control!$N$4:$Z$25,13,FALSE),0)) -> 0 | BB40: =Data!AA40 -> 0.157 | BC40: 2.313571429 | BD40: =IF(G40=2.01,IF(AND(VLOOKUP(A40,Control!$N$4:$S$25,6,FALSE)>0.9,MIN(BB40:BB53,BC40:BC53)>2.64),0,1),BD39) -> 1 | BE40: =Data!AB40 -> 0.53 | BF40: 5.174285714 | BG40: =IF(AND(E40>1,E40<7),INDEX(Control!$AJ$4:$AN$126,MATCH(VLOOKUP(A40,Control!$N$4:$W$25,E40+4,FALSE)*1000,Control!$AI$4:$AI$126,1),E40-1),0) -> 0 | BH40: 0 | BI40: 0 | BJ40: =Data!AC40 -> 2.365 | BK40: 11.24 | BL40: =IF(F40=1,IF(AND(E40>1,E40<7,BK39<=2.64),INDEX(Control!$AQ$4:$AU$102,MATCH(VLOOKUP(A40,Control!$N$4:$W$25,E40+4,FALSE)*1000,Control!$AP$4:$AP$126,1),E40-1),0),BL39) -> 0 | BM40: 0 | BN40: 0 | BO40: 99999 | BP40: =INDEX(Control!$V$30:$Z$41,E40,MATCH(I40,Control!$V$29:$Z$29,0)) -> 99999 | BQ40: 0 | BR40: 0 | BS40: 99999 | BT40: =INDEX(Control!$AC$30:$AG$41,E40,MATCH(I40,Control!$AC$29:$AG$29,0)) -> 0 | BU40: =Data!Y40 -> 39396 | BV40: 39714.71429 | BW40: 18507.65517 | BX40: =Data!N40 -> 6748 | BY40: =ABS(BX40-(Data!L40*Control!$AC$18+Control!$AD$18)) -> 0.5 | BZ40: =ABS(BX40-(Data!L40*Control!$AC$19+Control!$AD$19)) -> 5524 | CA40: =ABS(BX40-(Data!L40*Control!$AC$20+Control!$AD$20)) -> 8380.5 | CB40: 0 | CC40: 18507.65517 | CD40: =IF(BT40=0,99999,(CC40+INDEX(Control!$AD$18:$AD$20,CB40+1))/(1-INDEX(Control!$AC$18:$AC$20,CB40+1))) -> 99999 | CE40: =IF(OR(G40>=Control!$B$4,G40<=Control!$C$4),1,0) -> 1 | CF40: =Data!B40 -> 0 | CG40: 9600 | CH40: 9600 | CI40: =Data!C40 -> 0 | CJ40: =IF(SUM(INDIRECT(_xlfn.CONCAT($CJ$1,ROW(CI40)-Control!$I$3+1,":",$CJ$1,ROW(CI40))))=0,1,0) -> 1 | CK40: 5055.450213 | CL40: 5055.450213 | CM40: 5055.450213 | CN40: 2855.450213 | CO40: =INDEX(Control!$G$15:$G$26,MATCH(E40,Control!$C$15:$C$26,0)) -> 2200 | CP40: 2200 | CQ40: =INDEX(Control!$H$15:$H$26,MATCH(E40,Control!$C$15:$C$26,0)) -> 2000 | CR40: 2000 | CS40: 4200 | CU40: 31 | CV40: 2002.05 | CW40: 652283.9442 | CX40: 64413.18825 | CY40: 0 | CZ40: 31 | DA40: 652283.9442 | DB40: 199834.6025 | DC40: 387542.3707 | DD40: 264741.5735 | DE40: 31 | DF40: 454885.0429 | DG40: 245950.28 | DH40: 708380.304 | DI40: 0 | DJ40: 0 | DK40: 399431.1886 | DL40: 657916.999 | DM40: 783209.3849 | DN40: 0 | DO40: 0 | DP40: 665355.0115 | DQ40: 899093.7597 | DR40: 19216.19347 | DS40: 5 | DT40: 0 | DU40: 0 | DV40: 0 | DW40: 0 | DX40: 31 | DY40: 0 | DZ40: 0 | EA40: 0 | EB40: 0 | EC40: 0 | ED40: 0 | EE40: 0
A41: 2000 | B41: 2000.01 | C41: 2000 | D41: 2000.04 | E41: 1 | F41: 30 | G41: 1.3 | H41: 4.3 | I41: W | J41: 2000-01-30 | K41: =Data!D41 -> 27900 | L41: 27166.66667 | M41: =Data!E41+Data!F41+Data!G41 -> 5300 | N41: 5343.666667 | O41: =IF(AND(L41>Control!$F$6,N41>Control!$F$7,R40=1),1,0) -> 0 | P41: =IF(AND(Q40>0,Q40<Control!$F$8),0,IF(AND(L41<Control!$F$6-500,N41<Control!$F$7),1,0))*(1-O41) -> 0 | Q41: =IF(AND(Q40<Control!$F$8,Q40>0),Q40+1,IF(AND(O41=1,R40=1),1,0)) -> 0 | R41: 0 | S41: =IF(AND(Q41>0,OR(K41>Control!$F$9,SUM(S35:S40)>0)),MAX(K41-Control!$F$10,0),0) -> 0 | T41: =CHOOSE($T$1+1,99999,IF(AND(H41>=Control!$F$4,H41<=Control!$F$5),IF(Q41<>0,S41,99999),0)) -> 99999 | U41: 27900 | V41: =INDEX(Control!$D$15:$D$26,MATCH(E41,Control!$C$15:$C$26,0)) -> 3250 | W41: =(INDEX(WRs!$C$47:$N$47,1,MATCH(E41,WRs!$C$1:$N$1,0))+$W$1*(INDEX(WRs!$C$6:$N$6,1,MATCH(E41,WRs!$C$1:$N$1,0))+INDEX(WRs!$C$7:$N$7,1,MATCH(E41,WRs!$C$1:$N$1,0))))*$X$1 -> 3524.282527 | X41: 24375.71747 | Y41: =IF(ISNUMBER(Data!H41),Data!H41,U41) -> 27900 | Z41: =INDEX(Control!$E$15:$E$26,MATCH(E41,Control!$C$15:$C$26,0)) -> 4000 | AA41: =(INDEX(WRs!$C$181:$N$181,1,MATCH(E41,WRs!$C$1:$N$1,0))+$W$1*INDEX(WRs!$C$8:$N$8,1,MATCH(E41,WRs!$C$1:$N$1,0))+W41)*$X$1 -> 8463.419907 | AB41: 19436.58009 | AC41: =Data!I41 -> 20400 | AD41: =INDEX(Control!$F$15:$F$26,MATCH(E41,Control!$C$15:$C$26,0)) -> 10700 | AE41: =(INDEX(WRs!$C$274:$N$274,1,MATCH(E41,WRs!$C$1:$N$1,0))+AA41)*$X$1 -> 8985.202438 | AF41: 9700 | AG41: =Data!J41 -> 32600 | AH41: =(INDEX(WRs!$C$353:$N$353,1,MATCH(E41,WRs!$C$1:$N$1,0))+AE41)*$X$1 -> 10440.7222 | AI41: 22159.2778 | AJ41: =IF(AND(E41=1,VLOOKUP(C41,Control!$N$4:$R$25,5,FALSE)>0.8),6000,INDEX(Control!$O$30:$S$41,E41,MATCH(I41,Control!$O$29:$S$29,0))) -> 4500 | AK41: =Data!R41 -> 37923 | AL41: 43532.66667 | AM41: 53183.71429 | AN41: 20964.93333 | AO41: 16464.93333 | AP41: =IF(E41=2,VLOOKUP(C41,Control!$N$4:$Y$25,12,FALSE),IF(AND(E41>2,E41<7),0.35,0.65)) -> 0.65 | AQ41: =Data!T41+Data!U41 -> 11533 | AR41: 11221.66667 | AS41: =AVERAGE(Data!P28:P41) -> 40355.14286 | AT41: 23091.04029 | AU41: =MIN(MAX(INDEX(WRs!$C$364:$N$364,1,WAA!E41)-WAA!AQ41,0),MAX(AS41*AP41-AR41,0)) -> 0 | AV41: =MAX(INDEX(WRs!$C$358:$N$358,1,E41)-Data!V41,0) -> 88 | AW41: =MAX(INDEX(WRs!$C$361:$N$361,1,E41)+INDEX(WRs!$C$362:$N$362,1,E41)-Data!S41,0) -> 269 | AX41: =INDEX(WRs!$C$363:$N$363,1,E41) -> 31 | AY41: 388 | AZ41: =Data!Z41 -> 70.29 | BA41: =IF(AND(E41>1,E41<5),7100,IF(AND(E41>4,E41<7),VLOOKUP(A41,Control!$N$4:$Z$25,13,FALSE),0)) -> 0 | BB41: =Data!AA41 -> 0.164 | BC41: 1.929785714 | BD41: =IF(G41=2.01,IF(AND(VLOOKUP(A41,Control!$N$4:$S$25,6,FALSE)>0.9,MIN(BB41:BB54,BC41:BC54)>2.64),0,1),BD40) -> 1 | BE41: =Data!AB41 -> 0.68 | BF41: 4.454285714 | BG41: =IF(AND(E41>1,E41<7),INDEX(Control!$AJ$4:$AN$126,MATCH(VLOOKUP(A41,Control!$N$4:$W$25,E41+4,FALSE)*1000,Control!$AI$4:$AI$126,1),E41-1),0) -> 0 | BH41: 0 | BI41: 0 | BJ41: =Data!AC41 -> 4.901 | BK41: 10.18171429 | BL41: =IF(F41=1,IF(AND(E41>1,E41<7,BK40<=2.64),INDEX(Control!$AQ$4:$AU$102,MATCH(VLOOKUP(A41,Control!$N$4:$W$25,E41+4,FALSE)*1000,Control!$AP$4:$AP$126,1),E41-1),0),BL40) -> 0 | BM41: 0 | BN41: 0 | BO41: 99999 | BP41: =INDEX(Control!$V$30:$Z$41,E41,MATCH(I41,Control!$V$29:$Z$29,0)) -> 99999 | BQ41: =AVERAGEIFS(AZ11:AZ41,E11:E41,E41) -> 78.70933333 | BR41: 0 | BS41: 99999 | BT41: =INDEX(Control!$AC$30:$AG$41,E41,MATCH(I41,Control!$AC$29:$AG$29,0)) -> 0 | BU41: =Data!Y41 -> 37696 | BV41: 41688.71429 | BW41: 19147.26667 | BX41: =Data!N41 -> 6468 | BY41: =ABS(BX41-(Data!L41*Control!$AC$18+Control!$AD$18)) -> 0.2 | BZ41: =ABS(BX41-(Data!L41*Control!$AC$19+Control!$AD$19)) -> 5350.4 | CA41: =ABS(BX41-(Data!L41*Control!$AC$20+Control!$AD$20)) -> 8045.2 | CB41: 0 | CC41: 19147.26667 | CD41: =IF(BT41=0,99999,(CC41+INDEX(Control!$AD$18:$AD$20,CB41+1))/(1-INDEX(Control!$AC$18:$AC$20,CB41+1))) -> 99999 | CE41: =IF(OR(G41>=Control!$B$4,G41<=Control!$C$4),1,0) -> 1 | CF41: =Data!B41 -> 0 | CG41: 9700 | CH41: 9700 | CI41: =Data!C41 -> 0 | CJ41: =IF(SUM(INDIRECT(_xlfn.CONCAT($CJ$1,ROW(CI41)-Control!$I$3+1,":",$CJ$1,ROW(CI41))))=0,1,0) -> 1 | CK41: 5636.211133 | CL41: 5636.211133 | CM41: 5636.211133 | CN41: 3436.211133 | CO41: =INDEX(Control!$G$15:$G$26,MATCH(E41,Control!$C$15:$C$26,0)) -> 2200 | CP41: 2200 | CQ41: =INDEX(Control!$H$15:$H$26,MATCH(E41,Control!$C$15:$C$26,0)) -> 2000 | CR41: 2000 | CS41: 4200 | CU41: 30 | CV41: 2002.06 | CW41: 805883.861 | CX41: 34887.25383 | CY41: 0 | CZ41: 30 | DA41: 805883.861 | DB41: 193388.325 | DC41: 381824.6165 | DD41: 155434.833 | DE41: 14 | DF41: 540733.5914 | DG41: 238016.4 | DH41: 701356.811 | DI41: 0 | DJ41: 0 | DK41: 429579.9326 | DL41: 636693.87 | DM41: 773695.8232 | DN41: 0 | DO41: 0 | DP41: 715040.935 | DQ41: 886248.6239 | DR41: 0 | DS41: 0 | DT41: 14 | DU41: 0 | DV41: 0 | DW41: 28 | DX41: 2 | DY41: 0 | DZ41: 0 | EA41: 0 | EB41: 0 | EC41: 0 | ED41: 0 | EE41: 0
A42: 2000 | B42: 2000.01 | C42: 2000 | D42: 2000.04 | E42: 1 | F42: 31 | G42: 1.31 | H42: 4.31 | I42: W | J42: 2000-01-31 | K42: =Data!D42 -> 27300 | L42: 25066.66667 | M42: =Data!E42+Data!F42+Data!G42 -> 5367 | N42: 4773.666667 | O42: =IF(AND(L42>Control!$F$6,N42>Control!$F$7,R41=1),1,0) -> 0 | P42: =IF(AND(Q41>0,Q41<Control!$F$8),0,IF(AND(L42<Control!$F$6-500,N42<Control!$F$7),1,0))*(1-O42) -> 0 | Q42: =IF(AND(Q41<Control!$F$8,Q41>0),Q41+1,IF(AND(O42=1,R41=1),1,0)) -> 0 | R42: 0 | S42: =IF(AND(Q42>0,OR(K42>Control!$F$9,SUM(S36:S41)>0)),MAX(K42-Control!$F$10,0),0) -> 0 | T42: =CHOOSE($T$1+1,99999,IF(AND(H42>=Control!$F$4,H42<=Control!$F$5),IF(Q42<>0,S42,99999),0)) -> 99999 | U42: 27300 | V42: =INDEX(Control!$D$15:$D$26,MATCH(E42,Control!$C$15:$C$26,0)) -> 3250 | W42: =(INDEX(WRs!$C$47:$N$47,1,MATCH(E42,WRs!$C$1:$N$1,0))+$W$1*(INDEX(WRs!$C$6:$N$6,1,MATCH(E42,WRs!$C$1:$N$1,0))+INDEX(WRs!$C$7:$N$7,1,MATCH(E42,WRs!$C$1:$N$1,0))))*$X$1 -> 3524.282527 | X42: 23775.71747 | Y42: =IF(ISNUMBER(Data!H42),Data!H42,U42) -> 27300 | Z42: =INDEX(Control!$E$15:$E$26,MATCH(E42,Control!$C$15:$C$26,0)) -> 4000 | AA42: =(INDEX(WRs!$C$181:$N$181,1,MATCH(E42,WRs!$C$1:$N$1,0))+$W$1*INDEX(WRs!$C$8:$N$8,1,MATCH(E42,WRs!$C$1:$N$1,0))+W42)*$X$1 -> 8463.419907 | AB42: 18836.58009 | AC42: =Data!I42 -> 23300 | AD42: =INDEX(Control!$F$15:$F$26,MATCH(E42,Control!$C$15:$C$26,0)) -> 10700 | AE42: =(INDEX(WRs!$C$274:$N$274,1,MATCH(E42,WRs!$C$1:$N$1,0))+AA42)*$X$1 -> 8985.202438 | AF42: 12600 | AG42: =Data!J42 -> 35000 | AH42: =(INDEX(WRs!$C$353:$N$353,1,MATCH(E42,WRs!$C$1:$N$1,0))+AE42)*$X$1 -> 10440.7222 | AI42: 24559.2778 | AJ42: =IF(AND(E42=1,VLOOKUP(C42,Control!$N$4:$R$25,5,FALSE)>0.8),6000,INDEX(Control!$O$30:$S$41,E42,MATCH(I42,Control!$O$29:$S$29,0))) -> 4500 | AK42: =Data!R42 -> 38834 | AL42: 38762.33333 | AM42: 52140.28571 | AN42: 21541.35484 | AO42: 17041.35484 | AP42: =IF(E42=2,VLOOKUP(C42,Control!$N$4:$Y$25,12,FALSE),IF(AND(E42>2,E42<7),0.35,0.65)) -> 0.65 | AQ42: =Data!T42+Data!U42 -> 11422 | AR42: 11519.33333 | AS42: =AVERAGE(Data!P29:P42) -> 42333.42857 | AT42: 24611.37729 | AU42: =MIN(MAX(INDEX(WRs!$C$364:$N$364,1,WAA!E42)-WAA!AQ42,0),MAX(AS42*AP42-AR42,0)) -> 0 | AV42: =MAX(INDEX(WRs!$C$358:$N$358,1,E42)-Data!V42,0) -> 84 | AW42: =MAX(INDEX(WRs!$C$361:$N$361,1,E42)+INDEX(WRs!$C$362:$N$362,1,E42)-Data!S42,0) -> 270 | AX42: =INDEX(WRs!$C$363:$N$363,1,E42) -> 31 | AY42: 385 | AZ42: =Data!Z42 -> 69.76 | BA42: =IF(AND(E42>1,E42<5),7100,IF(AND(E42>4,E42<7),VLOOKUP(A42,Control!$N$4:$Z$25,13,FALSE),0)) -> 0 | BB42: =Data!AA42 -> 0.16 | BC42: 1.5755 | BD42: =IF(G42=2.01,IF(AND(VLOOKUP(A42,Control!$N$4:$S$25,6,FALSE)>0.9,MIN(BB42:BB55,BC42:BC55)>2.64),0,1),BD41) -> 1 | BE42: =Data!AB42 -> 0.49 | BF42: 3.827857143 | BG42: =IF(AND(E42>1,E42<7),INDEX(Control!$AJ$4:$AN$126,MATCH(VLOOKUP(A42,Control!$N$4:$W$25,E42+4,FALSE)*1000,Control!$AI$4:$AI$126,1),E42-1),0) -> 0 | BH42: 0 | BI42: 0 | BJ42: =Data!AC42 -> 3.299 | BK42: 9.119214286 | BL42: =IF(F42=1,IF(AND(E42>1,E42<7,BK41<=2.64),INDEX(Control!$AQ$4:$AU$102,MATCH(VLOOKUP(A42,Control!$N$4:$W$25,E42+4,FALSE)*1000,Control!$AP$4:$AP$126,1),E42-1),0),BL41) -> 0 | BM42: 0 | BN42: 0 | BO42: 99999 | BP42: =INDEX(Control!$V$30:$Z$41,E42,MATCH(I42,Control!$V$29:$Z$29,0)) -> 99999 | BQ42: 78.42064516 | BR42: 0 | BS42: 99999 | BT42: =INDEX(Control!$AC$30:$AG$41,E42,MATCH(I42,Control!$AC$29:$AG$29,0)) -> 0 | BU42: =Data!Y42 -> 38854 | BV42: 43003.42857 | BW42: 19782.96774 | BX42: =Data!N42 -> 6654 | BY42: =ABS(BX42-(Data!L42*Control!$AC$18+Control!$AD$18)) -> 0.4 | BZ42: =ABS(BX42-(Data!L42*Control!$AC$19+Control!$AD$19)) -> 5466.8 | CA42: =ABS(BX42-(Data!L42*Control!$AC$20+Control!$AD$20)) -> 8269.4 | CB42: 0 | CC42: 19782.96774 | CD42: =IF(BT42=0,99999,(CC42+INDEX(Control!$AD$18:$AD$20,CB42+1))/(1-INDEX(Control!$AC$18:$AC$20,CB42+1))) -> 99999 | CE42: =IF(OR(G42>=Control!$B$4,G42<=Control!$C$4),1,0) -> 1 | CF42: =Data!B42 -> 0 | CG42: 12600 | CH42: 12600 | CI42: =Data!C42 -> 0 | CJ42: =IF(SUM(INDIRECT(_xlfn.CONCAT($CJ$1,ROW(CI42)-Control!$I$3+1,":",$CJ$1,ROW(CI42))))=0,1,0) -> 1 | CK42: 6215.632638 | CL42: 6215.632638 | CM42: 6215.632638 | CN42: 4015.632638 | CO42: =INDEX(Control!$G$15:$G$26,MATCH(E42,Control!$C$15:$C$26,0)) -> 2200 | CP42: 2200 | CQ42: =INDEX(Control!$H$15:$H$26,MATCH(E42,Control!$C$15:$C$26,0)) -> 2000 | CR42: 2000 | CS42: 4200 | CU42: 31 | CV42: 2002.07 | CW42: 920925.121 | CX42: 20161.57586 | CY42: 0 | CZ42: 31 | DA42: 920925.121 | DB42: 199834.6025 | DC42: 397979.8858 | DD42: 0 | DE42: 0 | DF42: 691175.824 | DG42: 245950.28 | DH42: 713136.1162 | DI42: 0 | DJ42: 0 | DK42: 536131.941 | DL42: 307437.85 | DM42: 783413.5579 | DN42: 0 | DO42: 0 | DP42: 1012759.782 | DQ42: 887940.0372 | DR42: 0 | DS42: 0 | DT42: 31 | DU42: 0 | DV42: 0 | DW42: 31 | DX42: 0 | DY42: 0 | DZ42: 0 | EA42: 0 | EB42: 0 | EC42: 0 | ED42: 0 | EE42: 0
